Workbook

Sheet Sheet1
A1: gini | B1: gini | C1: gini | D1: gini | E1: gini | F1: gini | G1: gini | H1: gini | I1: gini | J1: gini | K1: gini | L1: gini | M1: gini | N1: gini | O1: gini | P1: gini | Q1: gini | R1: gini | S1: gini | T1: gini | U1: gini | V1: gini | W1: gini | X1: gini | Y1: gini | Z1: gini | AA1: gini | AB1: gini | AC1: gini | AD1: gini | AE1: gini | AF1: gini | AG1: gini | AH1: gini | AI1: gini | AJ1: gini | AK1: gini | AL1: gini | AM1: gini | AN1: gini | AO1: gini | AP1: gini | AQ1: gini | AR1: gini | AS1: gini | AT1: gini | AU1: gini | AV1: gini | AW1: gini | AX1: gini | AY1: gini | AZ1: gini | BA1: gini | BB1: gini | BC1: gini | BD1: gini | BE1: gini | BF1: gini | BG1: gini | BH1: gini | BI1: gini | BJ1: gini | BK1: gini | BL1: gini | BM1: gini | BN1: gini | BO1: gini | BP1: gini | BQ1: gini | BR1: gini | BS1: gini | BT1: gini | BU1: gini | BV1: gini | BW1: gini | BX1: gini | BY1: gini | BZ1: gini | CA1: gini | CB1: gini | CC1: gini | CD1: gini | CE1: gini | CF1: gini | CG1: gini | CH1: gini | CI1: gini | CJ1: gini | CK1: gini | CL1: gini | CM1: gini | CN1: gini | CO1: gini | CP1: gini | CQ1: gini | CR1: gini | CS1: gini | CT1: gini | CU1: gini | CV1: gini
A2: PF03840 | B2: 4.36541753 | C2: 4.805245771 | D2: 4.542712998 | E2: 5.114199975 | F2: 4.562419328 | G2: 5.018087649 | H2: 4.594288224 | I2: 4.320158606 | J2: 4.214477907 | K2: 3.814013119 | L2: 3.507765132 | M2: 4.131287441 | N2: 5.393998323 | O2: 3.97981139 | P2: 4.844221371 | Q2: 4.245560137 | R2: 4.23378156 | S2: 4.355608838 | T2: 5.400496965 | U2: 4.737007978 | V2: 4.38377091 | W2: 5.326667013 | X2: 4.401044176 | Y2: 4.966027039 | Z2: 4.582200272 | AA2: 3.767497327 | AB2: 4.808529628 | AC2: 4.978859518 | AD2: 4.389056784 | AE2: 5.636746417 | AF2: 5.348582796 | AG2: 5.588461606 | AH2: 4.393186372 | AI2: 3.593079759 | AJ2: 3.926705716 | AK2: 4.824180077 | AL2: 4.275097702 | AM2: 4.143673945 | AN2: 5.341749509 | AO2: 4.437349032 | AP2: 4.770545982 | AQ2: 4.353132418 | AR2: 5.116884775 | AS2: 4.433190533 | AT2: 5.414226198 | AU2: 3.660583607 | AV2: 4.35041386 | AW2: 5.376780974 | AX2: 5.716891475 | AY2: 3.897885224 | AZ2: 4.605096242 | BA2: 4.013732231 | BB2: 5.251986079 | BC2: 4.691753076 | BD2: 4.70704952 | BE2: 5.040959026 | BF2: 5.054627109 | BG2: 3.790454075 | BH2: 3.952485191 | BI2: 4.773362675 | BJ2: 3.674194197 | BK2: 4.890010709 | BL2: 5.421054137 | BM2: 4.854778982 | BN2: 3.740498235 | BO2: 3.832932255 | BP2: 4.955340713 | BQ2: 4.999798108 | BR2: 4.95565934 | BS2: 5.93486543 | BT2: 5.594190954 | BU2: 5.263997539 | BV2: 4.937993038 | BW2: 3.424912353 | BX2: 4.469638304 | BY2: 3.9727531 | BZ2: 4.591341831 | CA2: 4.045626558 | CB2: 6.584639069 | CC2: 3.921776556 | CD2: 3.478911835 | CE2: 4.111818787 | CF2: 4.216879029 | CG2: 4.548856482 | CH2: 4.068116643 | CI2: 3.571499601 | CJ2: 4.249435985 | CK2: 5.339065182 | CL2: 3.798779105 | CM2: 5.349196699 | CN2: 4.866016984 | CO2: 3.034291969 | CP2: 4.299912793 | CQ2: 4.849253592 | CR2: 5.426637357 | CS2: 3.754244314 | CT2: 5.038519494 | CU2: 4.805561346 | CV2: 4.636108709 | CW2: 4.520817683 | CY2: =SUM(B2:CW2) -> 458.2949911
A3: PF00584 | B3: 3.498306057 | C3: 4.644110736 | D3: 4.543879785 | E3: 3.762271751 | F3: 4.169616532 | G3: 4.595742567 | H3: 5.041484894 | I3: 3.289967453 | J3: 4.841681237 | K3: 3.194759156 | L3: 4.839797904 | M3: 4.960522718 | N3: 5.314404103 | O3: 3.752519753 | P3: 4.381804567 | Q3: 3.721954322 | R3: 4.13763887 | S3: 3.557634077 | T3: 4.707580255 | U3: 4.8015511 | V3: 4.583154241 | W3: 6.755205667 | X3: 4.486879221 | Y3: 4.835106868 | Z3: 4.712077563 | AA3: 3.124719433 | AB3: 3.827050333 | AC3: 3.975624987 | AD3: 4.228395379 | AE3: 5.197757607 | AF3: 4.660730431 | AG3: 4.513881413 | AH3: 4.358930763 | AI3: 3.7186393 | AJ3: 4.472042758 | AK3: 4.083243388 | AL3: 4.760308595 | AM3: 4.07643026 | AN3: 3.771348027 | AO3: 3.858772478 | AP3: 3.89226582 | AQ3: 4.123240295 | AR3: 4.782994706 | AS3: 4.881604335 | AT3: 5.318132015 | AU3: 5.063909946 | AV3: 4.61344156 | AW3: 5.499178524 | AX3: 4.435688539 | AY3: 3.358053417 | AZ3: 4.051598912 | BA3: 4.635795267 | BB3: 4.830301963 | BC3: 3.992988299 | BD3: 5.040657551 | BE3: 4.56664752 | BF3: 3.592724445 | BG3: 4.304788761 | BH3: 3.664039565 | BI3: 5.218325667 | BJ3: 4.21832767 | BK3: 5.43767011 | BL3: 5.259285825 | BM3: 3.691253535 | BN3: 3.234298921 | BO3: 3.178377483 | BP3: 4.731333398 | BQ3: 4.820709743 | BR3: 3.830424689 | BS3: 5.528283665 | BT3: 5.218432617 | BU3: 4.702993438 | BV3: 5.315661044 | BW3: 3.89871316 | BX3: 3.608795332 | BY3: 5.33498711 | BZ3: 4.906270242 | CA3: 5.031846659 | CB3: 5.010901164 | CC3: 3.531556856 | CD3: 3.534890943 | CE3: 4.566982441 | CF3: 3.750302522 | CG3: 4.520316024 | CH3: 4.431925532 | CI3: 3.985008809 | CJ3: 4.602418523 | CK3: 4.549117608 | CL3: 4.119162798 | CM3: 5.130848947 | CN3: 4.128705933 | CO3: 2.741202831 | CP3: 3.423576073 | CQ3: 3.415201649 | CR3: 4.960955163 | CS3: 3.759105971 | CT3: 3.684830731 | CU3: 4.78782664 | CV3: 4.18762815 | CW3: 4.038689441 | CY3: =SUM(B3:CW3) -> 436.432723
A4: PF11745 | B4: 3.619614185 | C4: 2.985570118 | D4: 2.902684158 | E4: 2.993066509 | F4: 3.801308565 | G4: 3.344273893 | H4: 4.15439159 | I4: 2.929217221 | J4: 3.389812162 | K4: 2.253197813 | L4: 3.143476487 | M4: 4.172510729 | N4: 2.47622936 | O4: 2.020022482 | P4: 3.238910256 | Q4: 3.591129641 | R4: 3.136452396 | S4: 3.609110421 | T4: 3.167112062 | U4: 3.202426354 | V4: 2.871326765 | W4: 3.293880887 | X4: 2.576753157 | Y4: 2.535167999 | Z4: 2.599291108 | AA4: 2.630923095 | AB4: 2.835961659 | AC4: 3.410012871 | AD4: 2.349834041 | AE4: 3.225449347 | AF4: 2.878788362 | AG4: 4.395645298 | AH4: 3.297963395 | AI4: 2.564341318 | AJ4: 3.243120011 | AK4: 3.430254652 | AL4: 2.519290532 | AM4: 3.526948631 | AN4: 3.467426828 | AO4: 2.260285184 | AP4: 3.372240845 | AQ4: 3.34381763 | AR4: 2.798490921 | AS4: 2.631004639 | AT4: 4.241395253 | AU4: 4.19384725 | AV4: 2.494188814 | AW4: 2.898216011 | AX4: 3.691186827 | AY4: 2.671019719 | AZ4: 4.321513387 | BA4: 2.722891501 | BB4: 2.960354188 | BC4: 2.739949003 | BD4: 3.623217172 | BE4: 4.537937736 | BF4: 2.80527535 | BG4: 2.764503629 | BH4: 2.222488481 | BI4: 2.844799946 | BJ4: 2.675164084 | BK4: 3.978245959 | BL4: 4.577013435 | BM4: 2.622894549 | BN4: 2.54768092 | BO4: 2.567794056 | BP4: 3.701948698 | BQ4: 2.86658993 | BR4: 3.011975668 | BS4: 3.026145344 | BT4: 3.840739532 | BU4: 3.452539189 | BV4: 3.941937234 | BW4: 2.504637798 | BX4: 3.490457869 | BY4: 2.937409525 | BZ4: 3.506649025 | CA4: 2.817902492 | CB4: 3.965525531 | CC4: 3.354403659 | CD4: 2.328807805 | CE4: 3.960921146 | CF4: 3.776304168 | CG4: 2.915225028 | CH4: 2.704207883 | CI4: 2.859940364 | CJ4: 2.906888909 | CK4: 3.379195688 | CL4: 2.529211919 | CM4: 4.39339536 | CN4: 3.869130878 | CO4: 2.664866792 | CP4: 2.964878819 | CQ4: 2.689015757 | CR4: 3.535943295 | CS4: 2.446401218 | CT4: 3.577726212 | CU4: 2.92693171 | CV4: 2.798615699 | CW4: 3.200018722 | CY4: =SUM(B4:CW4) -> 315.7368017
A5: PF11839 | B5: 3.032055988 | C5: 2.706237337 | D5: 2.666446886 | E5: 3.705373268 | F5: 3.588349063 | G5: 2.73906695 | H5: 2.774385555 | I5: 2.660996963 | J5: 1.913800169 | K5: 2.371503242 | L5: 2.597132444 | M5: 3.567668875 | N5: 3.614404598 | O5: 2.493055031 | P5: 3.017788743 | Q5: 3.184640272 | R5: 2.782098297 | S5: 4.584399054 | T5: 3.850166981 | U5: 3.474682349 | V5: 2.593794574 | W5: 2.091709969 | X5: 3.070069028 | Y5: 3.461649376 | Z5: 3.80552045 | AA5: 2.398098134 | AB5: 2.179388347 | AC5: 2.978856566 | AD5: 2.897398038 | AE5: 3.029294188 | AF5: 2.927874996 | AG5: 2.337774616 | AH5: 2.322966168 | AI5: 2.427207771 | AJ5: 2.466875783 | AK5: 2.385761044 | AL5: 3.531582166 | AM5: 2.293079155 | AN5: 2.035880988 | AO5: 2.462399242 | AP5: 2.112550328 | AQ5: 1.6310433 | AR5: 3.086250045 | AS5: 2.554052327 | AT5: 2.548796116 | AU5: 2.402463007 | AV5: 2.612504573 | AW5: 2.657561084 | AX5: 2.715317706 | AY5: 3.062017168 | AZ5: 3.130333879 | BA5: 2.418471307 | BB5: 1.936474997 | BC5: 3.12733036 | BD5: 2.680064302 | BE5: 3.69174178 | BF5: 2.151073243 | BG5: 2.238108204 | BH5: 1.746750965 | BI5: 3.064774722 | BJ5: 1.816285245 | BK5: 3.944389523 | BL5: 3.134656294 | BM5: 2.72151234 | BN5: 2.370435694 | BO5: 2.236559058 | BP5: 3.212801444 | BQ5: 3.350692142 | BR5: 2.067880881 | BS5: 3.459449936 | BT5: 3.932150808 | BU5: 2.19429567 | BV5: 2.845318781 | BW5: 2.314424319 | BX5: 3.151382974 | BY5: 2.864146475 | BZ5: 3.165141702 | CA5: 2.283120798 | CB5: 3.294420215 | CC5: 2.046220526 | CD5: 1.958583016 | CE5: 2.98750827 | CF5: 2.529636736 | CG5: 2.071882497 | CH5: 2.592557713 | CI5: 2.734198756 | CJ5: 3.262275402 | CK5: 3.352098619 | CL5: 2.056727665 | CM5: 3.059480414 | CN5: 3.243479144 | CO5: 1.49864737 | CP5: 2.702310245 | CQ5: 2.651723415 | CR5: 2.578645259 | CS5: 2.836327855 | CT5: 2.597645788 | CU5: 3.599239327 | CV5: 2.529963783 | CW5: 1.801820259 | CY5: =SUM(B5:CW5) -> 275.6391484
A6: PF03526 | B6: 0.8879140438 | C6: 1.046441562 | D6: 1.32823754 | E6: 0.6154798722 | F6: 1.240698498 | G6: 1.385403874 | H6: 1.547006482 | I6: 1.238472984 | J6: 1.179520745 | K6: 1.469172987 | L6: 1.280477065 | M6: 1.830431699 | N6: 1.949389536 | O6: 1.286809324 | P6: 1.020792331 | Q6: 1.158787665 | R6: 1.131384447 | S6: 2.316431923 | T6: 0.8753542515 | U6: 1.636329162 | V6: 1.050775717 | W6: 2.124776196 | X6: 1.798660701 | Y6: 0.8759677804 | Z6: 1.500718458 | AA6: 0.8093185586 | AB6: 0.740253263 | AC6: 1.051156047 | AD6: 1.385705428 | AE6: 1.558764841 | AF6: 0.7599626342 | AG6: 1.443060282 | AH6: 1.620718571 | AI6: 1.232363179 | AJ6: 1.830694147 | AK6: 1.784382408 | AL6: 1.40792492 | AM6: 1.634509776 | AN6: 1.147903172 | AO6: 1.410957539 | AP6: 1.493887558 | AQ6: 0.9050694724 | AR6: 1.280889433 | AS6: 1.422631161 | AT6: 1.092455172 | AU6: 1.452040434 | AV6: 1.816105509 | AW6: 1.477068361 | AX6: 1.546095106 | AY6: 1.692297457 | AZ6: 0.9073376194 | BA6: 0.930633334 | BB6: 1.928733857 | BC6: 1.548620139 | BD6: 1.550779916 | BE6: 1.702960647 | BF6: 0.6191359887 | BG6: 2.067714722 | BH6: 1.151633385 | BI6: 1.358697309 | BJ6: 1.812397462 | BK6: 1.598345075 | BL6: 1.867932127 | BM6: 1.246784479 | BN6: 0.583141385 | BO6: 1.946144331 | BP6: 1.350942122 | BQ6: 1.299291837 | BR6: 1.35076652 | BS6: 1.645094589 | BT6: 0.7576817909 | BU6: 1.61725103 | BV6: 1.491200939 | BW6: 1.683270243 | BX6: 1.508374648 | BY6: 1.209667729 | BZ6: 2.411430761 | CA6: 0.7480828149 | CB6: 1.195815269 | CC6: 1.133708662 | CD6: 1.22325572 | CE6: 0.7879900029 | CF6: 1.32314954 | CG6: 1.513927464 | CH6: 0.864532314 | CI6: 1.158665807 | CJ6: 1.312278478 | CK6: 1.175390589 | CL6: 1.078323523 | CM6: 1.239868427 | CN6: 0.8627550016 | CO6: 1.118080353 | CP6: 1.275184807 | CQ6: 1.143073539 | CR6: 1.541703052 | CS6: 1.649524315 | CT6: 1.02953514 | CU6: 0.8136715267 | CV6: 0.6283399422 | CW6: 0.934168774 | CY6: =SUM(B6:CW6) -> 132.6686383
A7: PF06305 | B7: 0.7677017087 | C7: 0.634540285 | D7: 0.9177690107 | E7: 0.8443335885 | F7: 0.9438326534 | G7: 0.9651520587 | H7: 0.9458074415 | I7: 1.276864051 | J7: 0.3954684085 | K7: 1.024426055 | L7: 0.9838708736 | M7: 1.034069024 | N7: 0.5822507058 | O7: 0.6398007341 | P7: 0.9331291397 | Q7: 0.6919157193 | R7: 0.7727202312 | S7: 1.081855025 | T7: 1.169168305 | U7: 1.401567408 | V7: 0.602791532 | W7: 1.224010457 | X7: 1.041249956 | Y7: 0.7580911923 | Z7: 0.9890311808 | AA7: 1.535438099 | AB7: 0.7793272302 | AC7: 0.8429498309 | AD7: 0.768795512 | AE7: 0.6280775734 | AF7: 0.8909217218 | AG7: 0.7739184633 | AH7: 0.9963239907 | AI7: 1.196560946 | AJ7: 0.8451107122 | AK7: 0.8555319485 | AL7: 0.9117948443 | AM7: 0.8213117069 | AN7: 0.6467880555 | AO7: 0.7080003367 | AP7: 0.7778558996 | AQ7: 0.6284070318 | AR7: 0.7479338717 | AS7: 0.7795840264 | AT7: 0.8199222811 | AU7: 0.5344377536 | AV7: 0.5898784307 | AW7: 0.6054386211 | AX7: 0.7483017654 | AY7: 0.6374029414 | AZ7: 0.9699520725 | BA7: 0.7843553918 | BB7: 0.7714931819 | BC7: 0.917393094 | BD7: 1.076163218 | BE7: 0.962623418 | BF7: 0.9601347478 | BG7: 0.7669340423 | BH7: 0.7946465044 | BI7: 1.160678284 | BJ7: 0.9378544109 | BK7: 0.9491939174 | BL7: 0.9143764192 | BM7: 0.4964055709 | BN7: 0.7999785243 | BO7: 0.8252183025 | BP7: 0.6683552386 | BQ7: 0.8435783229 | BR7: 0.6279857265 | BS7: 0.8539904007 | BT7: 1.699786261 | BU7: 0.6324165307 | BV7: 0.7924109859 | BW7: 0.8950199715 | BX7: 0.6070351785 | BY7: 1.158403033 | BZ7: 0.9894132233 | CA7: 1.237442921 | CB7: 0.4466748014 | CC7: 1.243946635 | CD7: 0.9018311351 | CE7: 0.7253949438 | CF7: 1.13869742 | CG7: 0.5660642929 | CH7: 1.140048547 | CI7: 0.9879702299 | CJ7: 1.017309942 | CK7: 0.6902005827 | CL7: 0.8638482416 | CM7: 0.864371652 | CN7: 1.061957312 | CO7: 0.7636651552 | CP7: 0.5994500805 | CQ7: 1.092101915 | CR7: 1.102406686 | CS7: 0.5988937989 | CT7: 1.322715337 | CU7: 0.5939235308 | CV7: 1.093468047 | CW7: 0.9502740494 | CY7: =SUM(B7:CW7) -> 87.54988357
A8: PF15943 | B8: 0.5818898759 | C8: 0.8409129174 | D8: 1.544461391 | E8: 0.5942769672 | F8: 0.6236015839 | G8: 0.5677477047 | H8: 0.756144553 | I8: 0.8230170786 | J8: 0.6749563018 | K8: 0.7106638608 | L8: 0.9335391786 | M8: 1.090442692 | N8: 0.6287114822 | O8: 0.6866482555 | P8: 0.5983789902 | Q8: 0.8125000017 | R8: 0.7786715535 | S8: 0.4588331283 | T8: 1.695029817 | U8: 0.5880763904 | V8: 0.6050802514 | W8: 0.6046947707 | X8: 0.4523316228 | Y8: 0.7805029379 | Z8: 0.5654311032 | AA8: 0.7192970872 | AB8: 0.6007789242 | AC8: 0.5691146615 | AD8: 1.203043746 | AE8: 0.5939065416 | AF8: 1.313484112 | AG8: 0.8267948721 | AH8: 1.059142521 | AI8: 1.25304392 | AJ8: 0.6791947322 | AK8: 0.8288277095 | AL8: 0.6744646346 | AM8: 1.117545408 | AN8: 0.556787855 | AO8: 0.457590141 | AP8: 0.7817178764 | AQ8: 0.5148137869 | AR8: 0.8080827205 | AS8: 0.5725162447 | AT8: 0.9189902147 | AU8: 1.017783275 | AV8: 0.7812468038 | AW8: 0.9649386071 | AX8: 0.5644210621 | AY8: 0.3865211095 | AZ8: 1.010800135 | BA8: 1.569398029 | BB8: 0.8456377243 | BC8: 1.171268775 | BD8: 0.7066517946 | BE8: 0.5265119716 | BF8: 0.580247107 | BG8: 0.7335359002 | BH8: 0.8091565932 | BI8: 0.6489601696 | BJ8: 0.8679349484 | BK8: 0.607048787 | BL8: 1.044043264 | BM8: 1.602975883 | BN8: 1.279733789 | BO8: 0.8993778551 | BP8: 0.8207003528 | BQ8: 0.6152021211 | BR8: 0.7488191664 | BS8: 0.6623316981 | BT8: 1.617140228 | BU8: 0.9978714383 | BV8: 0.9222683195 | BW8: 1.015180381 | BX8: 0.3403541139 | BY8: 1.006144694 | BZ8: 0.6385564106 | CA8: 0.988742807 | CB8: 0.5682863743 | CC8: 0.8991956023 | CD8: 1.142127543 | CE8: 0.6983397539 | CF8: 1.086460617 | CG8: 1.023057024 | CH8: 0.9599506121 | CI8: 0.6975019053 | CJ8: 0.915984306 | CK8: 0.8131792288 | CL8: 0.8016316723 | CM8: 0.9108402543 | CN8: 0.599207859 | CO8: 0.4940800213 | CP8: 1.019980561 | CQ8: 0.6449616318 | CR8: 0.7240716165 | CS8: 0.8124329382 | CT8: 0.7790169659 | CU8: 0.8539224274 | CV8: 0.7637458499 | CW8: 0.3451002751 | CY8: =SUM(B8:CW8) -> 81.59026247
A9: PF07511 | B9: 0.9415854382 | C9: 0.4674783121 | D9: 0.4177926973 | E9: 0.3803956353 | F9: 0.5139206986 | G9: 0.7138675415 | H9: 0.7668022953 | I9: 0.5503102149 | J9: 0.8208647578 | K9: 0.9861225818 | L9: 0.488500694 | M9: 0.813468764 | N9: 0.5920200759 | O9: 0.6718596027 | P9: 0.555737384 | Q9: 0.686997531 | R9: 1.213456447 | S9: 0.7546685838 | T9: 0.457117006 | U9: 0.8019550079 | V9: 0.7494248949 | W9: 0.8196452027 | X9: 0.4993061617 | Y9: 0.6255752188 | Z9: 0.9979527206 | AA9: 0.6754966334 | AB9: 0.8868490286 | AC9: 0.7581714994 | AD9: 0.7471473229 | AE9: 0.3518617496 | AF9: 1.140338116 | AG9: 1.037849252 | AH9: 0.4940555776 | AI9: 0.8197955597 | AJ9: 0.6307058726 | AK9: 0.5200722612 | AL9: 0.5521000198 | AM9: 0.9520930352 | AN9: 0.5951969869 | AO9: 0.4146006867 | AP9: 0.6257853131 | AQ9: 0.5632697922 | AR9: 0.6558527607 | AS9: 0.7342917778 | AT9: 0.7490709757 | AU9: 0.8415270588 | AV9: 0.5917009126 | AW9: 1.235064611 | AX9: 0.91961506 | AY9: 0.5776571202 | AZ9: 0.7174310407 | BA9: 0.6012986763 | BB9: 0.5366784269 | BC9: 0.6907894605 | BD9: 1.06352083 | BE9: 0.4704410929 | BF9: 0.8834608576 | BG9: 0.5281965138 | BH9: 0.4690974923 | BI9: 0.7636022127 | BJ9: 0.8477041448 | BK9: 0.6051897973 | BL9: 0.6378004073 | BM9: 0.8787845104 | BN9: 0.824357292 | BO9: 0.5598762176 | BP9: 0.7778899059 | BQ9: 1.010189323 | BR9: 0.7831264271 | BS9: 0.6315208058 | BT9: 0.5835019918 | BU9: 0.7482291897 | BV9: 0.7975314671 | BW9: 0.7751243181 | BX9: 0.6572850393 | BY9: 0.6260621404 | BZ9: 0.941513748 | CA9: 0.9025061532 | CB9: 0.7380311165 | CC9: 0.7046822935 | CD9: 0.4557099015 | CE9: 0.5553944242 | CF9: 0.7830288651 | CG9: 0.8937692217 | CH9: 0.5733701588 | CI9: 0.7446579436 | CJ9: 0.5529666576 | CK9: 0.8774310648 | CL9: 0.8099795673 | CM9: 0.7815635819 | CN9: 0.5913033034 | CO9: 0.4314205694 | CP9: 0.4414822258 | CQ9: 0.7558664939 | CR9: 0.5643929277 | CS9: 0.9651788312 | CT9: 0.8232315028 | CU9: 0.896824209 | CV9: 0.7168320274 | CW9: 0.7178553183 | CY9: =SUM(B9:CW9) -> 71.04467614
A10: PF08357 | B10: 0.8601799326 | C10: 0.8889518486 | D10: 0.8513159252 | E10: 0.6760174962 | F10: 0.7018323544 | G10: 0.5652712455 | H10: 0.7956067352 | I10: 0.7876879033 | J10: 1.143868394 | K10: 0.6863620975 | L10: 0.5986816278 | M10: 0.5780525495 | N10: 0.5956386012 | O10: 0.8915049909 | P10: 0.8364230914 | Q10: 0.6702845375 | R10: 0.59675291 | S10: 0.6282929201 | T10: 1.057782267 | U10: 0.8399406391 | V10: 0.572342449 | W10: 0.639856945 | X10: 0.6317561759 | Y10: 0.6735345354 | Z10: 0.5566071682 | AA10: 0.9945724793 | AB10: 0.9367602618 | AC10: 0.9158432876 | AD10: 0.8329766684 | AE10: 0.7833403991 | AF10: 0.7327093094 | AG10: 0.4312856466 | AH10: 0.664050168 | AI10: 0.9255962133 | AJ10: 0.6776166807 | AK10: 0.6862242396 | AL10: 0.6727341966 | AM10: 0.7608950243 | AN10: 0.4703570544 | AO10: 0.6098359741 | AP10: 0.6168625417 | AQ10: 0.461963612 | AR10: 0.5998120434 | AS10: 0.7940510671 | AT10: 0.6066616546 | AU10: 0.7149359267 | AV10: 0.7622861168 | AW10: 0.8157483258 | AX10: 0.3929615466 | AY10: 0.9017520114 | AZ10: 0.6437241455 | BA10: 0.8182287661 | BB10: 0.7308379984 | BC10: 0.807350947 | BD10: 0.60281152 | BE10: 0.5419950483 | BF10: 0.4948669489 | BG10: 0.7899567328 | BH10: 0.6594329344 | BI10: 0.8534487098 | BJ10: 0.5044647391 | BK10: 0.4618866564 | BL10: 0.6198139035 | BM10: 0.8050325895 | BN10: 0.6007015937 | BO10: 1.024263843 | BP10: 0.4574840666 | BQ10: 0.6212656322 | BR10: 0.5494024292 | BS10: 0.8468901795 | BT10: 0.7213953872 | BU10: 0.5584732519 | BV10: 0.6512103216 | BW10: 0.5720437977 | BX10: 0.6810192044 | BY10: 0.9348291668 | BZ10: 0.655871547 | CA10: 0.6086152999 | CB10: 0.7967947071 | CC10: 0.888365606 | CD10: 0.594151494 | CE10: 0.6163767284 | CF10: 0.5594554001 | CG10: 0.5264800701 | CH10: 0.8336275039 | CI10: 0.608577381 | CJ10: 0.7791699966 | CK10: 0.9329434393 | CL10: 0.407773908 | CM10: 0.3623994949 | CN10: 0.8202850539 | CO10: 0.9211203094 | CP10: 0.5218285563 | CQ10: 0.5916676146 | CR10: 0.4952415578 | CS10: 0.7748336421 | CT10: 0.9455568647 | CU10: 0.6077777532 | CV10: 0.4363286362 | CW10: 0.3935107836 | CY10: =SUM(B10:CW10) -> 69.31796165
A11: PF17525 | B11: 0.3218264037 | C11: 1.048733776 | D11: 0.8390823529 | E11: 0.6484577899 | F11: 0.42916488 | G11: 0.7800987839 | H11: 0.3597315367 | I11: 0.5786548323 | J11: 0.917147554 | K11: 0.518158059 | L11: 0.8433269523 | M11: 0.4833176663 | N11: 0.7015256678 | O11: 0.7279298603 | P11: 0.8226665459 | Q11: 0.3351773823 | R11: 0.852307738 | S11: 1.285111076 | T11: 0.6732008568 | U11: 0.497934525 | V11: 0.60486622 | W11: 0.5954664618 | X11: 0.4540502964 | Y11: 0.5767109732 | Z11: 0.3735535614 | AA11: 0.6355666373 | AB11: 0.3346737983 | AC11: 1.33442703 | AD11: 0.5041687924 | AE11: 0.7132372718 | AF11: 0.7188312708 | AG11: 0.733016482 | AH11: 0.6363221226 | AI11: 0.6154408624 | AJ11: 1.092805382 | AK11: 0.8393869688 | AL11: 0.8022661508 | AM11: 0.5283618636 | AN11: 0.5922710083 | AO11: 0.4699649277 | AP11: 0.4176319391 | AQ11: 0.5552579677 | AR11: 0.6018701489 | AS11: 1.006863595 | AT11: 0.6861580857 | AU11: 0.447688308 | AV11: 0.4656013717 | AW11: 0.5331271508 | AX11: 0.853080242 | AY11: 0.6732135809 | AZ11: 0.4049977384 | BA11: 0.7519047027 | BB11: 0.394546554 | BC11: 0.6994053884 | BD11: 0.9943174584 | BE11: 0.4199536114 | BF11: 0.3959493134 | BG11: 0.54157285 | BH11: 0.7203355744 | BI11: 0.6066737848 | BJ11: 1.478619883 | BK11: 0.5766965305 | BL11: 0.6115534525 | BM11: 1.229291236 | BN11: 0.3345776099 | BO11: 0.4042693401 | BP11: 0.5918702814 | BQ11: 0.478007298 | BR11: 0.5984021556 | BS11: 0.9918147562 | BT11: 0.7727861971 | BU11: 0.6542583754 | BV11: 0.7182679754 | BW11: 0.4163920803 | BX11: 0.4465731985 | BY11: 0.522161756 | BZ11: 1.110924665 | CA11: 0.7639070629 | CB11: 0.7536995262 | CC11: 0.7519708032 | CD11: 0.3353384919 | CE11: 0.4924052125 | CF11: 0.3431220139 | CG11: 0.5226296493 | CH11: 0.9359713871 | CI11: 0.4950900477 | CJ11: 0.8384485293 | CK11: 0.3899453365 | CL11: 0.5347236779 | CM11: 0.5236930301 | CN11: 0.4453901389 | CO11: 0.6943776834 | CP11: 0.6273950544 | CQ11: 0.4968494542 | CR11: 0.3070266398 | CS11: 0.9747540401 | CT11: 0.4853632661 | CU11: 0.2937857082 | CV11: 1.298157923 | CW11: 0.4983156494 | CY11: =SUM(B11:CW11) -> 64.7279188
A12: PF03245 | B12: 0.6029006404 | C12: 0.6472724479 | D12: 0.4410867121 | E12: 0.7304174591 | F12: 0.7037183785 | G12: 0.7939012107 | H12: 0.7059121111 | I12: 0.473744476 | J12: 0.8378112388 | K12: 0.4177148179 | L12: 0.8434750098 | M12: 0.4596745027 | N12: 1.270728884 | O12: 0.5679529044 | P12: 0.6257806441 | Q12: 0.7248089552 | R12: 0.5081388131 | S12: 0.7293394802 | T12: 0.6609118498 | U12: 0.65679523 | V12: 0.7910232801 | W12: 0.5465190454 | X12: 0.6880147628 | Y12: 0.8559152295 | Z12: 0.7411483388 | AA12: 1.037938608 | AB12: 0.5922291944 | AC12: 0.5313441492 | AD12: 0.8743287787 | AE12: 0.7947983519 | AF12: 0.7032772616 | AG12: 1.03961998 | AH12: 0.4128128278 | AI12: 0.6099864329 | AJ12: 0.7129396673 | AK12: 0.8832911152 | AL12: 0.6521088864 | AM12: 0.5890941916 | AN12: 0.6492035464 | AO12: 0.5424932772 | AP12: 0.5972035255 | AQ12: 0.3786835888 | AR12: 0.2828377705 | AS12: 0.4626808176 | AT12: 0.6439703511 | AU12: 0.7246520731 | AV12: 0.6662822185 | AW12: 0.7767724466 | AX12: 1.070780778 | AY12: 0.4902426935 | AZ12: 0.4431013328 | BA12: 0.3244280751 | BB12: 0.2869411957 | BC12: 0.6684456188 | BD12: 0.5625325519 | BE12: 0.7730528147 | BF12: 0.4652059242 | BG12: 0.5021568501 | BH12: 0.3776263907 | BI12: 0.4953045435 | BJ12: 0.4202507277 | BK12: 0.442970057 | BL12: 0.5239015794 | BM12: 0.292593793 | BN12: 0.333803327 | BO12: 0.7289636741 | BP12: 0.6959650564 | BQ12: 0.7015589653 | BR12: 0.8704016898 | BS12: 0.6853728725 | BT12: 0.6999547701 | BU12: 0.6265571509 | BV12: 0.731690539 | BW12: 0.5649220752 | BX12: 0.8599440854 | BY12: 0.4936822763 | BZ12: 0.3474380719 | CA12: 0.8226692721 | CB12: 1.063450912 | CC12: 0.624464699 | CD12: 0.4560445782 | CE12: 0.4887643468 | CF12: 0.4991169683 | CG12: 0.484575818 | CH12: 0.4189455932 | CI12: 0.8643514543 | CJ12: 0.4775868221 | CK12: 0.4209987943 | CL12: 0.5242841605 | CM12: 0.6044233006 | CN12: 0.5881324696 | CO12: 0.7883081835 | CP12: 0.6968103868 | CQ12: 0.4446676929 | CR12: 0.7458105892 | CS12: 0.5428791074 | CT12: 0.8333288221 | CU12: 0.6616016829 | CV12: 0.3962146098 | CW12: 0.5818939132 | CY12: =SUM(B12:CW12) -> 62.69236914
A13: PF12873 | B13: 0.5586246148 | C13: 0.4936137292 | D13: 0.5375754135 | E13: 0.793785066 | F13: 0.7542180457 | G13: 0.5792705507 | H13: 0.7529854996 | I13: 0.5979549514 | J13: 1.03510451 | K13: 0.6056454171 | L13: 0.6356425161 | M13: 0.5340310425 | N13: 0.4833937774 | O13: 0.5509813393 | P13: 0.9386183287 | Q13: 0.6985325783 | R13: 0.9017763185 | S13: 0.3589375138 | T13: 0.6455614954 | U13: 0.3633418385 | V13: 0.5978858659 | W13: 0.4406096564 | X13: 0.6646653258 | Y13: 0.4621988391 | Z13: 0.5273375834 | AA13: 0.4007848469 | AB13: 0.5897437648 | AC13: 0.5113442606 | AD13: 0.5463825942 | AE13: 0.5624271888 | AF13: 0.4852026824 | AG13: 0.5833011576 | AH13: 0.4798929176 | AI13: 0.4392462568 | AJ13: 0.6489902644 | AK13: 0.7715800508 | AL13: 0.7912008781 | AM13: 0.5625882323 | AN13: 0.4998643335 | AO13: 0.9316785525 | AP13: 0.8595323597 | AQ13: 0.5966586959 | AR13: 0.5921498905 | AS13: 0.7087861747 | AT13: 0.51887196 | AU13: 0.4144958751 | AV13: 0.4103299127 | AW13: 0.7541671945 | AX13: 0.2704398381 | AY13: 0.4705464198 | AZ13: 0.5643359537 | BA13: 0.4934601641 | BB13: 0.7999722834 | BC13: 0.8136906974 | BD13: 0.5169230351 | BE13: 0.3244647559 | BF13: 0.7046584715 | BG13: 0.6776068043 | BH13: 0.6413454063 | BI13: 0.5946271288 | BJ13: 0.5701098501 | BK13: 0.2893396152 | BL13: 0.7363121558 | BM13: 0.640538248 | BN13: 0.6824941126 | BO13: 0.7982850503 | BP13: 0.8781676204 | BQ13: 0.6525370831 | BR13: 0.7802334399 | BS13: 0.5364852372 | BT13: 0.8246147214 | BU13: 0.6078219137 | BV13: 0.7368826954 | BW13: 0.5150165709 | BX13: 0.5870371759 | BY13: 0.5952146569 | BZ13: 0.7850921364 | CA13: 0.8357790593 | CB13: 0.6048626466 | CC13: 0.3531271719 | CD13: 0.7451307996 | CE13: 1.063565197 | CF13: 0.7400449506 | CG13: 0.4516448509 | CH13: 0.6609507321 | CI13: 0.5959851288 | CJ13: 0.7320317604 | CK13: 0.7551947399 | CL13: 0.6712568283 | CM13: 0.2506114688 | CN13: 0.666154635 | CO13: 0.5789673069 | CP13: 0.573766147 | CQ13: 0.4241123919 | CR13: 0.4828030684 | CS13: 0.6300740806 | CT13: 0.7337023818 | CU13: 0.6169706278 | CV13: 0.4928627442 | CW13: 0.5409487832 | CY13: =SUM(B13:CW13) -> 61.4603126
A14: PF05973 | B14: 0.5699873819 | C14: 0.7664986692 | D14: 0.5470664721 | E14: 0.5191882658 | F14: 0.3419818143 | G14: 0.8133138087 | H14: 0.6915373079 | I14: 0.554728647 | J14: 0.7017907298 | K14: 0.4113982751 | L14: 0.8338446892 | M14: 0.7751183765 | N14: 0.5693547153 | O14: 0.3950544538 | P14: 0.6244701881 | Q14: 0.5085078396 | R14: 0.568057474 | S14: 0.5207995583 | T14: 0.4452750332 | U14: 0.3916021134 | V14: 0.6487603829 | W14: 0.4429260491 | X14: 0.4822181594 | Y14: 0.5516013333 | Z14: 0.7536500211 | AA14: 0.3252383387 | AB14: 0.5759523572 | AC14: 0.6289719368 | AD14: 0.4353812625 | AE14: 0.5025494513 | AF14: 0.5151148158 | AG14: 0.7155378969 | AH14: 0.4210819653 | AI14: 0.7436847364 | AJ14: 0.6654932043 | AK14: 0.4775760253 | AL14: 0.4856775687 | AM14: 0.6062366215 | AN14: 0.4757136887 | AO14: 0.4992041264 | AP14: 0.9338749637 | AQ14: 0.5697912826 | AR14: 0.4023132792 | AS14: 0.4955014474 | AT14: 0.613420668 | AU14: 0.6562506187 | AV14: 0.3955223172 | AW14: 1.210995264 | AX14: 0.6173612131 | AY14: 0.4605421337 | AZ14: 0.6488229043 | BA14: 0.7501998231 | BB14: 0.5833589416 | BC14: 0.8205865196 | BD14: 1.213857708 | BE14: 0.7541117681 | BF14: 0.5304483833 | BG14: 0.7854271462 | BH14: 0.6300277739 | BI14: 0.8319851099 | BJ14: 0.5670493483 | BK14: 0.7861284318 | BL14: 0.4189294753 | BM14: 0.5227820111 | BN14: 0.6093839257 | BO14: 0.6526292613 | BP14: 0.5397645971 | BQ14: 0.777448685 | BR14: 0.5981510338 | BS14: 0.5856652952 | BT14: 0.3768408285 | BU14: 0.7761965367 | BV14: 0.5594780894 | BW14: 0.4053545256 | BX14: 0.8961404757 | BY14: 0.4363251095 | BZ14: 0.7361554896 | CA14: 0.5534464772 | CB14: 0.5153512653 | CC14: 0.4739677467 | CD14: 0.5855933165 | CE14: 0.4125080498 | CF14: 0.5525865132 | CG14: 0.7581819308 | CH14: 0.6053526313 | CI14: 0.6630779391 | CJ14: 0.8274719525 | CK14: 0.6957517749 | CL14: 0.7820479839 | CM14: 0.6265267814 | CN14: 0.576744496 | CO14: 0.3660843411 | CP14: 0.3958763313 | CQ14: 0.7499390893 | CR14: 0.731583307 | CS14: 0.6895058946 | CT14: 0.4778976336 | CU14: 0.4825650746 | CV14: 0.6073659487 | CW14: 0.5360713674 | CY14: =SUM(B14:CW14) -> 60.31646599
A15: PF12532 | B15: 0.7806348271 | C15: 0.5274060718 | D15: 0.7405622486 | E15: 0.479474276 | F15: 0.4673241659 | G15: 0.6184539264 | H15: 0.5143411173 | I15: 0.4657401732 | J15: 0.394816812 | K15: 0.7731991406 | L15: 0.71979286 | M15: 0.7398032783 | N15: 0.5601855182 | O15: 0.8381087622 | P15: 0.8504976563 | Q15: 0.5201948726 | R15: 1.130831599 | S15: 0.5140147656 | T15: 0.5651373982 | U15: 0.6061339754 | V15: 0.672734592 | W15: 0.2899316212 | X15: 0.5129060908 | Y15: 0.4112373869 | Z15: 0.488796217 | AA15: 0.394733082 | AB15: 0.4467655397 | AC15: 0.2566419743 | AD15: 0.471381445 | AE15: 0.6183008895 | AF15: 0.4903889365 | AG15: 0.6943893555 | AH15: 0.7173257974 | AI15: 0.4588356251 | AJ15: 0.6365400804 | AK15: 0.3890060582 | AL15: 0.6044465543 | AM15: 0.8095958045 | AN15: 0.4824538363 | AO15: 0.85370923 | AP15: 0.4049918742 | AQ15: 0.6198470575 | AR15: 0.3568011454 | AS15: 0.7295167448 | AT15: 0.4409798748 | AU15: 0.5217397318 | AV15: 0.4574639569 | AW15: 0.5850948484 | AX15: 0.5446454204 | AY15: 0.6774666406 | AZ15: 0.5239805492 | BA15: 0.4812354166 | BB15: 0.5923433134 | BC15: 0.4841014182 | BD15: 0.5722374795 | BE15: 0.6834530309 | BF15: 0.5832899728 | BG15: 0.3232662927 | BH15: 0.4999108973 | BI15: 0.7202644328 | BJ15: 0.4291879505 | BK15: 0.447873894 | BL15: 0.7154190022 | BM15: 0.6515270665 | BN15: 0.7001875384 | BO15: 0.2853002984 | BP15: 0.2925180975 | BQ15: 0.3163810822 | BR15: 0.6122683163 | BS15: 0.4221901724 | BT15: 0.4864025875 | BU15: 0.4456916227 | BV15: 0.574411463 | BW15: 0.6074063845 | BX15: 0.5877976667 | BY15: 0.3012406653 | BZ15: 0.7085827847 | CA15: 0.5132040369 | CB15: 0.5645407419 | CC15: 0.6463402229 | CD15: 0.4979859117 | CE15: 0.630602808 | CF15: 0.5385259039 | CG15: 0.6591825532 | CH15: 0.4151124456 | CI15: 0.5547011508 | CJ15: 0.7580702197 | CK15: 0.6118559555 | CL15: 0.4014225206 | CM15: 0.5906877846 | CN15: 0.4670809049 | CO15: 0.5654148475 | CP15: 0.458274965 | CQ15: 0.3050168396 | CR15: 0.5823520575 | CS15: 0.4925000329 | CT15: 0.595369211 | CU15: 0.4393822182 | CV15: 0.5721978146 | CW15: 0.5982018321 | CY15: =SUM(B15:CW15) -> 55.35181323
A16: PF10546 | B16: 0.6640579602 | C16: 0.9569671736 | D16: 0.9486909988 | E16: 0.3618344538 | F16: 0.5332282635 | G16: 0.2945581522 | H16: 0.3298363763 | I16: 1.409166134 | J16: 0.2638221793 | K16: 0.6428638921 | L16: 0.5289917598 | M16: 0.4327857108 | N16: 0.7243511947 | O16: 0.4182123809 | P16: 0.6135863478 | Q16: 0.2754361982 | R16: 0.365925017 | S16: 0.6610318777 | T16: 0.6277746263 | U16: 0.6778149177 | V16: 0.4138130097 | W16: 0.4700978855 | X16: 0.7247485712 | Y16: 0.6200140228 | Z16: 0.7557105541 | AA16: 0.7863918585 | AB16: 0.2679368366 | AC16: 0.4291942731 | AD16: 1.099077359 | AE16: 0.3010325654 | AF16: 0.5104541887 | AG16: 0.3291984983 | AH16: 0.4548338894 | AI16: 1.063239706 | AJ16: 0.2662376224 | AK16: 0.9562214711 | AL16: 0.3953490243 | AM16: 0.4448211554 | AN16: 0.6331832728 | AO16: 0.4321885679 | AP16: 0.5134583597 | AQ16: 0.4713350374 | AR16: 0.5398058493 | AS16: 0.5126621421 | AT16: 0.8020516419 | AU16: 0.5962915054 | AV16: 0.4830513982 | AW16: 0.5086297196 | AX16: 0.3052923469 | AY16: 0.3784738027 | AZ16: 0.435321482 | BA16: 1.042271044 | BB16: 0.5629820551 | BC16: 0.3750827001 | BD16: 0.2782396874 | BE16: 0.2933207062 | BF16: 0.4022631031 | BG16: 0.5943080791 | BH16: 0.4910941649 | BI16: 0.2531021123 | BJ16: 0.339437372 | BK16: 0.1937929816 | BL16: 0.644012742 | BM16: 0.6259427564 | BN16: 0.3683934356 | BO16: 0.4079288377 | BP16: 0.8430414414 | BQ16: 1.116331205 | BR16: 0.3840683288 | BS16: 0.3871651685 | BT16: 0.837600811 | BU16: 0.3257746924 | BV16: 0.417191556 | BW16: 0.846810306 | BX16: 0.517497485 | BY16: 0.3109869467 | BZ16: 0.5946441526 | CA16: 0.3957734003 | CB16: 0.5999342613 | CC16: 0.4974750759 | CD16: 0.4586286046 | CE16: 0.6668757528 | CF16: 0.4003586772 | CG16: 0.2924542299 | CH16: 0.4805132046 | CI16: 0.5633966387 | CJ16: 0.5776675993 | CK16: 0.4544323741 | CL16: 0.8082696156 | CM16: 0.5335442824 | CN16: 0.533733161 | CO16: 0.7022588974 | CP16: 0.4256252469 | CQ16: 0.4352354982 | CR16: 0.5106915837 | CS16: 0.3911282438 | CT16: 0.7755731992 | CU16: 0.3469285663 | CV16: 0.2976004582 | CW16: 0.8649972759 | CY16: =SUM(B16:CW16) -> 54.09743295
A17: PF04957 | B17: 0.5369230922 | C17: 0.5490862419 | D17: 0.6209168966 | E17: 1.031709777 | F17: 0.468890685 | G17: 0.6420885396 | H17: 0.4282800478 | I17: 0.5166805947 | J17: 0.3658451549 | K17: 0.3570985844 | L17: 0.5439565903 | M17: 0.4635693712 | N17: 0.4939549614 | O17: 0.6527757867 | P17: 0.9045769235 | Q17: 0.5114631429 | R17: 0.7583027912 | S17: 0.4742257491 | T17: 0.6985121738 | U17: 0.4373570542 | V17: 0.4064245189 | W17: 0.289012768 | X17: 0.4853214958 | Y17: 0.4977479713 | Z17: 0.800860464 | AA17: 0.5069132231 | AB17: 0.6262074181 | AC17: 0.6132393294 | AD17: 0.4569698557 | AE17: 0.5199863386 | AF17: 0.6063876441 | AG17: 0.6770684469 | AH17: 0.6204888013 | AI17: 0.9446815599 | AJ17: 0.5383878255 | AK17: 0.3953054532 | AL17: 0.3220800164 | AM17: 0.5796056896 | AN17: 0.3050288573 | AO17: 0.4395469977 | AP17: 0.5634200354 | AQ17: 0.3225204374 | AR17: 0.298204568 | AS17: 0.5592984748 | AT17: 0.5097984211 | AU17: 0.668372443 | AV17: 0.2609906094 | AW17: 0.6979738795 | AX17: 0.5222702394 | AY17: 0.4855173769 | AZ17: 0.3144377851 | BA17: 0.464087168 | BB17: 0.3195634185 | BC17: 0.4695098566 | BD17: 0.5654149354 | BE17: 0.5481666562 | BF17: 0.3228125836 | BG17: 0.3422292963 | BH17: 0.4359005318 | BI17: 0.5316795879 | BJ17: 0.3403198663 | BK17: 0.7685267618 | BL17: 0.3838803946 | BM17: 0.9140720543 | BN17: 0.3981562663 | BO17: 0.599347156 | BP17: 1.176378404 | BQ17: 0.9493140482 | BR17: 0.6379639745 | BS17: 0.3883440003 | BT17: 0.5423395381 | BU17: 0.6558497912 | BV17: 0.7160052105 | BW17: 0.4957253364 | BX17: 0.4105544203 | BY17: 0.4189376877 | BZ17: 0.4477332777 | CA17: 0.4127068105 | CB17: 0.6195216853 | CC17: 0.4154773364 | CD17: 0.530268399 | CE17: 0.5686610716 | CF17: 0.5394650812 | CG17: 0.5873140471 | CH17: 0.4231733369 | CI17: 0.5774679897 | CJ17: 0.5535148961 | CK17: 0.6311577682 | CL17: 0.5759115923 | CM17: 0.5788518676 | CN17: 0.6636565164 | CO17: 0.2997293645 | CP17: 0.291835813 | CQ17: 0.5766046744 | CR17: 0.4221809069 | CS17: 0.5462705209 | CT17: 0.7905986193 | CU17: 0.4559019706 | CV17: 0.6757775895 | CW17: 0.3339754573 | CY17: =SUM(B17:CW17) -> 53.60311864
A18: PF13744 | B18: 0.3640333204 | C18: 0.3259606934 | D18: 0.4582489816 | E18: 0.5980770751 | F18: 0.4690090317 | G18: 0.2419276977 | H18: 0.6004923194 | I18: 0.4798699479 | J18: 0.8465702731 | K18: 0.6726285043 | L18: 0.5503469606 | M18: 0.409273662 | N18: 0.4246072148 | O18: 0.5115392785 | P18: 0.4781876545 | Q18: 0.7376298873 | R18: 0.5881911486 | S18: 0.8277240313 | T18: 0.6280333156 | U18: 0.8769970947 | V18: 0.5927214395 | W18: 0.7194706149 | X18: 0.5870091392 | Y18: 0.3801189901 | Z18: 0.3391020684 | AA18: 0.3366375461 | AB18: 0.5795809874 | AC18: 0.5748097548 | AD18: 0.6028847873 | AE18: 0.4880525766 | AF18: 0.4355920102 | AG18: 0.4545434947 | AH18: 0.2892797447 | AI18: 0.5520035442 | AJ18: 0.5067186188 | AK18: 0.813596594 | AL18: 0.340153206 | AM18: 0.6536236463 | AN18: 0.5355788538 | AO18: 0.4783500441 | AP18: 0.6210617542 | AQ18: 0.3659612977 | AR18: 0.7793352842 | AS18: 0.7837536789 | AT18: 0.3692364398 | AU18: 0.3908771778 | AV18: 0.6125530668 | AW18: 0.3503867437 | AX18: 0.4350760399 | AY18: 0.9940116443 | AZ18: 0.6172760202 | BA18: 0.2761682049 | BB18: 0.4848919844 | BC18: 0.3529105185 | BD18: 0.3876055932 | BE18: 0.3687043618 | BF18: 0.6498005863 | BG18: 0.4084372223 | BH18: 0.957172837 | BI18: 0.3891819375 | BJ18: 1.000897613 | BK18: 0.3781760514 | BL18: 0.4497612999 | BM18: 0.510704145 | BN18: 0.4547051173 | BO18: 0.6573373365 | BP18: 0.5028470644 | BQ18: 0.2321317978 | BR18: 0.3872354899 | BS18: 0.2955237675 | BT18: 0.471062591 | BU18: 0.3160296521 | BV18: 0.5119954332 | BW18: 0.6182544825 | BX18: 0.4614984218 | BY18: 0.5564055133 | BZ18: 0.4741206128 | CA18: 0.4270099756 | CB18: 0.3274112084 | CC18: 0.4404175611 | CD18: 0.5739027638 | CE18: 0.4754758533 | CF18: 0.3360901284 | CG18: 0.6412536645 | CH18: 0.9731633943 | CI18: 0.4258541341 | CJ18: 0.6669534927 | CK18: 0.2715593417 | CL18: 0.4138333115 | CM18: 0.5962288758 | CN18: 0.4738073287 | CO18: 0.5821993577 | CP18: 0.3918004987 | CQ18: 0.9542393583 | CR18: 0.5126054763 | CS18: 0.756607484 | CT18: 0.4698823209 | CU18: 0.860954464 | CV18: 0.4957081811 | CW18: 0.5206882086 | CY18: =SUM(B18:CW18) -> 52.80991092
A19: PF12256 | B19: 0.6693738325 | C19: 0.5198163724 | D19: 0.3795823362 | E19: 0.6650329133 | F19: 0.5442009024 | G19: 0.4732674508 | H19: 0.6086123813 | I19: 0.4642115617 | J19: 0.8061861681 | K19: 0.5279173935 | L19: 0.5914943026 | M19: 0.292177205 | N19: 0.6470699394 | O19: 0.4491201098 | P19: 0.4546559005 | Q19: 0.563084839 | R19: 0.3904666905 | S19: 0.2714477112 | T19: 0.4601226896 | U19: 0.5019560341 | V19: 0.7824852509 | W19: 0.6451661603 | X19: 0.405727774 | Y19: 0.4811420149 | Z19: 0.7080753599 | AA19: 0.924557621 | AB19: 0.561833905 | AC19: 0.258760497 | AD19: 0.4621813048 | AE19: 0.580030041 | AF19: 0.5568227673 | AG19: 0.3612781308 | AH19: 0.6021045066 | AI19: 0.4577379404 | AJ19: 0.4891752395 | AK19: 0.4898071467 | AL19: 0.5089094674 | AM19: 0.6275957134 | AN19: 0.5965382088 | AO19: 0.3297543774 | AP19: 0.4701267723 | AQ19: 0.7262375444 | AR19: 0.5466642473 | AS19: 0.3191808773 | AT19: 0.7577170254 | AU19: 0.4069561832 | AV19: 0.4250012441 | AW19: 0.5258550606 | AX19: 0.4322291805 | AY19: 0.5119410845 | AZ19: 0.9640014358 | BA19: 0.46658221 | BB19: 1.051091816 | BC19: 0.6273881013 | BD19: 0.2796690399 | BE19: 0.5593660818 | BF19: 0.5115973683 | BG19: 0.4616469924 | BH19: 0.7918158825 | BI19: 0.5927607917 | BJ19: 0.3355976292 | BK19: 0.3071953151 | BL19: 0.6571799086 | BM19: 0.419803258 | BN19: 0.8581388545 | BO19: 0.4652739125 | BP19: 0.2172276186 | BQ19: 0.6065301881 | BR19: 0.4338797614 | BS19: 0.4609240372 | BT19: 0.3516894114 | BU19: 0.3100457814 | BV19: 0.464084136 | BW19: 0.3788818205 | BX19: 0.3977065197 | BY19: 0.5500410506 | BZ19: 0.4017318864 | CA19: 0.750812803 | CB19: 0.6043539772 | CC19: 0.3466656525 | CD19: 0.3979849228 | CE19: 0.5144766201 | CF19: 1.026601601 | CG19: 0.3866474578 | CH19: 0.5805471038 | CI19: 0.5765274151 | CJ19: 0.4845232239 | CK19: 0.543833327 | CL19: 0.3935931691 | CM19: 0.2395334453 | CN19: 0.4426519388 | CO19: 0.8307893051 | CP19: 0.4859387796 | CQ19: 0.474583937 | CR19: 0.6319598253 | CS19: 0.4236104538 | CT19: 0.466307536 | CU19: 0.7309790095 | CV19: 0.6647190334 | CW19: 0.3732865362 | CY19: =SUM(B19:CW19) -> 52.52416726
A20: PF13175 | B20: 0.2516250435 | C20: 0.9452401807 | D20: 0.4086122281 | E20: 0.5293589782 | F20: 0.5846768368 | G20: 0.3189971988 | H20: 0.8568115658 | I20: 0.4976692182 | J20: 0.3827163133 | K20: 0.4720528328 | L20: 1.300751013 | M20: 0.5567512691 | N20: 0.799240071 | O20: 0.4558321318 | P20: 0.4717884277 | Q20: 0.2705386908 | R20: 0.4285568629 | S20: 0.4494803855 | T20: 0.4039966719 | U20: 0.481039131 | V20: 0.5518105817 | W20: 0.3444834679 | X20: 0.4264382023 | Y20: 0.3935242554 | Z20: 0.458870097 | AA20: 0.9236285496 | AB20: 0.2934874425 | AC20: 0.6254254859 | AD20: 0.7796362173 | AE20: 0.2868727851 | AF20: 0.61483642 | AG20: 0.3269020731 | AH20: 0.4720164697 | AI20: 0.3749582398 | AJ20: 0.7078383277 | AK20: 0.9022400254 | AL20: 0.4857660388 | AM20: 0.477879889 | AN20: 0.4916079797 | AO20: 0.3393798867 | AP20: 0.6923719881 | AQ20: 0.4798279419 | AR20: 0.4592189234 | AS20: 0.6523845923 | AT20: 0.4449832117 | AU20: 0.4534940801 | AV20: 0.7066939145 | AW20: 0.5037279813 | AX20: 0.7085266384 | AY20: 0.755003105 | AZ20: 0.6333467357 | BA20: 0.2374077779 | BB20: 0.5634332758 | BC20: 0.3349529354 | BD20: 0.3109533239 | BE20: 0.3294253966 | BF20: 0.4174242383 | BG20: 0.614446898 | BH20: 0.5122465944 | BI20: 0.7383337278 | BJ20: 0.4525530509 | BK20: 0.3248995553 | BL20: 0.6627104003 | BM20: 0.2999155905 | BN20: 0.4452638906 | BO20: 0.4985000336 | BP20: 0.3661832971 | BQ20: 0.4552496191 | BR20: 0.3946476392 | BS20: 0.3119425483 | BT20: 0.3134440187 | BU20: 0.5031337167 | BV20: 0.4831152542 | BW20: 0.426390865 | BX20: 0.3962903307 | BY20: 0.5863518196 | BZ20: 0.5637964016 | CA20: 0.3465049213 | CB20: 0.5226806476 | CC20: 0.3184941734 | CD20: 0.2857412361 | CE20: 0.4264033498 | CF20: 0.5476701323 | CG20: 0.7256680386 | CH20: 0.6610169901 | CI20: 0.4986894934 | CJ20: 0.3995283045 | CK20: 0.357944266 | CL20: 0.399156101 | CM20: 0.3902990576 | CN20: 0.567247762 | CO20: 0.4026453063 | CP20: 0.3868213851 | CQ20: 0.5004558704 | CR20: 0.5987364959 | CS20: 0.3526481449 | CT20: 0.4246328343 | CU20: 0.2994087188 | CV20: 0.4325581409 | CW20: 0.5270999783 | CY20: =SUM(B20:CW20) -> 49.54798015
A21: PF13534 | B21: 0.7482250876 | C21: 0.5315603628 | D21: 0.4419345382 | E21: 0.4466736014 | F21: 0.5285142406 | G21: 0.4386541831 | H21: 0.5256298789 | I21: 0.5364866361 | J21: 0.4740824434 | K21: 0.3427521148 | L21: 0.387066397 | M21: 0.6042192954 | N21: 0.5488563512 | O21: 0.3571939318 | P21: 0.3796440927 | Q21: 0.2872316548 | R21: 0.5342412631 | S21: 0.6669239435 | T21: 0.4176749457 | U21: 0.3752711259 | V21: 0.51568497 | W21: 0.4619832143 | X21: 0.6307394266 | Y21: 0.3549744156 | Z21: 0.3568366929 | AA21: 0.3961511073 | AB21: 0.3428209161 | AC21: 0.449998105 | AD21: 0.5350681176 | AE21: 0.3929314146 | AF21: 0.5739995562 | AG21: 0.5388880506 | AH21: 0.5381842977 | AI21: 0.4449298231 | AJ21: 0.5017783493 | AK21: 0.5468623199 | AL21: 0.8940137123 | AM21: 0.4989703158 | AN21: 0.4489692182 | AO21: 0.7603465425 | AP21: 0.5420878043 | AQ21: 0.4737504633 | AR21: 0.3269157158 | AS21: 0.5796978197 | AT21: 0.6615491465 | AU21: 0.6150062204 | AV21: 0.2964545237 | AW21: 0.5460226339 | AX21: 0.1731423197 | AY21: 0.4124537908 | AZ21: 0.5200738086 | BA21: 0.7961437884 | BB21: 0.604658381 | BC21: 0.6218958184 | BD21: 0.4771474735 | BE21: 0.4229967949 | BF21: 0.3560208272 | BG21: 0.626683159 | BH21: 0.6830060037 | BI21: 0.595898542 | BJ21: 0.5560814441 | BK21: 0.2127834966 | BL21: 0.2069118111 | BM21: 0.2650395935 | BN21: 0.5831292825 | BO21: 0.3623290517 | BP21: 0.7611767131 | BQ21: 0.4780922722 | BR21: 0.5467671372 | BS21: 0.4591388431 | BT21: 0.5821339655 | BU21: 0.4875452101 | BV21: 0.4928356387 | BW21: 0.3184022399 | BX21: 0.3237864943 | BY21: 0.6885744028 | BZ21: 0.4970166343 | CA21: 0.5830332499 | CB21: 0.5347133388 | CC21: 0.4648095382 | CD21: 0.3912435258 | CE21: 0.4397824947 | CF21: 0.4332493269 | CG21: 0.6132126668 | CH21: 0.2323996894 | CI21: 0.5288225539 | CJ21: 0.3724607286 | CK21: 0.5812241818 | CL21: 0.3249496827 | CM21: 0.3820111112 | CN21: 0.3100244769 | CO21: 0.229002934 | CP21: 0.6061658025 | CQ21: 0.5266288036 | CR21: 0.3785362798 | CS21: 0.4600184264 | CT21: 0.6933077267 | CU21: 0.3824197593 | CV21: 0.4486480144 | CW21: 0.4596270765 | CY21: =SUM(B21:CW21) -> 48.28660731
A22: PF11672 | B22: 0.4226593182 | C22: 0.4558580791 | D22: 0.6399696625 | E22: 0.4440492582 | F22: 0.7987092883 | G22: 0.4018722543 | H22: 0.517494147 | I22: 1.010703273 | J22: 0.4812478352 | K22: 0.6871410625 | L22: 0.4204017581 | M22: 0.4249468328 | N22: 0.5365506293 | O22: 0.3516412227 | P22: 0.4621775084 | Q22: 0.4094076808 | R22: 0.5472343257 | S22: 0.1656788832 | T22: 0.3193678803 | U22: 0.3735847818 | V22: 0.1453510522 | W22: 0.6555076759 | X22: 0.5236558466 | Y22: 0.439967666 | Z22: 0.2725971041 | AA22: 0.4721425177 | AB22: 0.5071266361 | AC22: 0.4451263519 | AD22: 0.3118563057 | AE22: 0.4571348663 | AF22: 0.3057914062 | AG22: 0.5270594647 | AH22: 0.5353557884 | AI22: 0.4894673177 | AJ22: 0.5779471757 | AK22: 0.9785277309 | AL22: 0.3854346552 | AM22: 0.3126994844 | AN22: 0.1963421032 | AO22: 0.3106351775 | AP22: 0.3270360742 | AQ22: 0.4928153523 | AR22: 0.2195375649 | AS22: 0.506580279 | AT22: 0.6508952185 | AU22: 0.2680010135 | AV22: 0.5845266377 | AW22: 1.079840968 | AX22: 0.3160060076 | AY22: 0.3164484758 | AZ22: 0.5134040798 | BA22: 0.7729118638 | BB22: 0.4369651538 | BC22: 0.5046753576 | BD22: 0.5777006412 | BE22: 0.2413774282 | BF22: 0.3797532981 | BG22: 0.2631218234 | BH22: 0.7264978479 | BI22: 0.4726328297 | BJ22: 0.3463706365 | BK22: 0.3825713004 | BL22: 0.3601555723 | BM22: 0.5711532195 | BN22: 0.5949571148 | BO22: 0.5876213547 | BP22: 0.4768567959 | BQ22: 0.3307134322 | BR22: 0.6313661252 | BS22: 0.4175237438 | BT22: 0.4276133449 | BU22: 0.1794726283 | BV22: 0.3090307448 | BW22: 0.3139743207 | BX22: 0.2976296136 | BY22: 0.4635656846 | BZ22: 0.2861076991 | CA22: 0.7025319005 | CB22: 0.6232368891 | CC22: 0.6429225031 | CD22: 0.6595316403 | CE22: 0.8130792396 | CF22: 0.5467621939 | CG22: 0.3939733963 | CH22: 0.5773599385 | CI22: 0.7329188577 | CJ22: 0.4568508554 | CK22: 0.2594362377 | CL22: 0.2512080557 | CM22: 0.4047671971 | CN22: 0.3007984173 | CO22: 0.3330292825 | CP22: 0.7471700482 | CQ22: 0.5864283346 | CR22: 0.3046743002 | CS22: 1.224153778 | CT22: 0.3536310595 | CU22: 0.5381521601 | CV22: 0.5192906951 | CW22: 0.7585934868 | CY22: =SUM(B22:CW22) -> 48.07833372
A23: PF09204 | B23: 0.7398489096 | C23: 0.68599129 | D23: 0.3187708084 | E23: 0.7186424667 | F23: 0.5901252854 | G23: 0.5944505623 | H23: 0.2881332897 | I23: 0.488782772 | J23: 0.3095532609 | K23: 0.4046249958 | L23: 0.306477108 | M23: 0.4161164996 | N23: 0.6040769406 | O23: 0.2313078044 | P23: 0.2627315431 | Q23: 0.645198477 | R23: 0.3966712542 | S23: 0.21971804 | T23: 0.5692686792 | U23: 0.3772470006 | V23: 0.2844321579 | W23: 0.4561517345 | X23: 0.2562017035 | Y23: 1.130521657 | Z23: 1.321376154 | AA23: 0.6762917142 | AB23: 0.4035233535 | AC23: 0.543614479 | AD23: 0.6718571015 | AE23: 0.4022589701 | AF23: 0.3725524024 | AG23: 0.5565432353 | AH23: 0.7466340925 | AI23: 0.2207175586 | AJ23: 0.5340481033 | AK23: 0.4947936643 | AL23: 0.5244998659 | AM23: 0.4030132953 | AN23: 0.5591034154 | AO23: 0.4286094024 | AP23: 0.3164896554 | AQ23: 0.6305817161 | AR23: 0.5169176667 | AS23: 0.369241953 | AT23: 0.3999139294 | AU23: 0.570441781 | AV23: 0.3928805626 | AW23: 0.3273281108 | AX23: 0.3218505732 | AY23: 0.5165973808 | AZ23: 0.4057684446 | BA23: 0.4515598305 | BB23: 0.3673816002 | BC23: 0.1942412681 | BD23: 0.5167166874 | BE23: 0.3022374982 | BF23: 0.5163376335 | BG23: 0.4035851113 | BH23: 0.3353305883 | BI23: 0.6138623181 | BJ23: 0.4886729909 | BK23: 0.462050823 | BL23: 0.8646318741 | BM23: 1.127773379 | BN23: 0.2274114921 | BO23: 0.1730874664 | BP23: 0.2981261101 | BQ23: 0.2522984019 | BR23: 0.4134182855 | BS23: 0.4643385286 | BT23: 0.4573480416 | BU23: 0.4427034243 | BV23: 0.7115131172 | BW23: 0.5319924771 | BX23: 0.7819502054 | BY23: 0.552116192 | BZ23: 0.2631120782 | CA23: 0.2984574695 | CB23: 0.3741075488 | CC23: 0.3162333814 | CD23: 0.1861419841 | CE23: 0.2184646061 | CF23: 0.6752389043 | CG23: 0.3862470129 | CH23: 0.2104755591 | CI23: 0.3537949314 | CJ23: 0.2425443914 | CK23: 0.567193856 | CL23: 0.7047733146 | CM23: 0.3089197311 | CN23: 0.3309119864 | CO23: 0.2917227151 | CP23: 0.2798452727 | CQ23: 0.6429774447 | CR23: 0.6892882956 | CS23: 0.3031469911 | CT23: 0.5332192022 | CU23: 0.6722980545 | CV23: 0.7206528508 | CW23: 0.6685708312 | CY23: =SUM(B23:CW23) -> 47.11151658
A24: PF03837 | B24: 0.4080327129 | C24: 0.4852090073 | D24: 0.5132847882 | E24: 0.4471407916 | F24: 0.349894168 | G24: 0.2920403208 | H24: 0.2565172244 | I24: 0.3726408699 | J24: 0.5473030201 | K24: 0.5474806666 | L24: 0.3488679847 | M24: 0.4017738093 | N24: 0.636243757 | O24: 0.3276317528 | P24: 0.474625411 | Q24: 0.386207285 | R24: 0.5113712018 | S24: 0.3173388006 | T24: 0.6458979035 | U24: 0.3712145493 | V24: 0.3416898317 | W24: 0.4531376569 | X24: 0.5065856977 | Y24: 0.5452422218 | Z24: 0.4795834693 | AA24: 0.4037216685 | AB24: 0.8411398155 | AC24: 0.6046685261 | AD24: 0.4646504322 | AE24: 0.491891213 | AF24: 0.4983610899 | AG24: 0.573873759 | AH24: 0.3590964043 | AI24: 0.2353897734 | AJ24: 0.5143566617 | AK24: 0.5548934827 | AL24: 0.3538389027 | AM24: 0.4526140521 | AN24: 0.4487040109 | AO24: 0.3808710792 | AP24: 0.4544788279 | AQ24: 0.4015592362 | AR24: 0.4389170495 | AS24: 0.319634875 | AT24: 0.4895763743 | AU24: 0.402841229 | AV24: 0.3714489111 | AW24: 0.448230663 | AX24: 0.6756055694 | AY24: 0.2798761898 | AZ24: 0.594593663 | BA24: 0.3556576556 | BB24: 0.4463634672 | BC24: 0.3429806041 | BD24: 0.4820105286 | BE24: 0.3604077122 | BF24: 0.6999808289 | BG24: 0.4393602421 | BH24: 0.6584332449 | BI24: 0.7128572646 | BJ24: 0.5133069167 | BK24: 0.3897963457 | BL24: 0.4111111132 | BM24: 0.6337337494 | BN24: 0.4101392448 | BO24: 0.3558001589 | BP24: 0.3898354416 | BQ24: 0.2759835304 | BR24: 0.54608807 | BS24: 0.4677240931 | BT24: 0.3616918649 | BU24: 0.3413822198 | BV24: 0.2136450341 | BW24: 0.3277326619 | BX24: 0.2831372654 | BY24: 0.4989734753 | BZ24: 0.2799782157 | CA24: 0.6944301919 | CB24: 0.566468689 | CC24: 0.3554946917 | CD24: 0.7706208604 | CE24: 0.7029283975 | CF24: 0.5752955585 | CG24: 0.6014187414 | CH24: 0.3878439205 | CI24: 0.4752157354 | CJ24: 0.8214525781 | CK24: 0.5261272331 | CL24: 0.5105361864 | CM24: 0.4417543863 | CN24: 0.3579640607 | CO24: 0.5529335346 | CP24: 0.4031779598 | CQ24: 0.5715850037 | CR24: 0.3579443998 | CS24: 0.4256767753 | CT24: 0.5527722106 | CU24: 0.4479851422 | CV24: 1.000881283 | CW24: 0.3425530565 | CY24: =SUM(B24:CW24) -> 46.66295991
A25: PF08809 | B25: 0.2304706753 | C25: 0.3941462661 | D25: 0.4501868142 | E25: 0.4915957359 | F25: 0.3853670602 | G25: 0.8329980072 | H25: 0.2822983973 | I25: 0.6041851184 | J25: 0.7030753344 | K25: 0.5218088891 | L25: 0.5451037828 | M25: 0.5204442648 | N25: 0.594918129 | O25: 0.3552983355 | P25: 0.6135276434 | Q25: 0.505841367 | R25: 0.3225370834 | S25: 0.3781423231 | T25: 0.6784429934 | U25: 0.7366851244 | V25: 0.4359353742 | W25: 0.5852897073 | X25: 0.5491658076 | Y25: 0.5471695085 | Z25: 0.6175956257 | AA25: 0.3193363089 | AB25: 0.5480027425 | AC25: 0.3582793948 | AD25: 0.430700452 | AE25: 0.3406360616 | AF25: 0.3530448541 | AG25: 0.4086246824 | AH25: 0.5753285778 | AI25: 0.3370241575 | AJ25: 0.3455968647 | AK25: 0.2558508144 | AL25: 0.3865819182 | AM25: 0.4784836881 | AN25: 0.3151670863 | AO25: 0.6236648264 | AP25: 0.4206838649 | AQ25: 0.4527066118 | AR25: 0.5201598785 | AS25: 0.376422105 | AT25: 0.4108766595 | AU25: 0.4730473134 | AV25: 0.2925752642 | AW25: 0.6948830504 | AX25: 0.2288740816 | AY25: 0.5078952191 | AZ25: 0.594412746 | BA25: 0.5749440564 | BB25: 0.4774016925 | BC25: 0.40703572 | BD25: 0.8785377556 | BE25: 0.4206248667 | BF25: 0.2972687718 | BG25: 0.632355488 | BH25: 0.6700045039 | BI25: 0.3067676668 | BJ25: 0.6816167008 | BK25: 0.3937112695 | BL25: 0.249709561 | BM25: 0.5750457551 | BN25: 0.6525791039 | BO25: 0.4168071238 | BP25: 0.3028852758 | BQ25: 0.5290529997 | BR25: 0.9778067874 | BS25: 0.7224404982 | BT25: 0.4480441192 | BU25: 0.5120405167 | BV25: 0.4121067159 | BW25: 0.3700440299 | BX25: 0.4154401472 | BY25: 0.2059208226 | BZ25: 0.3426649801 | CA25: 0.4895522082 | CB25: 0.4963288932 | CC25: 0.2649077189 | CD25: 0.4053957572 | CE25: 0.3681342975 | CF25: 0.2954465838 | CG25: 0.2443120342 | CH25: 0.2123227565 | CI25: 0.3715549639 | CJ25: 0.6003288488 | CK25: 0.3436718531 | CL25: 0.6018456117 | CM25: 0.453101365 | CN25: 0.280195937 | CO25: 0.3368402471 | CP25: 0.3539792283 | CQ25: 0.6126543626 | CR25: 0.5000586293 | CS25: 0.7227354975 | CT25: 0.7273076076 | CU25: 0.3771489079 | CV25: 0.3718903283 | CW25: 0.3415555981 | CY25: =SUM(B25:CW25) -> 46.57521476
A26: PF12852 | B26: 0.7176400453 | C26: 0.3833972616 | D26: 0.4258728705 | E26: 0.7476435915 | F26: 0.4289446245 | G26: 0.2780530288 | H26: 0.4754148351 | I26: 0.3720197234 | J26: 0.4395586955 | K26: 0.2309782203 | L26: 0.3611826802 | M26: 0.6042161439 | N26: 0.5511737223 | O26: 0.6168165683 | P26: 0.494237955 | Q26: 0.2209905549 | R26: 0.8177106461 | S26: 0.5798297541 | T26: 0.4741746628 | U26: 0.5175378569 | V26: 0.5202759615 | W26: 0.3662526372 | X26: 0.3285166749 | Y26: 0.3576862877 | Z26: 0.5410457463 | AA26: 0.3948691859 | AB26: 0.5816704915 | AC26: 0.499244275 | AD26: 0.4037816109 | AE26: 0.6902871684 | AF26: 0.6900696456 | AG26: 0.4278634882 | AH26: 0.3571402583 | AI26: 0.4577818997 | AJ26: 0.5462085038 | AK26: 0.3547514452 | AL26: 0.6455906591 | AM26: 0.4478699892 | AN26: 0.2862927885 | AO26: 0.5168879907 | AP26: 0.3685697272 | AQ26: 0.3876585377 | AR26: 0.2158960558 | AS26: 0.6486589691 | AT26: 0.3572946726 | AU26: 0.4025004415 | AV26: 0.4632477292 | AW26: 0.4083507754 | AX26: 0.4582758126 | AY26: 0.5989086101 | AZ26: 0.3977687873 | BA26: 0.5507041212 | BB26: 0.4087158887 | BC26: 0.4276747438 | BD26: 0.2925453229 | BE26: 0.4146610493 | BF26: 0.4242191182 | BG26: 0.5731535332 | BH26: 0.6761983302 | BI26: 0.5340260391 | BJ26: 0.3594313073 | BK26: 0.2984051508 | BL26: 0.3444026187 | BM26: 0.2814924502 | BN26: 0.3869310195 | BO26: 0.5012338832 | BP26: 0.3690973669 | BQ26: 0.2983940525 | BR26: 0.4746228269 | BS26: 0.4149954316 | BT26: 0.484671964 | BU26: 0.545508602 | BV26: 0.3935772272 | BW26: 0.3553971273 | BX26: 0.3615461792 | BY26: 0.4783921802 | BZ26: 0.4777918875 | CA26: 0.3554708662 | CB26: 0.466623223 | CC26: 0.3961003944 | CD26: 0.5058993427 | CE26: 0.5484842681 | CF26: 0.5135314033 | CG26: 0.5680582566 | CH26: 0.3553040527 | CI26: 0.499328758 | CJ26: 0.4088115683 | CK26: 0.7521151446 | CL26: 0.3383366845 | CM26: 0.4819102577 | CN26: 0.4783297433 | CO26: 0.5489989715 | CP26: 0.4232831019 | CQ26: 0.2883111004 | CR26: 0.4266398475 | CS26: 0.478725173 | CT26: 0.3374474465 | CU26: 0.4369261377 | CV26: 0.3785410523 | CW26: 0.5656751765 | CY26: =SUM(B26:CW26) -> 45.53925166
A27: PF07876 | B27: 0.3372238283 | C27: 0.50500435 | D27: 0.4103784951 | E27: 0.4437199685 | F27: 0.3660177218 | G27: 0.4590130553 | H27: 0.6863063974 | I27: 0.7205301096 | J27: 0.4777528984 | K27: 0.3037739059 | L27: 0.4586766691 | M27: 0.4403017176 | N27: 0.6194383453 | O27: 0.6510287518 | P27: 0.3601409866 | Q27: 0.5783669146 | R27: 0.6688161301 | S27: 0.4351720135 | T27: 0.2187459669 | U27: 0.413827975 | V27: 0.4864835869 | W27: 0.4113869293 | X27: 0.361194618 | Y27: 0.5094639228 | Z27: 0.3794668275 | AA27: 0.2709515024 | AB27: 0.3323706363 | AC27: 0.6327624303 | AD27: 0.6039634103 | AE27: 0.295104023 | AF27: 0.6024511965 | AG27: 0.5265487051 | AH27: 0.5849845758 | AI27: 0.3465685424 | AJ27: 0.453505701 | AK27: 0.4556347279 | AL27: 0.1969132984 | AM27: 0.5505862711 | AN27: 0.3938774162 | AO27: 0.451074776 | AP27: 0.2960611803 | AQ27: 0.454543233 | AR27: 0.2333652744 | AS27: 0.4319012149 | AT27: 0.3815854878 | AU27: 0.2875428812 | AV27: 0.3686949167 | AW27: 0.2762559569 | AX27: 0.4158034762 | AY27: 0.3953321847 | AZ27: 0.3182674893 | BA27: 0.4448533977 | BB27: 0.5592025984 | BC27: 0.5597839202 | BD27: 0.6416515971 | BE27: 0.5758848791 | BF27: 0.798457753 | BG27: 0.5302018964 | BH27: 0.2971122766 | BI27: 0.6684389053 | BJ27: 0.4695354651 | BK27: 0.5517577324 | BL27: 0.6178490732 | BM27: 0.4233356004 | BN27: 0.4525008835 | BO27: 0.5251985126 | BP27: 0.4698174382 | BQ27: 0.453829696 | BR27: 0.3567876803 | BS27: 0.3813325616 | BT27: 0.5167858226 | BU27: 0.7007840869 | BV27: 0.3939291624 | BW27: 0.362317337 | BX27: 0.4940114526 | BY27: 0.3362944176 | BZ27: 0.5354710765 | CA27: 0.3837338584 | CB27: 0.5529593732 | CC27: 0.2680049557 | CD27: 0.6100944921 | CE27: 0.5466369271 | CF27: 0.8829377606 | CG27: 0.3307296195 | CH27: 0.5507141373 | CI27: 0.6347821465 | CJ27: 0.6239051442 | CK27: 0.45605963 | CL27: 0.4622839211 | CM27: 0.3447057941 | CN27: 0.2855748264 | CO27: 0.2164648133 | CP27: 0.5797138204 | CQ27: 0.3575311215 | CR27: 0.3671381809 | CS27: 0.3882728746 | CT27: 0.3444950821 | CU27: 0.3146511373 | CV27: 0.2211936022 | CW27: 0.40598785 | CY27: =SUM(B27:CW27) -> 45.50457889
A28: PF00114 | B28: 0.3254210674 | C28: 0.4242329069 | D28: 0.3857380931 | E28: 0.6604196398 | F28: 0.4883385908 | G28: 0.3923560681 | H28: 0.4190200341 | I28: 0.4888105369 | J28: 0.3513964148 | K28: 0.3967339698 | L28: 0.4796733116 | M28: 0.3551846024 | N28: 0.4938742289 | O28: 0.332074073 | P28: 0.3884796251 | Q28: 0.2712865936 | R28: 0.3140021125 | S28: 0.3616029678 | T28: 0.5581659856 | U28: 0.3673679272 | V28: 0.3197560737 | W28: 0.4805644324 | X28: 0.6357966541 | Y28: 0.3616980189 | Z28: 0.4957551712 | AA28: 0.3017548695 | AB28: 0.4650104844 | AC28: 0.5519536394 | AD28: 0.4513878852 | AE28: 0.4057294993 | AF28: 0.6059933281 | AG28: 0.5395721801 | AH28: 0.3503232496 | AI28: 0.3812986129 | AJ28: 0.3309816717 | AK28: 0.484863973 | AL28: 0.3661801073 | AM28: 0.5827557685 | AN28: 0.4322531176 | AO28: 0.4749188044 | AP28: 0.4905372598 | AQ28: 0.4135749409 | AR28: 0.2370630151 | AS28: 0.5645362179 | AT28: 0.5642742989 | AU28: 0.5300417926 | AV28: 0.7167629834 | AW28: 0.5286200274 | AX28: 0.4020724458 | AY28: 0.411234509 | AZ28: 0.4466863167 | BA28: 0.4452038556 | BB28: 0.4375215078 | BC28: 0.4421535945 | BD28: 0.3995498828 | BE28: 0.3868687631 | BF28: 0.3398194039 | BG28: 0.4526910104 | BH28: 0.5045234747 | BI28: 0.441746864 | BJ28: 0.407948332 | BK28: 0.6036942669 | BL28: 0.4757059087 | BM28: 0.4114473549 | BN28: 0.6224281229 | BO28: 0.4228600389 | BP28: 0.4167742943 | BQ28: 0.3252648779 | BR28: 0.4185049356 | BS28: 0.390055418 | BT28: 0.3526514947 | BU28: 0.653856759 | BV28: 0.3952056103 | BW28: 0.5442534928 | BX28: 0.3749574657 | BY28: 0.3549387347 | BZ28: 0.5255393032 | CA28: 0.3562146828 | CB28: 0.5092909791 | CC28: 0.4497553727 | CD28: 0.2914311624 | CE28: 0.5568381064 | CF28: 0.30491599 | CG28: 0.4845075638 | CH28: 0.2756328182 | CI28: 0.6054749208 | CJ28: 0.4132667025 | CK28: 0.4404745499 | CL28: 0.3352245927 | CM28: 0.3631123955 | CN28: 0.4196836803 | CO28: 0.4586567926 | CP28: 0.4453161075 | CQ28: 0.3761217497 | CR28: 0.4311751577 | CS28: 0.6013090093 | CT28: 0.6668216977 | CU28: 0.3479462471 | CV28: 0.6303858965 | CW28: 0.421615342 | CY28: =SUM(B28:CW28) -> 44.30946638
A29: PF13628 | B29: 0.4237110782 | C29: 0.5406300155 | D29: 0.4744786007 | E29: 0.4804814366 | F29: 0.3134494851 | G29: 0.2703150336 | H29: 0.4453330962 | I29: 0.4468602603 | J29: 0.4826323308 | K29: 0.4680624415 | L29: 0.6058675365 | M29: 0.4812575034 | N29: 0.4641185477 | O29: 0.5430940519 | P29: 0.2563365179 | Q29: 0.2880098661 | R29: 0.5814056837 | S29: 0.2890300965 | T29: 0.3993205396 | U29: 0.3407002086 | V29: 0.5053864835 | W29: 0.2184416739 | X29: 0.4025633696 | Y29: 0.6186852537 | Z29: 0.3470018321 | AA29: 0.4605535684 | AB29: 0.3970497823 | AC29: 0.3455724168 | AD29: 0.3700574016 | AE29: 0.3910372968 | AF29: 0.446893085 | AG29: 0.3666942292 | AH29: 0.4204747387 | AI29: 0.6630782421 | AJ29: 0.2158125867 | AK29: 0.6213247823 | AL29: 0.3665985325 | AM29: 0.4734166306 | AN29: 0.6332665733 | AO29: 0.6120134677 | AP29: 0.6435524665 | AQ29: 0.470873925 | AR29: 0.2221659407 | AS29: 0.4422172199 | AT29: 0.6793196423 | AU29: 0.4134381382 | AV29: 0.2659176371 | AW29: 0.4151103327 | AX29: 0.466916656 | AY29: 0.4640901092 | AZ29: 0.8914914132 | BA29: 0.3678305414 | BB29: 0.5070152554 | BC29: 0.2891903886 | BD29: 0.4492992843 | BE29: 0.3529221273 | BF29: 0.3997200223 | BG29: 0.3482191599 | BH29: 0.5546840717 | BI29: 0.4487274173 | BJ29: 0.4496802934 | BK29: 0.3589094034 | BL29: 0.3585762761 | BM29: 0.3684970663 | BN29: 0.3410607511 | BO29: 0.5089256013 | BP29: 0.2621151939 | BQ29: 0.3841625182 | BR29: 0.366302877 | BS29: 0.3443795716 | BT29: 0.4603962896 | BU29: 0.3204302395 | BV29: 0.3091961862 | BW29: 0.31977954 | BX29: 0.3462183058 | BY29: 0.3321140532 | BZ29: 0.2874225407 | CA29: 0.3487843556 | CB29: 0.293706162 | CC29: 0.4188944632 | CD29: 0.4379814866 | CE29: 0.4305845969 | CF29: 0.598688591 | CG29: 0.4814143564 | CH29: 0.2769727808 | CI29: 0.4274358408 | CJ29: 0.4820963058 | CK29: 0.3748421545 | CL29: 0.4360053105 | CM29: 0.5553381005 | CN29: 0.3044291764 | CO29: 0.4356118443 | CP29: 0.39905713 | CQ29: 0.6037147716 | CR29: 0.3955899729 | CS29: 0.2441478322 | CT29: 0.671267696 | CU29: 0.5438782205 | CV29: 0.6614737807 | CW29: 0.4279962008 | CY29: =SUM(B29:CW29) -> 42.93179586
A30: PF13676 | B30: 0.5177943539 | C30: 0.4915187097 | D30: 0.4580078528 | E30: 0.5316830513 | F30: 0.3467148536 | G30: 0.4375381895 | H30: 0.4533001626 | I30: 0.4122169027 | J30: 0.3478982911 | K30: 0.5114543326 | L30: 0.33988571 | M30: 0.4404623449 | N30: 0.3914093662 | O30: 0.29662062 | P30: 0.4735055477 | Q30: 0.4553478607 | R30: 0.74347892 | S30: 0.433761864 | T30: 0.4283404513 | U30: 0.3086287245 | V30: 0.445000718 | W30: 0.2961727549 | X30: 0.3843522634 | Y30: 0.665071861 | Z30: 0.2993939723 | AA30: 0.3781456029 | AB30: 0.3641349846 | AC30: 0.4605238957 | AD30: 0.4161041946 | AE30: 0.3209735679 | AF30: 0.3231430303 | AG30: 0.51398411 | AH30: 0.415052716 | AI30: 0.4643091285 | AJ30: 0.3600009844 | AK30: 0.3601075578 | AL30: 0.469722486 | AM30: 0.4502027309 | AN30: 0.5327590518 | AO30: 0.4410236953 | AP30: 0.516394835 | AQ30: 0.2629908247 | AR30: 0.5734364322 | AS30: 0.3883596169 | AT30: 0.4039336387 | AU30: 0.2950864584 | AV30: 0.3500070644 | AW30: 0.5310613236 | AX30: 0.3136112096 | AY30: 0.4270263059 | AZ30: 0.4017814897 | BA30: 0.3349320433 | BB30: 0.4256400884 | BC30: 0.634394878 | BD30: 0.3713462555 | BE30: 0.3549973774 | BF30: 0.6844698465 | BG30: 0.4507759004 | BH30: 0.3718994453 | BI30: 0.4822769825 | BJ30: 0.6381408981 | BK30: 0.5434317027 | BL30: 0.1864557096 | BM30: 0.5477681045 | BN30: 0.309000479 | BO30: 0.3713824206 | BP30: 0.4075428165 | BQ30: 1.017747792 | BR30: 0.3151843059 | BS30: 0.5845581755 | BT30: 0.3826721374 | BU30: 0.24727412 | BV30: 0.3863526161 | BW30: 0.4407076971 | BX30: 0.4704649643 | BY30: 0.3256037555 | BZ30: 0.3272309841 | CA30: 0.5101564391 | CB30: 0.3864033062 | CC30: 0.3591792601 | CD30: 0.5244163331 | CE30: 0.2337960012 | CF30: 0.2844498746 | CG30: 0.3632112226 | CH30: 0.3144808906 | CI30: 0.4543675212 | CJ30: 0.2633515863 | CK30: 0.3848922564 | CL30: 0.4894858885 | CM30: 0.4326656261 | CN30: 0.4564763731 | CO30: 0.2835729495 | CP30: 0.6079785805 | CQ30: 0.3194998439 | CR30: 0.4184150578 | CS30: 0.2942358291 | CT30: 0.2378622309 | CU30: 0.6830390439 | CV30: 0.4891091837 | CW30: 0.2780149392 | CY30: =SUM(B30:CW30) -> 42.32474835
A31: PF13946 | B31: 0.4309349826 | C31: 0.3251704578 | D31: 0.253851041 | E31: 0.4376589194 | F31: 0.3974724559 | G31: 0.5106029534 | H31: 0.3239392525 | I31: 0.3485358657 | J31: 0.3659506693 | K31: 0.2222449555 | L31: 0.6060264146 | M31: 0.2926422534 | N31: 0.2820959304 | O31: 0.5838630763 | P31: 0.4696215894 | Q31: 0.4753846227 | R31: 0.4270151857 | S31: 0.6139926687 | T31: 0.2893237352 | U31: 0.2524149211 | V31: 0.413124661 | W31: 0.4595371676 | X31: 0.3091660743 | Y31: 0.4396836995 | Z31: 0.3128917522 | AA31: 0.3749396684 | AB31: 0.2455165822 | AC31: 0.4399023844 | AD31: 0.3851812754 | AE31: 0.4055704374 | AF31: 0.3215789527 | AG31: 0.4631476546 | AH31: 0.3311823179 | AI31: 0.9330539293 | AJ31: 0.5234524541 | AK31: 0.2724475293 | AL31: 0.3349555129 | AM31: 0.3874731563 | AN31: 0.4870014873 | AO31: 0.4866748558 | AP31: 0.5455068226 | AQ31: 0.5063315213 | AR31: 0.5222877115 | AS31: 0.5214894823 | AT31: 0.3807671755 | AU31: 0.4329469655 | AV31: 0.5724842998 | AW31: 0.2605110822 | AX31: 0.3374214008 | AY31: 0.2694102264 | AZ31: 0.6157999211 | BA31: 0.3531503369 | BB31: 0.4255611014 | BC31: 0.5241310454 | BD31: 0.3740128038 | BE31: 0.2769049082 | BF31: 0.4216572149 | BG31: 0.2080704834 | BH31: 0.4031569716 | BI31: 0.4433702837 | BJ31: 0.4866332877 | BK31: 0.2255543666 | BL31: 0.5252161864 | BM31: 0.5862762922 | BN31: 0.385455681 | BO31: 0.5320348108 | BP31: 0.57154688 | BQ31: 0.4701172843 | BR31: 0.226604756 | BS31: 0.4215995346 | BT31: 0.4734974849 | BU31: 0.5028142822 | BV31: 0.2720100318 | BW31: 0.3509749325 | BX31: 0.2735203313 | BY31: 0.4085147033 | BZ31: 0.5779040546 | CA31: 0.2824465883 | CB31: 0.4688519425 | CC31: 0.4847736974 | CD31: 0.557787501 | CE31: 0.6784763696 | CF31: 0.3235629983 | CG31: 0.3087349251 | CH31: 0.6633138368 | CI31: 0.5891506077 | CJ31: 0.440873322 | CK31: 0.4137120462 | CL31: 0.2629728384 | CM31: 0.3726487235 | CN31: 0.7416748717 | CO31: 0.2609879044 | CP31: 0.3732381468 | CQ31: 0.5008249373 | CR31: 0.3176589815 | CS31: 0.2536835394 | CT31: 0.4001201946 | CU31: 0.38417275 | CV31: 0.5263585792 | CW31: 0.3952409596 | CY31: =SUM(B31:CW31) -> 41.92173642
A32: PF02517 | B32: 0.2103214677 | C32: 0.5767683266 | D32: 0.2904755135 | E32: 0.2924161607 | F32: 0.3489548555 | G32: 0.4865630162 | H32: 0.3593612059 | I32: 0.4294666845 | J32: 0.4002484117 | K32: 0.3741993861 | L32: 0.3856738717 | M32: 0.2856292738 | N32: 0.424356775 | O32: 0.4039229197 | P32: 0.5121244407 | Q32: 0.4873777542 | R32: 0.3456351798 | S32: 0.4396894248 | T32: 0.4580467203 | U32: 0.517466321 | V32: 0.3649465785 | W32: 0.4172775456 | X32: 0.2881440226 | Y32: 0.5467190302 | Z32: 0.3648184233 | AA32: 0.4134139896 | AB32: 0.5207504369 | AC32: 0.2989197278 | AD32: 0.5097521938 | AE32: 0.5333569989 | AF32: 0.5280626206 | AG32: 0.1784401051 | AH32: 0.4838354818 | AI32: 0.611107611 | AJ32: 0.4104555384 | AK32: 0.5713201078 | AL32: 0.5030719742 | AM32: 0.4495454969 | AN32: 0.3818864457 | AO32: 0.3996555336 | AP32: 0.3048236038 | AQ32: 0.4707300759 | AR32: 0.3816724727 | AS32: 0.354384607 | AT32: 0.2260841485 | AU32: 0.3906820004 | AV32: 0.4373054122 | AW32: 0.4005459575 | AX32: 0.2612548991 | AY32: 0.5760061531 | AZ32: 0.5898892983 | BA32: 0.364024564 | BB32: 0.2583727064 | BC32: 0.3863920688 | BD32: 0.3287930495 | BE32: 0.3120851484 | BF32: 0.2849240332 | BG32: 0.4603721391 | BH32: 0.3553214678 | BI32: 0.4615325861 | BJ32: 0.6787744752 | BK32: 0.2804301543 | BL32: 0.4453690017 | BM32: 0.3713914617 | BN32: 0.4481808877 | BO32: 0.8184433835 | BP32: 0.3053971315 | BQ32: 0.3437575384 | BR32: 0.5436583763 | BS32: 0.4260952942 | BT32: 0.5767926239 | BU32: 0.2594258158 | BV32: 0.4534380706 | BW32: 0.4216945167 | BX32: 0.3084427351 | BY32: 0.1656856861 | BZ32: 0.3246384434 | CA32: 0.4699816984 | CB32: 0.5941652943 | CC32: 0.4562702816 | CD32: 0.4731549052 | CE32: 0.2976404752 | CF32: 0.5602156948 | CG32: 0.4505133304 | CH32: 0.4477814784 | CI32: 0.4455449437 | CJ32: 0.4209460147 | CK32: 0.4480882507 | CL32: 0.565595068 | CM32: 0.3620440495 | CN32: 0.5166213836 | CO32: 0.4473874657 | CP32: 0.4179951503 | CQ32: 0.2359848183 | CR32: 0.3444060496 | CS32: 0.3521910019 | CT32: 0.3529249243 | CU32: 0.4151465258 | CV32: 0.2164506836 | CW32: 0.3743633782 | CY32: =SUM(B32:CW32) -> 41.24640243
A33: PF13986 | B33: 0.3279007428 | C33: 0.7514978073 | D33: 0.4149044286 | E33: 0.2873735678 | F33: 0.3773009826 | G33: 0.3056355738 | H33: 0.3112899381 | I33: 0.3645772705 | J33: 0.4226991055 | K33: 0.4506993556 | L33: 0.3557347324 | M33: 0.4600419499 | N33: 0.3135162856 | O33: 0.3292478403 | P33: 0.6096585372 | Q33: 0.3493883076 | R33: 0.3468659336 | S33: 0.4161806188 | T33: 0.3014273594 | U33: 0.3557551655 | V33: 0.3212814392 | W33: 0.4450399491 | X33: 0.447194377 | Y33: 0.4036596212 | Z33: 0.26921951 | AA33: 0.5075023623 | AB33: 0.3757262214 | AC33: 0.3098090662 | AD33: 0.4296446605 | AE33: 0.3406571699 | AF33: 0.3788090965 | AG33: 0.6560136978 | AH33: 0.358585722 | AI33: 0.3416532042 | AJ33: 0.3885113814 | AK33: 0.4362364512 | AL33: 0.3357758002 | AM33: 0.3154006339 | AN33: 0.3217352308 | AO33: 0.3315524889 | AP33: 0.5486861645 | AQ33: 0.3081353385 | AR33: 0.3235505813 | AS33: 0.3776815084 | AT33: 0.4221316853 | AU33: 0.3677099374 | AV33: 0.298619387 | AW33: 0.3829806216 | AX33: 0.863077624 | AY33: 0.4322859185 | AZ33: 0.3784246525 | BA33: 0.3518502992 | BB33: 0.4976783567 | BC33: 0.2967965983 | BD33: 0.2716590269 | BE33: 0.3484119004 | BF33: 0.616412674 | BG33: 0.3297689821 | BH33: 0.4029809037 | BI33: 0.3339679587 | BJ33: 0.3032380523 | BK33: 0.3730369554 | BL33: 0.3263518026 | BM33: 0.5572875871 | BN33: 0.3726065552 | BO33: 0.3759736417 | BP33: 0.5645766615 | BQ33: 0.2914396528 | BR33: 0.4940641225 | BS33: 0.3156048011 | BT33: 0.5703525572 | BU33: 0.3193214635 | BV33: 0.2934900399 | BW33: 0.3124173392 | BX33: 0.2943163688 | BY33: 0.6228749474 | BZ33: 0.4043006417 | CA33: 0.4978358575 | CB33: 0.2951867497 | CC33: 0.3818253129 | CD33: 0.464132791 | CE33: 0.4386719157 | CF33: 0.351667066 | CG33: 0.4108412945 | CH33: 0.3037501928 | CI33: 0.3090630416 | CJ33: 0.3313383664 | CK33: 0.4289172404 | CL33: 0.3120205138 | CM33: 0.4449346409 | CN33: 0.5453432804 | CO33: 0.4012816163 | CP33: 0.4275602256 | CQ33: 0.5512046603 | CR33: 0.3742784798 | CS33: 0.3912247015 | CT33: 0.4902438357 | CU33: 0.3433876229 | CV33: 0.7917109866 | CW33: 0.7854560296 | CY33: =SUM(B33:CW33) -> 40.58164332
A34: PF01839 | B34: 0.2658422294 | C34: 0.6315926489 | D34: 0.2760623336 | E34: 1.116514819 | F34: 0.4767480401 | G34: 0.3849813549 | H34: 0.7007297218 | I34: 0.4152389941 | J34: 0.23136453 | K34: 0.3167818105 | L34: 0.2668558389 | M34: 0.3011792291 | N34: 0.3613271324 | O34: 0.3396645833 | P34: 0.4364786734 | Q34: 0.3360911027 | R34: 0.2572068203 | S34: 0.3958985572 | T34: 0.2192891384 | U34: 0.4072039896 | V34: 0.2403772014 | W34: 0.3839674052 | X34: 0.5503656252 | Y34: 0.3269376323 | Z34: 0.3361165253 | AA34: 0.3390242627 | AB34: 0.2338922526 | AC34: 0.998413582 | AD34: 0.4298709676 | AE34: 0.4211552162 | AF34: 0.2272179888 | AG34: 0.396639369 | AH34: 0.4553805 | AI34: 0.3153667263 | AJ34: 0.3675274004 | AK34: 0.5228495366 | AL34: 0.4298941075 | AM34: 0.4869439321 | AN34: 0.5016398633 | AO34: 0.3237050597 | AP34: 0.2084243434 | AQ34: 0.2175407214 | AR34: 0.2975349415 | AS34: 0.6436146349 | AT34: 0.3668771583 | AU34: 0.3097547715 | AV34: 0.1702659752 | AW34: 0.2495624925 | AX34: 0.4981711935 | AY34: 0.5049959082 | AZ34: 0.4742639543 | BA34: 0.5378400677 | BB34: 0.316063853 | BC34: 0.2714688595 | BD34: 0.2658206968 | BE34: 0.5467105156 | BF34: 0.1863700807 | BG34: 0.5000289277 | BH34: 0.2438050155 | BI34: 0.5118782888 | BJ34: 0.1753710582 | BK34: 0.57124453 | BL34: 0.3437291273 | BM34: 0.1956460289 | BN34: 0.5627376661 | BO34: 0.274622784 | BP34: 0.7014744106 | BQ34: 0.518134576 | BR34: 0.5321181226 | BS34: 0.1612425676 | BT34: 0.5069833716 | BU34: 0.388147563 | BV34: 0.3727832793 | BW34: 0.5305618461 | BX34: 0.3294384663 | BY34: 0.4018355478 | BZ34: 0.6316124087 | CA34: 0.3542901373 | CB34: 0.4874055753 | CC34: 0.2345783317 | CD34: 0.1912994369 | CE34: 0.4343756734 | CF34: 0.2624737951 | CG34: 0.1945534912 | CH34: 0.4325430851 | CI34: 0.5408791449 | CJ34: 0.3696054322 | CK34: 0.2915473436 | CL34: 0.1918806811 | CM34: 0.8114573929 | CN34: 0.547018185 | CO34: 0.5585101865 | CP34: 0.7728035917 | CQ34: 0.604645669 | CR34: 0.5671036258 | CS34: 0.3629003017 | CT34: 0.3433017691 | CU34: 0.1931968193 | CV34: 0.2556563341 | CW34: 0.244183157 | CY34: =SUM(B34:CW34) -> 40.18922162
A35: PF04480 | B35: 0.43401126 | C35: 0.4825209345 | D35: 0.4543879019 | E35: 0.5233180072 | F35: 0.7236377777 | G35: 0.4904739966 | H35: 0.8140102725 | I35: 0.7212569806 | J35: 0.3627982893 | K35: 0.168381263 | L35: 0.5939904362 | M35: 0.1214839905 | N35: 0.2509967307 | O35: 0.3024958233 | P35: 0.2719756506 | Q35: 0.7042759493 | R35: 0.2192953535 | S35: 0.1853578698 | T35: 1.006994942 | U35: 0.1301998053 | V35: 0.5403908937 | W35: 0.906907628 | X35: 0.5279683378 | Y35: 0.5796666157 | Z35: 0.1782952793 | AA35: 0.1295719396 | AB35: 0.4567146559 | AC35: 0.3121825596 | AD35: 0.2819056836 | AE35: 0.08009015592 | AF35: 0.2076541198 | AG35: 0.4554023295 | AH35: 0.3825502668 | AI35: 0.3197849939 | AJ35: 0.2786518173 | AK35: 0.3446721997 | AL35: 0.6146099892 | AM35: 0.3872650936 | AN35: 0.4085825484 | AO35: 0.2153873339 | AP35: 0.5748623705 | AQ35: 0.5404496985 | AR35: 0.4981187439 | AS35: 0.1804102938 | AT35: 0.4000579148 | AU35: 0.1879067141 | AV35: 0.3498351599 | AW35: 0.4149876707 | AX35: 0.2019338875 | AY35: 0.5173900407 | AZ35: 0.2470602394 | BA35: 0.2503390087 | BB35: 0.816119856 | BC35: 0.2688912704 | BD35: 0.4138587315 | BE35: 0.3029355514 | BF35: 0.2899333987 | BG35: 0.5826875263 | BH35: 0.3679378178 | BI35: 0.3792220473 | BJ35: 0.2577872785 | BK35: 0.3248075632 | BL35: 0.5622454027 | BM35: 0.6162222772 | BN35: 0.3213032842 | BO35: 0.4569069271 | BP35: 0.2733629543 | BQ35: 0.1634700214 | BR35: 0.2516850682 | BS35: 0.2396803656 | BT35: 0.2789699202 | BU35: 0.3397329337 | BV35: 0.3094429051 | BW35: 0.4499779315 | BX35: 0.4680514666 | BY35: 0.4350697891 | BZ35: 0.2390692015 | CA35: 0.4475942887 | CB35: 0.4113317425 | CC35: 0.295286395 | CD35: 0.4983443132 | CE35: 0.2027389024 | CF35: 0.214037228 | CG35: 0.5789978417 | CH35: 0.7551206395 | CI35: 0.3733061804 | CJ35: 0.3676550587 | CK35: 0.7676973713 | CL35: 0.4826987715 | CM35: 0.4187119064 | CN35: 0.5046169032 | CO35: 0.432575307 | CP35: 0.4525384295 | CQ35: 0.3241225283 | CR35: 0.3606229549 | CS35: 0.2816269936 | CT35: 0.4531528567 | CU35: 0.1919602425 | CV35: 0.4339262822 | CW35: 0.5571755857 | CY35: =SUM(B35:CW35) -> 40.14867963
A36: PF06114 | B36: 0.5619177085 | C36: 0.385566548 | D36: 0.2360393543 | E36: 0.3019516788 | F36: 0.3801304806 | G36: 0.4050010093 | H36: 0.3768686266 | I36: 0.3278988791 | J36: 0.4431421521 | K36: 0.5396739779 | L36: 0.6273729511 | M36: 0.4267264683 | N36: 0.375350577 | O36: 0.3363611238 | P36: 0.422390709 | Q36: 0.5584668097 | R36: 0.2451166585 | S36: 0.5796593736 | T36: 0.4809259542 | U36: 0.3843469402 | V36: 0.5082089291 | W36: 0.3468211012 | X36: 0.5694424912 | Y36: 0.2909277932 | Z36: 0.2489484884 | AA36: 0.3089212484 | AB36: 0.344027244 | AC36: 0.407897245 | AD36: 0.4436459181 | AE36: 0.4628875956 | AF36: 0.4194467612 | AG36: 0.3093170482 | AH36: 0.3900842922 | AI36: 0.3138240651 | AJ36: 0.4602905192 | AK36: 0.2988027091 | AL36: 0.4444588192 | AM36: 0.3261966099 | AN36: 0.4594240313 | AO36: 0.4544751749 | AP36: 0.1998681556 | AQ36: 0.3208917173 | AR36: 0.4624146389 | AS36: 0.3317217675 | AT36: 0.3497484769 | AU36: 0.4495815481 | AV36: 0.6047312624 | AW36: 0.3353066281 | AX36: 0.2934516344 | AY36: 0.5298541774 | AZ36: 0.3087274139 | BA36: 0.424342324 | BB36: 0.3216919036 | BC36: 0.3782319232 | BD36: 0.2504053916 | BE36: 0.2652117058 | BF36: 0.4006013243 | BG36: 0.6654986401 | BH36: 0.2421031772 | BI36: 0.4728666166 | BJ36: 0.3232497255 | BK36: 0.2830004732 | BL36: 0.3587611965 | BM36: 0.327112918 | BN36: 0.3139974067 | BO36: 0.5474436519 | BP36: 0.4261528447 | BQ36: 0.3431148826 | BR36: 0.3557161797 | BS36: 0.2846407284 | BT36: 0.5712762754 | BU36: 0.4104997203 | BV36: 0.6180477882 | BW36: 0.4622760549 | BX36: 0.3483493943 | BY36: 0.3784098223 | BZ36: 0.4611624143 | CA36: 0.3310012946 | CB36: 0.6105112 | CC36: 0.2934364543 | CD36: 0.3623611351 | CE36: 0.5828774262 | CF36: 0.273875124 | CG36: 0.3989944612 | CH36: 0.3699635894 | CI36: 0.6898461959 | CJ36: 0.4308028895 | CK36: 0.4549012277 | CL36: 0.4828076239 | CM36: 0.2871968255 | CN36: 0.3273657626 | CO36: 0.3290700105 | CP36: 0.3216597518 | CQ36: 0.4643348559 | CR36: 0.4054904465 | CS36: 0.3571180979 | CT36: 0.3859610642 | CU36: 0.3645521889 | CV36: 0.4106574894 | CW36: 0.3764985599 | CY36: =SUM(B36:CW36) -> 39.93470164
A37: PF04591 | B37: 0.2556613258 | C37: 0.3334816404 | D37: 0.3109800618 | E37: 0.3867585518 | F37: 0.5530924228 | G37: 0.2925517697 | H37: 0.5045860251 | I37: 0.4665298971 | J37: 0.4483397104 | K37: 0.7466110115 | L37: 0.3631751938 | M37: 0.3755646218 | N37: 0.4180097329 | O37: 0.2274523402 | P37: 0.3251638266 | Q37: 0.2727318337 | R37: 0.2362102488 | S37: 0.3972153581 | T37: 0.1681322623 | U37: 0.362403946 | V37: 0.524706521 | W37: 0.9575661271 | X37: 0.4300186763 | Y37: 0.4481333966 | Z37: 0.2365072082 | AA37: 0.3779515176 | AB37: 0.1717766492 | AC37: 0.3394418741 | AD37: 0.7050220357 | AE37: 0.7164823943 | AF37: 0.4013354447 | AG37: 0.4825261069 | AH37: 0.3645298263 | AI37: 0.1708725914 | AJ37: 0.3458004719 | AK37: 0.3139525288 | AL37: 0.3644949044 | AM37: 0.568238401 | AN37: 0.4067615467 | AO37: 0.2910510951 | AP37: 0.4233283123 | AQ37: 0.4216679538 | AR37: 0.6497568532 | AS37: 0.1930959518 | AT37: 0.1736777409 | AU37: 0.6433158807 | AV37: 0.6422038894 | AW37: 0.521901116 | AX37: 0.3327526954 | AY37: 0.08487340553 | AZ37: 0.442077993 | BA37: 0.2490591313 | BB37: 0.3092404308 | BC37: 0.1642829505 | BD37: 0.4779566325 | BE37: 0.1758264088 | BF37: 0.2406113916 | BG37: 0.311190307 | BH37: 0.2157406442 | BI37: 0.6026853409 | BJ37: 0.6346798355 | BK37: 0.5580149382 | BL37: 0.2410477631 | BM37: 0.3561696587 | BN37: 0.4365554913 | BO37: 0.5088035127 | BP37: 0.7054538901 | BQ37: 0.5522686668 | BR37: 0.2704438819 | BS37: 0.3886735476 | BT37: 0.3780519936 | BU37: 0.2924574903 | BV37: 0.401095313 | BW37: 0.4207927116 | BX37: 0.256128665 | BY37: 0.3162214322 | BZ37: 0.4130007516 | CA37: 0.1533732086 | CB37: 0.3876430502 | CC37: 0.4977497271 | CD37: 0.475465577 | CE37: 0.3082767674 | CF37: 1.004263827 | CG37: 0.3010650209 | CH37: 0.4680167887 | CI37: 0.5050079692 | CJ37: 0.6575171676 | CK37: 0.3334247279 | CL37: 0.4177957013 | CM37: 0.515972895 | CN37: 0.4154983516 | CO37: 0.3741404186 | CP37: 0.2821425116 | CQ37: 0.3823663395 | CR37: 0.369444622 | CS37: 0.3470108157 | CT37: 0.512179116 | CU37: 0.1631415002 | CV37: 0.1203474089 | CW37: 0.372466148 | CY37: =SUM(B37:CW37) -> 39.83123533
A38: PF09907 | B38: 0.2942094077 | C38: 0.51399707 | D38: 0.4119502817 | E38: 0.5297558702 | F38: 0.2598753054 | G38: 0.4620387444 | H38: 0.3301348529 | I38: 0.7022647617 | J38: 0.7095295004 | K38: 0.3551329178 | L38: 0.2424393757 | M38: 0.2944483951 | N38: 0.309209879 | O38: 0.3271452402 | P38: 0.2742439581 | Q38: 0.5881739995 | R38: 0.1863606568 | S38: 0.2437252351 | T38: 0.5238499241 | U38: 0.4817870174 | V38: 0.3550648777 | W38: 0.4559800611 | X38: 0.2963250918 | Y38: 0.375624875 | Z38: 0.3512791943 | AA38: 0.4634053613 | AB38: 0.4644137719 | AC38: 0.3942015873 | AD38: 0.4755299298 | AE38: 0.6161553169 | AF38: 0.4126658967 | AG38: 0.167844639 | AH38: 0.2947727438 | AI38: 0.4344469187 | AJ38: 0.2125825474 | AK38: 0.3762471549 | AL38: 0.2571245154 | AM38: 0.2372861153 | AN38: 0.4376041537 | AO38: 0.5175602377 | AP38: 0.4818116099 | AQ38: 0.3656885533 | AR38: 0.3837889645 | AS38: 0.2753713545 | AT38: 0.1806901923 | AU38: 0.415539782 | AV38: 0.4694812779 | AW38: 0.4926251221 | AX38: 0.2379449793 | AY38: 0.4414842587 | AZ38: 0.3023458744 | BA38: 0.3995138167 | BB38: 0.4208458825 | BC38: 0.308344872 | BD38: 0.4202523488 | BE38: 0.1515225918 | BF38: 0.4793559462 | BG38: 0.4661006152 | BH38: 0.5137723008 | BI38: 0.3520426956 | BJ38: 0.2477350533 | BK38: 0.393819992 | BL38: 0.3569829108 | BM38: 0.3460144936 | BN38: 0.248301448 | BO38: 0.5306670789 | BP38: 0.2449490239 | BQ38: 0.2391810877 | BR38: 0.4794435775 | BS38: 0.588336438 | BT38: 0.476115539 | BU38: 0.4907300163 | BV38: 0.5764540834 | BW38: 0.457725025 | BX38: 0.4834995054 | BY38: 0.4682095553 | BZ38: 0.2601611758 | CA38: 0.3240494831 | CB38: 0.3887605188 | CC38: 0.4036343024 | CD38: 0.3776791705 | CE38: 0.3113001343 | CF38: 0.433978944 | CG38: 0.3350355533 | CH38: 0.3381398999 | CI38: 0.4984772172 | CJ38: 0.5361067795 | CK38: 0.5147322083 | CL38: 0.2993595684 | CM38: 0.4174871477 | CN38: 0.9433300631 | CO38: 0.5571295137 | CP38: 0.4225149297 | CQ38: 0.3565822701 | CR38: 0.1960120188 | CS38: 0.6168654254 | CT38: 0.662241381 | CU38: 0.2643450143 | CV38: 0.3041824933 | CW38: 0.2011976597 | CY38: =SUM(B38:CW38) -> 39.78637812
A39: PF06791 | B39: 0.4123580625 | C39: 0.4815132704 | D39: 0.3801688596 | E39: 0.4570591775 | F39: 0.3360627386 | G39: 0.4244423244 | H39: 0.3397962643 | I39: 0.4048397246 | J39: 0.4015984688 | K39: 0.4151494679 | L39: 0.4317207319 | M39: 0.3947398937 | N39: 0.4255409071 | O39: 0.3216826721 | P39: 0.3942580467 | Q39: 0.4014307352 | R39: 0.4706454013 | S39: 0.3931066262 | T39: 0.3592588217 | U39: 0.3575106488 | V39: 0.5331449884 | W39: 0.3609638767 | X39: 0.4184211973 | Y39: 0.3385585166 | Z39: 0.3253943931 | AA39: 0.4974263027 | AB39: 0.3708969669 | AC39: 0.3463153782 | AD39: 0.3868723814 | AE39: 0.3281200574 | AF39: 0.4183500135 | AG39: 0.3786100538 | AH39: 0.4086363721 | AI39: 0.3670950656 | AJ39: 0.4426273504 | AK39: 0.3256866446 | AL39: 0.4811451092 | AM39: 0.3618194412 | AN39: 0.3712421782 | AO39: 0.3049715143 | AP39: 0.3950875054 | AQ39: 0.485223125 | AR39: 0.2913097905 | AS39: 0.4521519933 | AT39: 0.3593181466 | AU39: 0.3661811141 | AV39: 0.3355263298 | AW39: 0.4051112315 | AX39: 0.3617555918 | AY39: 0.5024758472 | AZ39: 0.3683671954 | BA39: 0.3251623683 | BB39: 0.4089741683 | BC39: 0.4311969907 | BD39: 0.3316027945 | BE39: 0.4295801076 | BF39: 0.3820204789 | BG39: 0.4189720123 | BH39: 0.4198868522 | BI39: 0.3703935227 | BJ39: 0.395667896 | BK39: 0.3895691171 | BL39: 0.3595194681 | BM39: 0.4186730512 | BN39: 0.4095063715 | BO39: 0.4835304397 | BP39: 0.2844476558 | BQ39: 0.4549667996 | BR39: 0.408774305 | BS39: 0.3996786796 | BT39: 0.3552801079 | BU39: 0.4502341228 | BV39: 0.3401936413 | BW39: 0.3667225063 | BX39: 0.5004127744 | BY39: 0.3491847257 | BZ39: 0.4718524868 | CA39: 0.4329202371 | CB39: 0.3556730941 | CC39: 0.4764140307 | CD39: 0.5757742107 | CE39: 0.484644362 | CF39: 0.4029138753 | CG39: 0.2634966396 | CH39: 0.3771218892 | CI39: 0.3594556761 | CJ39: 0.3756834843 | CK39: 0.3888688696 | CL39: 0.3922313984 | CM39: 0.3464355325 | CN39: 0.4635018713 | CO39: 0.5417470209 | CP39: 0.4476067534 | CQ39: 0.4377927136 | CR39: 0.3179202372 | CS39: 0.4462827887 | CT39: 0.2635838154 | CU39: 0.3992695013 | CV39: 0.3456310033 | CW39: 0.3557984972 | CY39: =SUM(B39:CW39) -> 39.69845946
A40: PF08878 | B40: 0.3467668985 | C40: 0.3265978665 | D40: 0.3527139656 | E40: 0.530825297 | F40: 0.335734307 | G40: 0.2991257643 | H40: 0.3237442168 | I40: 0.3634755437 | J40: 0.3747926397 | K40: 0.638186357 | L40: 0.5215928108 | M40: 0.2667132801 | N40: 0.4843597984 | O40: 0.2563707545 | P40: 0.3587493396 | Q40: 0.5999123075 | R40: 0.2973642122 | S40: 0.4106759413 | T40: 0.3162373076 | U40: 0.427550866 | V40: 0.6635433258 | W40: 0.2924955941 | X40: 0.4390717087 | Y40: 0.3232518188 | Z40: 0.291083347 | AA40: 0.653085995 | AB40: 0.3985509533 | AC40: 0.3944112155 | AD40: 0.3921207172 | AE40: 0.3717482039 | AF40: 0.4759734047 | AG40: 0.4136236637 | AH40: 0.3233352991 | AI40: 0.3818404757 | AJ40: 0.4962516305 | AK40: 0.3474127308 | AL40: 0.2988100674 | AM40: 0.312655118 | AN40: 0.4802224493 | AO40: 0.3656393863 | AP40: 0.3863314787 | AQ40: 0.5939354585 | AR40: 0.5036780038 | AS40: 0.4336820139 | AT40: 0.2958188231 | AU40: 0.3288227823 | AV40: 0.2959926608 | AW40: 0.3817148775 | AX40: 0.2659127657 | AY40: 0.4794779847 | AZ40: 0.4396545914 | BA40: 0.4623575211 | BB40: 0.3120428503 | BC40: 0.3305274126 | BD40: 0.3967208358 | BE40: 0.4084830341 | BF40: 0.4310752736 | BG40: 0.6376592865 | BH40: 0.2240274508 | BI40: 0.3451400012 | BJ40: 0.4287748596 | BK40: 0.2981639601 | BL40: 0.5149756017 | BM40: 0.3044679709 | BN40: 0.4796886679 | BO40: 0.3132120906 | BP40: 0.2609865522 | BQ40: 0.5045043239 | BR40: 0.3339444074 | BS40: 0.2763332122 | BT40: 0.490635775 | BU40: 0.4257321677 | BV40: 0.4568802105 | BW40: 0.3690205597 | BX40: 0.2704392895 | BY40: 0.4455589601 | BZ40: 0.4299813447 | CA40: 0.6414021945 | CB40: 0.3353946104 | CC40: 0.2785006786 | CD40: 0.3572999696 | CE40: 0.4516776927 | CF40: 0.4776976618 | CG40: 0.3132966698 | CH40: 0.2686344457 | CI40: 0.5346742728 | CJ40: 0.4074335127 | CK40: 0.5225080322 | CL40: 0.2637413526 | CM40: 0.3023009013 | CN40: 0.3619037744 | CO40: 0.4003267691 | CP40: 0.3288114049 | CQ40: 0.2886931634 | CR40: 0.4274495648 | CS40: 0.350631015 | CT40: 0.2666636887 | CU40: 0.4319877613 | CV40: 0.4359627382 | CW40: 0.3850694852 | CY40: =SUM(B40:CW40) -> 39.335033
A41: PF08665 | B41: 0.3456226982 | C41: 0.3579288785 | D41: 0.1931341441 | E41: 0.6171445699 | F41: 0.1811375465 | G41: 0.2642932407 | H41: 0.2006009704 | I41: 0.5670385131 | J41: 0.8048809073 | K41: 0.4029187262 | L41: 0.2315995584 | M41: 0.2306717483 | N41: 0.2689848629 | O41: 0.2886145992 | P41: 0.2228015306 | Q41: 0.5654171506 | R41: 0.326859544 | S41: 0.1473178842 | T41: 0.3885453776 | U41: 0.3292428181 | V41: 0.4354160075 | W41: 0.1764704729 | X41: 0.4198919466 | Y41: 0.3129189802 | Z41: 0.3340099861 | AA41: 0.4067871328 | AB41: 0.3271658982 | AC41: 0.5653749405 | AD41: 0.1312792253 | AE41: 0.4470866172 | AF41: 0.2559598995 | AG41: 0.1907838391 | AH41: 0.2063197289 | AI41: 0.3072519659 | AJ41: 0.548972777 | AK41: 0.361027666 | AL41: 0.2954627593 | AM41: 0.3914149087 | AN41: 0.6464667347 | AO41: 0.5439449594 | AP41: 0.2903442195 | AQ41: 0.3413062729 | AR41: 0.4108066166 | AS41: 0.3531475073 | AT41: 0.219807855 | AU41: 0.264204707 | AV41: 0.5019573459 | AW41: 0.509812302 | AX41: 0.2412238759 | AY41: 0.2999290192 | AZ41: 0.5503866415 | BA41: 0.5803513314 | BB41: 0.4341511377 | BC41: 0.2956766826 | BD41: 0.2836057842 | BE41: 0.26481446 | BF41: 0.2813225133 | BG41: 0.3376276731 | BH41: 0.4319017627 | BI41: 0.4387311995 | BJ41: 0.2728025597 | BK41: 0.1586241422 | BL41: 0.3272241114 | BM41: 0.2386005912 | BN41: 0.4010200149 | BO41: 0.8771824341 | BP41: 0.4274444774 | BQ41: 0.343557222 | BR41: 0.3169287702 | BS41: 0.5565261433 | BT41: 0.2661925836 | BU41: 0.8928846549 | BV41: 0.2539745488 | BW41: 0.6144432563 | BX41: 0.2631377251 | BY41: 0.6753822105 | BZ41: 0.3513695098 | CA41: 0.3850854269 | CB41: 0.7679880114 | CC41: 0.6158935757 | CD41: 0.2825796689 | CE41: 0.4182130856 | CF41: 0.6513194032 | CG41: 0.3621857317 | CH41: 0.4741245768 | CI41: 0.3370263252 | CJ41: 0.3604458231 | CK41: 0.4515725209 | CL41: 0.2169700292 | CM41: 0.1345530088 | CN41: 0.4604719116 | CO41: 0.6356454377 | CP41: 0.3104638465 | CQ41: 0.5058013095 | CR41: 0.3986991904 | CS41: 0.3021663878 | CT41: 0.3305097004 | CU41: 0.3385002666 | CV41: 0.3099681244 | CW41: 0.2496198405 | CY41: =SUM(B41:CW41) -> 38.10696878
A42: PF08020 | B42: 0.4952371534 | C42: 0.3531815521 | D42: 0.4593576719 | E42: 0.2965946237 | F42: 0.4401350765 | G42: 0.2861829249 | H42: 0.3118606426 | I42: 0.5959214451 | J42: 0.3116758021 | K42: 0.2762516046 | L42: 0.4093821417 | M42: 0.3661012748 | N42: 0.3717155744 | O42: 0.3807253397 | P42: 0.2667525999 | Q42: 0.3903620649 | R42: 0.33671196 | S42: 0.2707816262 | T42: 0.2712378876 | U42: 0.3343662366 | V42: 0.3168996127 | W42: 0.3476746518 | X42: 0.4788133652 | Y42: 0.2536047581 | Z42: 0.3779804543 | AA42: 0.2823541639 | AB42: 0.2962543455 | AC42: 0.4640367238 | AD42: 0.4610277712 | AE42: 0.3483797869 | AF42: 0.5544798959 | AG42: 0.3903983481 | AH42: 0.3935794016 | AI42: 0.5107904286 | AJ42: 0.3471608738 | AK42: 0.4822091964 | AL42: 0.4544909645 | AM42: 0.4392002687 | AN42: 0.3414476355 | AO42: 0.5365606767 | AP42: 0.2762867706 | AQ42: 0.3961889502 | AR42: 0.1914991174 | AS42: 0.4407965935 | AT42: 0.2992587961 | AU42: 0.3300006677 | AV42: 0.4865987614 | AW42: 0.4357736814 | AX42: 0.2382622642 | AY42: 0.3862004681 | AZ42: 0.2761314475 | BA42: 0.5748226643 | BB42: 0.3512708488 | BC42: 0.3803546768 | BD42: 0.6971793971 | BE42: 0.2953738174 | BF42: 0.3584724539 | BG42: 0.2890059833 | BH42: 0.5851846744 | BI42: 0.1934832908 | BJ42: 0.4083547872 | BK42: 0.1948593833 | BL42: 0.405069696 | BM42: 0.4442072693 | BN42: 0.3299808503 | BO42: 0.4112597373 | BP42: 0.3255785053 | BQ42: 0.3380373826 | BR42: 0.5695416086 | BS42: 0.2602233047 | BT42: 0.6307088935 | BU42: 0.4557614783 | BV42: 0.3246244071 | BW42: 0.4539193539 | BX42: 0.2326920513 | BY42: 0.4132255177 | BZ42: 0.623558764 | CA42: 0.5831439875 | CB42: 0.4030153289 | CC42: 0.3113260831 | CD42: 0.2940225244 | CE42: 0.4122456971 | CF42: 0.3142823892 | CG42: 0.310497019 | CH42: 0.3616803744 | CI42: 0.4264007293 | CJ42: 0.3162107635 | CK42: 0.3139027063 | CL42: 0.326580443 | CM42: 0.2778936676 | CN42: 0.3098157598 | CO42: 0.2798360844 | CP42: 0.2505011575 | CQ42: 0.4425850827 | CR42: 0.3867423986 | CS42: 0.5808020893 | CT42: 0.3892965294 | CU42: 0.2529869937 | CV42: 0.3993269444 | CW42: 0.2680721591 | CY42: =SUM(B42:CW42) -> 37.81679375
A43: PF07927 | B43: 0.3412640365 | C43: 0.2542870267 | D43: 0.2450222783 | E43: 0.3434187465 | F43: 0.2675534942 | G43: 0.3527330826 | H43: 0.4725051022 | I43: 0.3141705066 | J43: 0.37426654 | K43: 0.4993120905 | L43: 0.4460320535 | M43: 0.3533708149 | N43: 0.5243996384 | O43: 0.236109729 | P43: 0.361984186 | Q43: 0.4001864447 | R43: 0.4361324445 | S43: 0.2936886135 | T43: 0.3634303595 | U43: 0.3352140797 | V43: 0.3551761304 | W43: 0.5140156567 | X43: 0.3749826905 | Y43: 0.313131197 | Z43: 0.3554902403 | AA43: 0.4503189227 | AB43: 0.294381068 | AC43: 0.3635112309 | AD43: 0.3089233433 | AE43: 0.3606966543 | AF43: 0.3443433731 | AG43: 0.4715348476 | AH43: 0.2719074134 | AI43: 0.3755235503 | AJ43: 0.4623591858 | AK43: 0.4047963321 | AL43: 0.377399655 | AM43: 0.5352538459 | AN43: 0.5470262158 | AO43: 0.3331452691 | AP43: 0.3985218077 | AQ43: 0.310104952 | AR43: 0.3275550006 | AS43: 0.2444337753 | AT43: 0.2336114733 | AU43: 0.5677077526 | AV43: 0.3943859732 | AW43: 0.3714883966 | AX43: 0.6224541298 | AY43: 0.4160942283 | AZ43: 0.3658600282 | BA43: 0.409872633 | BB43: 0.3626506504 | BC43: 0.3697504938 | BD43: 0.4831622538 | BE43: 0.314877043 | BF43: 0.3423971739 | BG43: 0.3363676203 | BH43: 0.4143223118 | BI43: 0.308641379 | BJ43: 0.3891556351 | BK43: 0.2415990509 | BL43: 0.4243622302 | BM43: 0.3940903609 | BN43: 0.307792035 | BO43: 0.4382671166 | BP43: 0.4091429031 | BQ43: 0.3473501822 | BR43: 0.4596790981 | BS43: 0.414228531 | BT43: 0.6621011979 | BU43: 0.3264892421 | BV43: 0.3360374581 | BW43: 0.255805023 | BX43: 0.32293855 | BY43: 0.3088511007 | BZ43: 0.3576516222 | CA43: 0.3484321562 | CB43: 0.2395827559 | CC43: 0.3674303218 | CD43: 0.3979617336 | CE43: 0.430765991 | CF43: 0.3978457856 | CG43: 0.4400391486 | CH43: 0.3195316772 | CI43: 0.3673781197 | CJ43: 0.3996739409 | CK43: 0.3691852527 | CL43: 0.3200586493 | CM43: 0.3684730132 | CN43: 0.3664660554 | CO43: 0.4391678167 | CP43: 0.3099797242 | CQ43: 0.3417809543 | CR43: 0.416745215 | CS43: 0.2834431073 | CT43: 0.5720721945 | CU43: 0.4159717714 | CV43: 0.3083770879 | CW43: 0.3043850818 | CY43: =SUM(B43:CW43) -> 37.54354606
A44: PF13646 | B44: 0.5379094113 | C44: 0.3412211018 | D44: 0.3492751573 | E44: 0.6539318768 | F44: 0.3607525 | G44: 0.3863673571 | H44: 0.5806048749 | I44: 0.2565141747 | J44: 0.3681488966 | K44: 0.3864108453 | L44: 0.2055392441 | M44: 0.4568386476 | N44: 0.3694563536 | O44: 0.2986595881 | P44: 0.2696552158 | Q44: 0.302677847 | R44: 0.3360515598 | S44: 0.5265892335 | T44: 0.2011879796 | U44: 0.4786282433 | V44: 0.4036646189 | W44: 0.3897717699 | X44: 0.4826666545 | Y44: 0.4028958626 | Z44: 0.3151863168 | AA44: 0.3088549022 | AB44: 0.3716416338 | AC44: 0.5064425771 | AD44: 0.3095011085 | AE44: 0.3281418979 | AF44: 0.2852448051 | AG44: 0.31028668 | AH44: 0.3496719577 | AI44: 0.4094415034 | AJ44: 0.2708623436 | AK44: 0.4375018078 | AL44: 0.2143273569 | AM44: 0.3348818669 | AN44: 0.3054882056 | AO44: 0.5191712962 | AP44: 0.266118028 | AQ44: 0.4091425881 | AR44: 0.3592901033 | AS44: 0.3316840295 | AT44: 0.3485187745 | AU44: 0.2139108224 | AV44: 0.2649837453 | AW44: 0.3217268094 | AX44: 0.3446749519 | AY44: 0.5657876748 | AZ44: 0.3363349693 | BA44: 0.4530610557 | BB44: 0.3998722513 | BC44: 0.3630454951 | BD44: 0.2137324074 | BE44: 0.4462661352 | BF44: 0.2549860308 | BG44: 0.3588250006 | BH44: 0.4445239886 | BI44: 0.3175244216 | BJ44: 0.2107890386 | BK44: 0.3567273278 | BL44: 0.2150454364 | BM44: 0.3667570054 | BN44: 0.2670066404 | BO44: 0.4143141304 | BP44: 0.3312323559 | BQ44: 0.3189348656 | BR44: 0.3980452563 | BS44: 0.4345068854 | BT44: 0.3697551001 | BU44: 0.4411817468 | BV44: 0.5413849597 | BW44: 0.3505910595 | BX44: 0.413286222 | BY44: 0.3767161746 | BZ44: 0.3840460522 | CA44: 0.5891827327 | CB44: 0.4077769303 | CC44: 0.5134449778 | CD44: 0.3967107912 | CE44: 0.4116833112 | CF44: 0.4327918888 | CG44: 0.2879063019 | CH44: 0.225397223 | CI44: 0.3286496237 | CJ44: 0.4458165604 | CK44: 0.2144039561 | CL44: 0.3547651676 | CM44: 0.5238466431 | CN44: 0.3375519165 | CO44: 0.3969263822 | CP44: 0.8998633199 | CQ44: 0.2594679961 | CR44: 0.3784572568 | CS44: 0.4225874956 | CT44: 0.389264324 | CU44: 0.2266789283 | CV44: 0.2969007028 | CW44: 0.4814126938 | CY44: =SUM(B44:CW44) -> 37.34788194
A45: PF02641 | B45: 0.4664645561 | C45: 0.3489257308 | D45: 0.5059952339 | E45: 0.3242934883 | F45: 0.3965254002 | G45: 0.2585796623 | H45: 0.4444284888 | I45: 0.3912623694 | J45: 0.2564465465 | K45: 0.3676241583 | L45: 0.2823796811 | M45: 0.355449994 | N45: 0.4132604359 | O45: 0.4053298091 | P45: 0.4104031503 | Q45: 0.3117744196 | R45: 0.2704849148 | S45: 0.4181900116 | T45: 0.3942742101 | U45: 0.3531270788 | V45: 0.4968592449 | W45: 0.2693440111 | X45: 0.3514868375 | Y45: 0.2951915583 | Z45: 0.3814613617 | AA45: 0.3950308567 | AB45: 0.3303952806 | AC45: 0.4478386455 | AD45: 0.3203328514 | AE45: 0.4440279775 | AF45: 0.3717701985 | AG45: 0.410810837 | AH45: 0.3913917325 | AI45: 0.3573575832 | AJ45: 0.3752094928 | AK45: 0.337461006 | AL45: 0.3747442881 | AM45: 0.3575511549 | AN45: 0.4186720739 | AO45: 0.3129873454 | AP45: 0.3980609803 | AQ45: 0.4838015056 | AR45: 0.3164184672 | AS45: 0.3622881798 | AT45: 0.390183087 | AU45: 0.3943089887 | AV45: 0.4674148434 | AW45: 0.4769857899 | AX45: 0.4572875735 | AY45: 0.318340055 | AZ45: 0.2541176012 | BA45: 0.323798957 | BB45: 0.3808027111 | BC45: 0.5092772577 | BD45: 0.472493931 | BE45: 0.3856343728 | BF45: 0.2714221977 | BG45: 0.3497440886 | BH45: 0.4397756036 | BI45: 0.3785351042 | BJ45: 0.3248530144 | BK45: 0.3777808878 | BL45: 0.3669272416 | BM45: 0.462355409 | BN45: 0.3538799653 | BO45: 0.3035447368 | BP45: 0.3774376425 | BQ45: 0.4232662922 | BR45: 0.3287770256 | BS45: 0.338963973 | BT45: 0.3779345996 | BU45: 0.3605285043 | BV45: 0.3167051729 | BW45: 0.4625999807 | BX45: 0.3198422453 | BY45: 0.4232685336 | BZ45: 0.3985968012 | CA45: 0.303231746 | CB45: 0.2823838036 | CC45: 0.3534151012 | CD45: 0.3619770482 | CE45: 0.3319010748 | CF45: 0.3975756066 | CG45: 0.4032197667 | CH45: 0.2854427781 | CI45: 0.4693117107 | CJ45: 0.3944743235 | CK45: 0.3800384425 | CL45: 0.4341508983 | CM45: 0.4289659486 | CN45: 0.3452655283 | CO45: 0.3105545682 | CP45: 0.2119862057 | CQ45: 0.5312953512 | CR45: 0.3720886218 | CS45: 0.4019201358 | CT45: 0.2425163414 | CU45: 0.3988128305 | CV45: 0.2334009765 | CW45: 0.4129367315 | CY45: =SUM(B45:CW45) -> 37.24996254
A46: PF14375 | B46: 0.3532196186 | C46: 0.4197276287 | D46: 0.2792827586 | E46: 0.3151673736 | F46: 0.6256344664 | G46: 0.2869824062 | H46: 0.4141227403 | I46: 0.3676241412 | J46: 0.307328856 | K46: 0.4137720803 | L46: 0.4283214176 | M46: 0.2901963209 | N46: 0.2473351314 | O46: 0.4898206629 | P46: 0.2776090404 | Q46: 0.2643137328 | R46: 0.4084567141 | S46: 0.2874585469 | T46: 0.3026359042 | U46: 0.4027741086 | V46: 0.1788564425 | W46: 0.5481732255 | X46: 0.3592274877 | Y46: 0.2486148012 | Z46: 0.4686138888 | AA46: 0.4038381581 | AB46: 0.2119515263 | AC46: 0.4167855879 | AD46: 0.2930280695 | AE46: 0.2702438739 | AF46: 0.3193978287 | AG46: 0.3164366618 | AH46: 0.55525923 | AI46: 0.3288116185 | AJ46: 0.2799768535 | AK46: 0.3291627671 | AL46: 0.3303182512 | AM46: 0.303521899 | AN46: 0.6030778504 | AO46: 0.3526024214 | AP46: 0.3764243727 | AQ46: 0.3409206529 | AR46: 0.4310024474 | AS46: 0.3082864346 | AT46: 0.3743131644 | AU46: 0.3507670163 | AV46: 0.3747929331 | AW46: 0.2262072765 | AX46: 0.4241575093 | AY46: 0.4088467473 | AZ46: 0.2818700255 | BA46: 0.5082623148 | BB46: 0.2324247614 | BC46: 0.4134301496 | BD46: 0.4817044889 | BE46: 0.3469309857 | BF46: 0.3070337015 | BG46: 0.4121053327 | BH46: 0.5116187551 | BI46: 0.2233330213 | BJ46: 0.4500793153 | BK46: 0.3824483046 | BL46: 0.4127505644 | BM46: 0.4039219376 | BN46: 0.4470934852 | BO46: 0.3358189721 | BP46: 0.2767230764 | BQ46: 0.3580510981 | BR46: 0.3350944428 | BS46: 0.3816171137 | BT46: 0.4998710043 | BU46: 0.4733434181 | BV46: 0.3347167769 | BW46: 0.3506689088 | BX46: 0.2652833841 | BY46: 0.4731674852 | BZ46: 0.4889350368 | CA46: 0.3606351227 | CB46: 0.3371784607 | CC46: 0.2389678863 | CD46: 0.2630421951 | CE46: 0.5327080684 | CF46: 0.2468802969 | CG46: 0.4218015644 | CH46: 0.3066914071 | CI46: 0.3466854826 | CJ46: 0.3696037259 | CK46: 0.6483557386 | CL46: 0.4181682864 | CM46: 0.3554191076 | CN46: 0.3555443879 | CO46: 0.427672915 | CP46: 0.4753850797 | CQ46: 0.354812067 | CR46: 0.3924465121 | CS46: 0.2849116738 | CT46: 0.5214618137 | CU46: 0.4674812557 | CV46: 0.5970686497 | CW46: 0.1644387281 | CY46: =SUM(B46:CW46) -> 37.19105893
A47: PF16778 | B47: 0.3293978846 | C47: 0.45178174 | D47: 0.3011441854 | E47: 0.4339717222 | F47: 0.3650323713 | G47: 0.551550679 | H47: 0.3011950173 | I47: 0.3119628994 | J47: 0.3537084356 | K47: 0.2871801993 | L47: 0.4351884458 | M47: 0.4496753451 | N47: 0.3089034121 | O47: 0.3530013913 | P47: 0.3373892916 | Q47: 0.3056056297 | R47: 0.2880538512 | S47: 0.3284468957 | T47: 0.3522070034 | U47: 0.2846031214 | V47: 0.2746214223 | W47: 0.2828251643 | X47: 0.4657129294 | Y47: 0.2491194548 | Z47: 0.291897336 | AA47: 0.3091863327 | AB47: 0.4852492587 | AC47: 0.3953348523 | AD47: 0.398301141 | AE47: 0.360414241 | AF47: 0.4455670644 | AG47: 0.5158508956 | AH47: 0.2182257264 | AI47: 0.4866824806 | AJ47: 0.4529669946 | AK47: 0.4323427143 | AL47: 0.1888435059 | AM47: 0.2956723431 | AN47: 0.3187558554 | AO47: 0.3992940347 | AP47: 0.3157387809 | AQ47: 0.456907588 | AR47: 0.36202877 | AS47: 0.3553316334 | AT47: 0.4056537206 | AU47: 0.3689758923 | AV47: 0.3283262994 | AW47: 0.2482535776 | AX47: 0.4334976203 | AY47: 0.3255711582 | AZ47: 0.3973397171 | BA47: 0.2693052376 | BB47: 0.477037379 | BC47: 0.4294700255 | BD47: 0.2820146654 | BE47: 0.3592182653 | BF47: 0.3778892051 | BG47: 0.3194496352 | BH47: 0.2599073989 | BI47: 0.473606214 | BJ47: 0.2806014293 | BK47: 0.263732599 | BL47: 0.4026485903 | BM47: 0.3200881564 | BN47: 0.4230315304 | BO47: 0.4846217342 | BP47: 0.2617227918 | BQ47: 0.3162759224 | BR47: 0.3668501989 | BS47: 0.3015489895 | BT47: 0.3200779703 | BU47: 0.51966779 | BV47: 0.5724694793 | BW47: 0.3877297714 | BX47: 0.3345470376 | BY47: 0.3548786717 | BZ47: 0.342944967 | CA47: 0.2159155458 | CB47: 0.3983420334 | CC47: 0.3214085019 | CD47: 0.4714912082 | CE47: 0.3261628012 | CF47: 0.3376018658 | CG47: 0.280660033 | CH47: 0.1964673574 | CI47: 0.2713239016 | CJ47: 0.4018550481 | CK47: 0.5603310469 | CL47: 0.3326337499 | CM47: 0.3564919564 | CN47: 0.3570826839 | CO47: 0.5033273791 | CP47: 0.3972098052 | CQ47: 0.3832825303 | CR47: 0.6634918786 | CS47: 0.3492733509 | CT47: 0.3951736423 | CU47: 0.3215227107 | CV47: 0.7488524259 | CW47: 0.3068871808 | CY47: =SUM(B47:CW47) -> 36.79261232
A48: PF00078 | B48: 0.3921728581 | C48: 0.4148999104 | D48: 0.4410862483 | E48: 0.3903526587 | F48: 0.4013045252 | G48: 0.28864029 | H48: 0.4829188208 | I48: 0.3509689965 | J48: 0.264040383 | K48: 0.4594133979 | L48: 0.3278546533 | M48: 0.3305385932 | N48: 0.321086486 | O48: 0.2897142107 | P48: 0.3403188186 | Q48: 0.3008096324 | R48: 0.3501437702 | S48: 0.3755952841 | T48: 0.3932622508 | U48: 0.420050226 | V48: 0.5257104524 | W48: 0.3313096398 | X48: 0.3484527093 | Y48: 0.3038448643 | Z48: 0.363230986 | AA48: 0.3613583127 | AB48: 0.281134927 | AC48: 0.380983902 | AD48: 0.3731370419 | AE48: 0.4064673643 | AF48: 0.2439569609 | AG48: 0.4111874216 | AH48: 0.338809526 | AI48: 0.3424120085 | AJ48: 0.3885244991 | AK48: 0.2735609099 | AL48: 0.2264281066 | AM48: 0.3784610688 | AN48: 0.380780574 | AO48: 0.4322707292 | AP48: 0.3007528828 | AQ48: 0.4087581327 | AR48: 0.2716936929 | AS48: 0.4716266003 | AT48: 0.3681325586 | AU48: 0.2942071961 | AV48: 0.473948308 | AW48: 0.303599616 | AX48: 0.3184017618 | AY48: 0.405164166 | AZ48: 0.4193742297 | BA48: 0.3820227509 | BB48: 0.3669143646 | BC48: 0.3020928548 | BD48: 0.330732039 | BE48: 0.4063122666 | BF48: 0.4247296747 | BG48: 0.3971660603 | BH48: 0.3080942308 | BI48: 0.3405565552 | BJ48: 0.2803857546 | BK48: 0.3773019976 | BL48: 0.3109343073 | BM48: 0.3740093374 | BN48: 0.4247525634 | BO48: 0.477683743 | BP48: 0.4064319307 | BQ48: 0.2684610209 | BR48: 0.3150182445 | BS48: 0.3804363683 | BT48: 0.3531669349 | BU48: 0.2954674367 | BV48: 0.2661779023 | BW48: 0.2651899333 | BX48: 0.3496712252 | BY48: 0.335911484 | BZ48: 0.4013707506 | CA48: 0.4183611156 | CB48: 0.3878962499 | CC48: 0.5042843635 | CD48: 0.373160039 | CE48: 0.4119179088 | CF48: 0.36237612 | CG48: 0.3791129767 | CH48: 0.3545820188 | CI48: 0.4130483863 | CJ48: 0.3451956231 | CK48: 0.4432044997 | CL48: 0.3174436916 | CM48: 0.3525873653 | CN48: 0.4409246955 | CO48: 0.5705921557 | CP48: 0.4441718541 | CQ48: 0.3909110836 | CR48: 0.4056972544 | CS48: 0.2878382676 | CT48: 0.3651437464 | CU48: 0.4327580231 | CV48: 0.3317832602 | CW48: 0.4046233561 | CY48: =SUM(B48:CW48) -> 36.74145895
A49: PF02796 | B49: 0.4341778847 | C49: 0.4809389835 | D49: 0.4567016009 | E49: 0.3410879408 | F49: 0.2923622126 | G49: 0.2952911294 | H49: 0.3186818665 | I49: 0.3078771582 | J49: 0.4902075627 | K49: 0.2872240394 | L49: 0.3746167862 | M49: 0.6631606081 | N49: 0.3008494779 | O49: 0.3661598739 | P49: 0.4001368555 | Q49: 0.3714051309 | R49: 0.2455193153 | S49: 0.3935390997 | T49: 0.4392406572 | U49: 0.2662968933 | V49: 0.3088432853 | W49: 0.2833111928 | X49: 0.2542330275 | Y49: 0.318512882 | Z49: 0.2971502033 | AA49: 0.2819910026 | AB49: 0.6054651866 | AC49: 0.2735301166 | AD49: 0.2998444083 | AE49: 0.3698882678 | AF49: 0.4085511373 | AG49: 0.3459583914 | AH49: 0.2962576914 | AI49: 0.2598855266 | AJ49: 0.3084689581 | AK49: 0.3067624012 | AL49: 0.3542564237 | AM49: 0.3638165603 | AN49: 0.3299539725 | AO49: 0.2990862845 | AP49: 0.3737935982 | AQ49: 0.3284893652 | AR49: 0.3190948262 | AS49: 0.3371831378 | AT49: 0.1897522669 | AU49: 0.4626791213 | AV49: 0.3987304932 | AW49: 0.5912603458 | AX49: 0.3564172248 | AY49: 0.3335478392 | AZ49: 0.4061527479 | BA49: 0.3568907829 | BB49: 0.3711872131 | BC49: 0.3059766826 | BD49: 0.4891147245 | BE49: 0.3403682763 | BF49: 0.3276520546 | BG49: 0.4527801139 | BH49: 0.3955636834 | BI49: 0.3332197191 | BJ49: 0.3644291992 | BK49: 0.3821947026 | BL49: 0.3792498335 | BM49: 0.2807436706 | BN49: 0.4619421005 | BO49: 0.2481423604 | BP49: 0.3866850965 | BQ49: 0.3009054609 | BR49: 0.3992895855 | BS49: 0.3207815408 | BT49: 0.3677797761 | BU49: 0.2932492193 | BV49: 0.318295863 | BW49: 0.3355831739 | BX49: 0.3205582652 | BY49: 0.4193204241 | BZ49: 0.4911763248 | CA49: 0.3010675263 | CB49: 0.4145720261 | CC49: 0.3206480726 | CD49: 0.3774467441 | CE49: 0.4787673189 | CF49: 0.3786197762 | CG49: 0.3193478861 | CH49: 0.5093933945 | CI49: 0.3867291114 | CJ49: 0.458988333 | CK49: 0.3468723864 | CL49: 0.4126209012 | CM49: 0.3131349014 | CN49: 0.415692414 | CO49: 0.3911984027 | CP49: 0.337974984 | CQ49: 0.3435987833 | CR49: 0.4259432099 | CS49: 0.3718632816 | CT49: 0.4619081823 | CU49: 0.4643295737 | CV49: 0.3650818214 | CW49: 0.3140467201 | CY49: =SUM(B49:CW49) -> 36.54126856
A50: PF08378 | B50: 0.3010621971 | C50: 0.3653375926 | D50: 0.3648461902 | E50: 0.3110541692 | F50: 0.3170809771 | G50: 0.3350442665 | H50: 0.2974373796 | I50: 0.4126212797 | J50: 0.3003761915 | K50: 0.4798518573 | L50: 0.3071953802 | M50: 0.2875272612 | N50: 0.3823122075 | O50: 0.278892886 | P50: 0.2935494576 | Q50: 0.5019058712 | R50: 0.3306640522 | S50: 0.2502980008 | T50: 0.2776768911 | U50: 0.3642157745 | V50: 0.3309322479 | W50: 0.3110369266 | X50: 0.373431884 | Y50: 0.3285833604 | Z50: 0.3555839187 | AA50: 0.4875326406 | AB50: 0.3517908539 | AC50: 0.2179708702 | AD50: 0.4357744343 | AE50: 0.3447951294 | AF50: 0.2816363999 | AG50: 0.3961163091 | AH50: 0.4232722009 | AI50: 0.4365943701 | AJ50: 0.3306334316 | AK50: 0.4588058869 | AL50: 0.315326347 | AM50: 0.3917210157 | AN50: 0.3456834795 | AO50: 0.4479942177 | AP50: 0.2804105516 | AQ50: 0.2946706192 | AR50: 0.5119760004 | AS50: 0.2750765961 | AT50: 0.4053775958 | AU50: 0.3689155982 | AV50: 0.3673673357 | AW50: 0.3859404014 | AX50: 0.3060400058 | AY50: 0.3697229998 | AZ50: 0.5295728025 | BA50: 0.2460931619 | BB50: 0.4410199666 | BC50: 0.4253894486 | BD50: 0.3598494507 | BE50: 0.2398226116 | BF50: 0.4167247033 | BG50: 0.3720789045 | BH50: 0.2893452132 | BI50: 0.3784435709 | BJ50: 0.4359699694 | BK50: 0.4522500052 | BL50: 0.4814000976 | BM50: 0.3350107323 | BN50: 0.4173867071 | BO50: 0.3287383969 | BP50: 0.3735926652 | BQ50: 0.4219940454 | BR50: 0.4635299218 | BS50: 0.4630022187 | BT50: 0.3490574543 | BU50: 0.4395604777 | BV50: 0.3352800427 | BW50: 0.6324584336 | BX50: 0.271888853 | BY50: 0.2973469348 | BZ50: 0.3419685752 | CA50: 0.4420832311 | CB50: 0.3221979111 | CC50: 0.4616924669 | CD50: 0.4660522517 | CE50: 0.2380552125 | CF50: 0.238278232 | CG50: 0.2211787488 | CH50: 0.2459324739 | CI50: 0.3702900878 | CJ50: 0.2902527035 | CK50: 0.2547016405 | CL50: 0.4082312234 | CM50: 0.441607105 | CN50: 0.4195070057 | CO50: 0.3940792034 | CP50: 0.3859263162 | CQ50: 0.5337313395 | CR50: 0.5994799043 | CS50: 0.242640384 | CT50: 0.3678050509 | CU50: 0.2304382316 | CV50: 0.3224924314 | CW50: 0.2512090697 | CY50: =SUM(B50:CW50) -> 36.3763011
A51: PF01555 | B51: 0.3579844302 | C51: 0.3603019841 | D51: 0.2925987809 | E51: 0.2929817738 | F51: 0.3676658205 | G51: 0.3916992109 | H51: 0.3023152489 | I51: 0.4532509081 | J51: 0.4344508551 | K51: 0.3114634229 | L51: 0.2960193885 | M51: 0.3388455359 | N51: 0.348841316 | O51: 0.3558137756 | P51: 0.3546573466 | Q51: 0.2744313947 | R51: 0.2240583593 | S51: 0.3635273404 | T51: 0.3761580401 | U51: 0.3911063307 | V51: 0.3869604929 | W51: 0.432062367 | X51: 0.3845827899 | Y51: 0.3938638164 | Z51: 0.2762205543 | AA51: 0.2526647048 | AB51: 0.3961565113 | AC51: 0.3650982037 | AD51: 0.4232357939 | AE51: 0.4353341024 | AF51: 0.3042227937 | AG51: 0.2772314769 | AH51: 0.2920898422 | AI51: 0.3625148136 | AJ51: 0.3664316109 | AK51: 0.3727154544 | AL51: 0.3814016516 | AM51: 0.3051071938 | AN51: 0.3724367422 | AO51: 0.3734206668 | AP51: 0.3479080552 | AQ51: 0.4074497452 | AR51: 0.339578414 | AS51: 0.4024770234 | AT51: 0.3969499795 | AU51: 0.4648076345 | AV51: 0.3604932352 | AW51: 0.3135231917 | AX51: 0.4209613839 | AY51: 0.3184285074 | AZ51: 0.4411092949 | BA51: 0.4224585925 | BB51: 0.3452207225 | BC51: 0.3578075537 | BD51: 0.3227526399 | BE51: 0.379282684 | BF51: 0.3661281946 | BG51: 0.41942896 | BH51: 0.3426012859 | BI51: 0.383808138 | BJ51: 0.3664486418 | BK51: 0.3375019594 | BL51: 0.3246043084 | BM51: 0.3150124366 | BN51: 0.3944943671 | BO51: 0.3676024109 | BP51: 0.3692877959 | BQ51: 0.3369186492 | BR51: 0.318837234 | BS51: 0.3753507623 | BT51: 0.3710427744 | BU51: 0.4379693092 | BV51: 0.3484816073 | BW51: 0.3722734481 | BX51: 0.3669146884 | BY51: 0.4266767776 | BZ51: 0.3453157404 | CA51: 0.4248384615 | CB51: 0.3009937243 | CC51: 0.4190084132 | CD51: 0.3759311099 | CE51: 0.4146441 | CF51: 0.2785083846 | CG51: 0.402254607 | CH51: 0.387085562 | CI51: 0.3595392461 | CJ51: 0.3600846363 | CK51: 0.4531924183 | CL51: 0.3583520491 | CM51: 0.3732452555 | CN51: 0.3719087613 | CO51: 0.3428892527 | CP51: 0.3114497244 | CQ51: 0.316596437 | CR51: 0.4117070887 | CS51: 0.3927586403 | CT51: 0.3442936205 | CU51: 0.4165279701 | CV51: 0.3385924359 | CW51: 0.3311116235 | CY51: =SUM(B51:CW51) -> 36.25534452
A52: PF03864 | B52: 0.3600812714 | C52: 0.2715253221 | D52: 0.4235921555 | E52: 0.3823744226 | F52: 0.553358905 | G52: 0.4651031691 | H52: 0.2710272942 | I52: 0.2368167496 | J52: 0.3444323576 | K52: 0.4848588037 | L52: 0.3306695773 | M52: 0.2963810894 | N52: 0.2950186728 | O52: 0.3868905648 | P52: 0.277632048 | Q52: 0.5723932333 | R52: 0.4509664228 | S52: 0.3324635452 | T52: 0.6346618999 | U52: 0.2820297468 | V52: 0.3428351572 | W52: 0.1809045777 | X52: 0.293862081 | Y52: 0.4847179502 | Z52: 0.2432698169 | AA52: 0.3859775223 | AB52: 0.4060543171 | AC52: 0.2981635212 | AD52: 0.2266883638 | AE52: 0.3582460141 | AF52: 0.4367665999 | AG52: 0.3825466023 | AH52: 0.3312027682 | AI52: 0.3346537191 | AJ52: 0.2520443335 | AK52: 0.3119790451 | AL52: 0.341634751 | AM52: 0.1720411395 | AN52: 0.3607674035 | AO52: 0.3856215994 | AP52: 0.5342157616 | AQ52: 0.3257658603 | AR52: 0.2455450002 | AS52: 0.2204300722 | AT52: 0.4119351631 | AU52: 0.395376026 | AV52: 0.4745687653 | AW52: 0.4056377959 | AX52: 0.3296845918 | AY52: 0.2268523276 | AZ52: 0.3653850227 | BA52: 0.3407314695 | BB52: 0.2677436588 | BC52: 0.4268284473 | BD52: 0.3501435781 | BE52: 0.3272969413 | BF52: 0.4521226766 | BG52: 0.3682824078 | BH52: 0.3257483577 | BI52: 0.3748479554 | BJ52: 0.3259750391 | BK52: 0.3951879661 | BL52: 0.434128627 | BM52: 0.2881677775 | BN52: 0.4346714709 | BO52: 0.3419550963 | BP52: 0.5815009919 | BQ52: 0.3119594797 | BR52: 0.3066284161 | BS52: 0.4677547117 | BT52: 0.7207692143 | BU52: 0.2992296353 | BV52: 0.2755771352 | BW52: 0.3241952816 | BX52: 0.3256246463 | BY52: 0.3384575757 | BZ52: 0.2742882197 | CA52: 0.5063292502 | CB52: 0.3233090314 | CC52: 0.5480938361 | CD52: 0.3686790839 | CE52: 0.39385535 | CF52: 0.3232878555 | CG52: 0.2798201533 | CH52: 0.3558798501 | CI52: 0.3409996761 | CJ52: 0.2579971115 | CK52: 0.3110806781 | CL52: 0.3106766164 | CM52: 0.3375398329 | CN52: 0.3863479605 | CO52: 0.249677363 | CP52: 0.3337766732 | CQ52: 0.2562822841 | CR52: 0.2930723987 | CS52: 0.2432581472 | CT52: 0.353998422 | CU52: 0.4541882535 | CV52: 0.5647504809 | CW52: 0.646593653 | CY52: =SUM(B52:CW52) -> 36.23696166
A53: PF07551 | B53: 0.2667117228 | C53: 0.3535946218 | D53: 0.3167728045 | E53: 0.3475860995 | F53: 0.3003206802 | G53: 0.4028708788 | H53: 0.3974878798 | I53: 0.3865660214 | J53: 0.5619968323 | K53: 0.3896234155 | L53: 0.4855730511 | M53: 0.2509341016 | N53: 0.3126102571 | O53: 0.2437306777 | P53: 0.3500536458 | Q53: 0.4204732531 | R53: 0.4077870159 | S53: 0.5668755496 | T53: 0.4029013107 | U53: 0.3535113337 | V53: 0.3224163021 | W53: 0.252551896 | X53: 0.4514161934 | Y53: 0.2393515753 | Z53: 0.395127649 | AA53: 0.4115649833 | AB53: 0.2965436965 | AC53: 0.3014065991 | AD53: 0.3629745111 | AE53: 0.4220038582 | AF53: 0.2880294404 | AG53: 0.4604873378 | AH53: 0.4005004615 | AI53: 0.7454938296 | AJ53: 0.2907070101 | AK53: 0.4353884006 | AL53: 0.3653855761 | AM53: 0.3262620667 | AN53: 0.3953444059 | AO53: 0.2645392417 | AP53: 0.3368178873 | AQ53: 0.325553702 | AR53: 0.3810403865 | AS53: 0.3932583195 | AT53: 0.3578884856 | AU53: 0.5186421932 | AV53: 0.4210980902 | AW53: 0.3782758259 | AX53: 0.3049174233 | AY53: 0.3410660369 | AZ53: 0.3389726623 | BA53: 0.3745082256 | BB53: 0.3836406864 | BC53: 0.4105458207 | BD53: 0.2784523557 | BE53: 0.4041746113 | BF53: 0.2656674221 | BG53: 0.3836391972 | BH53: 0.4550230002 | BI53: 0.4260212156 | BJ53: 0.3538345698 | BK53: 0.3130725948 | BL53: 0.2100995982 | BM53: 0.3812824616 | BN53: 0.5511059174 | BO53: 0.3200116534 | BP53: 0.3014510967 | BQ53: 0.3876789457 | BR53: 0.3352914225 | BS53: 0.4212439469 | BT53: 0.3833163626 | BU53: 0.3150140092 | BV53: 0.1800406787 | BW53: 0.2853568079 | BX53: 0.2775622097 | BY53: 0.3170598215 | BZ53: 0.3737951125 | CA53: 0.2578069117 | CB53: 0.4746877072 | CC53: 0.1954266075 | CD53: 0.4693893882 | CE53: 0.3463818725 | CF53: 0.3172507621 | CG53: 0.2712565075 | CH53: 0.3803755093 | CI53: 0.4607188706 | CJ53: 0.562746321 | CK53: 0.2933935441 | CL53: 0.4337670306 | CM53: 0.3149711047 | CN53: 0.3555296863 | CO53: 0.4202394659 | CP53: 0.3322124001 | CQ53: 0.2714071021 | CR53: 0.2738639858 | CS53: 0.3075748229 | CT53: 0.2405426468 | CU53: 0.3597850649 | CV53: 0.4109576661 | CW53: 0.3128033774 | CY53: =SUM(B53:CW53) -> 36.1949853
A54: PF05067 | B54: 0.371663442 | C54: 0.2828524078 | D54: 0.4488717102 | E54: 0.2429016961 | F54: 0.28579861 | G54: 0.2428476593 | H54: 0.2496206564 | I54: 0.5057918091 | J54: 0.3710500381 | K54: 0.4728873513 | L54: 0.3682100335 | M54: 0.3778679515 | N54: 0.4010154288 | O54: 0.3384344767 | P54: 0.3379497012 | Q54: 0.400706759 | R54: 0.2796079277 | S54: 0.5109147582 | T54: 0.2929828649 | U54: 0.2874518759 | V54: 0.3267424273 | W54: 0.3171300328 | X54: 0.3691583745 | Y54: 0.4142169471 | Z54: 0.3643212962 | AA54: 0.2985284463 | AB54: 0.2756055238 | AC54: 0.2608676435 | AD54: 0.3691514316 | AE54: 0.30095161 | AF54: 0.4682333559 | AG54: 0.3157039425 | AH54: 0.4209092136 | AI54: 0.2362054768 | AJ54: 0.5660719219 | AK54: 0.4085521866 | AL54: 0.3120518098 | AM54: 0.5040944489 | AN54: 0.3000513459 | AO54: 0.2891126919 | AP54: 0.2798761285 | AQ54: 0.2770274682 | AR54: 0.2722323065 | AS54: 0.4293595464 | AT54: 0.2140139809 | AU54: 0.2386356338 | AV54: 0.433318563 | AW54: 0.6724043643 | AX54: 0.2425689192 | AY54: 0.3783010875 | AZ54: 0.5172873864 | BA54: 0.2897365317 | BB54: 0.4117408994 | BC54: 0.5481421067 | BD54: 0.2901584221 | BE54: 0.3448952506 | BF54: 0.3104485187 | BG54: 0.2870327732 | BH54: 0.2975096411 | BI54: 0.2226630551 | BJ54: 0.3861842642 | BK54: 0.3111411337 | BL54: 0.3398685641 | BM54: 0.351499999 | BN54: 0.5010543228 | BO54: 0.296814219 | BP54: 0.1790109153 | BQ54: 0.3031748893 | BR54: 0.4747385175 | BS54: 0.3082877706 | BT54: 0.369981213 | BU54: 0.4513407289 | BV54: 0.4169908786 | BW54: 0.5213719849 | BX54: 0.386349666 | BY54: 0.4494504999 | BZ54: 0.3408854288 | CA54: 0.388127586 | CB54: 0.4015112992 | CC54: 0.3422712398 | CD54: 0.2055215505 | CE54: 0.258696168 | CF54: 0.3870359096 | CG54: 0.3266239411 | CH54: 0.5342177581 | CI54: 0.4417339907 | CJ54: 0.3016704149 | CK54: 0.3165342279 | CL54: 0.4613094957 | CM54: 0.4364367756 | CN54: 0.3791812733 | CO54: 0.4542047879 | CP54: 0.3598448601 | CQ54: 0.2147709286 | CR54: 0.3060223277 | CS54: 0.2825310855 | CT54: 0.3603701829 | CU54: 0.3586293474 | CV54: 0.2503629975 | CW54: 0.5252600728 | CY54: =SUM(B54:CW54) -> 35.82545308
A55: PF05065 | B55: 0.3693014791 | C55: 0.3587000558 | D55: 0.2913727364 | E55: 0.4002143302 | F55: 0.2920925672 | G55: 0.2954615218 | H55: 0.2851465371 | I55: 0.3102184566 | J55: 0.3721540114 | K55: 0.257240353 | L55: 0.4897421661 | M55: 0.4242807855 | N55: 0.4275742971 | O55: 0.3376013123 | P55: 0.2460456385 | Q55: 0.4200304156 | R55: 0.3243797464 | S55: 0.3269828635 | T55: 0.4704816141 | U55: 0.3344454018 | V55: 0.3484409685 | W55: 0.3578096609 | X55: 0.4208754438 | Y55: 0.2650763488 | Z55: 0.2784005674 | AA55: 0.5102569101 | AB55: 0.3216375665 | AC55: 0.2947652128 | AD55: 0.2224331127 | AE55: 0.3439435931 | AF55: 0.3775130679 | AG55: 0.457513899 | AH55: 0.407718909 | AI55: 0.3006809365 | AJ55: 0.2680746665 | AK55: 0.551156008 | AL55: 0.336721806 | AM55: 0.2595572192 | AN55: 0.4909643864 | AO55: 0.4220487878 | AP55: 0.3032968985 | AQ55: 0.3939877471 | AR55: 0.2514548494 | AS55: 0.4157932487 | AT55: 0.2647267098 | AU55: 0.3464875251 | AV55: 0.394162191 | AW55: 0.3101500435 | AX55: 0.2930125233 | AY55: 0.4194176549 | AZ55: 0.2973533008 | BA55: 0.2822977362 | BB55: 0.3028098291 | BC55: 0.4821448095 | BD55: 0.2311065747 | BE55: 0.4993079137 | BF55: 0.2955296596 | BG55: 0.3976865806 | BH55: 0.2826993489 | BI55: 0.3009684997 | BJ55: 0.4407115915 | BK55: 0.4012794156 | BL55: 0.3051657845 | BM55: 0.2773393485 | BN55: 0.3921040249 | BO55: 0.3240637882 | BP55: 0.3110262044 | BQ55: 0.3297206864 | BR55: 0.3319036554 | BS55: 0.2741400025 | BT55: 0.3080480634 | BU55: 0.4814182848 | BV55: 0.2771471943 | BW55: 0.268859694 | BX55: 0.3409843927 | BY55: 0.3448751328 | BZ55: 0.4040748166 | CA55: 0.3053116505 | CB55: 0.257892308 | CC55: 0.4473702913 | CD55: 0.4161580079 | CE55: 0.3809894388 | CF55: 0.374855106 | CG55: 0.4547063637 | CH55: 0.3567978624 | CI55: 0.3428557659 | CJ55: 0.4005174315 | CK55: 0.357999889 | CL55: 0.4373607126 | CM55: 0.4481464724 | CN55: 0.3332611063 | CO55: 0.2726796547 | CP55: 0.276138902 | CQ55: 0.4450321354 | CR55: 0.5513656955 | CS55: 0.3867960737 | CT55: 0.3370456857 | CU55: 0.5074148333 | CV55: 0.3524370838 | CW55: 0.4477506658 | CY55: =SUM(B55:CW55) -> 35.73719422
A56: PF08125 | B56: 0.3713264328 | C56: 0.3519878694 | D56: 0.4075444063 | E56: 0.4784058009 | F56: 0.313804205 | G56: 0.4426145103 | H56: 0.2599745503 | I56: 0.3452143229 | J56: 0.4673447533 | K56: 0.272930274 | L56: 0.3253237066 | M56: 0.3817960262 | N56: 0.5653233202 | O56: 0.2634091261 | P56: 0.2466012437 | Q56: 0.4114257322 | R56: 0.7421974309 | S56: 0.1767118678 | T56: 0.281691341 | U56: 0.4100299321 | V56: 0.4592994802 | W56: 0.2876158084 | X56: 0.3863815883 | Y56: 0.3525618751 | Z56: 0.5686394427 | AA56: 0.241555738 | AB56: 0.6895397941 | AC56: 0.4900603614 | AD56: 0.4303449364 | AE56: 0.4434091369 | AF56: 0.6681190864 | AG56: 0.2848823286 | AH56: 0.5742777655 | AI56: 0.3782059393 | AJ56: 0.3773690938 | AK56: 0.4542601301 | AL56: 0.2449188238 | AM56: 0.4111195089 | AN56: 0.3154980691 | AO56: 0.411201106 | AP56: 0.4369435404 | AQ56: 0.1984620687 | AR56: 0.3875138019 | AS56: 0.4105349079 | AT56: 0.2792365378 | AU56: 0.2220624696 | AV56: 0.2911379514 | AW56: 0.2365584494 | AX56: 0.3537644933 | AY56: 0.3915904404 | AZ56: 0.24290691 | BA56: 0.2927622143 | BB56: 0.2152760585 | BC56: 0.2669178711 | BD56: 0.5054349825 | BE56: 0.364852273 | BF56: 0.3354760527 | BG56: 0.4211979488 | BH56: 0.3381460737 | BI56: 0.4093761513 | BJ56: 0.2448222321 | BK56: 0.2627625054 | BL56: 0.2433255804 | BM56: 0.2115606836 | BN56: 0.3235823489 | BO56: 0.5948749392 | BP56: 0.1599876505 | BQ56: 0.2528162793 | BR56: 0.4464195887 | BS56: 0.6123982754 | BT56: 0.1481536941 | BU56: 0.3142970132 | BV56: 0.2947640024 | BW56: 0.2417279877 | BX56: 0.3606572086 | BY56: 0.3233220598 | BZ56: 0.2428743004 | CA56: 0.2756310506 | CB56: 0.4038022535 | CC56: 0.3914004902 | CD56: 0.3161226936 | CE56: 0.3365877914 | CF56: 0.4086597427 | CG56: 0.2444694641 | CH56: 0.5221275457 | CI56: 0.2881981819 | CJ56: 0.3850999329 | CK56: 0.2751711678 | CL56: 0.2020433144 | CM56: 0.3105799205 | CN56: 0.3265417919 | CO56: 0.3020357143 | CP56: 0.3296899735 | CQ56: 0.2785455862 | CR56: 0.2986173753 | CS56: 0.2328648879 | CT56: 0.4792000678 | CU56: 0.3511452279 | CV56: 0.3163802898 | CW56: 0.5646502811 | CY56: =SUM(B56:CW56) -> 35.70297916
A57: PF10671 | B57: 0.3301206057 | C57: 0.4260086558 | D57: 0.2545901815 | E57: 0.3343766652 | F57: 0.2997562157 | G57: 0.5500617747 | H57: 0.2538556113 | I57: 0.4857706785 | J57: 0.3030788483 | K57: 0.4167901428 | L57: 0.4264847747 | M57: 0.2191035802 | N57: 0.3502949981 | O57: 0.2399804257 | P57: 0.2610057027 | Q57: 0.4929230986 | R57: 0.2232585079 | S57: 0.354121966 | T57: 0.3887779358 | U57: 0.3765572718 | V57: 0.2996732026 | W57: 0.2812473004 | X57: 0.4462283988 | Y57: 0.4090410393 | Z57: 0.368041605 | AA57: 0.2345713344 | AB57: 0.2607429744 | AC57: 0.2749277577 | AD57: 0.2091923063 | AE57: 0.6215503091 | AF57: 0.3145957952 | AG57: 0.3897848802 | AH57: 0.485657125 | AI57: 0.3986739294 | AJ57: 0.3941536714 | AK57: 0.3947617593 | AL57: 0.4292617409 | AM57: 0.2743635374 | AN57: 0.5715677222 | AO57: 0.3522089856 | AP57: 0.367023312 | AQ57: 0.3133782074 | AR57: 0.4141319609 | AS57: 0.4272195188 | AT57: 0.377209359 | AU57: 0.3813633217 | AV57: 0.3069594038 | AW57: 0.2281005097 | AX57: 0.1649565708 | AY57: 0.3606436768 | AZ57: 0.3282668666 | BA57: 0.4105747952 | BB57: 0.2610415866 | BC57: 0.3870312896 | BD57: 0.3394042562 | BE57: 0.3444146989 | BF57: 0.3150586628 | BG57: 0.3652008762 | BH57: 0.4918490917 | BI57: 0.3685847738 | BJ57: 0.2538933556 | BK57: 0.4042223614 | BL57: 0.3028589789 | BM57: 0.4030089829 | BN57: 0.3123581546 | BO57: 0.3618020136 | BP57: 0.3789322808 | BQ57: 0.2186997416 | BR57: 0.7743555507 | BS57: 0.5916738055 | BT57: 0.455241872 | BU57: 0.2434442897 | BV57: 0.5131337996 | BW57: 0.3467819685 | BX57: 0.3932020817 | BY57: 0.2522669795 | BZ57: 0.3069455505 | CA57: 0.3662996388 | CB57: 0.5120934477 | CC57: 0.4349590757 | CD57: 0.2773102608 | CE57: 0.2921513617 | CF57: 0.3396141255 | CG57: 0.3894922643 | CH57: 0.248701859 | CI57: 0.3351238762 | CJ57: 0.3205609137 | CK57: 0.2783438741 | CL57: 0.5033633246 | CM57: 0.2573854623 | CN57: 0.4078698452 | CO57: 0.2934340342 | CP57: 0.3901238741 | CQ57: 0.365503763 | CR57: 0.2806311276 | CS57: 0.3366026141 | CT57: 0.2695707771 | CU57: 0.2519331804 | CV57: 0.2894121555 | CW57: 0.2779659722 | CY57: =SUM(B57:CW57) -> 35.58084435
A58: PF13337 | B58: 0.3487721708 | C58: 0.253589852 | D58: 0.3463500161 | E58: 0.4557997745 | F58: 0.2172788033 | G58: 0.1296459162 | H58: 0.227128169 | I58: 0.3850468272 | J58: 0.7339502368 | K58: 0.3060838408 | L58: 0.3020453775 | M58: 0.2098199885 | N58: 0.4491405876 | O58: 0.421315874 | P58: 0.3147844219 | Q58: 0.7430918248 | R58: 0.3955157529 | S58: 0.1845944084 | T58: 0.2305485012 | U58: 0.4280545534 | V58: 0.2291514867 | W58: 0.2588215178 | X58: 0.3603514326 | Y58: 0.2092243315 | Z58: 0.3284519402 | AA58: 0.3945624248 | AB58: 0.3027840505 | AC58: 0.4600745054 | AD58: 0.1274853931 | AE58: 0.319851955 | AF58: 0.225567214 | AG58: 0.2158260864 | AH58: 0.2527832151 | AI58: 0.3720092929 | AJ58: 0.3466201722 | AK58: 0.4034402594 | AL58: 0.2750145678 | AM58: 0.3293873439 | AN58: 0.3917188126 | AO58: 0.4149597098 | AP58: 0.2125971975 | AQ58: 0.2777922259 | AR58: 0.2852276111 | AS58: 0.2385185238 | AT58: 0.2598411053 | AU58: 0.3979857511 | AV58: 0.292597541 | AW58: 0.3077135155 | AX58: 0.2855385998 | AY58: 0.3269365064 | AZ58: 0.4491312897 | BA58: 0.5402711716 | BB58: 0.3008802313 | BC58: 0.4216042941 | BD58: 0.3247202893 | BE58: 0.2479169697 | BF58: 0.2833698339 | BG58: 0.3717145632 | BH58: 0.3301806106 | BI58: 0.4009932483 | BJ58: 0.2332374556 | BK58: 0.1595502249 | BL58: 0.6564757322 | BM58: 0.2157568362 | BN58: 0.3086102722 | BO58: 0.5579414919 | BP58: 0.4503918757 | BQ58: 0.5615998688 | BR58: 0.3564442651 | BS58: 0.3899757277 | BT58: 0.3347080346 | BU58: 0.7444917673 | BV58: 0.2461807296 | BW58: 0.4512823528 | BX58: 0.3365867154 | BY58: 0.3597497517 | BZ58: 0.3731574175 | CA58: 0.5989905278 | CB58: 0.8242952782 | CC58: 0.2795587824 | CD58: 0.2349148782 | CE58: 0.4889447989 | CF58: 0.4972885291 | CG58: 0.3638000296 | CH58: 0.656749913 | CI58: 0.3130452491 | CJ58: 0.250934745 | CK58: 0.6635948092 | CL58: 0.1950131983 | CM58: 0.2306308537 | CN58: 0.3968477874 | CO58: 0.3752412742 | CP58: 0.2947220469 | CQ58: 0.4106921492 | CR58: 0.2618545515 | CS58: 0.422354079 | CT58: 0.2643397434 | CU58: 0.2307110007 | CV58: 0.271594658 | CW58: 0.2949388653 | CY58: =SUM(B58:CW58) -> 35.41337196
A59: PF14350 | B59: 0.4712669829 | C59: 0.3587395348 | D59: 0.21414979 | E59: 0.4103996125 | F59: 0.4071063184 | G59: 0.2287309891 | H59: 0.2668868081 | I59: 0.4870369464 | J59: 0.3057015458 | K59: 0.3076541469 | L59: 0.3265299324 | M59: 0.318819177 | N59: 0.2916064329 | O59: 0.3964616931 | P59: 0.2961423917 | Q59: 0.4412075862 | R59: 0.2817603167 | S59: 0.2776400007 | T59: 0.4914473393 | U59: 0.3185012074 | V59: 0.4306369966 | W59: 0.4084031789 | X59: 0.2097828298 | Y59: 0.2583830508 | Z59: 0.3719221146 | AA59: 0.2619378848 | AB59: 0.2025471019 | AC59: 0.4482750728 | AD59: 0.2467634589 | AE59: 0.2379123771 | AF59: 0.2198749721 | AG59: 0.2958308084 | AH59: 0.296651666 | AI59: 0.358532813 | AJ59: 0.2142794666 | AK59: 0.2742492309 | AL59: 0.4909110997 | AM59: 0.4127606719 | AN59: 0.2734802823 | AO59: 0.5773497069 | AP59: 0.4383981014 | AQ59: 0.3343847592 | AR59: 0.4201695412 | AS59: 0.3851635704 | AT59: 0.450907795 | AU59: 0.3523621745 | AV59: 0.3363531552 | AW59: 0.3666437336 | AX59: 0.2391696997 | AY59: 0.3166918702 | AZ59: 0.3033108698 | BA59: 0.3372866452 | BB59: 0.5603279487 | BC59: 0.3966431353 | BD59: 0.4530800248 | BE59: 0.2048563979 | BF59: 0.3219574033 | BG59: 0.7353561139 | BH59: 0.2613625148 | BI59: 0.4552316552 | BJ59: 0.4687760586 | BK59: 0.5106296027 | BL59: 0.3715726122 | BM59: 0.3171132305 | BN59: 0.4172977455 | BO59: 0.3968559771 | BP59: 0.3769599827 | BQ59: 0.624690522 | BR59: 0.2639732922 | BS59: 0.2267185581 | BT59: 0.1940445229 | BU59: 0.6447116528 | BV59: 0.4134017392 | BW59: 0.2459869351 | BX59: 0.376803141 | BY59: 0.501358217 | BZ59: 0.3126695259 | CA59: 0.2507642179 | CB59: 0.5541458781 | CC59: 0.3728302253 | CD59: 0.295124821 | CE59: 0.3051656045 | CF59: 0.4421028709 | CG59: 0.3431627607 | CH59: 0.5553940765 | CI59: 0.3709031124 | CJ59: 0.2872073921 | CK59: 0.3071095665 | CL59: 0.3179932439 | CM59: 0.2374650157 | CN59: 0.4621790358 | CO59: 0.2937430503 | CP59: 0.2774668586 | CQ59: 0.3674053928 | CR59: 0.3068026121 | CS59: 0.2725323266 | CT59: 0.2856195667 | CU59: 0.2097540337 | CV59: 0.235026496 | CW59: 0.2651240211 | CY59: =SUM(B59:CW59) -> 35.33651614
A60: PF09669 | B60: 0.331557913 | C60: 0.3891156332 | D60: 0.5785506888 | E60: 0.3291429522 | F60: 0.4511844505 | G60: 0.4240047943 | H60: 0.2740038744 | I60: 0.3518414857 | J60: 0.3399304523 | K60: 0.3841287257 | L60: 0.3020792958 | M60: 0.2981267949 | N60: 0.4270529342 | O60: 0.2355743502 | P60: 0.3327152324 | Q60: 0.4851436771 | R60: 0.5399098477 | S60: 0.3773485427 | T60: 0.4202108993 | U60: 0.3444351307 | V60: 0.4343712388 | W60: 0.2566810368 | X60: 0.2701561451 | Y60: 0.3688929074 | Z60: 0.2806492727 | AA60: 0.2573975122 | AB60: 0.3154927317 | AC60: 0.3333151588 | AD60: 0.2906229235 | AE60: 0.5593653435 | AF60: 0.4288108057 | AG60: 0.435579632 | AH60: 0.2971367717 | AI60: 0.3140700694 | AJ60: 0.4594495808 | AK60: 0.5379466942 | AL60: 0.3057582186 | AM60: 0.3647533534 | AN60: 0.4173783624 | AO60: 0.4139680086 | AP60: 0.3375913515 | AQ60: 0.2563916543 | AR60: 0.5033784306 | AS60: 0.3173230951 | AT60: 0.3095558117 | AU60: 0.4326930671 | AV60: 0.3662649953 | AW60: 0.3191223986 | AX60: 0.2415743269 | AY60: 0.3151032446 | AZ60: 0.2610318354 | BA60: 0.2843852035 | BB60: 0.2761895617 | BC60: 0.3114190947 | BD60: 0.2818745187 | BE60: 0.3159587391 | BF60: 0.3147708086 | BG60: 0.3423302076 | BH60: 0.4076957515 | BI60: 0.4131744771 | BJ60: 0.3086122114 | BK60: 0.3429631145 | BL60: 0.4553152553 | BM60: 0.3965393677 | BN60: 0.7423363279 | BO60: 0.286362962 | BP60: 0.3193718393 | BQ60: 0.2785014902 | BR60: 0.3366422427 | BS60: 0.2814431307 | BT60: 0.3052045694 | BU60: 0.1947998495 | BV60: 0.3158198914 | BW60: 0.290075378 | BX60: 0.2953217475 | BY60: 0.3011888842 | BZ60: 0.373403362 | CA60: 0.2872606245 | CB60: 0.4494493891 | CC60: 0.3338091834 | CD60: 0.2937582536 | CE60: 0.3109471816 | CF60: 0.4053270798 | CG60: 0.446305606 | CH60: 0.2406203175 | CI60: 0.248630876 | CJ60: 0.4332268895 | CK60: 0.2785655426 | CL60: 0.4628141087 | CM60: 0.4593765299 | CN60: 0.4042828101 | CO60: 0.3371744751 | CP60: 0.288150176 | CQ60: 0.3640035036 | CR60: 0.3822283172 | CS60: 0.3211369625 | CT60: 0.2397706071 | CU60: 0.4285010513 | CV60: 0.2147873521 | CW60: 0.2974356303 | CY60: =SUM(B60:CW60) -> 35.31714611
A61: PF01809 | B61: 0.4836071735 | C61: 0.2960287347 | D61: 0.4254069609 | E61: 0.3785973676 | F61: 0.4923778925 | G61: 0.3821802791 | H61: 0.4037376167 | I61: 0.3817102653 | J61: 0.3313456959 | K61: 0.2785126754 | L61: 0.3562936256 | M61: 0.2222450317 | N61: 0.2339786856 | O61: 0.3625223968 | P61: 0.3433592621 | Q61: 0.3266908578 | R61: 0.3398276495 | S61: 0.2665518126 | T61: 0.3974830085 | U61: 0.1786919861 | V61: 0.3379101314 | W61: 0.2730740147 | X61: 0.3058041794 | Y61: 0.3321300321 | Z61: 0.3490695703 | AA61: 0.305522764 | AB61: 0.386532903 | AC61: 0.4266222837 | AD61: 0.3171125515 | AE61: 0.3532656429 | AF61: 0.4700808717 | AG61: 0.4076208894 | AH61: 0.3190716037 | AI61: 0.4053045913 | AJ61: 0.3692551614 | AK61: 0.3105844623 | AL61: 0.3187688272 | AM61: 0.2686561804 | AN61: 0.417337197 | AO61: 0.3261613736 | AP61: 0.3779027389 | AQ61: 0.2617018552 | AR61: 0.4525148387 | AS61: 0.3517927429 | AT61: 0.5614501318 | AU61: 0.3688956222 | AV61: 0.3159601429 | AW61: 0.3463024843 | AX61: 0.3246389432 | AY61: 0.2306943041 | AZ61: 0.4344012486 | BA61: 0.3372801843 | BB61: 0.3171102495 | BC61: 0.2986721594 | BD61: 0.3288864064 | BE61: 0.4031591454 | BF61: 0.3334174385 | BG61: 0.4125557153 | BH61: 0.4348710834 | BI61: 0.2969209108 | BJ61: 0.3917242373 | BK61: 0.2719337124 | BL61: 0.3345964382 | BM61: 0.3168596244 | BN61: 0.2836579362 | BO61: 0.3928432869 | BP61: 0.3288108531 | BQ61: 0.2379417868 | BR61: 0.2759708705 | BS61: 0.3780506879 | BT61: 0.3080183671 | BU61: 0.3441568282 | BV61: 0.2908172373 | BW61: 0.2080045126 | BX61: 0.2633119067 | BY61: 0.363724502 | BZ61: 0.3745275926 | CA61: 0.1949773545 | CB61: 0.3505788509 | CC61: 0.2610543573 | CD61: 0.4694371542 | CE61: 0.2770754722 | CF61: 0.3223815012 | CG61: 0.4884887323 | CH61: 0.3854908752 | CI61: 0.4852766924 | CJ61: 0.4792169137 | CK61: 0.6015089571 | CL61: 0.3389131086 | CM61: 0.2564843558 | CN61: 0.4300223968 | CO61: 0.4015317083 | CP61: 0.3542336286 | CQ61: 0.3697012094 | CR61: 0.3330436616 | CS61: 0.364296649 | CT61: 0.3436152384 | CU61: 0.5119599102 | CV61: 0.4628344691 | CW61: 0.328476737 | CY61: =SUM(B61:CW61) -> 35.24571287
A62: PF05935 | B62: 0.2686672659 | C62: 0.2683692332 | D62: 0.3863216819 | E62: 0.580217416 | F62: 0.2889673573 | G62: 0.4082316599 | H62: 0.4041219682 | I62: 0.2129904128 | J62: 0.3980247496 | K62: 0.296607156 | L62: 0.383895845 | M62: 0.4092413994 | N62: 0.4487556778 | O62: 0.7218173211 | P62: 0.5307187715 | Q62: 0.3597244571 | R62: 0.6876301591 | S62: 0.2238782456 | T62: 0.2660605093 | U62: 0.3678583904 | V62: 0.5631043229 | W62: 0.2237456002 | X62: 0.3413030274 | Y62: 0.385658441 | Z62: 0.507554692 | AA62: 0.4279084513 | AB62: 0.6292879171 | AC62: 0.3384116399 | AD62: 0.3350664954 | AE62: 0.3550462437 | AF62: 0.2416976606 | AG62: 0.4440144478 | AH62: 0.1748502836 | AI62: 0.5196986628 | AJ62: 0.1589580262 | AK62: 0.2837185989 | AL62: 0.3684611924 | AM62: 0.3242929169 | AN62: 0.5144595445 | AO62: 0.5275323605 | AP62: 0.207784904 | AQ62: 0.5261237832 | AR62: 0.3557676733 | AS62: 0.3880736015 | AT62: 0.2376401455 | AU62: 0.4296668236 | AV62: 0.3818441864 | AW62: 0.305017202 | AX62: 0.306917339 | AY62: 0.4009323183 | AZ62: 0.1923121783 | BA62: 0.3101346871 | BB62: 0.2451536333 | BC62: 0.2336136509 | BD62: 0.344588072 | BE62: 0.3855210874 | BF62: 0.3498039922 | BG62: 0.7046739539 | BH62: 0.212335927 | BI62: 0.2362602808 | BJ62: 0.2537518547 | BK62: 0.2493239571 | BL62: 0.1876032286 | BM62: 0.5032841993 | BN62: 0.4768186741 | BO62: 0.3369408607 | BP62: 0.3049458936 | BQ62: 0.2815786654 | BR62: 0.3017539804 | BS62: 0.3473233788 | BT62: 0.2465643026 | BU62: 0.3592340451 | BV62: 0.3278339861 | BW62: 0.2275365894 | BX62: 0.5410831921 | BY62: 0.4421825094 | BZ62: 0.2649318127 | CA62: 0.2143536638 | CB62: 0.3161662506 | CC62: 0.2313465959 | CD62: 0.3196707732 | CE62: 0.3032646038 | CF62: 0.3971007009 | CG62: 0.3045371459 | CH62: 0.2059737086 | CI62: 0.274692841 | CJ62: 0.2477487744 | CK62: 0.2439196275 | CL62: 0.3907475209 | CM62: 0.3101239378 | CN62: 0.324242937 | CO62: 0.2443567169 | CP62: 0.2484624131 | CQ62: 0.2858027452 | CR62: 0.4756708341 | CS62: 0.3825627957 | CT62: 0.3405022725 | CU62: 0.494080457 | CV62: 0.2687208385 | CW62: 0.3785761731 | CY62: =SUM(B62:CW62) -> 35.1863511
A63: PF14487 | B63: 0.2298186111 | C63: 0.264423657 | D63: 0.2772898391 | E63: 0.4131544303 | F63: 0.3411696878 | G63: 0.4373286671 | H63: 0.2450121355 | I63: 0.2871843528 | J63: 0.3550061903 | K63: 0.2036936019 | L63: 0.1746145322 | M63: 0.3208551781 | N63: 0.3708603376 | O63: 0.5384879746 | P63: 0.3836065118 | Q63: 0.2821881925 | R63: 0.5197029765 | S63: 0.3249689424 | T63: 0.3531624024 | U63: 0.412166621 | V63: 0.2126046726 | W63: 0.4473979233 | X63: 0.3639196897 | Y63: 0.4935341119 | Z63: 0.2771421945 | AA63: 0.3150491009 | AB63: 0.3083239232 | AC63: 0.2618396401 | AD63: 0.5167810972 | AE63: 0.3335556235 | AF63: 0.4947169068 | AG63: 0.2755645164 | AH63: 0.4452947974 | AI63: 0.1819142242 | AJ63: 0.340286091 | AK63: 0.4199266732 | AL63: 0.2503105782 | AM63: 0.3456780153 | AN63: 0.4014732941 | AO63: 0.3569582482 | AP63: 0.3647771518 | AQ63: 0.4648454651 | AR63: 0.4785342162 | AS63: 0.416548457 | AT63: 0.265748278 | AU63: 0.3797506226 | AV63: 0.3630722345 | AW63: 0.317011069 | AX63: 0.1970449098 | AY63: 0.4502066211 | AZ63: 0.2422102438 | BA63: 0.2059718998 | BB63: 0.4098246843 | BC63: 0.3336721366 | BD63: 0.3426492343 | BE63: 0.4205026953 | BF63: 0.4743618081 | BG63: 0.4148488251 | BH63: 0.5435761439 | BI63: 0.2123505761 | BJ63: 0.2674671322 | BK63: 0.4905143538 | BL63: 0.3166132211 | BM63: 0.2124751592 | BN63: 0.3239627784 | BO63: 0.2925901046 | BP63: 0.1536122789 | BQ63: 0.3567109656 | BR63: 0.2804452461 | BS63: 0.3485465616 | BT63: 0.3165464897 | BU63: 0.2848880056 | BV63: 0.3037367658 | BW63: 0.403618888 | BX63: 0.6222428234 | BY63: 0.4345820775 | BZ63: 0.4222112849 | CA63: 0.4257615348 | CB63: 0.2205258303 | CC63: 0.32117881 | CD63: 0.2886707419 | CE63: 0.2842791477 | CF63: 0.5515862317 | CG63: 0.352505486 | CH63: 0.3579990329 | CI63: 0.2697952342 | CJ63: 0.4556558874 | CK63: 0.263903079 | CL63: 0.217119499 | CM63: 0.3047922608 | CN63: 0.57197271 | CO63: 0.5811576775 | CP63: 0.3529856116 | CQ63: 0.3448422849 | CR63: 0.3392288138 | CS63: 0.309626912 | CT63: 0.316085715 | CU63: 0.3437698901 | CV63: 0.2454205817 | CW63: 0.3199627269 | CY63: =SUM(B63:CW63) -> 34.94406327
A64: PF05101 | B64: 0.3558013555 | C64: 0.397003336 | D64: 0.2746535268 | E64: 0.3249699306 | F64: 0.4412554953 | G64: 0.3317087497 | H64: 0.2646314851 | I64: 0.3119640208 | J64: 0.3360258541 | K64: 0.3031303298 | L64: 0.6648268072 | M64: 0.3148396844 | N64: 0.3757931102 | O64: 0.3424200286 | P64: 0.2565620623 | Q64: 0.3816040556 | R64: 0.5269480831 | S64: 0.3838732308 | T64: 0.2692213922 | U64: 0.363935053 | V64: 0.2864863709 | W64: 0.3568901659 | X64: 0.4575922491 | Y64: 0.2954529472 | Z64: 0.3858361852 | AA64: 0.2868700425 | AB64: 0.3403554683 | AC64: 0.310138313 | AD64: 0.3894520481 | AE64: 0.3042767317 | AF64: 0.260889478 | AG64: 0.3070931914 | AH64: 0.3066538644 | AI64: 0.3992102757 | AJ64: 0.3809265432 | AK64: 0.2723710692 | AL64: 0.3624618792 | AM64: 0.4496667202 | AN64: 0.2717008733 | AO64: 0.3935996926 | AP64: 0.4729442474 | AQ64: 0.4111515075 | AR64: 0.3750415068 | AS64: 0.3752251976 | AT64: 0.3155504753 | AU64: 0.2873790554 | AV64: 0.3429924279 | AW64: 0.3795178625 | AX64: 0.2991886143 | AY64: 0.3882207437 | AZ64: 0.3739986854 | BA64: 0.3345217744 | BB64: 0.3579948132 | BC64: 0.3379129603 | BD64: 0.3028033745 | BE64: 0.3441064968 | BF64: 0.332319163 | BG64: 0.41908644 | BH64: 0.4155535608 | BI64: 0.2614116186 | BJ64: 0.2540342957 | BK64: 0.4067855756 | BL64: 0.3132274247 | BM64: 0.4224619402 | BN64: 0.3097266963 | BO64: 0.4999683803 | BP64: 0.4455272907 | BQ64: 0.4373247709 | BR64: 0.4147080448 | BS64: 0.2561378499 | BT64: 0.2086487327 | BU64: 0.400900659 | BV64: 0.2613779509 | BW64: 0.2544032602 | BX64: 0.3312448821 | BY64: 0.3422576295 | BZ64: 0.4406655675 | CA64: 0.4398680576 | CB64: 0.3342073002 | CC64: 0.2641659347 | CD64: 0.266848429 | CE64: 0.4268258197 | CF64: 0.3336616294 | CG64: 0.3890958086 | CH64: 0.3598152126 | CI64: 0.3215707455 | CJ64: 0.3658017354 | CK64: 0.2589519003 | CL64: 0.300136656 | CM64: 0.255081233 | CN64: 0.3476433409 | CO64: 0.3091914127 | CP64: 0.3047925205 | CQ64: 0.3464720081 | CR64: 0.3797595499 | CS64: 0.3438893491 | CT64: 0.3889139793 | CU64: 0.2997803791 | CV64: 0.3768511271 | CW64: 0.3575160549 | CY64: =SUM(B64:CW64) -> 34.93625336
A65: PF02924 | B65: 0.2292519199 | C65: 0.288845175 | D65: 0.4436835264 | E65: 0.3776176233 | F65: 0.3414025638 | G65: 0.4844082467 | H65: 0.2568644336 | I65: 0.2534955415 | J65: 0.4270235806 | K65: 0.4161858955 | L65: 0.2989050103 | M65: 0.3842292474 | N65: 0.3214707258 | O65: 0.2274935886 | P65: 0.3474555086 | Q65: 0.4808332449 | R65: 0.467777131 | S65: 0.2847391791 | T65: 0.4537846664 | U65: 0.2660508079 | V65: 0.2092234174 | W65: 0.2452044117 | X65: 0.3009799115 | Y65: 0.4462480497 | Z65: 0.3506032102 | AA65: 0.3830244016 | AB65: 0.4450485204 | AC65: 0.2332920204 | AD65: 0.3025157255 | AE65: 0.4202780747 | AF65: 0.3254026269 | AG65: 0.3704113309 | AH65: 0.4019138478 | AI65: 0.3121502563 | AJ65: 0.3390189895 | AK65: 0.2602772635 | AL65: 0.3398331872 | AM65: 0.2616712356 | AN65: 0.2982326867 | AO65: 0.4770027863 | AP65: 0.4351272397 | AQ65: 0.2522679018 | AR65: 0.2366437001 | AS65: 0.3315285276 | AT65: 0.291644579 | AU65: 0.3387958825 | AV65: 0.2780349526 | AW65: 0.3340788695 | AX65: 0.3223149851 | AY65: 0.3607111708 | AZ65: 0.3388183035 | BA65: 0.3442580747 | BB65: 0.3135688477 | BC65: 0.4127543843 | BD65: 0.2742984745 | BE65: 0.3756187207 | BF65: 0.2475898032 | BG65: 0.2360577001 | BH65: 0.2932835248 | BI65: 0.3319224038 | BJ65: 0.2918371025 | BK65: 0.28578333 | BL65: 0.3376479209 | BM65: 0.3299860288 | BN65: 0.2656120892 | BO65: 0.3314072976 | BP65: 0.5158685213 | BQ65: 0.3843800321 | BR65: 0.3247345354 | BS65: 0.3548141814 | BT65: 0.6290810266 | BU65: 0.3671162827 | BV65: 0.5859960291 | BW65: 0.3554802306 | BX65: 0.2523477545 | BY65: 0.3847068399 | BZ65: 0.3302824972 | CA65: 0.4918124186 | CB65: 0.2776381777 | CC65: 0.3992997424 | CD65: 0.4274163643 | CE65: 0.3644226462 | CF65: 0.2663636363 | CG65: 0.3985548495 | CH65: 0.3249080464 | CI65: 0.3201232386 | CJ65: 0.3090105362 | CK65: 0.2592509169 | CL65: 0.2370255335 | CM65: 0.2952450702 | CN65: 0.4000862238 | CO65: 0.3408454153 | CP65: 0.4340258474 | CQ65: 0.3186211508 | CR65: 0.4239889164 | CS65: 0.2341319392 | CT65: 0.3023420802 | CU65: 0.480598037 | CV65: 0.4200261505 | CW65: 0.7157556127 | CY65: =SUM(B65:CW65) -> 34.89174187
A66: PF04313 | B66: 0.3241876489 | C66: 0.2808404605 | D66: 0.2583303427 | E66: 0.2962331675 | F66: 0.3357502175 | G66: 0.380832262 | H66: 0.375838554 | I66: 0.4205033126 | J66: 0.3723753617 | K66: 0.3551396742 | L66: 0.2735259929 | M66: 0.3550384332 | N66: 0.3386749079 | O66: 0.2555754688 | P66: 0.278944083 | Q66: 0.3248783171 | R66: 0.2539295879 | S66: 0.3452509816 | T66: 0.4695523117 | U66: 0.4902507783 | V66: 0.2704896258 | W66: 0.3054235532 | X66: 0.3596854231 | Y66: 0.3175089468 | Z66: 0.3265046305 | AA66: 0.2964344907 | AB66: 0.368516923 | AC66: 0.3328009089 | AD66: 0.3356252653 | AE66: 0.4407588964 | AF66: 0.3537734617 | AG66: 0.3077184437 | AH66: 0.3893091432 | AI66: 0.3839766294 | AJ66: 0.4277252063 | AK66: 0.3429829641 | AL66: 0.2447590001 | AM66: 0.4115177665 | AN66: 0.3347068288 | AO66: 0.267003999 | AP66: 0.3993582758 | AQ66: 0.2337750377 | AR66: 0.3955395909 | AS66: 0.348169592 | AT66: 0.3971203898 | AU66: 0.3367863799 | AV66: 0.4058547164 | AW66: 0.2841205804 | AX66: 0.3322190122 | AY66: 0.3140620764 | AZ66: 0.3372269382 | BA66: 0.4309859495 | BB66: 0.3344582376 | BC66: 0.3689362235 | BD66: 0.471456945 | BE66: 0.3811028128 | BF66: 0.3256421189 | BG66: 0.4533827098 | BH66: 0.4991684881 | BI66: 0.3029571415 | BJ66: 0.3822788407 | BK66: 0.4314886496 | BL66: 0.3089485398 | BM66: 0.2661609659 | BN66: 0.2530179266 | BO66: 0.3292413649 | BP66: 0.3942196571 | BQ66: 0.3227588032 | BR66: 0.307294282 | BS66: 0.3027429516 | BT66: 0.412702056 | BU66: 0.5082023643 | BV66: 0.3107003568 | BW66: 0.309290626 | BX66: 0.3940173951 | BY66: 0.292625506 | BZ66: 0.3120380014 | CA66: 0.3502621762 | CB66: 0.2788430751 | CC66: 0.2752648946 | CD66: 0.3667806311 | CE66: 0.2838763361 | CF66: 0.2712820863 | CG66: 0.3949105574 | CH66: 0.3285859744 | CI66: 0.3693333013 | CJ66: 0.3271000073 | CK66: 0.3625341169 | CL66: 0.4253863518 | CM66: 0.4265296993 | CN66: 0.3294414584 | CO66: 0.4160083998 | CP66: 0.3551359325 | CQ66: 0.3691542002 | CR66: 0.321214101 | CS66: 0.4097093799 | CT66: 0.3380808452 | CU66: 0.3470758667 | CV66: 0.3248401125 | CW66: 0.2873897126 | CY66: =SUM(B66:CW66) -> 34.75166469
A67: PF08805 | B67: 0.3480028864 | C67: 0.3858230376 | D67: 0.4280077224 | E67: 0.3049138939 | F67: 0.2716856474 | G67: 0.412548404 | H67: 0.2475773445 | I67: 0.4053474137 | J67: 0.291854706 | K67: 0.2578545217 | L67: 0.3292477739 | M67: 0.2868850557 | N67: 0.2930696237 | O67: 0.2293900862 | P67: 0.2706433705 | Q67: 0.4787949885 | R67: 0.2166860704 | S67: 0.2700524285 | T67: 0.4300873492 | U67: 0.3327655738 | V67: 0.3543285982 | W67: 0.4991336742 | X67: 0.4037420186 | Y67: 0.4171803686 | Z67: 0.2593193673 | AA67: 0.195790514 | AB67: 0.3133581191 | AC67: 0.4209245525 | AD67: 0.3253244306 | AE67: 0.7576804896 | AF67: 0.3816742499 | AG67: 0.2121607317 | AH67: 0.3233574076 | AI67: 0.3022488596 | AJ67: 0.3536543707 | AK67: 0.4340169504 | AL67: 0.3229730028 | AM67: 0.2753088909 | AN67: 0.4016381817 | AO67: 0.3084814182 | AP67: 0.3974934505 | AQ67: 0.3054165603 | AR67: 0.2778568348 | AS67: 0.3118036728 | AT67: 0.2748849636 | AU67: 0.2579216844 | AV67: 0.4006904386 | AW67: 0.2915864434 | AX67: 0.2380697709 | AY67: 0.3115107256 | AZ67: 0.3379848624 | BA67: 0.4104802825 | BB67: 0.212246089 | BC67: 0.3615798548 | BD67: 0.4560888061 | BE67: 0.3901167101 | BF67: 0.3639663566 | BG67: 0.2207209648 | BH67: 0.3635972334 | BI67: 0.2896058304 | BJ67: 0.243176106 | BK67: 0.358023712 | BL67: 0.3472642135 | BM67: 0.5234046518 | BN67: 0.3985694885 | BO67: 0.4093640548 | BP67: 0.3402780648 | BQ67: 0.2537468287 | BR67: 0.4928434886 | BS67: 0.4935853026 | BT67: 0.4542273472 | BU67: 0.2274992125 | BV67: 0.707997808 | BW67: 0.365439302 | BX67: 0.2707877655 | BY67: 0.4047881518 | BZ67: 0.283376177 | CA67: 0.3680286148 | CB67: 0.342362614 | CC67: 0.3388562514 | CD67: 0.3203964996 | CE67: 0.2982068738 | CF67: 0.4171982967 | CG67: 0.3807227171 | CH67: 0.3039606563 | CI67: 0.3022364218 | CJ67: 0.3330566588 | CK67: 0.340478177 | CL67: 0.3354553752 | CM67: 0.2769480269 | CN67: 0.4113567851 | CO67: 0.351245901 | CP67: 0.2724495845 | CQ67: 0.4141110014 | CR67: 0.3116536779 | CS67: 0.3730046114 | CT67: 0.4072504621 | CU67: 0.2886880884 | CV67: 0.3247066416 | CW67: 0.3808630729 | CY67: =SUM(B67:CW67) -> 34.69476431
A68: PF15970 | B68: 0.3899862412 | C68: 0.6960940186 | D68: 0.295444381 | E68: 0.4266629015 | F68: 0.2857575915 | G68: 0.2390048531 | H68: 0.2830633526 | I68: 0.3766844657 | J68: 0.2915698883 | K68: 0.1950615101 | L68: 0.4053176169 | M68: 0.3359918064 | N68: 0.5707059636 | O68: 0.2315460912 | P68: 0.3118982695 | Q68: 0.2233020862 | R68: 0.4864399124 | S68: 0.3131379547 | T68: 0.2967583047 | U68: 0.227623621 | V68: 0.3376011063 | W68: 0.4608983109 | X68: 0.2748301423 | Y68: 0.2001205769 | Z68: 0.3066669747 | AA68: 0.2163495001 | AB68: 0.2672483497 | AC68: 0.4304996444 | AD68: 0.3541146259 | AE68: 0.2675127997 | AF68: 0.5162317181 | AG68: 0.3111059304 | AH68: 0.2587385916 | AI68: 0.3403253872 | AJ68: 0.3966391931 | AK68: 0.756261466 | AL68: 0.2339502112 | AM68: 0.2577413743 | AN68: 0.2752428697 | AO68: 0.2620507253 | AP68: 0.3539580676 | AQ68: 0.1739119553 | AR68: 0.3180208412 | AS68: 0.2757779403 | AT68: 0.290518647 | AU68: 0.2690588729 | AV68: 0.4248235618 | AW68: 0.4714792262 | AX68: 0.2099387481 | AY68: 0.8154487772 | AZ68: 0.2055748265 | BA68: 0.583236307 | BB68: 0.2960050183 | BC68: 0.4687397843 | BD68: 0.2820695844 | BE68: 0.2861303243 | BF68: 0.2498229762 | BG68: 0.2504461646 | BH68: 0.3435456086 | BI68: 0.2718576916 | BJ68: 0.2833133405 | BK68: 0.2025682968 | BL68: 0.3414319905 | BM68: 0.20344991 | BN68: 0.4061261974 | BO68: 0.4236632544 | BP68: 0.3082953858 | BQ68: 0.2244151936 | BR68: 0.648050173 | BS68: 0.4548692639 | BT68: 0.5912340634 | BU68: 0.4430896662 | BV68: 0.271452895 | BW68: 0.239920412 | BX68: 0.3064550902 | BY68: 0.3986898831 | BZ68: 0.6977092427 | CA68: 0.255045571 | CB68: 0.4117763907 | CC68: 0.3801711385 | CD68: 0.2710431896 | CE68: 0.3075924499 | CF68: 0.3057396165 | CG68: 0.2071696471 | CH68: 0.2204547272 | CI68: 0.5085559288 | CJ68: 0.3062957723 | CK68: 0.4910793349 | CL68: 0.2012810404 | CM68: 0.5296118245 | CN68: 0.306251225 | CO68: 0.2772658179 | CP68: 0.1287575788 | CQ68: 0.6457613428 | CR68: 0.3011210573 | CS68: 0.5060142535 | CT68: 0.3944122814 | CU68: 0.2419131068 | CV68: 0.2721818795 | CW68: 0.3201839124 | CY68: =SUM(B68:CW68) -> 34.6809586
A69: PF07510 | B69: 0.3801605609 | C69: 0.3296983836 | D69: 0.5363571034 | E69: 0.4034874916 | F69: 0.3184376163 | G69: 0.2664037081 | H69: 0.3211738133 | I69: 0.3040492192 | J69: 0.6307658364 | K69: 0.2729707805 | L69: 0.2736903704 | M69: 0.2628022977 | N69: 0.2446810172 | O69: 0.4498025647 | P69: 0.3644019297 | Q69: 0.3529668547 | R69: 0.4614900359 | S69: 0.4813762308 | T69: 0.4803960293 | U69: 0.2369856818 | V69: 0.3060269358 | W69: 0.3703978013 | X69: 0.2800801138 | Y69: 0.4005655797 | Z69: 0.245820373 | AA69: 0.2713691691 | AB69: 0.3424984836 | AC69: 0.4109034647 | AD69: 0.3372287476 | AE69: 0.4542516397 | AF69: 0.2922367579 | AG69: 0.1857831782 | AH69: 0.290108467 | AI69: 0.293603443 | AJ69: 0.5107405872 | AK69: 0.2714345764 | AL69: 0.2632551718 | AM69: 0.2703295407 | AN69: 0.4375335558 | AO69: 0.2859700859 | AP69: 0.3019272785 | AQ69: 0.5345897056 | AR69: 0.3566176706 | AS69: 0.3511551021 | AT69: 0.2750732364 | AU69: 0.3124616628 | AV69: 0.2771011903 | AW69: 0.3062513319 | AX69: 0.3651423924 | AY69: 0.3088896944 | AZ69: 0.2890875318 | BA69: 0.354181076 | BB69: 0.3305926359 | BC69: 0.3655018892 | BD69: 0.3344786228 | BE69: 0.3280713638 | BF69: 0.3657448516 | BG69: 0.3631157108 | BH69: 0.2761604483 | BI69: 0.4663377894 | BJ69: 0.37526086 | BK69: 0.271479546 | BL69: 0.4504503617 | BM69: 0.344353292 | BN69: 0.2640922309 | BO69: 0.3807743908 | BP69: 0.4473330884 | BQ69: 0.540969307 | BR69: 0.3453624284 | BS69: 0.4276235479 | BT69: 0.2038822262 | BU69: 0.3455216498 | BV69: 0.2861460423 | BW69: 0.2767883339 | BX69: 0.3219149023 | BY69: 0.337329579 | BZ69: 0.3466930382 | CA69: 0.3430662185 | CB69: 0.3580181366 | CC69: 0.3708145372 | CD69: 0.3479237151 | CE69: 0.3427285002 | CF69: 0.3371772713 | CG69: 0.4650202135 | CH69: 0.4223994521 | CI69: 0.1936506981 | CJ69: 0.3639190289 | CK69: 0.4347878184 | CL69: 0.2809831465 | CM69: 0.2447314134 | CN69: 0.4767933003 | CO69: 0.3620809874 | CP69: 0.2822655359 | CQ69: 0.4285593041 | CR69: 0.3657239855 | CS69: 0.3760654288 | CT69: 0.2182286161 | CU69: 0.2981513117 | CV69: 0.3256257966 | CW69: 0.2549970349 | CY69: =SUM(B69:CW69) -> 34.61440266
A70: PF03235 | B70: 0.2398678836 | C70: 0.3669563185 | D70: 0.3555228251 | E70: 0.2329820855 | F70: 0.4240548309 | G70: 0.2374750371 | H70: 0.2885890154 | I70: 0.2990919781 | J70: 0.4943654623 | K70: 0.2712004036 | L70: 0.2918980603 | M70: 0.3325486516 | N70: 0.2423021986 | O70: 0.4625681573 | P70: 0.4009221303 | Q70: 0.3292288804 | R70: 0.3401100273 | S70: 0.6244913203 | T70: 0.2255064577 | U70: 0.2877750874 | V70: 0.3104193118 | W70: 0.3205710411 | X70: 0.27195368 | Y70: 0.2790896948 | Z70: 0.3439937901 | AA70: 0.3676778637 | AB70: 0.3923736219 | AC70: 0.35222496 | AD70: 0.339946486 | AE70: 0.2525582705 | AF70: 0.3308167087 | AG70: 0.3474530659 | AH70: 0.2768193157 | AI70: 0.4351018462 | AJ70: 0.3228041623 | AK70: 0.3380365392 | AL70: 0.2758390329 | AM70: 0.3731807666 | AN70: 0.5003520534 | AO70: 0.4406563216 | AP70: 0.3821942585 | AQ70: 0.3455750808 | AR70: 0.2738350545 | AS70: 0.3898662951 | AT70: 0.2930370972 | AU70: 0.2459256344 | AV70: 0.3605039195 | AW70: 0.3931528731 | AX70: 0.3703893488 | AY70: 0.2864932199 | AZ70: 0.3386409226 | BA70: 0.2547410555 | BB70: 0.2834998609 | BC70: 0.3219897755 | BD70: 0.383534103 | BE70: 0.2488568031 | BF70: 0.4095234129 | BG70: 0.2781511984 | BH70: 0.3191642662 | BI70: 0.32997272 | BJ70: 0.4575547543 | BK70: 0.231660565 | BL70: 0.3145443901 | BM70: 0.4128760205 | BN70: 0.3371370187 | BO70: 0.3970709658 | BP70: 0.4214381204 | BQ70: 0.6391732219 | BR70: 0.2919559808 | BS70: 0.3146244665 | BT70: 0.3982276303 | BU70: 0.1931311681 | BV70: 0.29695984 | BW70: 0.2500031454 | BX70: 0.3148004766 | BY70: 0.4872630861 | BZ70: 0.3059823223 | CA70: 0.3802237122 | CB70: 0.2933127295 | CC70: 0.3134881693 | CD70: 0.5360938993 | CE70: 0.4650148555 | CF70: 0.3764334611 | CG70: 0.3788580429 | CH70: 0.4227031762 | CI70: 0.3420213275 | CJ70: 0.2633905518 | CK70: 0.364626448 | CL70: 0.2334838112 | CM70: 0.313237094 | CN70: 0.3397289031 | CO70: 0.4581064702 | CP70: 0.3724731986 | CQ70: 0.4413891971 | CR70: 0.2714119311 | CS70: 0.2375171667 | CT70: 0.3292639991 | CU70: 0.3804375111 | CV70: 0.4013500808 | CW70: 0.2966212432 | CY70: =SUM(B70:CW70) -> 34.4039624
A71: PF13555 | B71: 0.321873836 | C71: 0.2568534549 | D71: 0.2796725054 | E71: 0.4152719476 | F71: 0.2581190164 | G71: 0.5657116341 | H71: 0.4230632312 | I71: 0.3623906079 | J71: 0.2451508751 | K71: 0.3463721948 | L71: 0.3254648325 | M71: 0.3778195756 | N71: 0.2630736321 | O71: 0.3315735437 | P71: 0.4765071905 | Q71: 0.3537954614 | R71: 0.3614466361 | S71: 0.2232821112 | T71: 0.301209427 | U71: 0.3164788079 | V71: 0.2861661783 | W71: 0.2744491117 | X71: 0.2769580134 | Y71: 0.365572543 | Z71: 0.5364730862 | AA71: 0.3466847988 | AB71: 0.3395182461 | AC71: 0.2839604728 | AD71: 0.3331236868 | AE71: 0.3235120902 | AF71: 0.2970489483 | AG71: 0.2931010094 | AH71: 0.3027726296 | AI71: 0.2785304257 | AJ71: 0.3079581784 | AK71: 0.2974744825 | AL71: 0.2783365622 | AM71: 0.4867697313 | AN71: 0.4613489759 | AO71: 0.3100286635 | AP71: 0.3965187357 | AQ71: 0.4894871127 | AR71: 0.4752991531 | AS71: 0.3503885157 | AT71: 0.2758813879 | AU71: 0.6633004474 | AV71: 0.3145198699 | AW71: 0.2647733571 | AX71: 0.3082722991 | AY71: 0.2933723289 | AZ71: 0.2795173324 | BA71: 0.3084125971 | BB71: 0.3436674949 | BC71: 0.3284307316 | BD71: 0.2928323625 | BE71: 0.2416301516 | BF71: 0.2964168469 | BG71: 0.365325277 | BH71: 0.3907794559 | BI71: 0.2187414516 | BJ71: 0.4941815387 | BK71: 0.2313962747 | BL71: 0.3578542348 | BM71: 0.4655266515 | BN71: 0.2871269043 | BO71: 0.4845665816 | BP71: 0.268207038 | BQ71: 0.3500782789 | BR71: 0.3181782338 | BS71: 0.488103889 | BT71: 0.3393663947 | BU71: 0.318489032 | BV71: 0.2398117232 | BW71: 0.3494923066 | BX71: 0.3430368772 | BY71: 0.4175901451 | BZ71: 0.2913304343 | CA71: 0.3538547535 | CB71: 0.3045705342 | CC71: 0.3387238677 | CD71: 0.3953311937 | CE71: 0.2701702775 | CF71: 0.256996442 | CG71: 0.3439228516 | CH71: 0.3973304151 | CI71: 0.3181830234 | CJ71: 0.329273713 | CK71: 0.2676072341 | CL71: 0.2920323557 | CM71: 0.2439065594 | CN71: 0.23873089 | CO71: 0.3626086115 | CP71: 0.4135937135 | CQ71: 0.2622514778 | CR71: 0.2987930033 | CS71: 0.301412984 | CT71: 0.5188108181 | CU71: 0.3551889405 | CV71: 0.2962127632 | CW71: 0.2806458081 | CY71: =SUM(B71:CW71) -> 33.86697403
A72: PF13245 | B72: 0.673021913 | C72: 0.6637928719 | D72: 0.2609234685 | E72: 0.3294409828 | F72: 0.4159873386 | G72: 0.2207655135 | H72: 0.2524146549 | I72: 0.4848253011 | J72: 0.4071831538 | K72: 0.345876292 | L72: 0.5179597339 | M72: 0.4286450822 | N72: 0.4381868005 | O72: 0.3604899807 | P72: 0.2410243918 | Q72: 0.314044299 | R72: 0.2849331121 | S72: 0.2800141114 | T72: 0.5102298956 | U72: 0.2569919974 | V72: 0.2388853 | W72: 0.3240833715 | X72: 0.2985409163 | Y72: 0.2816422923 | Z72: 0.2320073873 | AA72: 0.2915958051 | AB72: 0.2128530655 | AC72: 0.3301631586 | AD72: 0.3194033344 | AE72: 0.3231681813 | AF72: 0.2216130951 | AG72: 0.2348365973 | AH72: 0.3623328402 | AI72: 0.3247668615 | AJ72: 0.2450176939 | AK72: 0.4986687161 | AL72: 0.4828634537 | AM72: 0.2643725338 | AN72: 0.3859246898 | AO72: 0.2270280411 | AP72: 0.5105809843 | AQ72: 0.2811001107 | AR72: 0.2905635127 | AS72: 0.3928500711 | AT72: 0.2514934385 | AU72: 0.3264883028 | AV72: 0.4178008313 | AW72: 0.2234626104 | AX72: 0.3436339684 | AY72: 0.4322819328 | AZ72: 0.5023536547 | BA72: 0.3526401408 | BB72: 0.2836293416 | BC72: 0.2660718052 | BD72: 0.3728931537 | BE72: 0.2717415602 | BF72: 0.2817934152 | BG72: 0.3121953466 | BH72: 0.3828808446 | BI72: 0.2796001966 | BJ72: 0.3373364552 | BK72: 0.3130969191 | BL72: 0.2881171135 | BM72: 0.2661014555 | BN72: 0.354347616 | BO72: 0.466395859 | BP72: 0.2341142296 | BQ72: 0.2627103293 | BR72: 0.4770011186 | BS72: 0.4664862325 | BT72: 0.3133737694 | BU72: 0.1333414123 | BV72: 0.3452405917 | BW72: 0.4563224509 | BX72: 0.1706278131 | BY72: 0.2869045379 | BZ72: 0.2631422205 | CA72: 0.319955516 | CB72: 0.3168790981 | CC72: 0.3389001914 | CD72: 0.2586193332 | CE72: 0.3769856717 | CF72: 0.5348549194 | CG72: 0.2410369324 | CH72: 0.3612898766 | CI72: 0.3459325633 | CJ72: 0.2194318807 | CK72: 0.2680622736 | CL72: 0.4108560546 | CM72: 0.2686668671 | CN72: 0.4028145903 | CO72: 0.2972379757 | CP72: 0.3027273866 | CQ72: 0.3488398165 | CR72: 0.3070269432 | CS72: 0.383363437 | CT72: 0.2494690959 | CU72: 0.3147897955 | CV72: 0.3207185251 | CW72: 0.5698319463 | CY72: =SUM(B72:CW72) -> 33.75552427
A73: PF13007 | B73: 0.3623189122 | C73: 0.3763473626 | D73: 0.3997655221 | E73: 0.3299153084 | F73: 0.4448732742 | G73: 0.4513367885 | H73: 0.3355015449 | I73: 0.3419473104 | J73: 0.232760049 | K73: 0.3693750003 | L73: 0.2407146727 | M73: 0.3191650119 | N73: 0.3959888506 | O73: 0.2759870512 | P73: 0.211877853 | Q73: 0.2640996844 | R73: 0.3035956336 | S73: 0.307651005 | T73: 0.2951099617 | U73: 0.2594069423 | V73: 0.3926489191 | W73: 0.3812025648 | X73: 0.4605584558 | Y73: 0.3803900932 | Z73: 0.40100518 | AA73: 0.2239952061 | AB73: 0.2923400803 | AC73: 0.3284203002 | AD73: 0.2442151049 | AE73: 0.2860801498 | AF73: 0.4374551499 | AG73: 0.5089356463 | AH73: 0.2465536221 | AI73: 0.2507801154 | AJ73: 0.3203602883 | AK73: 0.3589880186 | AL73: 0.425038459 | AM73: 0.401138801 | AN73: 0.3026535085 | AO73: 0.2843080606 | AP73: 0.2971908852 | AQ73: 0.2197713675 | AR73: 0.3710247293 | AS73: 0.3111078051 | AT73: 0.3286485989 | AU73: 0.3692964866 | AV73: 0.2659640167 | AW73: 0.2831547179 | AX73: 0.2496581109 | AY73: 0.2751076623 | AZ73: 0.2526821233 | BA73: 0.2844443857 | BB73: 0.3060110308 | BC73: 0.3537402038 | BD73: 0.3088411032 | BE73: 0.3528585968 | BF73: 0.3616300126 | BG73: 0.3298142624 | BH73: 0.3543513413 | BI73: 0.4051781685 | BJ73: 0.3331508165 | BK73: 0.3745166139 | BL73: 0.3831295378 | BM73: 0.42493823 | BN73: 0.4533363371 | BO73: 0.3916145911 | BP73: 0.3976750425 | BQ73: 0.321536902 | BR73: 0.2431281295 | BS73: 0.3612385366 | BT73: 0.2591149811 | BU73: 0.3294209463 | BV73: 0.3255177466 | BW73: 0.3435082755 | BX73: 0.3491586266 | BY73: 0.3345363374 | BZ73: 0.2440131304 | CA73: 0.2416643188 | CB73: 0.3897994714 | CC73: 0.275006304 | CD73: 0.4021597345 | CE73: 0.2848456356 | CF73: 0.3008494487 | CG73: 0.370635107 | CH73: 0.2856373851 | CI73: 0.3133396134 | CJ73: 0.3648032291 | CK73: 0.3085383763 | CL73: 0.3329723156 | CM73: 0.4367783052 | CN73: 0.4618357559 | CO73: 0.3705882351 | CP73: 0.4240411869 | CQ73: 0.3209570744 | CR73: 0.3737939618 | CS73: 0.359464282 | CT73: 0.3250399865 | CU73: 0.314272174 | CV73: 0.4312927144 | CW73: 0.3353782312 | CY73: =SUM(B73:CW73) -> 33.6185087
A74: PF04917 | B74: 0.2373132395 | C74: 0.3564144365 | D74: 0.3441205372 | E74: 0.2962666357 | F74: 0.4727437627 | G74: 0.3316476196 | H74: 0.2196723173 | I74: 0.3799041647 | J74: 0.2052108158 | K74: 0.3469789556 | L74: 0.5157359545 | M74: 0.1998502932 | N74: 0.4005718409 | O74: 0.2595399107 | P74: 0.2789142671 | Q74: 0.2924546221 | R74: 0.2849791055 | S74: 0.2659280427 | T74: 0.3821348326 | U74: 0.3288439067 | V74: 0.3543264898 | W74: 0.6892378625 | X74: 0.4432830213 | Y74: 0.5021312387 | Z74: 0.2995137904 | AA74: 0.298875854 | AB74: 0.2482990131 | AC74: 0.3890043402 | AD74: 0.3193674055 | AE74: 0.8739708704 | AF74: 0.2933410144 | AG74: 0.2564134577 | AH74: 0.3900490153 | AI74: 0.3132988119 | AJ74: 0.3961571508 | AK74: 0.3910448181 | AL74: 0.3902216215 | AM74: 0.253168973 | AN74: 0.3899209282 | AO74: 0.2479694886 | AP74: 0.3996541105 | AQ74: 0.3311957571 | AR74: 0.3114032127 | AS74: 0.3255886914 | AT74: 0.338245133 | AU74: 0.3138266321 | AV74: 0.4360357155 | AW74: 0.242114524 | AX74: 0.2458587175 | AY74: 0.3348578129 | AZ74: 0.2354556626 | BA74: 0.504327049 | BB74: 0.2720461046 | BC74: 0.2542015615 | BD74: 0.4444642397 | BE74: 0.2307911301 | BF74: 0.3174449189 | BG74: 0.2632365819 | BH74: 0.3349084382 | BI74: 0.2611241842 | BJ74: 0.2831017772 | BK74: 0.2886630571 | BL74: 0.2628942447 | BM74: 0.4377493994 | BN74: 0.2943119889 | BO74: 0.3495445357 | BP74: 0.2964177647 | BQ74: 0.2938802337 | BR74: 0.4623821436 | BS74: 0.3851988325 | BT74: 0.4089358134 | BU74: 0.2598108146 | BV74: 0.3216867817 | BW74: 0.3219647318 | BX74: 0.3042417794 | BY74: 0.2868996357 | BZ74: 0.3323335716 | CA74: 0.2792737554 | CB74: 0.2903621806 | CC74: 0.4623837386 | CD74: 0.4432597551 | CE74: 0.4222227124 | CF74: 0.2479465391 | CG74: 0.3177312195 | CH74: 0.3231097936 | CI74: 0.3235387492 | CJ74: 0.285814738 | CK74: 0.3472813844 | CL74: 0.5215607411 | CM74: 0.3330681544 | CN74: 0.3113804971 | CO74: 0.2145980075 | CP74: 0.1891676231 | CQ74: 0.4213812075 | CR74: 0.2997568188 | CS74: 0.4025296342 | CT74: 0.365726663 | CU74: 0.2091020611 | CV74: 0.2246282707 | CW74: 0.2514143088 | CY74: =SUM(B74:CW74) -> 33.61285626
A75: PF01320 | B75: 0.2203802738 | C75: 0.3859983587 | D75: 0.3954691196 | E75: 0.5814883231 | F75: 0.3313184982 | G75: 0.4004923209 | H75: 0.4459295084 | I75: 0.3425223263 | J75: 0.2975666775 | K75: 0.4938313254 | L75: 0.3570823056 | M75: 0.2422233567 | N75: 0.2362709103 | O75: 0.3646750406 | P75: 0.3449301817 | Q75: 0.3502080646 | R75: 0.2985822039 | S75: 0.3043043142 | T75: 0.2314903509 | U75: 0.3342073204 | V75: 0.2700389282 | W75: 0.2975706219 | X75: 0.2265577302 | Y75: 0.5111000344 | Z75: 0.3052170459 | AA75: 0.307399317 | AB75: 0.2852651693 | AC75: 0.3164283803 | AD75: 0.363645762 | AE75: 0.1870804336 | AF75: 0.2773127577 | AG75: 0.3156993013 | AH75: 0.381556332 | AI75: 0.304000019 | AJ75: 0.2694365752 | AK75: 0.2546002186 | AL75: 0.353402845 | AM75: 0.2597275824 | AN75: 0.3903517611 | AO75: 0.4455948807 | AP75: 0.2508869153 | AQ75: 0.2646900843 | AR75: 0.4095354782 | AS75: 0.2229909225 | AT75: 0.4198248132 | AU75: 0.2546630846 | AV75: 0.3433096718 | AW75: 0.3931674164 | AX75: 0.3218231549 | AY75: 0.2695879911 | AZ75: 0.3033977342 | BA75: 0.2871413393 | BB75: 0.3853074148 | BC75: 0.2913257411 | BD75: 0.2972025706 | BE75: 0.2335155462 | BF75: 0.3995411789 | BG75: 0.5010500011 | BH75: 0.3418931792 | BI75: 0.2206897112 | BJ75: 0.7027187386 | BK75: 0.2771603227 | BL75: 0.1855343842 | BM75: 0.4237262581 | BN75: 0.3091240918 | BO75: 0.273559758 | BP75: 0.2969764763 | BQ75: 0.3365994809 | BR75: 0.4084897656 | BS75: 0.2587352173 | BT75: 0.4015996335 | BU75: 0.2536592182 | BV75: 0.2953684599 | BW75: 0.2345506362 | BX75: 0.7778996306 | BY75: 0.3542892265 | BZ75: 0.4462700009 | CA75: 0.3066341639 | CB75: 0.2837717401 | CC75: 0.3968297244 | CD75: 0.5261572182 | CE75: 0.3000732095 | CF75: 0.3551189645 | CG75: 0.3684894976 | CH75: 0.4134491375 | CI75: 0.3369011793 | CJ75: 0.2154913647 | CK75: 0.2840840677 | CL75: 0.3205685382 | CM75: 0.3874620664 | CN75: 0.4001478435 | CO75: 0.2749295511 | CP75: 0.3552753056 | CQ75: 0.2168983731 | CR75: 0.3646459216 | CS75: 0.2758061273 | CT75: 0.2867366779 | CU75: 0.3308941042 | CV75: 0.3628749702 | CW75: 0.3096009699 | CY75: =SUM(B75:CW75) -> 33.60160244
A76: PF10983 | B76: 0.3194949921 | C76: 0.4856667015 | D76: 0.3046030483 | E76: 0.2264701054 | F76: 0.3045695243 | G76: 0.2927115371 | H76: 0.2333915303 | I76: 0.327922331 | J76: 0.4410004201 | K76: 0.2962842173 | L76: 0.3767848566 | M76: 0.257399689 | N76: 0.2205299256 | O76: 0.2326449597 | P76: 0.3639642746 | Q76: 0.3720827439 | R76: 0.3379874003 | S76: 0.3661964422 | T76: 0.2786779784 | U76: 0.4695515722 | V76: 0.3134630168 | W76: 0.229167712 | X76: 0.1877751238 | Y76: 0.2373678403 | Z76: 0.6255350122 | AA76: 0.3578415472 | AB76: 0.1418750495 | AC76: 0.2257579711 | AD76: 0.5227051223 | AE76: 0.3295229985 | AF76: 0.5696864651 | AG76: 0.3213137552 | AH76: 0.286801276 | AI76: 0.4942232883 | AJ76: 0.3270083197 | AK76: 0.1922497681 | AL76: 0.1977587159 | AM76: 0.2618588217 | AN76: 0.2505034886 | AO76: 0.8308227399 | AP76: 0.4437013949 | AQ76: 0.3039152145 | AR76: 0.1835150797 | AS76: 0.2535097501 | AT76: 0.1808682171 | AU76: 0.4584439916 | AV76: 0.3704284778 | AW76: 0.5080092203 | AX76: 0.2420130847 | AY76: 0.375157814 | AZ76: 0.3310638203 | BA76: 0.2003408739 | BB76: 0.2304879538 | BC76: 0.2912701723 | BD76: 0.2721363464 | BE76: 0.628433399 | BF76: 0.1402744208 | BG76: 0.2051153819 | BH76: 0.2521377038 | BI76: 0.3470689254 | BJ76: 0.3376032319 | BK76: 0.2326271014 | BL76: 0.3126954214 | BM76: 0.1682577583 | BN76: 0.2881134158 | BO76: 0.1907984737 | BP76: 0.4077645889 | BQ76: 0.4967275084 | BR76: 0.200627884 | BS76: 0.4075863825 | BT76: 0.3164635167 | BU76: 0.3385034483 | BV76: 0.4430736983 | BW76: 0.2314082935 | BX76: 0.5845947313 | BY76: 0.6202622184 | BZ76: 0.2107901923 | CA76: 0.2976148622 | CB76: 0.3545136197 | CC76: 0.4801111544 | CD76: 0.3677632023 | CE76: 0.2282570411 | CF76: 0.3615368809 | CG76: 0.2410658095 | CH76: 0.4232203338 | CI76: 0.512974971 | CJ76: 0.3023702201 | CK76: 0.4986403616 | CL76: 0.2940462881 | CM76: 0.2119844537 | CN76: 0.3243863479 | CO76: 0.299870568 | CP76: 0.2029786455 | CQ76: 0.1666557412 | CR76: 0.3545139948 | CS76: 0.6134177596 | CT76: 0.245244745 | CU76: 0.7677129759 | CV76: 0.205748409 | CW76: 0.3229984878 | CY76: =SUM(B76:CW76) -> 33.49458826
A77: PF14424 | B77: 0.3573363006 | C77: 0.2502129754 | D77: 0.5584111446 | E77: 0.4949810835 | F77: 0.441618716 | G77: 0.34238733 | H77: 0.3598050261 | I77: 0.2750552325 | J77: 0.4110446343 | K77: 0.2670952776 | L77: 0.3392807181 | M77: 0.2662725066 | N77: 0.2766924391 | O77: 0.4174835132 | P77: 0.4311577027 | Q77: 0.3248444327 | R77: 0.5100027764 | S77: 0.171385316 | T77: 0.2316721073 | U77: 0.4277622086 | V77: 0.3147242179 | W77: 0.3893130648 | X77: 0.2387677362 | Y77: 0.4192052015 | Z77: 0.3451101569 | AA77: 0.3909189017 | AB77: 0.4664631561 | AC77: 0.2266930996 | AD77: 0.3734216699 | AE77: 0.4355597794 | AF77: 0.3726703395 | AG77: 0.345781393 | AH77: 0.3574266566 | AI77: 0.3795860936 | AJ77: 0.2383062381 | AK77: 0.2414919083 | AL77: 0.2381115687 | AM77: 0.2603289098 | AN77: 0.2397269677 | AO77: 0.3443053858 | AP77: 0.4260042925 | AQ77: 0.4522776779 | AR77: 0.2907323054 | AS77: 0.2612987614 | AT77: 0.3754235019 | AU77: 0.2886234784 | AV77: 0.2548474143 | AW77: 0.2581146113 | AX77: 0.2843317244 | AY77: 0.4159641191 | AZ77: 0.3750521602 | BA77: 0.2895657843 | BB77: 0.2202308884 | BC77: 0.50132994 | BD77: 0.1936093073 | BE77: 0.2514050216 | BF77: 0.6582537941 | BG77: 0.3017492109 | BH77: 0.2357579483 | BI77: 0.2252881991 | BJ77: 0.4072722953 | BK77: 0.2700777702 | BL77: 0.2977539938 | BM77: 0.248270218 | BN77: 0.1834747755 | BO77: 0.1791545396 | BP77: 0.3361637928 | BQ77: 0.2748910764 | BR77: 0.3991043893 | BS77: 0.4066374994 | BT77: 0.4137185439 | BU77: 0.3789815096 | BV77: 0.3506215803 | BW77: 0.3434154137 | BX77: 0.3372699371 | BY77: 0.2891647689 | BZ77: 0.3026195885 | CA77: 0.435603563 | CB77: 0.3510381425 | CC77: 0.4837957368 | CD77: 0.3498885386 | CE77: 0.3602475543 | CF77: 0.3066360474 | CG77: 0.2425336787 | CH77: 0.1489260592 | CI77: 0.2552841008 | CJ77: 0.4210266565 | CK77: 0.1951040982 | CL77: 0.206209596 | CM77: 0.2249816018 | CN77: 0.3364287079 | CO77: 0.3254204934 | CP77: 0.586132457 | CQ77: 0.3076011593 | CR77: 0.2820060385 | CS77: 0.4650358809 | CT77: 0.3969631286 | CU77: 0.3078838496 | CV77: 0.395951807 | CW77: 0.2710011778 | CY77: =SUM(B77:CW77) -> 33.40656579
A78: PF15937 | B78: 0.2603676455 | C78: 0.2804437275 | D78: 0.2760658075 | E78: 0.5093799641 | F78: 0.2873750535 | G78: 0.591507867 | H78: 0.3561052779 | I78: 0.599168171 | J78: 0.2625016549 | K78: 0.1895220921 | L78: 0.2415399508 | M78: 0.5338540939 | N78: 0.1635111956 | O78: 0.4173853561 | P78: 0.3995662078 | Q78: 0.2278685764 | R78: 0.2649253426 | S78: 0.4452729079 | T78: 0.1687931143 | U78: 0.4488692254 | V78: 0.3432151923 | W78: 0.1848673904 | X78: 0.57812274 | Y78: 0.2044482928 | Z78: 0.3866514582 | AA78: 0.2748280566 | AB78: 0.1996238397 | AC78: 0.3594408961 | AD78: 0.3236522796 | AE78: 0.2790976907 | AF78: 0.2865242505 | AG78: 0.6045936472 | AH78: 0.2809002989 | AI78: 0.5566262419 | AJ78: 0.4280867922 | AK78: 0.3100990621 | AL78: 0.2368375542 | AM78: 0.2329958755 | AN78: 0.260965666 | AO78: 0.3044963847 | AP78: 0.2102062649 | AQ78: 0.2714741839 | AR78: 0.4778668991 | AS78: 0.6862048842 | AT78: 0.1921124209 | AU78: 0.2043883587 | AV78: 0.3158710919 | AW78: 0.2693185358 | AX78: 0.2120278308 | AY78: 0.416068328 | AZ78: 0.1442894725 | BA78: 0.2343222783 | BB78: 0.3515829798 | BC78: 0.3099381339 | BD78: 0.2811064069 | BE78: 0.3426521712 | BF78: 0.307522081 | BG78: 0.2350771124 | BH78: 0.4529065815 | BI78: 0.3288743628 | BJ78: 0.3862011992 | BK78: 0.225146525 | BL78: 0.1819315166 | BM78: 0.211624578 | BN78: 0.8530637467 | BO78: 0.4398786833 | BP78: 0.260472392 | BQ78: 0.413518181 | BR78: 0.3761177373 | BS78: 0.2419081928 | BT78: 0.3867948956 | BU78: 0.2758566952 | BV78: 0.4074917274 | BW78: 0.4650425819 | BX78: 0.4073932901 | BY78: 0.4769605475 | BZ78: 0.2906139552 | CA78: 0.3109806181 | CB78: 0.2893925231 | CC78: 0.309337248 | CD78: 0.3399456769 | CE78: 0.3458906024 | CF78: 0.2938732867 | CG78: 0.2868117224 | CH78: 0.2689697554 | CI78: 0.3050452419 | CJ78: 0.5456095235 | CK78: 0.1819736304 | CL78: 0.1788487193 | CM78: 0.2690614945 | CN78: 0.5166183561 | CO78: 0.5069263126 | CP78: 0.2324964147 | CQ78: 0.2754534105 | CR78: 0.1451764621 | CS78: 0.3061187884 | CT78: 0.3293528354 | CU78: 0.2811722475 | CV78: 0.262102492 | CW78: 0.3427064657 | CY78: =SUM(B78:CW78) -> 33.22778749
A79: PF14130 | B79: 0.5547501848 | C79: 0.5449515957 | D79: 0.261893048 | E79: 0.6518790121 | F79: 0.5040420752 | G79: 0.1623092616 | H79: 0.3058701917 | I79: 0.5424299551 | J79: 0.4255426092 | K79: 0.3294287425 | L79: 0.2963035541 | M79: 0.288058267 | N79: 0.2713276389 | O79: 0.352819894 | P79: 0.2767736521 | Q79: 0.4087016112 | R79: 0.2347234973 | S79: 0.2846708744 | T79: 0.4346120391 | U79: 0.2118871206 | V79: 0.3040297706 | W79: 0.1380513733 | X79: 0.2264393666 | Y79: 0.2263061837 | Z79: 0.1988438607 | AA79: 0.2204051333 | AB79: 0.2317240921 | AC79: 0.2984818565 | AD79: 0.1671287772 | AE79: 0.2251127512 | AF79: 0.3830465893 | AG79: 0.151318306 | AH79: 0.3393388306 | AI79: 0.3716970535 | AJ79: 0.3182163035 | AK79: 0.4658409354 | AL79: 0.2710713771 | AM79: 0.3049944494 | AN79: 0.1995197105 | AO79: 0.483901231 | AP79: 0.2781706242 | AQ79: 0.5170606677 | AR79: 0.3634339149 | AS79: 0.285023225 | AT79: 0.2834117339 | AU79: 0.2346138575 | AV79: 0.4888878196 | AW79: 0.3027091018 | AX79: 0.2116152997 | AY79: 0.2862214419 | AZ79: 0.3384106359 | BA79: 0.7465791043 | BB79: 0.5377405547 | BC79: 0.3377615674 | BD79: 0.3621851533 | BE79: 0.2816088212 | BF79: 0.3992313138 | BG79: 0.367168146 | BH79: 0.3422914387 | BI79: 0.4971406065 | BJ79: 0.2321157863 | BK79: 0.2704774394 | BL79: 0.179483015 | BM79: 0.2728456494 | BN79: 0.3744764821 | BO79: 0.3687771174 | BP79: 0.3224301713 | BQ79: 0.3161351572 | BR79: 0.4563104405 | BS79: 0.3310943294 | BT79: 0.1908695057 | BU79: 0.3390471042 | BV79: 0.4333766023 | BW79: 0.2813847627 | BX79: 0.32324075 | BY79: 0.3471225217 | BZ79: 0.3073809889 | CA79: 0.4184839127 | CB79: 0.3016536928 | CC79: 0.2503194934 | CD79: 0.467090019 | CE79: 0.2960952132 | CF79: 0.2817246109 | CG79: 0.3282907684 | CH79: 0.2197368702 | CI79: 0.4987210468 | CJ79: 0.2805388993 | CK79: 0.3719279366 | CL79: 0.2291075795 | CM79: 0.2510583162 | CN79: 0.4104639511 | CO79: 0.3467856812 | CP79: 0.1742889146 | CQ79: 0.4397544862 | CR79: 0.2701008982 | CS79: 0.2556750026 | CT79: 0.368786502 | CU79: 0.3405908631 | CV79: 0.2964535887 | CW79: 0.3136355406 | CY79: =SUM(B79:CW79) -> 33.08755942
A80: PF07419 | B80: 0.2867912722 | C80: 0.3080682156 | D80: 0.3192673921 | E80: 0.3271140156 | F80: 0.2623324629 | G80: 0.4225448281 | H80: 0.2843918465 | I80: 0.4317588947 | J80: 0.1957969365 | K80: 0.2939325153 | L80: 0.3483018292 | M80: 0.2470619324 | N80: 0.3592868403 | O80: 0.2026964827 | P80: 0.2963387042 | Q80: 0.464309007 | R80: 0.4609786175 | S80: 0.2359020393 | T80: 0.4047479908 | U80: 0.2169258468 | V80: 0.3308332732 | W80: 0.5297525158 | X80: 0.4113734698 | Y80: 0.3065509925 | Z80: 0.1607756085 | AA80: 0.2215001982 | AB80: 0.2385471622 | AC80: 0.1910696882 | AD80: 0.2738598067 | AE80: 0.4644127992 | AF80: 0.2759308251 | AG80: 0.293678583 | AH80: 0.4456335866 | AI80: 0.206678994 | AJ80: 0.361758956 | AK80: 0.4063730422 | AL80: 0.3914364393 | AM80: 0.3019071435 | AN80: 0.5147135714 | AO80: 0.3015509362 | AP80: 0.4097539183 | AQ80: 0.230569003 | AR80: 0.3906210774 | AS80: 0.2688798154 | AT80: 0.2732638755 | AU80: 0.3468090082 | AV80: 0.3166101626 | AW80: 0.1967178054 | AX80: 0.3382435953 | AY80: 0.2267246536 | AZ80: 0.2637874747 | BA80: 0.4050452671 | BB80: 0.2297781304 | BC80: 0.3780113683 | BD80: 0.4303812736 | BE80: 0.1936804194 | BF80: 0.3631830179 | BG80: 0.2963116452 | BH80: 0.3484852899 | BI80: 0.4007705472 | BJ80: 0.2487364453 | BK80: 0.3116562521 | BL80: 0.2317211393 | BM80: 0.5413032714 | BN80: 0.3779059771 | BO80: 0.3627757706 | BP80: 0.3643089896 | BQ80: 0.3154528274 | BR80: 0.7142452177 | BS80: 0.4314266317 | BT80: 0.5675314291 | BU80: 0.2176870924 | BV80: 0.3505463979 | BW80: 0.3677476663 | BX80: 0.2369093462 | BY80: 0.3394189253 | BZ80: 0.3090431434 | CA80: 0.2674743517 | CB80: 0.3758530779 | CC80: 0.4942269912 | CD80: 0.2026135223 | CE80: 0.3490613853 | CF80: 0.3328737374 | CG80: 0.2273968063 | CH80: 0.2257113851 | CI80: 0.2843457459 | CJ80: 0.2530058607 | CK80: 0.2748886398 | CL80: 0.4733363015 | CM80: 0.309061221 | CN80: 0.3577434994 | CO80: 0.3276615421 | CP80: 0.2464848851 | CQ80: 0.3341527452 | CR80: 0.2727626498 | CS80: 0.4844035427 | CT80: 0.2977895114 | CU80: 0.3034371918 | CV80: 0.2995541548 | CW80: 0.2896351106 | CY80: =SUM(B80:CW80) -> 32.87640299
A81: PF09448 | B81: 0.2641315092 | C81: 0.2226464648 | D81: 0.5997794173 | E81: 0.2223132852 | F81: 0.281950819 | G81: 0.2686547152 | H81: 0.2747844171 | I81: 0.3357089798 | J81: 0.4023593466 | K81: 0.465690266 | L81: 0.2352310039 | M81: 0.3544651661 | N81: 0.3057177847 | O81: 0.3558627673 | P81: 0.3023314227 | Q81: 0.266597156 | R81: 0.2215780441 | S81: 0.188349279 | T81: 0.3114404953 | U81: 0.3571054304 | V81: 0.5125312225 | W81: 0.4533291575 | X81: 0.3156408119 | Y81: 0.375105601 | Z81: 0.5866730447 | AA81: 0.3466845972 | AB81: 0.1990979129 | AC81: 0.37010548 | AD81: 0.3009590964 | AE81: 0.1499936387 | AF81: 0.3399604508 | AG81: 0.2899333919 | AH81: 0.1666877058 | AI81: 0.27389509 | AJ81: 0.1835618303 | AK81: 0.3293003536 | AL81: 0.3026594924 | AM81: 0.4534255639 | AN81: 0.3709085472 | AO81: 0.4847385746 | AP81: 0.3373876698 | AQ81: 0.2388962524 | AR81: 0.4132695651 | AS81: 0.3185095345 | AT81: 0.2890264211 | AU81: 0.3273453739 | AV81: 0.2629710732 | AW81: 0.3926133351 | AX81: 0.2069101196 | AY81: 0.270462626 | AZ81: 0.2908118079 | BA81: 0.4839940084 | BB81: 0.388975655 | BC81: 0.3324483223 | BD81: 0.4176529698 | BE81: 0.3246147655 | BF81: 0.1942538892 | BG81: 0.404594412 | BH81: 0.4310193752 | BI81: 0.249685763 | BJ81: 0.4797587658 | BK81: 0.3147593808 | BL81: 0.3100579006 | BM81: 0.3522181485 | BN81: 0.3615154054 | BO81: 0.4044561724 | BP81: 0.3273375858 | BQ81: 0.41660805 | BR81: 0.1784008811 | BS81: 0.2431773186 | BT81: 0.2867853873 | BU81: 0.1980552888 | BV81: 0.2183216159 | BW81: 0.432932936 | BX81: 0.3307364752 | BY81: 0.3832234226 | BZ81: 0.41120233 | CA81: 0.3211520685 | CB81: 0.3140424514 | CC81: 0.3454835032 | CD81: 0.205332548 | CE81: 0.4428177671 | CF81: 0.3095795675 | CG81: 0.4713851755 | CH81: 0.2659282421 | CI81: 0.4076301515 | CJ81: 0.3617936024 | CK81: 0.3318066752 | CL81: 0.4768853084 | CM81: 0.3896380159 | CN81: 0.3799995214 | CO81: 0.3095473894 | CP81: 0.3388653581 | CQ81: 0.3326369063 | CR81: 0.4135550167 | CS81: 0.2601981333 | CT81: 0.1346465025 | CU81: 0.191520285 | CV81: 0.3574750426 | CW81: 0.1767845196 | CY81: =SUM(B81:CW81) -> 32.80558309
A82: PF09299 | B82: 0.4006704909 | C82: 0.3710528152 | D82: 0.3564200523 | E82: 0.3558186941 | F82: 0.2955199777 | G82: 0.3773307718 | H82: 0.2762338272 | I82: 0.4420766649 | J82: 0.2464467098 | K82: 0.3985800646 | L82: 0.4310303362 | M82: 0.267237681 | N82: 0.40835763 | O82: 0.300681568 | P82: 0.3377409315 | Q82: 0.2689407038 | R82: 0.3014024335 | S82: 0.2567704468 | T82: 0.2642027053 | U82: 0.2893410623 | V82: 0.2721415187 | W82: 0.2497533374 | X82: 0.3027323915 | Y82: 0.3028486815 | Z82: 0.2714373917 | AA82: 0.306032858 | AB82: 0.3116518458 | AC82: 0.2524236983 | AD82: 0.3188313942 | AE82: 0.4266622706 | AF82: 0.2697670212 | AG82: 0.3393015263 | AH82: 0.3707771649 | AI82: 0.3383455151 | AJ82: 0.2916558485 | AK82: 0.3773337681 | AL82: 0.2057152737 | AM82: 0.3724983408 | AN82: 0.2556650871 | AO82: 0.3043541521 | AP82: 0.4145964413 | AQ82: 0.3793353323 | AR82: 0.3177686989 | AS82: 0.3139525826 | AT82: 0.2152895579 | AU82: 0.4009227044 | AV82: 0.3555480329 | AW82: 0.3088878546 | AX82: 0.3353981263 | AY82: 0.3732842539 | AZ82: 0.2791481183 | BA82: 0.365245935 | BB82: 0.3608473287 | BC82: 0.2333299877 | BD82: 0.1746837104 | BE82: 0.3301500717 | BF82: 0.3670108744 | BG82: 0.3899965031 | BH82: 0.310974563 | BI82: 0.2368919919 | BJ82: 0.3239114279 | BK82: 0.28754498 | BL82: 0.3383169594 | BM82: 0.3397918567 | BN82: 0.470616976 | BO82: 0.3943732188 | BP82: 0.2572376349 | BQ82: 0.2609522647 | BR82: 0.3759025568 | BS82: 0.282498535 | BT82: 0.3243908599 | BU82: 0.4789227246 | BV82: 0.3304821364 | BW82: 0.4061102044 | BX82: 0.3271625288 | BY82: 0.3583948785 | BZ82: 0.2643508746 | CA82: 0.3415988209 | CB82: 0.3083775702 | CC82: 0.3562736867 | CD82: 0.3404044529 | CE82: 0.3095576294 | CF82: 0.4607447933 | CG82: 0.2268336563 | CH82: 0.3266082869 | CI82: 0.2991034938 | CJ82: 0.3090183032 | CK82: 0.2442021213 | CL82: 0.3190791266 | CM82: 0.3212940315 | CN82: 0.3771946084 | CO82: 0.2928353383 | CP82: 0.2584029901 | CQ82: 0.2871990244 | CR82: 0.2532288216 | CS82: 0.3477525684 | CT82: 0.3544840659 | CU82: 0.3914488988 | CV82: 0.3529845895 | CW82: 0.5011264037 | CY82: =SUM(B82:CW82) -> 32.64976122
A83: PF03640 | B83: 0.2991463377 | C83: 0.3620487092 | D83: 0.3065156496 | E83: 0.3053745842 | F83: 0.3335045831 | G83: 0.2440334617 | H83: 0.3848763066 | I83: 0.3961639127 | J83: 0.3400584641 | K83: 0.2984464123 | L83: 0.4069852767 | M83: 0.3646510829 | N83: 0.3096167699 | O83: 0.2707050811 | P83: 0.2924825872 | Q83: 0.3785667592 | R83: 0.3250640121 | S83: 0.3712991103 | T83: 0.2185575153 | U83: 0.3648169674 | V83: 0.2627938694 | W83: 0.285784489 | X83: 0.2953798596 | Y83: 0.3181213517 | Z83: 0.2585623655 | AA83: 0.4395004596 | AB83: 0.3359346492 | AC83: 0.4266994245 | AD83: 0.2470898339 | AE83: 0.251157406 | AF83: 0.3958584656 | AG83: 0.4996306983 | AH83: 0.3174004869 | AI83: 0.2747058863 | AJ83: 0.4033479571 | AK83: 0.2642525259 | AL83: 0.3278175206 | AM83: 0.204942872 | AN83: 0.1965165535 | AO83: 0.2665990397 | AP83: 0.3526602704 | AQ83: 0.2986282396 | AR83: 0.3760602005 | AS83: 0.2910512619 | AT83: 0.3388306496 | AU83: 0.4023666922 | AV83: 0.2708583057 | AW83: 0.439897662 | AX83: 0.3994123846 | AY83: 0.3094674657 | AZ83: 0.2682110356 | BA83: 0.2745102762 | BB83: 0.2645479067 | BC83: 0.4568768639 | BD83: 0.279243169 | BE83: 0.3210629751 | BF83: 0.312592923 | BG83: 0.319958117 | BH83: 0.348264545 | BI83: 0.2999043557 | BJ83: 0.3741694218 | BK83: 0.3819943659 | BL83: 0.2768284919 | BM83: 0.3628965353 | BN83: 0.2664282683 | BO83: 0.262578809 | BP83: 0.4742850993 | BQ83: 0.4253194196 | BR83: 0.2789959301 | BS83: 0.3154186215 | BT83: 0.3101811398 | BU83: 0.2980313386 | BV83: 0.3561038025 | BW83: 0.3466327106 | BX83: 0.2635787539 | BY83: 0.4649885344 | BZ83: 0.2299745144 | CA83: 0.3156366047 | CB83: 0.2801875687 | CC83: 0.2706585737 | CD83: 0.2495368493 | CE83: 0.3847066818 | CF83: 0.4010928195 | CG83: 0.4178336158 | CH83: 0.3702561154 | CI83: 0.4014979839 | CJ83: 0.4373115496 | CK83: 0.4245049512 | CL83: 0.3393141291 | CM83: 0.3512174445 | CN83: 0.2816011508 | CO83: 0.2180207444 | CP83: 0.2410118296 | CQ83: 0.3671270921 | CR83: 0.3083973711 | CS83: 0.2327741749 | CT83: 0.2580279175 | CU83: 0.358614671 | CV83: 0.2423110177 | CW83: 0.3310799188 | CY83: =SUM(B83:CW83) -> 32.64054113
A84: PF02371 | B84: 0.3108396229 | C84: 0.3279930605 | D84: 0.2483857424 | E84: 0.3835297203 | F84: 0.221493716 | G84: 0.4053957349 | H84: 0.279289492 | I84: 0.3033180915 | J84: 0.2874430748 | K84: 0.2987109497 | L84: 0.2818218331 | M84: 0.2932379294 | N84: 0.4401107772 | O84: 0.3024644094 | P84: 0.4489752699 | Q84: 0.2620061262 | R84: 0.2944032153 | S84: 0.3124279401 | T84: 0.4271587389 | U84: 0.2207895678 | V84: 0.2293621094 | W84: 0.2330504364 | X84: 0.335241017 | Y84: 0.2697699276 | Z84: 0.2661028151 | AA84: 0.3680950366 | AB84: 0.2527622626 | AC84: 0.392147344 | AD84: 0.4086469682 | AE84: 0.2716989702 | AF84: 0.2340809904 | AG84: 0.5098656281 | AH84: 0.3654603455 | AI84: 0.5354608994 | AJ84: 0.2149649571 | AK84: 0.3764307903 | AL84: 0.2891865565 | AM84: 0.2148655484 | AN84: 0.4149487951 | AO84: 0.3548453609 | AP84: 0.4014400914 | AQ84: 0.1895485295 | AR84: 0.2794456527 | AS84: 0.4000112132 | AT84: 0.3273017279 | AU84: 0.2966565352 | AV84: 0.263760791 | AW84: 0.3720303056 | AX84: 0.3024794382 | AY84: 0.393960949 | AZ84: 0.3353561304 | BA84: 0.2578011201 | BB84: 0.3067013413 | BC84: 0.3272440101 | BD84: 0.40575188 | BE84: 0.2890114955 | BF84: 0.4885989221 | BG84: 0.5091483493 | BH84: 0.237129585 | BI84: 0.3614056267 | BJ84: 0.2318779976 | BK84: 0.5009866469 | BL84: 0.2111814816 | BM84: 0.3071348002 | BN84: 0.2856861628 | BO84: 0.3999720219 | BP84: 0.1788159781 | BQ84: 0.3303222403 | BR84: 0.3833601339 | BS84: 0.4056336994 | BT84: 0.3271711972 | BU84: 0.2808605735 | BV84: 0.3095033061 | BW84: 0.2318022763 | BX84: 0.3202171271 | BY84: 0.4686159653 | BZ84: 0.2632810045 | CA84: 0.2585344738 | CB84: 0.3221419809 | CC84: 0.3067956027 | CD84: 0.3440667125 | CE84: 0.4611091152 | CF84: 0.3322662689 | CG84: 0.2142968189 | CH84: 0.1910165615 | CI84: 0.2625648707 | CJ84: 0.2112163983 | CK84: 0.2420916396 | CL84: 0.3567078331 | CM84: 0.3708919133 | CN84: 0.3199371813 | CO84: 0.3005942816 | CP84: 0.3673226268 | CQ84: 0.4060398147 | CR84: 0.296643048 | CS84: 0.238888392 | CT84: 0.4495296802 | CU84: 0.4270016026 | CV84: 0.5350808881 | CW84: 0.3400539333 | CY84: =SUM(B84:CW84) -> 32.62277972
A85: PF12770 | B85: 0.3056626286 | C85: 0.2758104139 | D85: 0.3799565479 | E85: 0.2356873776 | F85: 0.3452511693 | G85: 0.2892207427 | H85: 0.3961763827 | I85: 0.2921436276 | J85: 0.256502545 | K85: 0.2663868266 | L85: 0.1929408678 | M85: 0.123715937 | N85: 0.3033484912 | O85: 0.4149149121 | P85: 0.2438446172 | Q85: 0.2865568902 | R85: 0.2977640194 | S85: 0.3921223403 | T85: 0.46024028 | U85: 0.23973637 | V85: 0.3932562552 | W85: 0.2134967729 | X85: 0.284411753 | Y85: 0.2846040853 | Z85: 0.3230050546 | AA85: 0.2872419951 | AB85: 0.1910402221 | AC85: 0.5018460085 | AD85: 0.3327539383 | AE85: 0.4074030568 | AF85: 0.2648981005 | AG85: 0.3232592261 | AH85: 0.3264075461 | AI85: 0.4102088857 | AJ85: 0.4758114795 | AK85: 0.3858165819 | AL85: 0.2717583244 | AM85: 0.2030479073 | AN85: 0.3135457597 | AO85: 0.2468675529 | AP85: 0.3176905913 | AQ85: 0.3054971842 | AR85: 0.234687278 | AS85: 0.265651352 | AT85: 0.253727125 | AU85: 0.4532806328 | AV85: 0.5514746468 | AW85: 0.6196275253 | AX85: 0.1694725223 | AY85: 0.250957797 | AZ85: 0.4143452471 | BA85: 0.5742572445 | BB85: 0.3741128171 | BC85: 0.2422944797 | BD85: 0.3792431191 | BE85: 0.2696951175 | BF85: 0.6222912827 | BG85: 0.2000089196 | BH85: 0.2091345198 | BI85: 0.3643938185 | BJ85: 0.2127561147 | BK85: 0.2795886148 | BL85: 0.326649861 | BM85: 0.2695486308 | BN85: 0.2920118629 | BO85: 0.4104624625 | BP85: 0.2082191281 | BQ85: 0.2565798398 | BR85: 0.4130147809 | BS85: 0.2034665107 | BT85: 0.3874376142 | BU85: 0.4489596055 | BV85: 0.2112911428 | BW85: 0.4169620598 | BX85: 0.278542315 | BY85: 0.430082471 | BZ85: 0.2251091269 | CA85: 0.2755285944 | CB85: 0.2834988837 | CC85: 0.3587991359 | CD85: 0.5147075153 | CE85: 0.3128203116 | CF85: 0.2508164285 | CG85: 0.3036401486 | CH85: 0.3179618877 | CI85: 0.2435461108 | CJ85: 0.4085636646 | CK85: 0.3514419536 | CL85: 0.249759404 | CM85: 0.3305477328 | CN85: 0.5055030729 | CO85: 0.3512556557 | CP85: 0.2845159862 | CQ85: 0.3401832631 | CR85: 0.2770140853 | CS85: 0.2545542147 | CT85: 0.4593954598 | CU85: 0.302279584 | CV85: 0.3345043815 | CW85: 0.4554261407 | CY85: =SUM(B85:CW85) -> 32.54745247
A86: PF17289 | B86: 0.3751900485 | C86: 0.2541077168 | D86: 0.3141174961 | E86: 0.2449498424 | F86: 0.3148496251 | G86: 0.3229408928 | H86: 0.3112591836 | I86: 0.3825693636 | J86: 0.2721244361 | K86: 0.2125857739 | L86: 0.2959372746 | M86: 0.318047196 | N86: 0.3333792413 | O86: 0.3541043496 | P86: 0.3245694564 | Q86: 0.3789095586 | R86: 0.288412122 | S86: 0.3829979951 | T86: 0.3525643539 | U86: 0.3475479563 | V86: 0.4193946864 | W86: 0.2566241337 | X86: 0.3451326788 | Y86: 0.3625940086 | Z86: 0.2827185381 | AA86: 0.2289111532 | AB86: 0.3304781792 | AC86: 0.4530184264 | AD86: 0.2833926562 | AE86: 0.227325587 | AF86: 0.3877175762 | AG86: 0.3893771313 | AH86: 0.284268637 | AI86: 0.355093083 | AJ86: 0.320756774 | AK86: 0.2693632406 | AL86: 0.3887681255 | AM86: 0.3852899256 | AN86: 0.3156835785 | AO86: 0.3777754134 | AP86: 0.2134000975 | AQ86: 0.2728223198 | AR86: 0.3222218113 | AS86: 0.3452794703 | AT86: 0.3550106024 | AU86: 0.3592744335 | AV86: 0.327213956 | AW86: 0.3002098746 | AX86: 0.2992322113 | AY86: 0.3930140133 | AZ86: 0.3539386609 | BA86: 0.3096610146 | BB86: 0.2845282224 | BC86: 0.4312345084 | BD86: 0.407039063 | BE86: 0.3089316679 | BF86: 0.3733453678 | BG86: 0.3131572665 | BH86: 0.2630358218 | BI86: 0.3389928173 | BJ86: 0.3381261919 | BK86: 0.3054877769 | BL86: 0.2902645658 | BM86: 0.2778245697 | BN86: 0.3763351412 | BO86: 0.3813187124 | BP86: 0.3076625301 | BQ86: 0.4124740561 | BR86: 0.4209692538 | BS86: 0.2221550424 | BT86: 0.2758791533 | BU86: 0.27965145 | BV86: 0.3888685409 | BW86: 0.281848966 | BX86: 0.3531858184 | BY86: 0.2429345786 | BZ86: 0.2973318945 | CA86: 0.3793108239 | CB86: 0.3318172958 | CC86: 0.2590462171 | CD86: 0.3934465737 | CE86: 0.3047477839 | CF86: 0.3184416591 | CG86: 0.3203390624 | CH86: 0.3439143758 | CI86: 0.2591192522 | CJ86: 0.3173021874 | CK86: 0.3185862977 | CL86: 0.269703927 | CM86: 0.2991332257 | CN86: 0.3316538587 | CO86: 0.2971383744 | CP86: 0.2922549283 | CQ86: 0.345746441 | CR86: 0.2699237444 | CS86: 0.3340190015 | CT86: 0.2300654301 | CU86: 0.3795643212 | CV86: 0.2663281705 | CW86: 0.4176355387 | CY86: =SUM(B86:CW86) -> 32.34794735
A87: PF13469 | B87: 0.3890096168 | C87: 0.3161902647 | D87: 0.2850354002 | E87: 0.3800574072 | F87: 0.2548530007 | G87: 0.3512937019 | H87: 0.2228631337 | I87: 0.2928479774 | J87: 0.3793591256 | K87: 0.4144352644 | L87: 0.3051648842 | M87: 0.2755131458 | N87: 0.3438117672 | O87: 0.3138907742 | P87: 0.3221790718 | Q87: 0.3562858508 | R87: 0.2493892914 | S87: 0.2148579944 | T87: 0.3886034712 | U87: 0.2913961319 | V87: 0.4163751791 | W87: 0.3562740022 | X87: 0.4643747508 | Y87: 0.2844553277 | Z87: 0.1993409162 | AA87: 0.3690568341 | AB87: 0.2973514083 | AC87: 0.3406503346 | AD87: 0.3057182047 | AE87: 0.2372424854 | AF87: 0.2972396682 | AG87: 0.2971416251 | AH87: 0.3299120734 | AI87: 0.4862873887 | AJ87: 0.2972175472 | AK87: 0.3462827545 | AL87: 0.368295065 | AM87: 0.3409056729 | AN87: 0.2959732741 | AO87: 0.3053764539 | AP87: 0.3150003233 | AQ87: 0.255637875 | AR87: 0.3300821154 | AS87: 0.3408766636 | AT87: 0.1861410446 | AU87: 0.3277644285 | AV87: 0.2583770622 | AW87: 0.1774108693 | AX87: 0.3296289693 | AY87: 0.3499334423 | AZ87: 0.3044827086 | BA87: 0.2414883741 | BB87: 0.3831032862 | BC87: 0.4172195799 | BD87: 0.3147363352 | BE87: 0.3563570712 | BF87: 0.3030491762 | BG87: 0.3654624534 | BH87: 0.4405534187 | BI87: 0.3207703359 | BJ87: 0.2703340788 | BK87: 0.2798228136 | BL87: 0.3766229972 | BM87: 0.3407066271 | BN87: 0.3011875723 | BO87: 0.4384997065 | BP87: 0.3004507027 | BQ87: 0.2840299734 | BR87: 0.2328076754 | BS87: 0.2845511547 | BT87: 0.417902641 | BU87: 0.2655798547 | BV87: 0.3633346674 | BW87: 0.285265072 | BX87: 0.3714685102 | BY87: 0.3275908794 | BZ87: 0.3458178165 | CA87: 0.2762800483 | CB87: 0.4697317201 | CC87: 0.249245684 | CD87: 0.4352441311 | CE87: 0.4614122899 | CF87: 0.3309744345 | CG87: 0.3262184689 | CH87: 0.3122588648 | CI87: 0.3006744968 | CJ87: 0.3245267217 | CK87: 0.2446054036 | CL87: 0.280694529 | CM87: 0.2525634638 | CN87: 0.3301743417 | CO87: 0.3509158347 | CP87: 0.3453066637 | CQ87: 0.2895162719 | CR87: 0.3642975049 | CS87: 0.2212561895 | CT87: 0.351889988 | CU87: 0.3430891943 | CV87: 0.3850561331 | CW87: 0.2939216388 | CY87: =SUM(B87:CW87) -> 32.32641054
A88: PF03693 | B88: 0.1870771815 | C88: 0.3605377484 | D88: 0.3209847224 | E88: 0.3479436763 | F88: 0.2581721479 | G88: 0.286519566 | H88: 0.2344497286 | I88: 0.451731605 | J88: 0.2972801966 | K88: 0.4049751624 | L88: 0.2472485616 | M88: 0.2954200754 | N88: 0.2700336265 | O88: 0.2469532242 | P88: 0.3329960431 | Q88: 0.2301290669 | R88: 0.2136499748 | S88: 0.4518958964 | T88: 0.3866434255 | U88: 0.3684527358 | V88: 0.2929903716 | W88: 0.3919526095 | X88: 0.3072179717 | Y88: 0.3080754341 | Z88: 0.2724507264 | AA88: 0.2678366716 | AB88: 0.3221091586 | AC88: 0.2409629321 | AD88: 0.4844782487 | AE88: 0.3786562199 | AF88: 0.3262621605 | AG88: 0.2697738332 | AH88: 0.5266476959 | AI88: 0.2859118344 | AJ88: 0.3621936219 | AK88: 0.6483156052 | AL88: 0.3159672281 | AM88: 0.3039301541 | AN88: 0.3948521271 | AO88: 0.3413960668 | AP88: 0.2920034861 | AQ88: 0.2588391917 | AR88: 0.1975819781 | AS88: 0.4861970497 | AT88: 0.2515743736 | AU88: 0.2204213441 | AV88: 0.3865345564 | AW88: 0.2134921805 | AX88: 0.2577462627 | AY88: 0.2741789637 | AZ88: 0.2997850487 | BA88: 0.3525718078 | BB88: 0.3073145776 | BC88: 0.3135123719 | BD88: 0.3848411122 | BE88: 0.2386952724 | BF88: 0.2716560417 | BG88: 0.3396941439 | BH88: 0.4495141032 | BI88: 0.2864203106 | BJ88: 0.293782572 | BK88: 0.1659943305 | BL88: 0.2694797978 | BM88: 0.3129810809 | BN88: 0.4727115063 | BO88: 0.3914470467 | BP88: 0.1795219719 | BQ88: 0.3023042733 | BR88: 0.5556981897 | BS88: 0.3287967066 | BT88: 0.3391380854 | BU88: 0.3319519819 | BV88: 0.3209624671 | BW88: 0.4588872929 | BX88: 0.3874198084 | BY88: 0.2789765403 | BZ88: 0.3011517712 | CA88: 0.3102423241 | CB88: 0.2760001984 | CC88: 0.4362911953 | CD88: 0.2200208118 | CE88: 0.3333065971 | CF88: 0.3632136505 | CG88: 0.29814755 | CH88: 0.3470103584 | CI88: 0.2727573782 | CJ88: 0.2520376959 | CK88: 0.2055138698 | CL88: 0.3648625793 | CM88: 0.292252057 | CN88: 0.443371562 | CO88: 0.2462301548 | CP88: 0.3595571967 | CQ88: 0.3340875703 | CR88: 0.2904350642 | CS88: 0.4710797708 | CT88: 0.3445822278 | CU88: 0.2333469693 | CV88: 0.2969631997 | CW88: 0.3042960543 | CY88: =SUM(B88:CW88) -> 32.30446067
A89: PF00145 | B89: 0.4096728481 | C89: 0.3023052806 | D89: 0.3668410254 | E89: 0.3014099439 | F89: 0.3091427 | G89: 0.2881037083 | H89: 0.2178841411 | I89: 0.3080215073 | J89: 0.2937483634 | K89: 0.3399117978 | L89: 0.3059506955 | M89: 0.3453069519 | N89: 0.2225111967 | O89: 0.3232757148 | P89: 0.3710788939 | Q89: 0.4642206441 | R89: 0.3997259339 | S89: 0.3303000285 | T89: 0.3131412418 | U89: 0.3036798405 | V89: 0.2563216399 | W89: 0.2578954791 | X89: 0.3560626944 | Y89: 0.292140124 | Z89: 0.3417204819 | AA89: 0.2977553101 | AB89: 0.6213740257 | AC89: 0.2547351607 | AD89: 0.3857444808 | AE89: 0.2531358787 | AF89: 0.3050133182 | AG89: 0.302007308 | AH89: 0.2991093643 | AI89: 0.3020814508 | AJ89: 0.3163075412 | AK89: 0.246458168 | AL89: 0.2182159852 | AM89: 0.2119292947 | AN89: 0.2821234951 | AO89: 0.3520479705 | AP89: 0.3004652023 | AQ89: 0.3011005098 | AR89: 0.3212990774 | AS89: 0.2800185089 | AT89: 0.2927249453 | AU89: 0.2568398861 | AV89: 0.4233135727 | AW89: 0.2674524079 | AX89: 0.3253354727 | AY89: 0.2762625053 | AZ89: 0.2664622586 | BA89: 0.2939722463 | BB89: 0.3186835773 | BC89: 0.3366721198 | BD89: 0.2889364482 | BE89: 0.2899851734 | BF89: 0.2885460036 | BG89: 0.2726677119 | BH89: 0.2246237761 | BI89: 0.2828364456 | BJ89: 0.3118464219 | BK89: 0.2514070242 | BL89: 0.3490691224 | BM89: 0.4422753967 | BN89: 0.3099100229 | BO89: 0.3381821582 | BP89: 0.3140971517 | BQ89: 0.2455524546 | BR89: 0.3730854522 | BS89: 0.36399701 | BT89: 0.4091875066 | BU89: 0.2467408664 | BV89: 0.3276336479 | BW89: 0.256916722 | BX89: 0.2898131064 | BY89: 0.3096444128 | BZ89: 0.2517232248 | CA89: 0.5952872112 | CB89: 0.2100465401 | CC89: 0.4348073177 | CD89: 0.64026225 | CE89: 0.3933408291 | CF89: 0.3280134696 | CG89: 0.4147125611 | CH89: 0.2861501477 | CI89: 0.2631765091 | CJ89: 0.3411963748 | CK89: 0.3619410579 | CL89: 0.3329220881 | CM89: 0.2693204191 | CN89: 0.2469594215 | CO89: 0.2573347429 | CP89: 0.3134648002 | CQ89: 0.3268263937 | CR89: 0.3426817629 | CS89: 0.3199294153 | CT89: 0.4729675796 | CU89: 0.3244762376 | CV89: 0.459428705 | CW89: 0.3601506432 | CY89: =SUM(B89:CW89) -> 32.26308766
A90: PF05106 | B90: 0.3933219698 | C90: 0.3287118153 | D90: 0.294929284 | E90: 0.2019348018 | F90: 0.3058282075 | G90: 0.3013049383 | H90: 0.441979566 | I90: 0.4054270601 | J90: 0.4559107984 | K90: 0.2576188263 | L90: 0.2794050991 | M90: 0.31547807 | N90: 0.2778686349 | O90: 0.2639089383 | P90: 0.2823450938 | Q90: 0.3845927285 | R90: 0.2949479084 | S90: 0.3067931189 | T90: 0.3719776305 | U90: 0.262970731 | V90: 0.3260599182 | W90: 0.2304643529 | X90: 0.291829021 | Y90: 0.3364999782 | Z90: 0.2754041173 | AA90: 0.2628107999 | AB90: 0.2756660089 | AC90: 0.2691163676 | AD90: 0.3087178169 | AE90: 0.3416069657 | AF90: 0.4282137366 | AG90: 0.3464320843 | AH90: 0.3432512562 | AI90: 0.2824824455 | AJ90: 0.3533141018 | AK90: 0.3194612574 | AL90: 0.3914567933 | AM90: 0.2604782273 | AN90: 0.2486457907 | AO90: 0.3162021401 | AP90: 0.3052548214 | AQ90: 0.3166372828 | AR90: 0.270033516 | AS90: 0.361470571 | AT90: 0.4167917102 | AU90: 0.2999343925 | AV90: 0.3481193579 | AW90: 0.3244195189 | AX90: 0.3157668828 | AY90: 0.3140881802 | AZ90: 0.2758150535 | BA90: 0.3551771215 | BB90: 0.3397594097 | BC90: 0.3455479053 | BD90: 0.357736381 | BE90: 0.2632091544 | BF90: 0.3871287569 | BG90: 0.3743758043 | BH90: 0.2402695987 | BI90: 0.2744339751 | BJ90: 0.443216916 | BK90: 0.2865436485 | BL90: 0.356237086 | BM90: 0.3038568584 | BN90: 0.2824400392 | BO90: 0.215038267 | BP90: 0.3254932862 | BQ90: 0.3364042343 | BR90: 0.3039618267 | BS90: 0.2170534246 | BT90: 0.2744833188 | BU90: 0.3830710914 | BV90: 0.3581918031 | BW90: 0.3073698564 | BX90: 0.2773057028 | BY90: 0.3495726713 | BZ90: 0.4258833967 | CA90: 0.3222370884 | CB90: 0.2267611884 | CC90: 0.3495315986 | CD90: 0.2910035592 | CE90: 0.3503358447 | CF90: 0.3941747707 | CG90: 0.3262487185 | CH90: 0.2930787471 | CI90: 0.3625403011 | CJ90: 0.3584334225 | CK90: 0.312313482 | CL90: 0.3688113147 | CM90: 0.3505902717 | CN90: 0.2798915996 | CO90: 0.2798632514 | CP90: 0.3553904995 | CQ90: 0.244610253 | CR90: 0.3979527576 | CS90: 0.3203899476 | CT90: 0.29559393 | CU90: 0.3927066278 | CV90: 0.3225204011 | CW90: 0.3924616512 | CY90: =SUM(B90:CW90) -> 32.15490245
A91: PF12571 | B91: 0.3364849362 | C91: 0.3384002494 | D91: 0.376092261 | E91: 0.2431744639 | F91: 0.3234546146 | G91: 0.2975419852 | H91: 0.407354577 | I91: 0.3820039331 | J91: 0.2765577223 | K91: 0.2457648192 | L91: 0.3889173145 | M91: 0.3229382004 | N91: 0.1842726487 | O91: 0.3886637392 | P91: 0.2060636711 | Q91: 0.35024812 | R91: 0.3281660665 | S91: 0.4429650399 | T91: 0.3028727058 | U91: 0.3815592548 | V91: 0.3698599405 | W91: 0.3544023205 | X91: 0.3509970707 | Y91: 0.3751687947 | Z91: 0.2464448035 | AA91: 0.3176069009 | AB91: 0.2609950588 | AC91: 0.334748411 | AD91: 0.2728980978 | AE91: 0.3691430522 | AF91: 0.2709538658 | AG91: 0.2991511944 | AH91: 0.2706245919 | AI91: 0.3332456492 | AJ91: 0.3678376468 | AK91: 0.2825314999 | AL91: 0.3579519837 | AM91: 0.4173323516 | AN91: 0.3854767349 | AO91: 0.3272224137 | AP91: 0.2663733795 | AQ91: 0.338296437 | AR91: 0.2255073093 | AS91: 0.2847708536 | AT91: 0.4309279653 | AU91: 0.2650111105 | AV91: 0.3121742865 | AW91: 0.2886136876 | AX91: 0.4048688865 | AY91: 0.2928986205 | AZ91: 0.2944138381 | BA91: 0.3188692173 | BB91: 0.3817076521 | BC91: 0.2939136968 | BD91: 0.3540298718 | BE91: 0.2944687455 | BF91: 0.3974634791 | BG91: 0.3457158296 | BH91: 0.2612257946 | BI91: 0.3088136883 | BJ91: 0.2772062625 | BK91: 0.3858076974 | BL91: 0.2838873514 | BM91: 0.343278125 | BN91: 0.2893548957 | BO91: 0.3936255379 | BP91: 0.3485170748 | BQ91: 0.2977502208 | BR91: 0.3467718832 | BS91: 0.2856461574 | BT91: 0.2352004185 | BU91: 0.3033187997 | BV91: 0.2540810373 | BW91: 0.3241169015 | BX91: 0.4170440823 | BY91: 0.2761764145 | BZ91: 0.3149227332 | CA91: 0.3900984853 | CB91: 0.347338206 | CC91: 0.2269312822 | CD91: 0.2762171107 | CE91: 0.2804010746 | CF91: 0.2130913241 | CG91: 0.4042789658 | CH91: 0.25872021 | CI91: 0.2724196918 | CJ91: 0.2871640348 | CK91: 0.2494701979 | CL91: 0.3162359374 | CM91: 0.3293035304 | CN91: 0.2981895792 | CO91: 0.3354345636 | CP91: 0.418621522 | CQ91: 0.4910248954 | CR91: 0.3625265286 | CS91: 0.2808769741 | CT91: 0.2830781927 | CU91: 0.3674126262 | CV91: 0.2370095166 | CW91: 0.3636416441 | CY91: =SUM(B91:CW91) -> 32.11434474
A92: PF03237 | B92: 0.2891357238 | C92: 0.2604273209 | D92: 0.370865099 | E92: 0.2608954795 | F92: 0.2255675599 | G92: 0.3160545968 | H92: 0.2852528135 | I92: 0.4026190258 | J92: 0.2145196361 | K92: 0.356105813 | L92: 0.3385861054 | M92: 0.2722984412 | N92: 0.3688804598 | O92: 0.3751129199 | P92: 0.37122688 | Q92: 0.3681966738 | R92: 0.3299965914 | S92: 0.258895303 | T92: 0.3430992775 | U92: 0.3908548234 | V92: 0.3644580681 | W92: 0.3769203888 | X92: 0.4192455671 | Y92: 0.3723070869 | Z92: 0.2602021659 | AA92: 0.334623012 | AB92: 0.2926344423 | AC92: 0.3027590775 | AD92: 0.2980501272 | AE92: 0.2230870246 | AF92: 0.2683604479 | AG92: 0.3024958277 | AH92: 0.3449945154 | AI92: 0.2498998296 | AJ92: 0.2888834968 | AK92: 0.3061239937 | AL92: 0.3561199803 | AM92: 0.2714605141 | AN92: 0.3027756818 | AO92: 0.4111653459 | AP92: 0.3914032788 | AQ92: 0.3602073697 | AR92: 0.2754526034 | AS92: 0.4431708372 | AT92: 0.3051442452 | AU92: 0.2875639189 | AV92: 0.3745932881 | AW92: 0.2297641155 | AX92: 0.3631913791 | AY92: 0.2846511918 | AZ92: 0.2717618348 | BA92: 0.291461529 | BB92: 0.3404626735 | BC92: 0.2681919785 | BD92: 0.3340819447 | BE92: 0.2836636489 | BF92: 0.3281093434 | BG92: 0.363148328 | BH92: 0.3091832401 | BI92: 0.3338669205 | BJ92: 0.3456442393 | BK92: 0.2836308756 | BL92: 0.2839510119 | BM92: 0.2949579487 | BN92: 0.3957804602 | BO92: 0.3363533191 | BP92: 0.297585041 | BQ92: 0.3799276584 | BR92: 0.3198432382 | BS92: 0.2501143627 | BT92: 0.2926210167 | BU92: 0.2625618918 | BV92: 0.3476372719 | BW92: 0.344998496 | BX92: 0.3559676472 | BY92: 0.4117127103 | BZ92: 0.2999187437 | CA92: 0.3151495363 | CB92: 0.2891907146 | CC92: 0.3392474096 | CD92: 0.3036097284 | CE92: 0.3678445169 | CF92: 0.2398605427 | CG92: 0.2758464599 | CH92: 0.3042836931 | CI92: 0.3603066926 | CJ92: 0.332028927 | CK92: 0.2823130905 | CL92: 0.3661265901 | CM92: 0.2394457032 | CN92: 0.32028952 | CO92: 0.3826571813 | CP92: 0.391208009 | CQ92: 0.3096856568 | CR92: 0.3599159504 | CS92: 0.2905693039 | CT92: 0.270257303 | CU92: 0.3815950363 | CV92: 0.3776511665 | CW92: 0.3050713713 | CY92: =SUM(B92:CW92) -> 32.09159084
A93: PF06864 | B93: 0.2448787736 | C93: 0.3941974436 | D93: 0.2810120807 | E93: 0.3404410305 | F93: 0.2280287269 | G93: 0.4760651985 | H93: 0.199446535 | I93: 0.4252638259 | J93: 0.2143290419 | K93: 0.2864808388 | L93: 0.4069462045 | M93: 0.2336084904 | N93: 0.4228728922 | O93: 0.1840595564 | P93: 0.2571505816 | Q93: 0.4232673123 | R93: 0.2925252805 | S93: 0.3351052911 | T93: 0.2772543722 | U93: 0.2188305049 | V93: 0.3543661685 | W93: 0.3442027657 | X93: 0.4053621585 | Y93: 0.2262319137 | Z93: 0.3294474765 | AA93: 0.1775134256 | AB93: 0.2253831012 | AC93: 0.2331995325 | AD93: 0.244587408 | AE93: 0.6041860803 | AF93: 0.2171071324 | AG93: 0.3362740914 | AH93: 0.3460393753 | AI93: 0.2223759991 | AJ93: 0.465453866 | AK93: 0.4228348453 | AL93: 0.4696117552 | AM93: 0.2180535699 | AN93: 0.4012339734 | AO93: 0.3429079276 | AP93: 0.2946805152 | AQ93: 0.2808306654 | AR93: 0.3807645849 | AS93: 0.3041196932 | AT93: 0.3881054313 | AU93: 0.2335650907 | AV93: 0.3293695 | AW93: 0.1843297319 | AX93: 0.2547096085 | AY93: 0.3788365833 | AZ93: 0.3420465469 | BA93: 0.3580509373 | BB93: 0.195615258 | BC93: 0.4275607695 | BD93: 0.3021303057 | BE93: 0.2801836625 | BF93: 0.3866149268 | BG93: 0.27213947 | BH93: 0.4481651825 | BI93: 0.2843630104 | BJ93: 0.2043960405 | BK93: 0.3025309103 | BL93: 0.2082679497 | BM93: 0.4344812033 | BN93: 0.441874122 | BO93: 0.440853533 | BP93: 0.3359485444 | BQ93: 0.2790791029 | BR93: 0.5876696101 | BS93: 0.3756269355 | BT93: 0.4580457032 | BU93: 0.2380317723 | BV93: 0.4731360294 | BW93: 0.3295553377 | BX93: 0.2960747998 | BY93: 0.31681094 | BZ93: 0.1922449499 | CA93: 0.1864797497 | CB93: 0.421607232 | CC93: 0.428195416 | CD93: 0.2534652369 | CE93: 0.2969915232 | CF93: 0.2851240854 | CG93: 0.2346894704 | CH93: 0.2528880988 | CI93: 0.2845804163 | CJ93: 0.3026526456 | CK93: 0.2794276006 | CL93: 0.3589715846 | CM93: 0.2553579478 | CN93: 0.3238204412 | CO93: 0.2737407491 | CP93: 0.3334632474 | CQ93: 0.4195264818 | CR93: 0.317270536 | CS93: 0.4847619959 | CT93: 0.2839577997 | CU93: 0.2270951918 | CV93: 0.3307789695 | CW93: 0.2599974091 | CY93: =SUM(B93:CW93) -> 32.06378933
A94: PF13517 | B94: 0.3242937822 | C94: 0.246603158 | D94: 0.3350567438 | E94: 0.3905129165 | F94: 0.3437502487 | G94: 0.3071764976 | H94: 0.2651623563 | I94: 0.2402154933 | J94: 0.4116710799 | K94: 0.3057102062 | L94: 0.3432129155 | M94: 0.2735426675 | N94: 0.4592123603 | O94: 0.2963351075 | P94: 0.2606852835 | Q94: 0.2683612451 | R94: 0.1922638211 | S94: 0.1999525555 | T94: 0.297066996 | U94: 0.2932722248 | V94: 0.6336391733 | W94: 0.2302253411 | X94: 0.3227525001 | Y94: 0.212890826 | Z94: 0.4832278055 | AA94: 0.4461889979 | AB94: 0.1789737637 | AC94: 0.2075944649 | AD94: 0.386036346 | AE94: 0.2597854366 | AF94: 0.4560963852 | AG94: 0.3017869508 | AH94: 0.291193519 | AI94: 0.2060254919 | AJ94: 0.2867329387 | AK94: 0.2528048292 | AL94: 0.4153316223 | AM94: 0.4395612412 | AN94: 0.3373151338 | AO94: 0.1960341343 | AP94: 0.1768283956 | AQ94: 0.386911185 | AR94: 0.3540417452 | AS94: 0.1704840121 | AT94: 0.5108597883 | AU94: 0.2874681191 | AV94: 0.2175602305 | AW94: 0.2229477129 | AX94: 0.4019857851 | AY94: 0.3113870646 | AZ94: 0.4968983097 | BA94: 0.2478151338 | BB94: 0.5322626752 | BC94: 0.4002540342 | BD94: 0.2603293844 | BE94: 0.3389810184 | BF94: 0.4118880019 | BG94: 0.3000850858 | BH94: 0.406506564 | BI94: 0.3893987718 | BJ94: 0.1491418654 | BK94: 0.2408531095 | BL94: 0.4485740762 | BM94: 0.2796891653 | BN94: 0.4652784837 | BO94: 0.3312540458 | BP94: 0.185942214 | BQ94: 0.2986789201 | BR94: 0.2903291716 | BS94: 0.2250190883 | BT94: 0.1774071452 | BU94: 0.3039390824 | BV94: 0.2848088266 | BW94: 0.2739847613 | BX94: 0.2966600301 | BY94: 0.3661299966 | BZ94: 0.188376594 | CA94: 0.3085649495 | CB94: 0.3471946749 | CC94: 0.1950063314 | CD94: 0.3024090668 | CE94: 0.4029066294 | CF94: 0.2573323231 | CG94: 0.3742122464 | CH94: 0.4572234707 | CI94: 0.2880848096 | CJ94: 0.3956230028 | CK94: 0.6691775889 | CL94: 0.2668137511 | CM94: 0.2446072964 | CN94: 0.2084620848 | CO94: 0.4060047347 | CP94: 0.3329375384 | CQ94: 0.3387823539 | CR94: 0.3719814788 | CS94: 0.1612513398 | CT94: 0.3272724247 | CU94: 0.3637364281 | CV94: 0.4697772683 | CW94: 0.2699213364 | CY94: =SUM(B94:CW94) -> 31.98849728
A95: PF03852 | B95: 0.5528040178 | C95: 0.2073685844 | D95: 0.2274231951 | E95: 0.1883566327 | F95: 0.3134894447 | G95: 0.5525428236 | H95: 0.4183472684 | I95: 0.2108748479 | J95: 0.3404920338 | K95: 0.3598787048 | L95: 0.2107882549 | M95: 0.3334631441 | N95: 0.2182370939 | O95: 0.2270293544 | P95: 0.5448571723 | Q95: 0.358328215 | R95: 0.1796236987 | S95: 0.2918448302 | T95: 0.518437961 | U95: 0.2156134321 | V95: 0.1858544797 | W95: 0.7552112605 | X95: 0.3456829007 | Y95: 0.1983127245 | Z95: 0.2575611396 | AA95: 0.1212659932 | AB95: 0.4460733276 | AC95: 0.2676926641 | AD95: 0.2339160837 | AE95: 0.2655206802 | AF95: 0.2469717421 | AG95: 0.3112348308 | AH95: 0.4675513114 | AI95: 0.2940191143 | AJ95: 0.2172854182 | AK95: 0.4814432658 | AL95: 0.1900027878 | AM95: 0.4996780551 | AN95: 0.2211820937 | AO95: 0.2112017353 | AP95: 0.505506048 | AQ95: 0.3671622421 | AR95: 0.2901651073 | AS95: 0.3029413402 | AT95: 0.3839089342 | AU95: 0.4165653052 | AV95: 0.1708346322 | AW95: 0.1437207601 | AX95: 0.3020635635 | AY95: 0.2530489672 | AZ95: 0.1731086244 | BA95: 0.1934527264 | BB95: 0.315874043 | BC95: 0.2293846186 | BD95: 0.4265356774 | BE95: 0.3250533476 | BF95: 0.2476161866 | BG95: 0.3523941988 | BH95: 0.3334379637 | BI95: 0.2833353643 | BJ95: 0.259982776 | BK95: 0.515827104 | BL95: 0.5845964627 | BM95: 0.2326061888 | BN95: 0.1521018579 | BO95: 0.3300548358 | BP95: 0.2948419852 | BQ95: 0.2978347075 | BR95: 0.340725342 | BS95: 0.3449704513 | BT95: 0.2802128099 | BU95: 0.5156465836 | BV95: 0.3880132761 | BW95: 0.1938657997 | BX95: 0.1984035814 | BY95: 0.2715788011 | BZ95: 0.5015071403 | CA95: 0.2734008858 | CB95: 0.2602199586 | CC95: 0.266611966 | CD95: 0.3210058279 | CE95: 0.184388077 | CF95: 0.2480875513 | CG95: 0.5857970577 | CH95: 0.2861105482 | CI95: 0.4531861581 | CJ95: 0.2210100776 | CK95: 0.2784876709 | CL95: 0.1866149353 | CM95: 0.3381926365 | CN95: 0.2036867505 | CO95: 0.1798903969 | CP95: 0.3339352062 | CQ95: 0.3209797672 | CR95: 0.4935869793 | CS95: 0.6592577333 | CT95: 0.3025202472 | CU95: 0.2083447402 | CV95: 0.2646766606 | CW95: 0.4827852115 | CY95: =SUM(B95:CW95) -> 31.75911872
A96: PF15919 | B96: 0.2586734809 | C96: 0.2711067077 | D96: 0.1507036148 | E96: 0.3522809273 | F96: 0.2677234018 | G96: 0.3013993169 | H96: 0.4119949618 | I96: 0.3947196654 | J96: 0.32328034 | K96: 0.3447408176 | L96: 0.2984761563 | M96: 0.2999948839 | N96: 0.329024869 | O96: 0.2872702823 | P96: 0.2860331724 | Q96: 0.6139965194 | R96: 0.2657188643 | S96: 0.2101180447 | T96: 0.2832397196 | U96: 0.2159334754 | V96: 0.3389664215 | W96: 0.3459279752 | X96: 0.4204894503 | Y96: 0.297753877 | Z96: 0.2325594563 | AA96: 0.3572638179 | AB96: 0.2732464553 | AC96: 0.1899108428 | AD96: 0.4240817828 | AE96: 0.3861668065 | AF96: 0.2452800402 | AG96: 0.2070784243 | AH96: 0.1927651655 | AI96: 0.2634410439 | AJ96: 0.3964642105 | AK96: 0.2560362887 | AL96: 0.3749273438 | AM96: 0.7169172158 | AN96: 0.4098307797 | AO96: 0.3252664267 | AP96: 0.2317727128 | AQ96: 0.4101107602 | AR96: 0.2905297993 | AS96: 0.216830584 | AT96: 0.1674680807 | AU96: 0.3654187738 | AV96: 0.2361756713 | AW96: 0.3051289877 | AX96: 0.5621606749 | AY96: 0.3152658529 | AZ96: 0.4190452086 | BA96: 0.3562013712 | BB96: 0.3331948453 | BC96: 0.4458916788 | BD96: 0.3588642152 | BE96: 0.214884132 | BF96: 0.228739105 | BG96: 0.4805788456 | BH96: 0.422858987 | BI96: 0.3165738731 | BJ96: 0.261982811 | BK96: 0.1819635359 | BL96: 0.2940716398 | BM96: 0.2021104854 | BN96: 0.2680317638 | BO96: 0.6100900473 | BP96: 0.1589018012 | BQ96: 0.3238890986 | BR96: 0.3886397682 | BS96: 0.343192191 | BT96: 0.2876718434 | BU96: 0.3429754594 | BV96: 0.2575709263 | BW96: 0.237976232 | BX96: 0.3397908417 | BY96: 0.3413311766 | BZ96: 0.2823133165 | CA96: 0.2901363515 | CB96: 0.2899477543 | CC96: 0.2094343254 | CD96: 0.3558588593 | CE96: 0.218443282 | CF96: 0.2852109593 | CG96: 0.2844872506 | CH96: 0.3157009791 | CI96: 0.2782092466 | CJ96: 0.2444997003 | CK96: 0.2455087553 | CL96: 0.4397891394 | CM96: 0.2623404752 | CN96: 0.2649820904 | CO96: 0.5890373604 | CP96: 0.3701190363 | CQ96: 0.2845553764 | CR96: 0.2301091815 | CS96: 0.3153429277 | CT96: 0.5430542889 | CU96: 0.2404193236 | CV96: 0.191402221 | CW96: 0.2970399297 | CY96: =SUM(B96:CW96) -> 31.66662896
A97: PF05974 | B97: 0.2807991473 | C97: 0.3473691616 | D97: 0.2354499015 | E97: 0.3710886949 | F97: 0.2970721729 | G97: 0.3019645211 | H97: 0.2712254899 | I97: 0.3684265748 | J97: 0.3645563668 | K97: 0.2324885017 | L97: 0.3892903032 | M97: 0.2972320071 | N97: 0.2962643165 | O97: 0.2112271323 | P97: 0.2765665657 | Q97: 0.2426346647 | R97: 0.259621271 | S97: 0.4113340847 | T97: 0.2736929768 | U97: 0.2168621395 | V97: 0.4063263452 | W97: 0.3367558687 | X97: 0.3536022123 | Y97: 0.3669674748 | Z97: 0.3733100563 | AA97: 0.2133242355 | AB97: 0.2073338673 | AC97: 0.3206278814 | AD97: 0.3587051833 | AE97: 0.3098891753 | AF97: 0.3386225154 | AG97: 0.2937288467 | AH97: 0.2393190117 | AI97: 0.3221730088 | AJ97: 0.3389486959 | AK97: 0.515223323 | AL97: 0.291493058 | AM97: 0.4045404986 | AN97: 0.281886299 | AO97: 0.2992295505 | AP97: 0.3599696361 | AQ97: 0.3468659319 | AR97: 0.3372758007 | AS97: 0.3242298688 | AT97: 0.308399253 | AU97: 0.2199377426 | AV97: 0.3939039775 | AW97: 0.3609603428 | AX97: 0.397222891 | AY97: 0.3884937218 | AZ97: 0.3596515965 | BA97: 0.2868566339 | BB97: 0.3147234851 | BC97: 0.2829379209 | BD97: 0.2331186807 | BE97: 0.2178135745 | BF97: 0.3278883622 | BG97: 0.357043813 | BH97: 0.2419232843 | BI97: 0.3229846492 | BJ97: 0.3511454217 | BK97: 0.293655171 | BL97: 0.3211880284 | BM97: 0.283469204 | BN97: 0.2709824668 | BO97: 0.324880539 | BP97: 0.3770102178 | BQ97: 0.2843455905 | BR97: 0.3012587796 | BS97: 0.2069895767 | BT97: 0.2486924418 | BU97: 0.2268844346 | BV97: 0.247394341 | BW97: 0.419831649 | BX97: 0.2837442037 | BY97: 0.3254905595 | BZ97: 0.3640871733 | CA97: 0.2930146685 | CB97: 0.2825665865 | CC97: 0.321320412 | CD97: 0.3103531214 | CE97: 0.3320712134 | CF97: 0.2472427789 | CG97: 0.2937430406 | CH97: 0.4260574769 | CI97: 0.3570641949 | CJ97: 0.3911535712 | CK97: 0.4442399626 | CL97: 0.3021387785 | CM97: 0.2871096262 | CN97: 0.2772145639 | CO97: 0.3723091891 | CP97: 0.3754115348 | CQ97: 0.2514840773 | CR97: 0.311127818 | CS97: 0.3861510299 | CT97: 0.3572353767 | CU97: 0.3000021519 | CV97: 0.3255149836 | CW97: 0.3793671883 | CY97: =SUM(B97:CW97) -> 31.65431741
A98: PF04860 | B98: 0.286829246 | C98: 0.265629123 | D98: 0.3149827598 | E98: 0.2817447215 | F98: 0.3505023536 | G98: 0.2236180773 | H98: 0.3134451606 | I98: 0.2639588218 | J98: 0.3646440678 | K98: 0.2952452613 | L98: 0.3371153554 | M98: 0.3209951124 | N98: 0.291254921 | O98: 0.2795899389 | P98: 0.2990593335 | Q98: 0.4008817834 | R98: 0.380568536 | S98: 0.3379209875 | T98: 0.3314128335 | U98: 0.2984230418 | V98: 0.3781472762 | W98: 0.2805330754 | X98: 0.2961319369 | Y98: 0.2356679087 | Z98: 0.3699909469 | AA98: 0.2945829769 | AB98: 0.345624065 | AC98: 0.3450397566 | AD98: 0.2741542337 | AE98: 0.3235904223 | AF98: 0.3560293558 | AG98: 0.2474183876 | AH98: 0.2642667915 | AI98: 0.2779816349 | AJ98: 0.2850080435 | AK98: 0.3748594861 | AL98: 0.3983334413 | AM98: 0.34000309 | AN98: 0.2996429079 | AO98: 0.2075937822 | AP98: 0.387757079 | AQ98: 0.4100911012 | AR98: 0.2125576017 | AS98: 0.3029847261 | AT98: 0.2297355149 | AU98: 0.2837763974 | AV98: 0.2219170093 | AW98: 0.2764191578 | AX98: 0.3172517284 | AY98: 0.3308230558 | AZ98: 0.3046170889 | BA98: 0.283832568 | BB98: 0.3013008238 | BC98: 0.4383437074 | BD98: 0.2859006084 | BE98: 0.3127996707 | BF98: 0.3195838155 | BG98: 0.3415300592 | BH98: 0.2825030902 | BI98: 0.3119378604 | BJ98: 0.2234852133 | BK98: 0.2445831909 | BL98: 0.2819287356 | BM98: 0.2420368446 | BN98: 0.3921784282 | BO98: 0.2987436291 | BP98: 0.3677757028 | BQ98: 0.4155656845 | BR98: 0.2644539461 | BS98: 0.2325042323 | BT98: 0.3019951968 | BU98: 0.4657208345 | BV98: 0.2677092744 | BW98: 0.2566481936 | BX98: 0.3627765825 | BY98: 0.2372214751 | BZ98: 0.2529427366 | CA98: 0.2996353351 | CB98: 0.2296199632 | CC98: 0.3796496348 | CD98: 0.453820722 | CE98: 0.4326399064 | CF98: 0.2995872704 | CG98: 0.4501401782 | CH98: 0.3408284171 | CI98: 0.2990388215 | CJ98: 0.3495531681 | CK98: 0.2464384699 | CL98: 0.3035997724 | CM98: 0.4314932146 | CN98: 0.288283969 | CO98: 0.2829557078 | CP98: 0.317813452 | CQ98: 0.3605899615 | CR98: 0.3510895312 | CS98: 0.3089032153 | CT98: 0.3240557711 | CU98: 0.2772997253 | CV98: 0.3368695078 | CW98: 0.4997347942 | CY98: =SUM(B98:CW98) -> 31.55999403
A99: PF09588 | B99: 0.359570058 | C99: 0.490794086 | D99: 0.1864829215 | E99: 0.2599392583 | F99: 0.2931938579 | G99: 0.2519338166 | H99: 0.2712343192 | I99: 0.3030127746 | J99: 0.2831046829 | K99: 0.3256052379 | L99: 0.3252662362 | M99: 0.2878157023 | N99: 0.3103196359 | O99: 0.222899233 | P99: 0.327582638 | Q99: 0.3065559695 | R99: 0.283374902 | S99: 0.2371058784 | T99: 0.2854931173 | U99: 0.269983677 | V99: 0.2671520243 | W99: 0.2558819106 | X99: 0.3993895555 | Y99: 0.3568434159 | Z99: 0.3469547603 | AA99: 0.2611501633 | AB99: 0.3822066686 | AC99: 0.3060248598 | AD99: 0.4779659171 | AE99: 0.2187940461 | AF99: 0.4298924547 | AG99: 0.3674674012 | AH99: 0.3759121298 | AI99: 0.3294751906 | AJ99: 0.3502988184 | AK99: 0.2290245535 | AL99: 0.4276025102 | AM99: 0.3372229856 | AN99: 0.2508257405 | AO99: 0.2588848973 | AP99: 0.351817838 | AQ99: 0.2384703404 | AR99: 0.3320453218 | AS99: 0.3185850046 | AT99: 0.3403838159 | AU99: 0.1905549899 | AV99: 0.3269025939 | AW99: 0.5008555876 | AX99: 0.3194841788 | AY99: 0.3053215887 | AZ99: 0.2683040895 | BA99: 0.1979935121 | BB99: 0.3069883389 | BC99: 0.31547979 | BD99: 0.243756992 | BE99: 0.2748160003 | BF99: 0.2949932302 | BG99: 0.2739807378 | BH99: 0.3147054488 | BI99: 0.3126470155 | BJ99: 0.4365978222 | BK99: 0.3697118169 | BL99: 0.3403896763 | BM99: 0.359899102 | BN99: 0.3079697205 | BO99: 0.2232196275 | BP99: 0.4107110651 | BQ99: 0.2562539791 | BR99: 0.2571684988 | BS99: 0.2319280254 | BT99: 0.2793553682 | BU99: 0.2897199582 | BV99: 0.276978704 | BW99: 0.3627519092 | BX99: 0.3935922355 | BY99: 0.405677699 | BZ99: 0.2081647095 | CA99: 0.2714362142 | CB99: 0.3053742307 | CC99: 0.331361497 | CD99: 0.5541918627 | CE99: 0.309313404 | CF99: 0.4360402308 | CG99: 0.3943579347 | CH99: 0.3558444209 | CI99: 0.252818588 | CJ99: 0.2386128485 | CK99: 0.2756580731 | CL99: 0.2601990811 | CM99: 0.3229090575 | CN99: 0.2894381209 | CO99: 0.3562571971 | CP99: 0.3085992195 | CQ99: 0.331227753 | CR99: 0.3013038105 | CS99: 0.2047040353 | CT99: 0.2886915398 | CU99: 0.3751789304 | CV99: 0.3180618069 | CW99: 0.4542528226 | CY99: =SUM(B99:CW99) -> 31.48424702
A100: PF02086 | B100: 0.3090022185 | C100: 0.2924134586 | D100: 0.2086114172 | E100: 0.2505319891 | F100: 0.267350185 | G100: 0.322383052 | H100: 0.2876758441 | I100: 0.3456183461 | J100: 0.2856904994 | K100: 0.3045606316 | L100: 0.4131727036 | M100: 0.459169875 | N100: 0.3173745678 | O100: 0.434940803 | P100: 0.3661392543 | Q100: 0.3543074996 | R100: 0.276007042 | S100: 0.2648340782 | T100: 0.2661693403 | U100: 0.2109737348 | V100: 0.2829744133 | W100: 0.3062845749 | X100: 0.3144383118 | Y100: 0.2886750009 | Z100: 0.419735886 | AA100: 0.2159267444 | AB100: 0.3310114845 | AC100: 0.2562209781 | AD100: 0.2071558441 | AE100: 0.2746040805 | AF100: 0.2801521122 | AG100: 0.3801298842 | AH100: 0.2947488358 | AI100: 0.319505379 | AJ100: 0.3541867602 | AK100: 0.2574465389 | AL100: 0.2387834908 | AM100: 0.2367020677 | AN100: 0.1873219225 | AO100: 0.4043741541 | AP100: 0.3729167829 | AQ100: 0.3390214875 | AR100: 0.3506795941 | AS100: 0.394630573 | AT100: 0.3232935074 | AU100: 0.3085816789 | AV100: 0.3340866493 | AW100: 0.2448101698 | AX100: 0.3233016242 | AY100: 0.2791374628 | AZ100: 0.3448062458 | BA100: 0.3623832441 | BB100: 0.2743511951 | BC100: 0.3037171809 | BD100: 0.3667523982 | BE100: 0.3602479167 | BF100: 0.3025295446 | BG100: 0.2871854915 | BH100: 0.2299090835 | BI100: 0.3342476045 | BJ100: 0.3500120923 | BK100: 0.3232787028 | BL100: 0.3310986268 | BM100: 0.3210518696 | BN100: 0.4179567176 | BO100: 0.2776540392 | BP100: 0.2737932974 | BQ100: 0.304570913 | BR100: 0.2790567897 | BS100: 0.2589601294 | BT100: 0.2191493645 | BU100: 0.3139824237 | BV100: 0.2858210463 | BW100: 0.2629333587 | BX100: 0.3209970211 | BY100: 0.4106292853 | BZ100: 0.4259180028 | CA100: 0.3839023785 | CB100: 0.2701848673 | CC100: 0.3226543636 | CD100: 0.3762175025 | CE100: 0.3202398229 | CF100: 0.3126910697 | CG100: 0.2964492762 | CH100: 0.3950863006 | CI100: 0.2851842744 | CJ100: 0.2852734447 | CK100: 0.3517651729 | CL100: 0.3452351103 | CM100: 0.2747219392 | CN100: 0.353110382 | CO100: 0.3076283334 | CP100: 0.3631375785 | CQ100: 0.2387197953 | CR100: 0.3127790728 | CS100: 0.3467785344 | CT100: 0.2767617526 | CU100: 0.2928593042 | CV100: 0.3079021241 | CW100: 0.4357927641 | CY100: =SUM(B100:CW100) -> 31.35583328
A101: PF02909 | B101: 0.2711390782 | C101: 0.3078902401 | D101: 0.2834166037 | E101: 0.2521288866 | F101: 0.2895334253 | G101: 0.2073767765 | H101: 0.2907009915 | I101: 0.2454290248 | J101: 0.2357347782 | K101: 0.5508487086 | L101: 0.283041142 | M101: 0.2713901777 | N101: 0.3162304964 | O101: 0.2542044582 | P101: 0.1959387209 | Q101: 0.2947243187 | R101: 0.4182337414 | S101: 0.2363048815 | T101: 0.2545084939 | U101: 0.5541945 | V101: 0.2647829132 | W101: 0.3978895623 | X101: 0.2024162969 | Y101: 0.3305325582 | Z101: 0.3036846567 | AA101: 0.4104763721 | AB101: 0.2241191802 | AC101: 0.4703247148 | AD101: 0.275993735 | AE101: 0.3489516674 | AF101: 0.2263448208 | AG101: 0.3767220736 | AH101: 0.3475178264 | AI101: 0.3229192738 | AJ101: 0.2047609984 | AK101: 0.3318072417 | AL101: 0.3935307552 | AM101: 0.3616755411 | AN101: 0.4022492833 | AO101: 0.3121758925 | AP101: 0.367963824 | AQ101: 0.2053628985 | AR101: 0.2699698564 | AS101: 0.4609994995 | AT101: 0.2995042513 | AU101: 0.2208446099 | AV101: 0.2952595593 | AW101: 0.3010943731 | AX101: 0.2118353525 | AY101: 0.1762357346 | AZ101: 0.1979071701 | BA101: 0.4286234773 | BB101: 0.2496113933 | BC101: 0.2650972536 | BD101: 0.33725242 | BE101: 0.3419092877 | BF101: 0.529686408 | BG101: 0.3401961281 | BH101: 0.5588737276 | BI101: 0.4758689757 | BJ101: 0.276291534 | BK101: 0.3334453232 | BL101: 0.5443635238 | BM101: 0.1823117037 | BN101: 0.1996691699 | BO101: 0.2166320673 | BP101: 0.3464746093 | BQ101: 0.3360768075 | BR101: 0.4010815882 | BS101: 0.2512240544 | BT101: 0.2906682284 | BU101: 0.2939476948 | BV101: 0.2649554751 | BW101: 0.3155989616 | BX101: 0.3475274837 | BY101: 0.2802101164 | BZ101: 0.2930279918 | CA101: 0.1956275698 | CB101: 0.4116894319 | CC101: 0.3442307712 | CD101: 0.2861744095 | CE101: 0.5045992014 | CF101: 0.1865487444 | CG101: 0.3871413106 | CH101: 0.2732253227 | CI101: 0.2240646375 | CJ101: 0.2238973831 | CK101: 0.2696157773 | CL101: 0.180918855 | CM101: 0.5025916305 | CN101: 0.3980677618 | CO101: 0.2677341939 | CP101: 0.2803648133 | CQ101: 0.4777969655 | CR101: 0.3295326502 | CS101: 0.3102356125 | CT101: 0.3260688698 | CU101: 0.2736478355 | CV101: 0.1651054256 | CW101: 0.2686726748 | CY101: =SUM(B101:CW101) -> 31.31699919
A102: PF13936 | B102: 0.3641916331 | C102: 0.3158626053 | D102: 0.2213884941 | E102: 0.2302401662 | F102: 0.2790762399 | G102: 0.3124716592 | H102: 0.3089445796 | I102: 0.3508595158 | J102: 0.3182159006 | K102: 0.3034429554 | L102: 0.2919191579 | M102: 0.2604731427 | N102: 0.2601969031 | O102: 0.2932574602 | P102: 0.2629313024 | Q102: 0.3628402721 | R102: 0.3487488053 | S102: 0.2866769105 | T102: 0.3041223197 | U102: 0.3016648361 | V102: 0.2916435054 | W102: 0.2542777434 | X102: 0.4215481249 | Y102: 0.4160420567 | Z102: 0.3242902431 | AA102: 0.2567747948 | AB102: 0.3715351108 | AC102: 0.2448556803 | AD102: 0.2754102248 | AE102: 0.3011807868 | AF102: 0.2337734064 | AG102: 0.3744995692 | AH102: 0.2852260399 | AI102: 0.3133260893 | AJ102: 0.2915650729 | AK102: 0.3441607499 | AL102: 0.3926526973 | AM102: 0.1936012618 | AN102: 0.3487775111 | AO102: 0.2925615774 | AP102: 0.291518833 | AQ102: 0.4264244919 | AR102: 0.2570225084 | AS102: 0.3002765304 | AT102: 0.3396251703 | AU102: 0.2970193298 | AV102: 0.2643658181 | AW102: 0.2817951518 | AX102: 0.264392994 | AY102: 0.331069642 | AZ102: 0.340134293 | BA102: 0.2618444212 | BB102: 0.3372534489 | BC102: 0.3647893076 | BD102: 0.3428190716 | BE102: 0.2855525502 | BF102: 0.3119918841 | BG102: 0.3713622899 | BH102: 0.2996712499 | BI102: 0.2613740211 | BJ102: 0.338081341 | BK102: 0.3382185642 | BL102: 0.3451223977 | BM102: 0.3536899645 | BN102: 0.2740924227 | BO102: 0.3479321911 | BP102: 0.334055259 | BQ102: 0.2818008152 | BR102: 0.2769644644 | BS102: 0.4970700912 | BT102: 0.3177622715 | BU102: 0.2831194687 | BV102: 0.3096486362 | BW102: 0.3973346664 | BX102: 0.2770577802 | BY102: 0.3210915618 | BZ102: 0.3541869016 | CA102: 0.2764370185 | CB102: 0.2868453851 | CC102: 0.3525808793 | CD102: 0.3045649831 | CE102: 0.3627619281 | CF102: 0.3232023536 | CG102: 0.3828244659 | CH102: 0.30159169 | CI102: 0.3542487351 | CJ102: 0.3454756365 | CK102: 0.3003624824 | CL102: 0.2643171257 | CM102: 0.2978298206 | CN102: 0.312678569 | CO102: 0.3096408769 | CP102: 0.2292510601 | CQ102: 0.3903053093 | CR102: 0.2304978287 | CS102: 0.2408093567 | CT102: 0.3381221952 | CU102: 0.3554121078 | CV102: 0.2672162692 | CW102: 0.3260636525 | CY102: =SUM(B102:CW102) -> 31.23579864
A103: PF05717 | B103: 0.3472329449 | C103: 0.2869414853 | D103: 0.432457654 | E103: 0.3191618879 | F103: 0.3021215241 | G103: 0.3762476525 | H103: 0.3555562892 | I103: 0.2729127156 | J103: 0.2797650232 | K103: 0.2616781244 | L103: 0.1729162221 | M103: 0.3441591357 | N103: 0.2010441755 | O103: 0.2821932103 | P103: 0.2589235837 | Q103: 0.3710097155 | R103: 0.3035513329 | S103: 0.2212462841 | T103: 0.2540848322 | U103: 0.2750915643 | V103: 0.4040064283 | W103: 0.2716087284 | X103: 0.3530770522 | Y103: 0.2814159608 | Z103: 0.367553262 | AA103: 0.2442155098 | AB103: 0.2626911201 | AC103: 0.3324506007 | AD103: 0.3535993737 | AE103: 0.2402043499 | AF103: 0.3079057332 | AG103: 0.3019544632 | AH103: 0.2421734943 | AI103: 0.3418045281 | AJ103: 0.3230774978 | AK103: 0.2374479563 | AL103: 0.4556635059 | AM103: 0.362031205 | AN103: 0.2809188202 | AO103: 0.2634592139 | AP103: 0.3286497595 | AQ103: 0.3236896922 | AR103: 0.3402348585 | AS103: 0.2890290198 | AT103: 0.2952569107 | AU103: 0.2866337764 | AV103: 0.3361994301 | AW103: 0.351035707 | AX103: 0.2692964774 | AY103: 0.4637109454 | AZ103: 0.3094026902 | BA103: 0.3164615848 | BB103: 0.3058294485 | BC103: 0.3202473772 | BD103: 0.3789903049 | BE103: 0.3881495557 | BF103: 0.3503066311 | BG103: 0.2274271587 | BH103: 0.194389173 | BI103: 0.2857732579 | BJ103: 0.2869640485 | BK103: 0.3617498301 | BL103: 0.3312916709 | BM103: 0.252605187 | BN103: 0.3923410034 | BO103: 0.4483539563 | BP103: 0.4140003915 | BQ103: 0.3448607743 | BR103: 0.2029417793 | BS103: 0.2022442273 | BT103: 0.2650975226 | BU103: 0.3001824137 | BV103: 0.324444361 | BW103: 0.2873303674 | BX103: 0.461643131 | BY103: 0.3233564797 | BZ103: 0.2388309256 | CA103: 0.2645900307 | CB103: 0.3588404182 | CC103: 0.3096800834 | CD103: 0.2241191434 | CE103: 0.2693113296 | CF103: 0.3350993517 | CG103: 0.3122501019 | CH103: 0.3491941391 | CI103: 0.2969834393 | CJ103: 0.2570599901 | CK103: 0.3230745275 | CL103: 0.2843567567 | CM103: 0.3993022707 | CN103: 0.3320335873 | CO103: 0.2819147041 | CP103: 0.3836924837 | CQ103: 0.4690336154 | CR103: 0.3561871659 | CS103: 0.2740915016 | CT103: 0.3227986496 | CU103: 0.2996966354 | CV103: 0.2849600577 | CW103: 0.2348993358 | CY103: =SUM(B103:CW103) -> 31.16767531
A104: PF09684 | B104: 0.352265185 | C104: 0.2037721262 | D104: 0.2638593129 | E104: 0.2728686187 | F104: 0.2384317968 | G104: 0.2933112791 | H104: 0.3530609637 | I104: 0.259607676 | J104: 0.2548921708 | K104: 0.4162331217 | L104: 0.2318271981 | M104: 0.3258555214 | N104: 0.3104555461 | O104: 0.3278722971 | P104: 0.1994258695 | Q104: 0.3833065639 | R104: 0.3520600966 | S104: 0.3142949622 | T104: 0.299849118 | U104: 0.3410096051 | V104: 0.3232241616 | W104: 0.2653701746 | X104: 0.3482156978 | Y104: 0.2980838866 | Z104: 0.2966705098 | AA104: 0.307691279 | AB104: 0.2886869292 | AC104: 0.2188386556 | AD104: 0.3567838969 | AE104: 0.2334354755 | AF104: 0.4220189856 | AG104: 0.3183924689 | AH104: 0.284733202 | AI104: 0.2764023948 | AJ104: 0.3169200144 | AK104: 0.3167816805 | AL104: 0.4035091679 | AM104: 0.4094399629 | AN104: 0.3424944998 | AO104: 0.4415479053 | AP104: 0.3166950714 | AQ104: 0.2515018349 | AR104: 0.3704823357 | AS104: 0.2120834254 | AT104: 0.3845047866 | AU104: 0.2904545575 | AV104: 0.1893567398 | AW104: 0.3663443172 | AX104: 0.3432625256 | AY104: 0.3066977282 | AZ104: 0.2772141825 | BA104: 0.3245418691 | BB104: 0.4644326357 | BC104: 0.3859989974 | BD104: 0.3082755539 | BE104: 0.1623204225 | BF104: 0.3674730901 | BG104: 0.2798963977 | BH104: 0.2849057899 | BI104: 0.319800534 | BJ104: 0.3917320155 | BK104: 0.2797465566 | BL104: 0.2820538242 | BM104: 0.2877176442 | BN104: 0.3004273206 | BO104: 0.312116486 | BP104: 0.2779904427 | BQ104: 0.261297862 | BR104: 0.2492186539 | BS104: 0.3915735674 | BT104: 0.2893546701 | BU104: 0.3120088897 | BV104: 0.2580655705 | BW104: 0.3208381605 | BX104: 0.2613163944 | BY104: 0.3576965944 | BZ104: 0.2655206769 | CA104: 0.2777332821 | CB104: 0.2697719998 | CC104: 0.287987762 | CD104: 0.345693169 | CE104: 0.3228938022 | CF104: 0.3203976666 | CG104: 0.2692532361 | CH104: 0.3753705597 | CI104: 0.4494512799 | CJ104: 0.2161195508 | CK104: 0.314434628 | CL104: 0.3959113642 | CM104: 0.2643050238 | CN104: 0.275069623 | CO104: 0.43284352 | CP104: 0.3828072344 | CQ104: 0.4646191979 | CR104: 0.2280537257 | CS104: 0.371116252 | CT104: 0.2907112716 | CU104: 0.281033613 | CV104: 0.2450304152 | CW104: 0.3169619434 | CY104: =SUM(B104:CW104) -> 31.16598822
A105: PF12835 | B105: 0.2124552093 | C105: 0.3533822787 | D105: 0.2692867036 | E105: 0.2672621128 | F105: 0.3202348592 | G105: 0.2693367756 | H105: 0.2917209931 | I105: 0.2643495688 | J105: 0.3371395638 | K105: 0.2254049534 | L105: 0.3097367395 | M105: 0.3657431407 | N105: 0.2845745113 | O105: 0.3303689229 | P105: 0.2420679122 | Q105: 0.393702753 | R105: 0.3401478545 | S105: 0.3615196955 | T105: 0.3190423433 | U105: 0.2484491821 | V105: 0.5676225339 | W105: 0.1752553502 | X105: 0.2457695216 | Y105: 0.2275015802 | Z105: 0.3072677179 | AA105: 0.2889505294 | AB105: 0.4269061841 | AC105: 0.2806264214 | AD105: 0.2216383762 | AE105: 0.3209297588 | AF105: 0.3980261929 | AG105: 0.2762797832 | AH105: 0.2679453406 | AI105: 0.2224541053 | AJ105: 0.3606939757 | AK105: 0.2987007592 | AL105: 0.3023323125 | AM105: 0.3497530814 | AN105: 0.2649347897 | AO105: 0.3073518489 | AP105: 0.2662144488 | AQ105: 0.4104012918 | AR105: 0.2925167325 | AS105: 0.304675618 | AT105: 0.270004063 | AU105: 0.3767217976 | AV105: 0.2858631596 | AW105: 0.392529804 | AX105: 0.2412004301 | AY105: 0.3305989744 | AZ105: 0.4313033345 | BA105: 0.3344164742 | BB105: 0.2566530349 | BC105: 0.2455594488 | BD105: 0.2549018737 | BE105: 0.246037643 | BF105: 0.4062620371 | BG105: 0.2850519976 | BH105: 0.5423458211 | BI105: 0.3302383656 | BJ105: 0.2996160443 | BK105: 0.2786211137 | BL105: 0.267261526 | BM105: 0.3523152705 | BN105: 0.2894625505 | BO105: 0.3469964937 | BP105: 0.2593262898 | BQ105: 0.3141801275 | BR105: 0.3752279013 | BS105: 0.226441635 | BT105: 0.3025924294 | BU105: 0.2572036191 | BV105: 0.2295822239 | BW105: 0.259046898 | BX105: 0.3378021917 | BY105: 0.2146452857 | BZ105: 0.3106465924 | CA105: 0.3279526543 | CB105: 0.3411728325 | CC105: 0.2838001722 | CD105: 0.2972154002 | CE105: 0.2034607923 | CF105: 0.2740296546 | CG105: 0.3345841208 | CH105: 0.2660024875 | CI105: 0.4700189531 | CJ105: 0.3771358937 | CK105: 0.3337582758 | CL105: 0.4281259037 | CM105: 0.2632339305 | CN105: 0.3658625212 | CO105: 0.330905386 | CP105: 0.2693294551 | CQ105: 0.3794269034 | CR105: 0.2200857774 | CS105: 0.2997954624 | CT105: 0.3448577761 | CU105: 0.3498431178 | CV105: 0.3261618025 | CW105: 0.3590462293 | CY105: =SUM(B105:CW105) -> 30.98713628
A106: PF07940 | B106: 0.232833576 | C106: 0.3257423082 | D106: 0.2682055997 | E106: 0.3316191655 | F106: 0.2541954968 | G106: 0.206342775 | H106: 0.2826207034 | I106: 0.3776405355 | J106: 0.3476636404 | K106: 0.2753901683 | L106: 0.3124711734 | M106: 0.361352298 | N106: 0.3568766184 | O106: 0.3791465723 | P106: 0.4578249935 | Q106: 0.3157432238 | R106: 0.3272109428 | S106: 0.2358901843 | T106: 0.2388533249 | U106: 0.2735168836 | V106: 0.3879463327 | W106: 0.3012938835 | X106: 0.338059248 | Y106: 0.2452528744 | Z106: 0.3154511928 | AA106: 0.2303953796 | AB106: 0.3975203311 | AC106: 0.2574801413 | AD106: 0.1706482384 | AE106: 0.3341563325 | AF106: 0.2904272885 | AG106: 0.2066241869 | AH106: 0.2223773144 | AI106: 0.1607837329 | AJ106: 0.3711185254 | AK106: 0.2895269065 | AL106: 0.2602349196 | AM106: 0.2741031853 | AN106: 0.2983243808 | AO106: 0.4145170636 | AP106: 0.373204725 | AQ106: 0.2357224694 | AR106: 0.3833044948 | AS106: 0.2193041883 | AT106: 0.2649834867 | AU106: 0.1605619932 | AV106: 0.2698170862 | AW106: 0.286547358 | AX106: 0.2846478079 | AY106: 0.5751964922 | AZ106: 0.4931758406 | BA106: 0.2278415849 | BB106: 0.3533827632 | BC106: 0.3130972563 | BD106: 0.2732984057 | BE106: 0.2188477677 | BF106: 0.4835104799 | BG106: 0.1800603873 | BH106: 0.5751307712 | BI106: 0.3677116051 | BJ106: 0.3795194552 | BK106: 0.3721850802 | BL106: 0.3356379992 | BM106: 0.2221354963 | BN106: 0.303288685 | BO106: 0.2377784254 | BP106: 0.2548547255 | BQ106: 0.2046613923 | BR106: 0.4658980285 | BS106: 0.2596502071 | BT106: 0.3248018268 | BU106: 0.4569702999 | BV106: 0.2212399436 | BW106: 0.2524339892 | BX106: 0.1832034916 | BY106: 0.2895533328 | BZ106: 0.2379876291 | CA106: 0.3994556971 | CB106: 0.3717744931 | CC106: 0.183339282 | CD106: 0.4022769047 | CE106: 0.2375922008 | CF106: 0.4221759492 | CG106: 0.1827736025 | CH106: 0.1997866576 | CI106: 0.4452196587 | CJ106: 0.398776002 | CK106: 0.2041436877 | CL106: 0.4299195827 | CM106: 0.2208863747 | CN106: 0.4843110172 | CO106: 0.2357698525 | CP106: 0.2941164993 | CQ106: 0.5922472353 | CR106: 0.2374969392 | CS106: 0.2833453038 | CT106: 0.2559811899 | CU106: 0.3301044022 | CV106: 0.2898768364 | CW106: 0.2902823626 | CY106: =SUM(B106:CW106) -> 30.86018034
A107: PF01695 | B107: 0.2549514205 | C107: 0.2999305162 | D107: 0.3542692076 | E107: 0.2201957692 | F107: 0.2537311619 | G107: 0.3304587602 | H107: 0.3486524519 | I107: 0.2484572848 | J107: 0.2642963747 | K107: 0.4169564301 | L107: 0.3543621869 | M107: 0.3351864669 | N107: 0.4140738931 | O107: 0.2804771188 | P107: 0.2842331702 | Q107: 0.244811289 | R107: 0.2930005516 | S107: 0.2998739602 | T107: 0.3073228628 | U107: 0.303445169 | V107: 0.251121416 | W107: 0.6233222619 | X107: 0.3585198943 | Y107: 0.3127565112 | Z107: 0.3354682853 | AA107: 0.3734316099 | AB107: 0.271632202 | AC107: 0.3231367931 | AD107: 0.2904804858 | AE107: 0.3025131298 | AF107: 0.3027229103 | AG107: 0.2903605864 | AH107: 0.3385201371 | AI107: 0.3232377799 | AJ107: 0.2967448223 | AK107: 0.3246257689 | AL107: 0.3227163151 | AM107: 0.3413547262 | AN107: 0.3898686378 | AO107: 0.2918945325 | AP107: 0.2632536875 | AQ107: 0.3855432811 | AR107: 0.3815046594 | AS107: 0.2939475414 | AT107: 0.3193581509 | AU107: 0.2712725648 | AV107: 0.3414348126 | AW107: 0.2631436205 | AX107: 0.2493470534 | AY107: 0.2966916098 | AZ107: 0.3619478744 | BA107: 0.2599547178 | BB107: 0.3343275344 | BC107: 0.2538229839 | BD107: 0.2749283757 | BE107: 0.2824741807 | BF107: 0.2819887979 | BG107: 0.2878211049 | BH107: 0.3488401032 | BI107: 0.3370800816 | BJ107: 0.3080759279 | BK107: 0.2767205675 | BL107: 0.2039806613 | BM107: 0.276812669 | BN107: 0.3238095626 | BO107: 0.2459500688 | BP107: 0.4518631704 | BQ107: 0.2849673392 | BR107: 0.3814196929 | BS107: 0.2280476141 | BT107: 0.2558865891 | BU107: 0.2765181272 | BV107: 0.256129881 | BW107: 0.3056466441 | BX107: 0.4313066059 | BY107: 0.2217682712 | BZ107: 0.2163094642 | CA107: 0.2187547947 | CB107: 0.2663142839 | CC107: 0.2495197412 | CD107: 0.3070689999 | CE107: 0.2790351668 | CF107: 0.2425865123 | CG107: 0.4407424192 | CH107: 0.2385642764 | CI107: 0.394644293 | CJ107: 0.3499521864 | CK107: 0.2568722532 | CL107: 0.2283825005 | CM107: 0.3062501226 | CN107: 0.2721515792 | CO107: 0.5605924015 | CP107: 0.3204621955 | CQ107: 0.3173184648 | CR107: 0.2709661688 | CS107: 0.31392512 | CT107: 0.2134089847 | CU107: 0.3462040723 | CV107: 0.3179406664 | CW107: 0.2514389353 | CY107: =SUM(B107:CW107) -> 30.77010658
A108: PF07655 | B108: 0.2508161684 | C108: 0.3540746285 | D108: 0.3370497637 | E108: 0.2260034711 | F108: 0.2412765898 | G108: 0.3145860281 | H108: 0.2466464037 | I108: 0.3592164104 | J108: 0.2360549487 | K108: 0.4403404522 | L108: 0.3267507874 | M108: 0.2420561649 | N108: 0.3309398803 | O108: 0.2165131168 | P108: 0.2611045454 | Q108: 0.3993531807 | R108: 0.3058082278 | S108: 0.2830798292 | T108: 0.4584552186 | U108: 0.2512238413 | V108: 0.326848931 | W108: 0.4143176081 | X108: 0.4558619332 | Y108: 0.2340537945 | Z108: 0.2821195315 | AA108: 0.2493885453 | AB108: 0.2667897365 | AC108: 0.2923231551 | AD108: 0.1822016471 | AE108: 0.4668141185 | AF108: 0.26646451 | AG108: 0.2595925255 | AH108: 0.3841462599 | AI108: 0.2350726811 | AJ108: 0.3297098094 | AK108: 0.4151449496 | AL108: 0.2901888682 | AM108: 0.2536092721 | AN108: 0.2584590222 | AO108: 0.2734780895 | AP108: 0.3067767865 | AQ108: 0.3100411086 | AR108: 0.2724340823 | AS108: 0.2872559062 | AT108: 0.2316541409 | AU108: 0.2441839263 | AV108: 0.2696855956 | AW108: 0.2600736827 | AX108: 0.2135183476 | AY108: 0.2066764337 | AZ108: 0.2673085855 | BA108: 0.2355007623 | BB108: 0.2612569188 | BC108: 0.3588732926 | BD108: 0.3373797945 | BE108: 0.2720348462 | BF108: 0.3177435949 | BG108: 0.2663800388 | BH108: 0.361244116 | BI108: 0.2965242354 | BJ108: 0.2653967793 | BK108: 0.281344117 | BL108: 0.1999626937 | BM108: 0.556307189 | BN108: 0.3719997012 | BO108: 0.410050788 | BP108: 0.2874054611 | BQ108: 0.2726460565 | BR108: 0.5846547749 | BS108: 0.3209879328 | BT108: 0.6123547854 | BU108: 0.2121646418 | BV108: 0.4170160913 | BW108: 0.3738913857 | BX108: 0.2381630646 | BY108: 0.3106241949 | BZ108: 0.2642734284 | CA108: 0.3015693898 | CB108: 0.3030949311 | CC108: 0.2499976176 | CD108: 0.2761956245 | CE108: 0.222422078 | CF108: 0.2305151041 | CG108: 0.2598000376 | CH108: 0.331772081 | CI108: 0.2700613045 | CJ108: 0.280431179 | CK108: 0.3183714834 | CL108: 0.3912743069 | CM108: 0.265920253 | CN108: 0.2999837318 | CO108: 0.3203261258 | CP108: 0.2385092116 | CQ108: 0.3145289842 | CR108: 0.2808798235 | CS108: 0.526041404 | CT108: 0.3128036886 | CU108: 0.2921038884 | CV108: 0.2515303216 | CW108: 0.2387276207 | CY108: =SUM(B108:CW108) -> 30.55058412
A109: PF16889 | B109: 0.2414468411 | C109: 0.3599123118 | D109: 0.2753983029 | E109: 0.3286977707 | F109: 0.2754248267 | G109: 0.1738272323 | H109: 0.2678293424 | I109: 0.5408034045 | J109: 0.2232582787 | K109: 0.2673691155 | L109: 0.3175186649 | M109: 0.3860585287 | N109: 0.1949638159 | O109: 0.4046618686 | P109: 0.3524517582 | Q109: 0.2745741789 | R109: 0.3370438413 | S109: 0.2328506866 | T109: 0.2556630497 | U109: 0.3573006055 | V109: 0.296797826 | W109: 0.2940866725 | X109: 0.2973203237 | Y109: 0.2291175179 | Z109: 0.2490058538 | AA109: 0.3777591041 | AB109: 0.1990563695 | AC109: 0.2388754551 | AD109: 0.2769200606 | AE109: 0.2169604654 | AF109: 0.3425908818 | AG109: 0.2138157481 | AH109: 0.2241417164 | AI109: 0.3368399003 | AJ109: 0.236386118 | AK109: 0.350088178 | AL109: 0.3533962608 | AM109: 0.1888528867 | AN109: 0.4008801286 | AO109: 0.2702772281 | AP109: 0.244530533 | AQ109: 0.3778827739 | AR109: 0.4081029657 | AS109: 0.4159121373 | AT109: 0.2997179848 | AU109: 0.223298734 | AV109: 0.2207185702 | AW109: 0.2025285768 | AX109: 0.2064259683 | AY109: 0.4308983345 | AZ109: 0.4237999896 | BA109: 0.316644918 | BB109: 0.2818733163 | BC109: 0.2773362816 | BD109: 0.2551215964 | BE109: 0.3055292465 | BF109: 0.3173996361 | BG109: 0.2537039156 | BH109: 0.3296305164 | BI109: 0.4003966442 | BJ109: 0.2536685587 | BK109: 0.4172495275 | BL109: 0.2482137557 | BM109: 0.2575398557 | BN109: 0.3785171458 | BO109: 0.3564127665 | BP109: 0.2420827099 | BQ109: 0.3358645811 | BR109: 0.3996206107 | BS109: 0.3010343747 | BT109: 0.3180053247 | BU109: 0.3102389881 | BV109: 0.217490423 | BW109: 0.2776382817 | BX109: 0.3542175168 | BY109: 0.3715953935 | BZ109: 0.39615707 | CA109: 0.2507383413 | CB109: 0.2261206001 | CC109: 0.2224495641 | CD109: 0.3839570113 | CE109: 0.4312178786 | CF109: 0.2977271291 | CG109: 0.2853486338 | CH109: 0.3584319011 | CI109: 0.3204356997 | CJ109: 0.4306706487 | CK109: 0.3387613898 | CL109: 0.5133358366 | CM109: 0.1867507622 | CN109: 0.3326648646 | CO109: 0.260973128 | CP109: 0.3221746356 | CQ109: 0.2793256162 | CR109: 0.3710915768 | CS109: 0.3943074522 | CT109: 0.3117284659 | CU109: 0.1777628913 | CV109: 0.2971957105 | CW109: 0.2695853403 | CY109: =SUM(B109:CW109) -> 30.54997772
A110: PF09848 | B110: 0.2294076301 | C110: 0.2318366714 | D110: 0.312964856 | E110: 0.4539018044 | F110: 0.5061225897 | G110: 0.2087573374 | H110: 0.2593987464 | I110: 0.2186080186 | J110: 0.3337309757 | K110: 0.254875923 | L110: 0.3191802963 | M110: 0.2397525655 | N110: 0.2819056777 | O110: 0.3040494304 | P110: 0.300797937 | Q110: 0.3050074621 | R110: 0.4615373997 | S110: 0.2962074795 | T110: 0.2648400276 | U110: 0.2025391103 | V110: 0.1555033187 | W110: 0.2842151959 | X110: 0.7114072505 | Y110: 0.2836054422 | Z110: 0.2060117464 | AA110: 0.2935425453 | AB110: 0.2990706852 | AC110: 0.3040624369 | AD110: 0.3043879057 | AE110: 0.2148809177 | AF110: 0.3686191332 | AG110: 0.172758557 | AH110: 0.3148381334 | AI110: 0.1929166953 | AJ110: 0.2096563947 | AK110: 0.1720260166 | AL110: 0.2527091443 | AM110: 0.64958304 | AN110: 0.3921197951 | AO110: 0.1561615663 | AP110: 0.4445352559 | AQ110: 0.359474779 | AR110: 0.2492172702 | AS110: 0.3846568576 | AT110: 0.2504548713 | AU110: 0.3922274681 | AV110: 0.3401270394 | AW110: 0.2845123654 | AX110: 0.2626332212 | AY110: 0.3162284028 | AZ110: 0.2567278545 | BA110: 0.2382291514 | BB110: 0.3473646508 | BC110: 0.4258005824 | BD110: 0.3798413007 | BE110: 0.1966207948 | BF110: 0.3383963912 | BG110: 0.2705705069 | BH110: 0.4782890687 | BI110: 0.2624134142 | BJ110: 0.1985675696 | BK110: 0.3635395626 | BL110: 0.2308091086 | BM110: 0.2590439511 | BN110: 0.2949538969 | BO110: 0.3025071979 | BP110: 0.2120534036 | BQ110: 0.192827348 | BR110: 0.4600607085 | BS110: 0.2424733925 | BT110: 0.2495031709 | BU110: 0.4593780487 | BV110: 0.2473903135 | BW110: 0.2084430016 | BX110: 0.424224924 | BY110: 0.2896805146 | BZ110: 0.3140150616 | CA110: 0.3423572884 | CB110: 0.2842709223 | CC110: 0.2143852207 | CD110: 0.3382544547 | CE110: 0.2556843974 | CF110: 0.2997975557 | CG110: 0.237828608 | CH110: 0.4953142072 | CI110: 0.2326659078 | CJ110: 0.2708876977 | CK110: 0.2202481076 | CL110: 0.3321932651 | CM110: 0.3127116056 | CN110: 0.3919939582 | CO110: 0.3843776752 | CP110: 0.311674393 | CQ110: 0.2622053604 | CR110: 0.3454360229 | CS110: 0.2263084372 | CT110: 0.3800899166 | CU110: 0.1929283462 | CV110: 0.277048955 | CW110: 0.4806420569 | CY110: =SUM(B110:CW110) -> 30.44059464
A111: PF07996 | B111: 0.3724178612 | C111: 0.5451526211 | D111: 0.330788823 | E111: 0.3293615892 | F111: 0.3279496005 | G111: 0.2918129959 | H111: 0.2916906932 | I111: 0.2138045189 | J111: 0.3257143816 | K111: 0.2633156518 | L111: 0.3609806613 | M111: 0.279327802 | N111: 0.2980045071 | O111: 0.4435005631 | P111: 0.266226562 | Q111: 0.2766257232 | R111: 0.3402248026 | S111: 0.253680248 | T111: 0.4166250244 | U111: 0.1895996325 | V111: 0.3234903541 | W111: 0.2591883167 | X111: 0.3039099914 | Y111: 0.390221281 | Z111: 0.1908358322 | AA111: 0.2069346412 | AB111: 0.3244799016 | AC111: 0.4205615662 | AD111: 0.2959313286 | AE111: 0.3987111232 | AF111: 0.3359740243 | AG111: 0.3481314467 | AH111: 0.375290617 | AI111: 0.2731442817 | AJ111: 0.3615826508 | AK111: 0.2592276107 | AL111: 0.2880924046 | AM111: 0.3565072856 | AN111: 0.1311276399 | AO111: 0.3370638462 | AP111: 0.3064033846 | AQ111: 0.4231711938 | AR111: 0.2739230747 | AS111: 0.3556503512 | AT111: 0.2347576015 | AU111: 0.192051816 | AV111: 0.359443507 | AW111: 0.3176590832 | AX111: 0.3515756966 | AY111: 0.2618380722 | AZ111: 0.2954299599 | BA111: 0.2260894491 | BB111: 0.3100100135 | BC111: 0.3957674528 | BD111: 0.261608045 | BE111: 0.3366168021 | BF111: 0.2825030933 | BG111: 0.2950868616 | BH111: 0.3217856856 | BI111: 0.3209840611 | BJ111: 0.2993650795 | BK111: 0.2943880499 | BL111: 0.4659136141 | BM111: 0.2795568641 | BN111: 0.2811513609 | BO111: 0.3975074053 | BP111: 0.4074880455 | BQ111: 0.3289388225 | BR111: 0.3226976392 | BS111: 0.2760518345 | BT111: 0.2456046338 | BU111: 0.1612736327 | BV111: 0.4084881391 | BW111: 0.2111778168 | BX111: 0.2036981714 | BY111: 0.3036540244 | BZ111: 0.2793919936 | CA111: 0.2368529033 | CB111: 0.2139750119 | CC111: 0.2058351525 | CD111: 0.3251002351 | CE111: 0.2629515367 | CF111: 0.2556274555 | CG111: 0.2797980895 | CH111: 0.2144752481 | CI111: 0.1938147972 | CJ111: 0.3376950749 | CK111: 0.2920585811 | CL111: 0.3077688341 | CM111: 0.3886006479 | CN111: 0.2681872159 | CO111: 0.363294693 | CP111: 0.2306629707 | CQ111: 0.4098830001 | CR111: 0.1905564087 | CS111: 0.3943986969 | CT111: 0.2448637669 | CU111: 0.2211042941 | CV111: 0.265089687 | CW111: 0.4326282597 | CY111: =SUM(B111:CW111) -> 30.4211353
A112: PF12161 | B112: 0.3637483505 | C112: 0.3771282005 | D112: 0.3353618103 | E112: 0.2108006835 | F112: 0.249470455 | G112: 0.3360964481 | H112: 0.3381587717 | I112: 0.4639333918 | J112: 0.3399977694 | K112: 0.2333974329 | L112: 0.4057941998 | M112: 0.2650360457 | N112: 0.3101863745 | O112: 0.3362605128 | P112: 0.3350218048 | Q112: 0.3062698353 | R112: 0.3305988031 | S112: 0.2611343925 | T112: 0.2396575781 | U112: 0.3777134059 | V112: 0.289768314 | W112: 0.2709790999 | X112: 0.3066927106 | Y112: 0.2285611711 | Z112: 0.3482861949 | AA112: 0.2194145403 | AB112: 0.2804586373 | AC112: 0.2397501758 | AD112: 0.2958457978 | AE112: 0.2840951463 | AF112: 0.340100089 | AG112: 0.1745926473 | AH112: 0.2380014391 | AI112: 0.2955464192 | AJ112: 0.3243173778 | AK112: 0.3742478657 | AL112: 0.3172048045 | AM112: 0.2262478188 | AN112: 0.2978105701 | AO112: 0.2897301599 | AP112: 0.3195478374 | AQ112: 0.2701346831 | AR112: 0.2768428649 | AS112: 0.3383591235 | AT112: 0.3288403525 | AU112: 0.3442611837 | AV112: 0.2433977056 | AW112: 0.3318028966 | AX112: 0.3234771577 | AY112: 0.2678887877 | AZ112: 0.3457808434 | BA112: 0.3589037575 | BB112: 0.2999653258 | BC112: 0.2734145884 | BD112: 0.435679232 | BE112: 0.3395539819 | BF112: 0.2838819213 | BG112: 0.2984858648 | BH112: 0.3035197527 | BI112: 0.4119750132 | BJ112: 0.2853531098 | BK112: 0.2170308879 | BL112: 0.3063437766 | BM112: 0.2689754414 | BN112: 0.4236228281 | BO112: 0.3241573523 | BP112: 0.2367712302 | BQ112: 0.393752767 | BR112: 0.2742276011 | BS112: 0.254518678 | BT112: 0.3335686493 | BU112: 0.2850599573 | BV112: 0.2993502491 | BW112: 0.2050550087 | BX112: 0.3152367393 | BY112: 0.2871293419 | BZ112: 0.3319489719 | CA112: 0.2822006733 | CB112: 0.219294398 | CC112: 0.2565691976 | CD112: 0.2990890257 | CE112: 0.4109112006 | CF112: 0.1959499977 | CG112: 0.3461920003 | CH112: 0.3236914385 | CI112: 0.327521795 | CJ112: 0.252195988 | CK112: 0.2675561553 | CL112: 0.2886074083 | CM112: 0.3120701725 | CN112: 0.2548187264 | CO112: 0.272053459 | CP112: 0.393236651 | CQ112: 0.4095054298 | CR112: 0.2451205326 | CS112: 0.2600609378 | CT112: 0.2741079511 | CU112: 0.3609145914 | CV112: 0.2788707137 | CW112: 0.376121687 | CY112: =SUM(B112:CW112) -> 30.40189284
A113: PF13392 | B113: 0.2141068806 | C113: 0.3696113846 | D113: 0.3479935684 | E113: 0.370405972 | F113: 0.2582090085 | G113: 0.2419832112 | H113: 0.171555185 | I113: 0.4621993682 | J113: 0.1365758352 | K113: 0.2469456822 | L113: 0.3453304472 | M113: 0.2750690892 | N113: 0.2628211932 | O113: 0.2711156318 | P113: 0.2686916804 | Q113: 0.412400131 | R113: 0.2832640686 | S113: 0.2813012535 | T113: 0.3657963114 | U113: 0.2071827259 | V113: 0.4567747813 | W113: 0.2474505665 | X113: 0.2915759482 | Y113: 0.3497622565 | Z113: 0.3279802997 | AA113: 0.3248637145 | AB113: 0.2305618933 | AC113: 0.4642186608 | AD113: 0.2190919172 | AE113: 0.4190020317 | AF113: 0.26282393 | AG113: 0.2304521281 | AH113: 0.4812477896 | AI113: 0.3075549823 | AJ113: 0.3358079791 | AK113: 0.2102757661 | AL113: 0.3682726744 | AM113: 0.2682322533 | AN113: 0.2192431457 | AO113: 0.3965751731 | AP113: 0.1976278564 | AQ113: 0.4158524098 | AR113: 0.257094425 | AS113: 0.2858872062 | AT113: 0.2591743936 | AU113: 0.3419776991 | AV113: 0.2337222083 | AW113: 0.2261538204 | AX113: 0.2530242975 | AY113: 0.3416450432 | AZ113: 0.1918357187 | BA113: 0.2591464576 | BB113: 0.3142982694 | BC113: 0.4220097107 | BD113: 0.4082739139 | BE113: 0.4677702533 | BF113: 0.23284574 | BG113: 0.3215110459 | BH113: 0.4736129423 | BI113: 0.2626147261 | BJ113: 0.2784078743 | BK113: 0.2866147022 | BL113: 0.358097484 | BM113: 0.4254988294 | BN113: 0.2986966445 | BO113: 0.4738023055 | BP113: 0.3031278995 | BQ113: 0.2686147059 | BR113: 0.472230557 | BS113: 0.3613860096 | BT113: 0.2661801473 | BU113: 0.3231143726 | BV113: 0.3015884813 | BW113: 0.2292437645 | BX113: 0.243221331 | BY113: 0.2732558718 | BZ113: 0.2300844477 | CA113: 0.2174561756 | CB113: 0.2911789928 | CC113: 0.6180460881 | CD113: 0.3184597575 | CE113: 0.2546286115 | CF113: 0.362186752 | CG113: 0.2361840791 | CH113: 0.2284687177 | CI113: 0.2783360236 | CJ113: 0.2367883857 | CK113: 0.3065422503 | CL113: 0.3352254499 | CM113: 0.2431960416 | CN113: 0.2020247487 | CO113: 0.3854849988 | CP113: 0.2291937317 | CQ113: 0.327470529 | CR113: 0.2462514682 | CS113: 0.2338903414 | CT113: 0.2674628994 | CU113: 0.2238572475 | CV113: 0.2510871503 | CW113: 0.2463034836 | CY113: =SUM(B113:CW113) -> 30.30329401
A114: PF05521 | B114: 0.3801032226 | C114: 0.2381554736 | D114: 0.2538084977 | E114: 0.2225697151 | F114: 0.4658690472 | G114: 0.2489045177 | H114: 0.2872606223 | I114: 0.3767063048 | J114: 0.2903761197 | K114: 0.5752540277 | L114: 0.3230571354 | M114: 0.3338988047 | N114: 0.4222757092 | O114: 0.3663612195 | P114: 0.3207741042 | Q114: 0.2510320887 | R114: 0.2827572757 | S114: 0.2902133857 | T114: 0.4646549911 | U114: 0.2074514979 | V114: 0.1940764399 | W114: 0.281556079 | X114: 0.1713173472 | Y114: 0.3009092392 | Z114: 0.207060192 | AA114: 0.2054830139 | AB114: 0.278670497 | AC114: 0.2101922453 | AD114: 0.1927014444 | AE114: 0.3421912714 | AF114: 0.4835659805 | AG114: 0.2593282859 | AH114: 0.4408410178 | AI114: 0.2801524171 | AJ114: 0.3420521355 | AK114: 0.3362606695 | AL114: 0.2527042991 | AM114: 0.1928396162 | AN114: 0.2729538007 | AO114: 0.3005189269 | AP114: 0.2271996967 | AQ114: 0.264296526 | AR114: 0.281637382 | AS114: 0.324573002 | AT114: 0.2728963763 | AU114: 0.2936003946 | AV114: 0.1627765401 | AW114: 0.3503330592 | AX114: 0.438990289 | AY114: 0.2138271141 | AZ114: 0.2377379218 | BA114: 0.3279250364 | BB114: 0.24393077 | BC114: 0.2488601084 | BD114: 0.2707126929 | BE114: 0.2843900094 | BF114: 0.2191353785 | BG114: 0.3060050483 | BH114: 0.2902742405 | BI114: 0.2356853659 | BJ114: 0.220072124 | BK114: 0.5401012083 | BL114: 0.3753495219 | BM114: 0.2454894984 | BN114: 0.2293938065 | BO114: 0.3276023117 | BP114: 0.2771486442 | BQ114: 0.2353874312 | BR114: 0.289833915 | BS114: 0.4079776177 | BT114: 0.5960558682 | BU114: 0.2398413802 | BV114: 0.2374263739 | BW114: 0.2178169757 | BX114: 0.2288530575 | BY114: 0.3385483462 | BZ114: 0.3463623509 | CA114: 0.2328220601 | CB114: 0.3724491504 | CC114: 0.305161194 | CD114: 0.2236054765 | CE114: 0.3266053601 | CF114: 0.2836799127 | CG114: 0.3536362316 | CH114: 0.3182829035 | CI114: 0.2881802697 | CJ114: 0.2935201254 | CK114: 0.2096892094 | CL114: 0.2467063999 | CM114: 0.4295995199 | CN114: 0.3458003064 | CO114: 0.3409756975 | CP114: 0.3768295519 | CQ114: 0.2813025007 | CR114: 0.2601716755 | CS114: 0.3157617118 | CT114: 0.5470954502 | CU114: 0.2781720676 | CV114: 0.3421444523 | CW114: 0.3229485053 | CY114: =SUM(B114:CW114) -> 30.2900458
A115: PF08388 | B115: 0.2952081646 | C115: 0.2759641086 | D115: 0.2100229059 | E115: 0.4236041371 | F115: 0.2991054507 | G115: 0.2562926357 | H115: 0.2792431594 | I115: 0.2849783371 | J115: 0.2952900138 | K115: 0.2901687978 | L115: 0.2729051173 | M115: 0.3300987818 | N115: 0.3538915108 | O115: 0.3561121081 | P115: 0.2893650544 | Q115: 0.3939961235 | R115: 0.2438464238 | S115: 0.3478461659 | T115: 0.276084742 | U115: 0.2983804397 | V115: 0.2160114233 | W115: 0.3357131001 | X115: 0.2505720111 | Y115: 0.4232635747 | Z115: 0.3782467658 | AA115: 0.3311426372 | AB115: 0.3201117219 | AC115: 0.386521622 | AD115: 0.198647441 | AE115: 0.257737312 | AF115: 0.2757463846 | AG115: 0.2601154573 | AH115: 0.2819316745 | AI115: 0.3211430216 | AJ115: 0.3729682835 | AK115: 0.2860531118 | AL115: 0.3322278807 | AM115: 0.3246516276 | AN115: 0.2702855845 | AO115: 0.2769185876 | AP115: 0.2612733604 | AQ115: 0.3672230952 | AR115: 0.1810996017 | AS115: 0.2796275496 | AT115: 0.2869365531 | AU115: 0.2098658939 | AV115: 0.3228453206 | AW115: 0.3182612819 | AX115: 0.2953191158 | AY115: 0.3309049589 | AZ115: 0.3266554037 | BA115: 0.3245291316 | BB115: 0.2474481762 | BC115: 0.2944234754 | BD115: 0.3860520011 | BE115: 0.3434202253 | BF115: 0.3259829541 | BG115: 0.3910063911 | BH115: 0.3620689999 | BI115: 0.2947715324 | BJ115: 0.363992662 | BK115: 0.253448223 | BL115: 0.3287294616 | BM115: 0.2348287696 | BN115: 0.2383250843 | BO115: 0.3825712 | BP115: 0.2948202183 | BQ115: 0.2933191884 | BR115: 0.3131392898 | BS115: 0.2160296105 | BT115: 0.2928422216 | BU115: 0.3868752675 | BV115: 0.2252429744 | BW115: 0.3939834497 | BX115: 0.2771985863 | BY115: 0.234810174 | BZ115: 0.4597961429 | CA115: 0.231526052 | CB115: 0.2578338396 | CC115: 0.2942356817 | CD115: 0.2597954434 | CE115: 0.2611792767 | CF115: 0.2655632676 | CG115: 0.2773372862 | CH115: 0.3284661427 | CI115: 0.3566765572 | CJ115: 0.286578936 | CK115: 0.2752027566 | CL115: 0.2269424763 | CM115: 0.3443276257 | CN115: 0.2028913615 | CO115: 0.2946893373 | CP115: 0.2426935162 | CQ115: 0.359951385 | CR115: 0.25229049 | CS115: 0.3709115813 | CT115: 0.3506861737 | CU115: 0.2427209894 | CV115: 0.4420700166 | CW115: 0.303511276 | CY115: =SUM(B115:CW115) -> 30.24016242
A116: PF01232 | B116: 0.2852348169 | C116: 0.4352929604 | D116: 0.3605654828 | E116: 0.3619234347 | F116: 0.2905042459 | G116: 0.3527023928 | H116: 0.3241853219 | I116: 0.227421476 | J116: 0.337511738 | K116: 0.3360527231 | L116: 0.3349840606 | M116: 0.2844054772 | N116: 0.2587585361 | O116: 0.1642811575 | P116: 0.3359973226 | Q116: 0.3216969951 | R116: 0.254666656 | S116: 0.1786084779 | T116: 0.4068498086 | U116: 0.2363752075 | V116: 0.2666783376 | W116: 0.3684613506 | X116: 0.5813721381 | Y116: 0.2455780772 | Z116: 0.5757010034 | AA116: 0.386055811 | AB116: 0.4150966934 | AC116: 0.2911751385 | AD116: 0.2801121972 | AE116: 0.2685623509 | AF116: 0.3242760138 | AG116: 0.3206523682 | AH116: 0.2349400903 | AI116: 0.2983904349 | AJ116: 0.294156253 | AK116: 0.1867529834 | AL116: 0.3292338506 | AM116: 0.4077872804 | AN116: 0.2648335338 | AO116: 0.2742469542 | AP116: 0.3346717219 | AQ116: 0.2094463593 | AR116: 0.2498070219 | AS116: 0.4306011887 | AT116: 0.2720047668 | AU116: 0.2348921773 | AV116: 0.2014840734 | AW116: 0.1999112285 | AX116: 0.2874136497 | AY116: 0.2873936382 | AZ116: 0.1633625373 | BA116: 0.3195514965 | BB116: 0.2552042721 | BC116: 0.2427377533 | BD116: 0.3101153874 | BE116: 0.1604873703 | BF116: 0.3071034693 | BG116: 0.2635547377 | BH116: 0.4122983226 | BI116: 0.353062734 | BJ116: 0.3577664711 | BK116: 0.2648198146 | BL116: 0.2679387301 | BM116: 0.1858535423 | BN116: 0.3200017843 | BO116: 0.4825468028 | BP116: 0.3316468952 | BQ116: 0.2349765034 | BR116: 0.2937989129 | BS116: 0.2785219041 | BT116: 0.372202765 | BU116: 0.3592306879 | BV116: 0.3313221082 | BW116: 0.1248305845 | BX116: 0.3348831129 | BY116: 0.3198308012 | BZ116: 0.2935441948 | CA116: 0.2643647148 | CB116: 0.5167949071 | CC116: 0.2367190419 | CD116: 0.2588806208 | CE116: 0.2712570204 | CF116: 0.3460412956 | CG116: 0.2180764567 | CH116: 0.3848986158 | CI116: 0.302292078 | CJ116: 0.3256418408 | CK116: 0.3035519919 | CL116: 0.3009672039 | CM116: 0.2398283109 | CN116: 0.3501419343 | CO116: 0.2948609531 | CP116: 0.3436767991 | CQ116: 0.1257251531 | CR116: 0.2164331247 | CS116: 0.2140556716 | CT116: 0.3882583262 | CU116: 0.4022361842 | CV116: 0.2350300158 | CW116: 0.2852859062 | CY116: =SUM(B116:CW116) -> 30.17591884
A117: PF05136 | B117: 0.3017922792 | C117: 0.3980333267 | D117: 0.3567788341 | E117: 0.2390440137 | F117: 0.3363595297 | G117: 0.2606526389 | H117: 0.2773314146 | I117: 0.3421177877 | J117: 0.2800085934 | K117: 0.30193184 | L117: 0.2855977471 | M117: 0.2404841668 | N117: 0.3000787334 | O117: 0.2811523513 | P117: 0.2505179406 | Q117: 0.2714552295 | R117: 0.2668900652 | S117: 0.2827354114 | T117: 0.3114270749 | U117: 0.3082478669 | V117: 0.2824268071 | W117: 0.2146013071 | X117: 0.2827269427 | Y117: 0.4173836185 | Z117: 0.2741964669 | AA117: 0.2450025107 | AB117: 0.3695310222 | AC117: 0.2742245695 | AD117: 0.2496957478 | AE117: 0.2547285105 | AF117: 0.3129372446 | AG117: 0.3445325392 | AH117: 0.2480378915 | AI117: 0.3030397369 | AJ117: 0.3457923316 | AK117: 0.3160749879 | AL117: 0.332268558 | AM117: 0.2569967069 | AN117: 0.2564084092 | AO117: 0.3540532901 | AP117: 0.3521575928 | AQ117: 0.36074163 | AR117: 0.2894676121 | AS117: 0.2931260427 | AT117: 0.419393104 | AU117: 0.3338998023 | AV117: 0.3309815161 | AW117: 0.3893576382 | AX117: 0.2884697158 | AY117: 0.2943104825 | AZ117: 0.2578236187 | BA117: 0.3035317178 | BB117: 0.270715385 | BC117: 0.2635262662 | BD117: 0.3341268404 | BE117: 0.257819304 | BF117: 0.2954224516 | BG117: 0.2939490173 | BH117: 0.2932505461 | BI117: 0.3423423092 | BJ117: 0.2260891279 | BK117: 0.2286217664 | BL117: 0.2886356543 | BM117: 0.3039390086 | BN117: 0.2822774896 | BO117: 0.2264479005 | BP117: 0.3366895552 | BQ117: 0.325034504 | BR117: 0.3095311072 | BS117: 0.2663758389 | BT117: 0.3391649202 | BU117: 0.3394723417 | BV117: 0.3017652726 | BW117: 0.3244388264 | BX117: 0.2478795445 | BY117: 0.2753759813 | BZ117: 0.3194065132 | CA117: 0.3237271198 | CB117: 0.3190269803 | CC117: 0.3684092506 | CD117: 0.261468234 | CE117: 0.3096155729 | CF117: 0.274871458 | CG117: 0.3154738621 | CH117: 0.282789502 | CI117: 0.3335082529 | CJ117: 0.3086043651 | CK117: 0.3100110289 | CL117: 0.2993371989 | CM117: 0.3249977338 | CN117: 0.2573079654 | CO117: 0.2821435906 | CP117: 0.3523571681 | CQ117: 0.2694794172 | CR117: 0.3047222313 | CS117: 0.2501463704 | CT117: 0.3358849625 | CU117: 0.3833315369 | CV117: 0.3453510403 | CW117: 0.3229137472 | CY117: =SUM(B117:CW117) -> 30.16833258
A118: PF01420 | B118: 0.3416244149 | C118: 0.3129101402 | D118: 0.3625607483 | E118: 0.327956271 | F118: 0.290816531 | G118: 0.312644527 | H118: 0.3130619467 | I118: 0.3216611269 | J118: 0.2567197859 | K118: 0.2393929635 | L118: 0.3866446992 | M118: 0.3033141481 | N118: 0.3830825428 | O118: 0.3311952239 | P118: 0.330759176 | Q118: 0.2891691725 | R118: 0.2576104134 | S118: 0.2567883997 | T118: 0.3180053811 | U118: 0.2784428504 | V118: 0.3044048432 | W118: 0.2247587305 | X118: 0.304849083 | Y118: 0.3243078032 | Z118: 0.2384312746 | AA118: 0.221407068 | AB118: 0.270874831 | AC118: 0.2650868253 | AD118: 0.3435881844 | AE118: 0.2807799617 | AF118: 0.3531473254 | AG118: 0.2721416251 | AH118: 0.3650425667 | AI118: 0.2083650705 | AJ118: 0.3410175989 | AK118: 0.2965077356 | AL118: 0.2593376703 | AM118: 0.308639479 | AN118: 0.2796980706 | AO118: 0.2574373003 | AP118: 0.5674584812 | AQ118: 0.2722017974 | AR118: 0.3207367497 | AS118: 0.3116064916 | AT118: 0.2482532033 | AU118: 0.4160292825 | AV118: 0.2681883282 | AW118: 0.3784942292 | AX118: 0.2869271914 | AY118: 0.2997025015 | AZ118: 0.3227338583 | BA118: 0.4216122545 | BB118: 0.3185418059 | BC118: 0.1996699773 | BD118: 0.3043739127 | BE118: 0.3409315045 | BF118: 0.3092081893 | BG118: 0.3130359299 | BH118: 0.2997735927 | BI118: 0.261682262 | BJ118: 0.3484197796 | BK118: 0.2940683106 | BL118: 0.3186198283 | BM118: 0.2923292221 | BN118: 0.3349341563 | BO118: 0.3132864166 | BP118: 0.2244906614 | BQ118: 0.2962279101 | BR118: 0.2883814752 | BS118: 0.3479232799 | BT118: 0.285252209 | BU118: 0.2335884915 | BV118: 0.2445495754 | BW118: 0.3351657635 | BX118: 0.2442741975 | BY118: 0.2555466958 | BZ118: 0.2412682091 | CA118: 0.3948306155 | CB118: 0.2690761963 | CC118: 0.3163299478 | CD118: 0.2925913704 | CE118: 0.3336658798 | CF118: 0.3432731054 | CG118: 0.3056624786 | CH118: 0.306923731 | CI118: 0.3238188063 | CJ118: 0.2671493983 | CK118: 0.249403245 | CL118: 0.3030574507 | CM118: 0.3203523857 | CN118: 0.3571860465 | CO118: 0.2419308996 | CP118: 0.320416364 | CQ118: 0.3306635646 | CR118: 0.2498794726 | CS118: 0.2760871606 | CT118: 0.2553876618 | CU118: 0.1938520169 | CV118: 0.2903948627 | CW118: 0.3086450619 | CY118: =SUM(B118:CW118) -> 30.14424896
A119: PF05876 | B119: 0.3037952691 | C119: 0.2698205606 | D119: 0.3397023629 | E119: 0.2563397132 | F119: 0.3528567017 | G119: 0.3173950482 | H119: 0.3038618199 | I119: 0.3733125382 | J119: 0.3619052 | K119: 0.2754400274 | L119: 0.3182723364 | M119: 0.248754516 | N119: 0.2972904745 | O119: 0.2901958045 | P119: 0.2158476715 | Q119: 0.3019120454 | R119: 0.3046172865 | S119: 0.2898767675 | T119: 0.3381251206 | U119: 0.2428128109 | V119: 0.2310309577 | W119: 0.2239713279 | X119: 0.2594423722 | Y119: 0.3150414456 | Z119: 0.2892286105 | AA119: 0.2443299677 | AB119: 0.3183805339 | AC119: 0.2434858377 | AD119: 0.3208312306 | AE119: 0.2824319674 | AF119: 0.3204283486 | AG119: 0.3545511351 | AH119: 0.2755951571 | AI119: 0.2825370727 | AJ119: 0.2795788993 | AK119: 0.3154560408 | AL119: 0.2922718111 | AM119: 0.2287211068 | AN119: 0.2018457716 | AO119: 0.4331639753 | AP119: 0.278908712 | AQ119: 0.2883223356 | AR119: 0.3131099282 | AS119: 0.3055234811 | AT119: 0.3965324943 | AU119: 0.2710295548 | AV119: 0.3589394991 | AW119: 0.4014940226 | AX119: 0.3095569541 | AY119: 0.3845827782 | AZ119: 0.2790637668 | BA119: 0.3373590448 | BB119: 0.2919827647 | BC119: 0.2717841447 | BD119: 0.2590931366 | BE119: 0.291066166 | BF119: 0.3320271343 | BG119: 0.2671194677 | BH119: 0.3072864699 | BI119: 0.2572358262 | BJ119: 0.2209467739 | BK119: 0.2076811503 | BL119: 0.2717013787 | BM119: 0.3077304949 | BN119: 0.257040292 | BO119: 0.3233009484 | BP119: 0.2949680906 | BQ119: 0.3195766539 | BR119: 0.3375198991 | BS119: 0.3061292227 | BT119: 0.3864418147 | BU119: 0.1941264079 | BV119: 0.2369199027 | BW119: 0.2446641803 | BX119: 0.2679182397 | BY119: 0.2133951036 | BZ119: 0.3345698327 | CA119: 0.3588817597 | CB119: 0.3453983042 | CC119: 0.3553334007 | CD119: 0.2462199713 | CE119: 0.3259479915 | CF119: 0.3403959664 | CG119: 0.3587367223 | CH119: 0.3402809368 | CI119: 0.2558142863 | CJ119: 0.2639857719 | CK119: 0.3581088115 | CL119: 0.3088375723 | CM119: 0.2687684693 | CN119: 0.2936596628 | CO119: 0.3648551683 | CP119: 0.2967810648 | CQ119: 0.4152992255 | CR119: 0.3565251893 | CS119: 0.3363700134 | CT119: 0.2854925102 | CU119: 0.345512925 | CV119: 0.3298515023 | CW119: 0.2952561099 | CY119: =SUM(B119:CW119) -> 30.08741905
A120: PF04120 | B120: 0.2572353326 | C120: 0.2036347368 | D120: 0.3380933689 | E120: 0.3300899928 | F120: 0.3034454699 | G120: 0.2482633344 | H120: 0.2217588091 | I120: 0.3750873501 | J120: 0.2929124887 | K120: 0.3136147518 | L120: 0.5168749703 | M120: 0.3003040302 | N120: 0.2198421305 | O120: 0.2268307739 | P120: 0.2272718536 | Q120: 0.32740951 | R120: 0.2701101476 | S120: 0.2886724176 | T120: 0.3326646432 | U120: 0.2480040317 | V120: 0.3081574044 | W120: 0.284932367 | X120: 0.3427351904 | Y120: 0.2934845954 | Z120: 0.295367571 | AA120: 0.3120136249 | AB120: 0.3942271038 | AC120: 0.3027496313 | AD120: 0.3548209225 | AE120: 0.2044673825 | AF120: 0.2832762197 | AG120: 0.3123682365 | AH120: 0.1983403794 | AI120: 0.3948533791 | AJ120: 0.2756144624 | AK120: 0.2901405125 | AL120: 0.2695037692 | AM120: 0.2507455907 | AN120: 0.2917255368 | AO120: 0.3061122623 | AP120: 0.3039753157 | AQ120: 0.2137995759 | AR120: 0.3399459054 | AS120: 0.2783395627 | AT120: 0.3572961603 | AU120: 0.2769566694 | AV120: 0.2630029691 | AW120: 0.3140467777 | AX120: 0.3903294795 | AY120: 0.2375114471 | AZ120: 0.2534374444 | BA120: 0.3177209106 | BB120: 0.379852384 | BC120: 0.3903327753 | BD120: 0.4565697294 | BE120: 0.3408862194 | BF120: 0.2255981094 | BG120: 0.3334731406 | BH120: 0.2758839381 | BI120: 0.2941313637 | BJ120: 0.2058361989 | BK120: 0.2917960331 | BL120: 0.2651953745 | BM120: 0.2799228451 | BN120: 0.3564974162 | BO120: 0.3612131271 | BP120: 0.2481384892 | BQ120: 0.359039455 | BR120: 0.3361420708 | BS120: 0.2996482706 | BT120: 0.3108050224 | BU120: 0.2896282754 | BV120: 0.2818041138 | BW120: 0.2989700806 | BX120: 0.1574157883 | BY120: 0.3541758186 | BZ120: 0.3718777178 | CA120: 0.2771975744 | CB120: 0.1379900994 | CC120: 0.2234877016 | CD120: 0.3207850266 | CE120: 0.2730366329 | CF120: 0.4522688047 | CG120: 0.3810711511 | CH120: 0.3063260851 | CI120: 0.3269543473 | CJ120: 0.3061655139 | CK120: 0.2401569706 | CL120: 0.235491951 | CM120: 0.2368099522 | CN120: 0.2415511501 | CO120: 0.4217590925 | CP120: 0.2952905139 | CQ120: 0.2773560446 | CR120: 0.3117580053 | CS120: 0.3282705388 | CT120: 0.3146338841 | CU120: 0.3047917269 | CV120: 0.2958363737 | CW120: 0.3312038676 | CY120: =SUM(B120:CW120) -> 29.95914527
A121: PF03374 | B121: 0.2546599796 | C121: 0.3158390313 | D121: 0.401054971 | E121: 0.3144468738 | F121: 0.2554363317 | G121: 0.341312924 | H121: 0.2872954926 | I121: 0.3057308287 | J121: 0.2347313929 | K121: 0.3170737104 | L121: 0.3190946037 | M121: 0.3512711574 | N121: 0.3574380849 | O121: 0.4067660814 | P121: 0.335445138 | Q121: 0.2836324673 | R121: 0.2774265553 | S121: 0.2453621782 | T121: 0.349438515 | U121: 0.3339999718 | V121: 0.2539253225 | W121: 0.2744577678 | X121: 0.4107718927 | Y121: 0.2044185554 | Z121: 0.3195210729 | AA121: 0.3350282771 | AB121: 0.3037624195 | AC121: 0.2387277504 | AD121: 0.2152809425 | AE121: 0.4417961645 | AF121: 0.2219402009 | AG121: 0.2667787928 | AH121: 0.3865963356 | AI121: 0.2799824744 | AJ121: 0.282886203 | AK121: 0.3735824189 | AL121: 0.2669155937 | AM121: 0.3476031924 | AN121: 0.3463366976 | AO121: 0.3038151921 | AP121: 0.3328570138 | AQ121: 0.3009347604 | AR121: 0.316895434 | AS121: 0.3266480673 | AT121: 0.2449699312 | AU121: 0.3294926546 | AV121: 0.3311838479 | AW121: 0.2601648926 | AX121: 0.2959600339 | AY121: 0.2633517214 | AZ121: 0.2766654831 | BA121: 0.252326499 | BB121: 0.2559584369 | BC121: 0.3081951388 | BD121: 0.237901372 | BE121: 0.2317423343 | BF121: 0.3312933769 | BG121: 0.2503793024 | BH121: 0.2939189533 | BI121: 0.2832142942 | BJ121: 0.2961781091 | BK121: 0.2206165184 | BL121: 0.2308792987 | BM121: 0.3201536016 | BN121: 0.4413391495 | BO121: 0.3667631168 | BP121: 0.1956062997 | BQ121: 0.2228272534 | BR121: 0.3207103775 | BS121: 0.2761550868 | BT121: 0.3325979458 | BU121: 0.3185688706 | BV121: 0.2468662609 | BW121: 0.3554314795 | BX121: 0.2240929587 | BY121: 0.2447086906 | BZ121: 0.2422587747 | CA121: 0.3340624763 | CB121: 0.3470616729 | CC121: 0.2704593532 | CD121: 0.3771769055 | CE121: 0.2337241053 | CF121: 0.3244032563 | CG121: 0.2552744161 | CH121: 0.2483459412 | CI121: 0.2591234484 | CJ121: 0.2606455153 | CK121: 0.3375574114 | CL121: 0.2857971002 | CM121: 0.2687703714 | CN121: 0.2723030301 | CO121: 0.455746276 | CP121: 0.2475045065 | CQ121: 0.3568196139 | CR121: 0.2729959978 | CS121: 0.2504449078 | CT121: 0.3236059648 | CU121: 0.3077080976 | CV121: 0.3022642226 | CW121: 0.4231149124 | CY121: =SUM(B121:CW121) -> 29.9563004
A122: PF03354 | B122: 0.3315680807 | C122: 0.2786843977 | D122: 0.228984158 | E122: 0.3153814721 | F122: 0.2528470741 | G122: 0.3002619692 | H122: 0.2885339299 | I122: 0.3122936987 | J122: 0.2249769755 | K122: 0.2471942164 | L122: 0.2752459652 | M122: 0.3735440665 | N122: 0.2734143522 | O122: 0.2605093601 | P122: 0.2413213357 | Q122: 0.4355219635 | R122: 0.308051884 | S122: 0.2245372257 | T122: 0.3062988252 | U122: 0.3069455364 | V122: 0.3110716782 | W122: 0.4525244646 | X122: 0.2530798228 | Y122: 0.2460554426 | Z122: 0.3764797937 | AA122: 0.2296561698 | AB122: 0.2598649697 | AC122: 0.2195642564 | AD122: 0.2769366783 | AE122: 0.2534397728 | AF122: 0.3117690802 | AG122: 0.3810346209 | AH122: 0.3022768366 | AI122: 0.2169808642 | AJ122: 0.3266051993 | AK122: 0.3013302528 | AL122: 0.2326187523 | AM122: 0.2025311241 | AN122: 0.2613386273 | AO122: 0.2525982656 | AP122: 0.2366847919 | AQ122: 0.3388643501 | AR122: 0.279417905 | AS122: 0.2464900677 | AT122: 0.2491048949 | AU122: 0.3431367884 | AV122: 0.2839700348 | AW122: 0.2184805925 | AX122: 0.2671186017 | AY122: 0.3333287659 | AZ122: 0.22942369 | BA122: 0.2410681907 | BB122: 0.3797536899 | BC122: 0.3676268496 | BD122: 0.2232643149 | BE122: 0.4753448907 | BF122: 0.2397051118 | BG122: 0.3243387001 | BH122: 0.2660404945 | BI122: 0.3374215065 | BJ122: 0.3038637425 | BK122: 0.3207356774 | BL122: 0.2735755372 | BM122: 0.28319198 | BN122: 0.3044474876 | BO122: 0.2470660314 | BP122: 0.2610245168 | BQ122: 0.2782020534 | BR122: 0.3847146354 | BS122: 0.2441098157 | BT122: 0.2508076112 | BU122: 0.4968362343 | BV122: 0.2674688942 | BW122: 0.2825235251 | BX122: 0.2936969351 | BY122: 0.3057164638 | BZ122: 0.4866649619 | CA122: 0.4068382888 | CB122: 0.218947028 | CC122: 0.3223236008 | CD122: 0.3242672666 | CE122: 0.2655553519 | CF122: 0.254886976 | CG122: 0.4428342003 | CH122: 0.223211581 | CI122: 0.2955027327 | CJ122: 0.4674511785 | CK122: 0.2879178871 | CL122: 0.4571600339 | CM122: 0.2849396257 | CN122: 0.2365657687 | CO122: 0.2527363005 | CP122: 0.1687510408 | CQ122: 0.3909532528 | CR122: 0.4389773035 | CS122: 0.3024408389 | CT122: 0.2902026925 | CU122: 0.2902815763 | CV122: 0.2170035655 | CW122: 0.4753861727 | CY122: =SUM(B122:CW122) -> 29.93423776
A123: PF04610 | B123: 0.2737072105 | C123: 0.2567967559 | D123: 0.2827101442 | E123: 0.2526492432 | F123: 0.3500522959 | G123: 0.2371437932 | H123: 0.2411516457 | I123: 0.2268348921 | J123: 0.36669139 | K123: 0.2998365411 | L123: 0.3760555497 | M123: 0.2260181999 | N123: 0.3522097667 | O123: 0.2448408301 | P123: 0.3450686388 | Q123: 0.3374083955 | R123: 0.3200838138 | S123: 0.3211141704 | T123: 0.2746865452 | U123: 0.2134924477 | V123: 0.3886294324 | W123: 0.4790626913 | X123: 0.2486919653 | Y123: 0.2927948562 | Z123: 0.2287677862 | AA123: 0.2499797567 | AB123: 0.3331632855 | AC123: 0.2890441509 | AD123: 0.2539715416 | AE123: 0.2680444969 | AF123: 0.3434468245 | AG123: 0.3183023021 | AH123: 0.3549518265 | AI123: 0.2729815873 | AJ123: 0.3454256657 | AK123: 0.4425636937 | AL123: 0.3043008173 | AM123: 0.2158688527 | AN123: 0.2509556084 | AO123: 0.2245499192 | AP123: 0.2605261748 | AQ123: 0.2877576862 | AR123: 0.306779146 | AS123: 0.3383219979 | AT123: 0.2333102755 | AU123: 0.2904312392 | AV123: 0.3820728278 | AW123: 0.2776121956 | AX123: 0.3047852776 | AY123: 0.3471315964 | AZ123: 0.3474416624 | BA123: 0.3453802019 | BB123: 0.3845286992 | BC123: 0.2020116479 | BD123: 0.2763462004 | BE123: 0.2848772472 | BF123: 0.2214323058 | BG123: 0.261728408 | BH123: 0.2961860688 | BI123: 0.3099151792 | BJ123: 0.2990396872 | BK123: 0.2034099169 | BL123: 0.2887248236 | BM123: 0.2786417466 | BN123: 0.2943137617 | BO123: 0.2281976137 | BP123: 0.2906389612 | BQ123: 0.3181640947 | BR123: 0.2717765922 | BS123: 0.2502798797 | BT123: 0.3589140762 | BU123: 0.297521294 | BV123: 0.2810520758 | BW123: 0.218109494 | BX123: 0.2446973666 | BY123: 0.2893160346 | BZ123: 0.2700362408 | CA123: 0.3113322845 | CB123: 0.2950440397 | CC123: 0.3002276387 | CD123: 0.3127931689 | CE123: 0.2222868757 | CF123: 0.2859273246 | CG123: 0.2176302915 | CH123: 0.3713166436 | CI123: 0.2737113452 | CJ123: 0.3587994723 | CK123: 0.2115501758 | CL123: 0.3171062785 | CM123: 0.4217179745 | CN123: 0.282722296 | CO123: 0.3822079474 | CP123: 0.338085504 | CQ123: 0.4023261186 | CR123: 0.3486617914 | CS123: 0.3443801499 | CT123: 0.3066094332 | CU123: 0.3611449896 | CV123: 0.3718325341 | CW123: 0.2569213602 | CY123: =SUM(B123:CW123) -> 29.83979466
A124: PF13166 | B124: 0.2369148613 | C124: 0.2644441387 | D124: 0.3022233844 | E124: 0.3281891396 | F124: 0.2770431554 | G124: 0.3959402287 | H124: 0.2730910959 | I124: 0.2828686112 | J124: 0.2293128211 | K124: 0.358518797 | L124: 0.3307045717 | M124: 0.2621347251 | N124: 0.2168214918 | O124: 0.2873774704 | P124: 0.2685642562 | Q124: 0.2936807159 | R124: 0.310013257 | S124: 0.3364276808 | T124: 0.2683759538 | U124: 0.3110544377 | V124: 0.3851556824 | W124: 0.2880086012 | X124: 0.2249732526 | Y124: 0.2402044656 | Z124: 0.3359471253 | AA124: 0.3536173246 | AB124: 0.3110515229 | AC124: 0.2595450591 | AD124: 0.3324594974 | AE124: 0.2855396617 | AF124: 0.2832100267 | AG124: 0.2609034283 | AH124: 0.3027042012 | AI124: 0.3012895461 | AJ124: 0.3261980445 | AK124: 0.3696053637 | AL124: 0.3047727701 | AM124: 0.3100368038 | AN124: 0.3100076902 | AO124: 0.3926760242 | AP124: 0.3129241655 | AQ124: 0.2520626138 | AR124: 0.2631407067 | AS124: 0.3068428387 | AT124: 0.3028918349 | AU124: 0.3217163003 | AV124: 0.2107025491 | AW124: 0.2452671401 | AX124: 0.2520673687 | AY124: 0.3806705379 | AZ124: 0.2330880571 | BA124: 0.3415131147 | BB124: 0.3421122833 | BC124: 0.3742207845 | BD124: 0.200082774 | BE124: 0.2436757248 | BF124: 0.4418997796 | BG124: 0.4633896031 | BH124: 0.2515331212 | BI124: 0.2545148598 | BJ124: 0.2599172982 | BK124: 0.2392310326 | BL124: 0.2758800514 | BM124: 0.303678586 | BN124: 0.3169066951 | BO124: 0.2854226614 | BP124: 0.2611909793 | BQ124: 0.276524054 | BR124: 0.3499020952 | BS124: 0.2448284072 | BT124: 0.2604697849 | BU124: 0.3116456136 | BV124: 0.2689730662 | BW124: 0.3559196813 | BX124: 0.2479614809 | BY124: 0.3225317277 | BZ124: 0.2936918379 | CA124: 0.2640178484 | CB124: 0.2161147231 | CC124: 0.2545239082 | CD124: 0.3050861633 | CE124: 0.3940864986 | CF124: 0.3547442109 | CG124: 0.2607644383 | CH124: 0.3738546746 | CI124: 0.2158207076 | CJ124: 0.2574226562 | CK124: 0.237752861 | CL124: 0.3124034931 | CM124: 0.2680656107 | CN124: 0.3634633641 | CO124: 0.2763972537 | CP124: 0.3779762191 | CQ124: 0.2903145729 | CR124: 0.314853981 | CS124: 0.3268111799 | CT124: 0.18843689 | CU124: 0.3277919458 | CV124: 0.3291086511 | CW124: 0.3964996308 | CY124: =SUM(B124:CW124) -> 29.78690958
A125: PF12553 | B125: 0.5832042315 | C125: 0.3486633407 | D125: 0.2615259511 | E125: 0.2811243216 | F125: 0.276283537 | G125: 0.2726147888 | H125: 0.271923769 | I125: 0.274827846 | J125: 0.2523149985 | K125: 0.300509285 | L125: 0.3580975604 | M125: 0.2167794144 | N125: 0.2383063608 | O125: 0.3456388082 | P125: 0.2294796466 | Q125: 0.3178454239 | R125: 0.3520004708 | S125: 0.2333357394 | T125: 0.2860055125 | U125: 0.2872224437 | V125: 0.3654223455 | W125: 0.3246974083 | X125: 0.2732710202 | Y125: 0.334975257 | Z125: 0.2132969254 | AA125: 0.3078744108 | AB125: 0.2813117183 | AC125: 0.2033519309 | AD125: 0.2169368118 | AE125: 0.3184261493 | AF125: 0.3958249771 | AG125: 0.3074530332 | AH125: 0.3229777547 | AI125: 0.2277735439 | AJ125: 0.3105465178 | AK125: 0.351461209 | AL125: 0.3024586551 | AM125: 0.3366669134 | AN125: 0.30079793 | AO125: 0.2466210556 | AP125: 0.3618278893 | AQ125: 0.2778097759 | AR125: 0.2418165835 | AS125: 0.4106937826 | AT125: 0.274341876 | AU125: 0.4161966647 | AV125: 0.2570297774 | AW125: 0.3693252651 | AX125: 0.3723537065 | AY125: 0.2410153809 | AZ125: 0.3205761594 | BA125: 0.3586772509 | BB125: 0.255261181 | BC125: 0.2542737096 | BD125: 0.2521513856 | BE125: 0.1950672982 | BF125: 0.2404042622 | BG125: 0.3238687968 | BH125: 0.2517795624 | BI125: 0.2039441694 | BJ125: 0.2501036192 | BK125: 0.3238813757 | BL125: 0.296192766 | BM125: 0.3844751049 | BN125: 0.3692230784 | BO125: 0.3311396631 | BP125: 0.3348261914 | BQ125: 0.2982123558 | BR125: 0.2263232243 | BS125: 0.2240722261 | BT125: 0.3328205093 | BU125: 0.2792036409 | BV125: 0.3361000345 | BW125: 0.3871432603 | BX125: 0.330670436 | BY125: 0.3672802772 | BZ125: 0.3012723478 | CA125: 0.2587958892 | CB125: 0.2320353692 | CC125: 0.3745162028 | CD125: 0.1970871684 | CE125: 0.3319151044 | CF125: 0.294914691 | CG125: 0.3136427171 | CH125: 0.3337843909 | CI125: 0.2463721853 | CJ125: 0.2253264156 | CK125: 0.2825422084 | CL125: 0.2993684437 | CM125: 0.305085281 | CN125: 0.291716264 | CO125: 0.2921780951 | CP125: 0.3423776017 | CQ125: 0.2506543446 | CR125: 0.2718821405 | CS125: 0.3286394103 | CT125: 0.2605604741 | CU125: 0.2923270597 | CV125: 0.3596676917 | CW125: 0.2194296636 | CY125: =SUM(B125:CW125) -> 29.78602242
A126: PF02413 | B126: 0.2555743121 | C126: 0.3517468967 | D126: 0.3448854369 | E126: 0.2460779108 | F126: 0.2539464189 | G126: 0.2582967079 | H126: 0.2654938376 | I126: 0.2340875751 | J126: 0.3553456596 | K126: 0.298491136 | L126: 0.1837528921 | M126: 0.2740550218 | N126: 0.2679663266 | O126: 0.3019744696 | P126: 0.2683364708 | Q126: 0.3207503349 | R126: 0.2635917171 | S126: 0.4011922399 | T126: 0.3482321458 | U126: 0.2927679183 | V126: 0.3256383926 | W126: 0.24311306 | X126: 0.3219153662 | Y126: 0.2220337846 | Z126: 0.3251502504 | AA126: 0.273368976 | AB126: 0.5230976591 | AC126: 0.2114724012 | AD126: 0.2530751492 | AE126: 0.2982485025 | AF126: 0.2737263538 | AG126: 0.269989728 | AH126: 0.4142405629 | AI126: 0.4570722046 | AJ126: 0.4047771384 | AK126: 0.3146030898 | AL126: 0.2853808141 | AM126: 0.2234223038 | AN126: 0.1821884862 | AO126: 0.3041589278 | AP126: 0.270593492 | AQ126: 0.2208292404 | AR126: 0.2299330135 | AS126: 0.3453056227 | AT126: 0.3771227562 | AU126: 0.313601478 | AV126: 0.210237351 | AW126: 0.3404832745 | AX126: 0.314352226 | AY126: 0.2800247797 | AZ126: 0.2786538899 | BA126: 0.2242265552 | BB126: 0.3092503669 | BC126: 0.37452386 | BD126: 0.2174129952 | BE126: 0.1807132541 | BF126: 0.3075914907 | BG126: 0.2644871778 | BH126: 0.4409244998 | BI126: 0.2548409549 | BJ126: 0.267540054 | BK126: 0.3539957323 | BL126: 0.4403746685 | BM126: 0.2923309074 | BN126: 0.3236466451 | BO126: 0.2492907931 | BP126: 0.3150842663 | BQ126: 0.407652294 | BR126: 0.1572036391 | BS126: 0.6005807867 | BT126: 0.2276914148 | BU126: 0.2586293293 | BV126: 0.2970300625 | BW126: 0.334394077 | BX126: 0.2412710688 | BY126: 0.4457272441 | BZ126: 0.1666836211 | CA126: 0.2744464473 | CB126: 0.3074186022 | CC126: 0.335955032 | CD126: 0.3048558764 | CE126: 0.3250268081 | CF126: 0.3599321932 | CG126: 0.2216100496 | CH126: 0.3902381035 | CI126: 0.3181956552 | CJ126: 0.1876359457 | CK126: 0.2219205991 | CL126: 0.3005466627 | CM126: 0.1887543346 | CN126: 0.2862678342 | CO126: 0.245700851 | CP126: 0.2100880235 | CQ126: 0.2697604982 | CR126: 0.3946965559 | CS126: 0.2568243018 | CT126: 0.2911803788 | CU126: 0.4854649892 | CV126: 0.2744806768 | CW126: 0.280181667 | CY126: =SUM(B126:CW126) -> 29.77865555
A127: PF05766 | B127: 0.2956226061 | C127: 0.3497891852 | D127: 0.277005383 | E127: 0.3227037617 | F127: 0.2540605079 | G127: 0.2079547721 | H127: 0.3116787533 | I127: 0.2607464474 | J127: 0.2338648593 | K127: 0.2220337478 | L127: 0.2241372909 | M127: 0.4553052642 | N127: 0.3884879876 | O127: 0.2934885414 | P127: 0.3286049271 | Q127: 0.2904788662 | R127: 0.257913045 | S127: 0.2092809455 | T127: 0.3159354479 | U127: 0.2967417763 | V127: 0.3577254412 | W127: 0.2556446637 | X127: 0.1937381162 | Y127: 0.2241011831 | Z127: 0.2739086183 | AA127: 0.4185189057 | AB127: 0.2251909722 | AC127: 0.3167309078 | AD127: 0.3602574868 | AE127: 0.3468577522 | AF127: 0.3753569269 | AG127: 0.2306585269 | AH127: 0.3813377618 | AI127: 0.2564365347 | AJ127: 0.2391191102 | AK127: 0.2692447085 | AL127: 0.2793390089 | AM127: 0.2539378762 | AN127: 0.3483954848 | AO127: 0.3564070304 | AP127: 0.2719897674 | AQ127: 0.2584390268 | AR127: 0.2528945542 | AS127: 0.2639437852 | AT127: 0.2399225462 | AU127: 0.2535089487 | AV127: 0.3063131195 | AW127: 0.3784766297 | AX127: 0.3453817119 | AY127: 0.4091208342 | AZ127: 0.1941345972 | BA127: 0.1969443475 | BB127: 0.2774137372 | BC127: 0.3192852898 | BD127: 0.1826491773 | BE127: 0.3574982311 | BF127: 0.2808595864 | BG127: 0.3382114568 | BH127: 0.2478943189 | BI127: 0.2465138723 | BJ127: 0.3208616393 | BK127: 0.2674186365 | BL127: 0.3374137971 | BM127: 0.2236734228 | BN127: 0.2968093754 | BO127: 0.3161128721 | BP127: 0.3277514067 | BQ127: 0.2315497951 | BR127: 0.3672674959 | BS127: 0.2451739002 | BT127: 0.2252568479 | BU127: 0.3591529856 | BV127: 0.3239688743 | BW127: 0.2265461841 | BX127: 0.2886100916 | BY127: 0.3716528971 | BZ127: 0.2896516915 | CA127: 0.3795722107 | CB127: 0.2618373287 | CC127: 0.3840914255 | CD127: 0.3592023939 | CE127: 0.2569073652 | CF127: 0.2724693117 | CG127: 0.3068628328 | CH127: 0.2661976254 | CI127: 0.2988857144 | CJ127: 0.3747927292 | CK127: 0.1775793348 | CL127: 0.3338820118 | CM127: 0.2712061222 | CN127: 0.2916170932 | CO127: 0.3211440224 | CP127: 0.3304149852 | CQ127: 0.3293820043 | CR127: 0.5154262028 | CS127: 0.3220864126 | CT127: 0.383115846 | CU127: 0.2806553035 | CV127: 0.2905614969 | CW127: 0.3413682861 | CY127: =SUM(B127:CW127) -> 29.74826664
A128: PF07929 | B128: 0.2247196446 | C128: 0.1606116105 | D128: 0.3386971776 | E128: 0.2716138262 | F128: 0.1716279972 | G128: 0.3243815166 | H128: 0.1253338744 | I128: 0.221709587 | J128: 0.2439280572 | K128: 0.4328268446 | L128: 0.1925096607 | M128: 0.242925559 | N128: 0.5022801609 | O128: 0.31793647 | P128: 0.3391640644 | Q128: 0.2938845535 | R128: 0.2370356736 | S128: 0.2220243766 | T128: 0.2635263898 | U128: 0.2465118395 | V128: 0.1979308098 | W128: 0.234577527 | X128: 0.3609540942 | Y128: 0.1936075326 | Z128: 0.3042606825 | AA128: 0.2832503663 | AB128: 0.4670238576 | AC128: 0.1916374559 | AD128: 0.3076944399 | AE128: 0.5063533782 | AF128: 0.4289536286 | AG128: 0.2131094392 | AH128: 0.4110368861 | AI128: 0.2784667143 | AJ128: 0.2224165094 | AK128: 0.3423414129 | AL128: 0.4104922745 | AM128: 0.297874612 | AN128: 0.2733676726 | AO128: 0.3512608351 | AP128: 0.2859039583 | AQ128: 0.3013197709 | AR128: 0.2736424747 | AS128: 0.4824964308 | AT128: 0.2506766429 | AU128: 0.3308245172 | AV128: 0.3229452567 | AW128: 0.2709001841 | AX128: 0.1759216274 | AY128: 0.3108492891 | AZ128: 0.2574993041 | BA128: 0.3682050799 | BB128: 0.255183842 | BC128: 0.2019065704 | BD128: 0.30248557 | BE128: 0.1547340246 | BF128: 0.3295251814 | BG128: 0.1630511587 | BH128: 0.5074878704 | BI128: 0.3406290516 | BJ128: 0.4443243074 | BK128: 0.2822519664 | BL128: 0.2340070517 | BM128: 0.2277714486 | BN128: 0.3052163218 | BO128: 0.2056590214 | BP128: 0.2716239612 | BQ128: 0.2451629527 | BR128: 0.3469315231 | BS128: 0.2912932384 | BT128: 0.2858184621 | BU128: 0.2635683869 | BV128: 0.400229845 | BW128: 0.2359741253 | BX128: 0.3713885848 | BY128: 0.2983947456 | BZ128: 0.3109439544 | CA128: 0.3112632934 | CB128: 0.1843975269 | CC128: 0.6020335131 | CD128: 0.313112772 | CE128: 0.2096204317 | CF128: 0.3759257312 | CG128: 0.2894379979 | CH128: 0.2456055613 | CI128: 0.2512388342 | CJ128: 0.2716471661 | CK128: 0.3115550727 | CL128: 0.3658558708 | CM128: 0.3013621052 | CN128: 0.3661210567 | CO128: 0.3355813318 | CP128: 0.4702057216 | CQ128: 0.2091288811 | CR128: 0.2821119911 | CS128: 0.3990623762 | CT128: 0.291365997 | CU128: 0.2085339866 | CV128: 0.19757465 | CW128: 0.245232722 | CY128: =SUM(B128:CW128) -> 29.59458131
A129: PF14667 | B129: 0.2932218012 | C129: 0.2445088136 | D129: 0.2715863656 | E129: 0.2365686737 | F129: 0.277605976 | G129: 0.3516896782 | H129: 0.284599917 | I129: 0.229871271 | J129: 0.3203986406 | K129: 0.3565971166 | L129: 0.3138100411 | M129: 0.4969805305 | N129: 0.2620076756 | O129: 0.4243400753 | P129: 0.2797284049 | Q129: 0.2484563139 | R129: 0.2265548992 | S129: 0.2419347133 | T129: 0.2376107488 | U129: 0.3648090954 | V129: 0.3950543795 | W129: 0.3295214374 | X129: 0.2072187293 | Y129: 0.2373615993 | Z129: 0.1836705119 | AA129: 0.322960823 | AB129: 0.3020907268 | AC129: 0.3068396271 | AD129: 0.263697651 | AE129: 0.3241044814 | AF129: 0.319728615 | AG129: 0.2797766351 | AH129: 0.39592861 | AI129: 0.2867185424 | AJ129: 0.279001926 | AK129: 0.3477330066 | AL129: 0.3900327121 | AM129: 0.2199346049 | AN129: 0.2964054975 | AO129: 0.3204271914 | AP129: 0.33955327 | AQ129: 0.2743573314 | AR129: 0.3869989768 | AS129: 0.2700446779 | AT129: 0.1878651649 | AU129: 0.2873804008 | AV129: 0.4579305693 | AW129: 0.2275290229 | AX129: 0.2999931708 | AY129: 0.3387101869 | AZ129: 0.3501489673 | BA129: 0.2357247082 | BB129: 0.1725746628 | BC129: 0.38062128 | BD129: 0.2391458672 | BE129: 0.2404902712 | BF129: 0.2594540157 | BG129: 0.3587588626 | BH129: 0.1757120722 | BI129: 0.5239024795 | BJ129: 0.3271757617 | BK129: 0.3104059229 | BL129: 0.2940946121 | BM129: 0.2295652457 | BN129: 0.2514803616 | BO129: 0.2439508975 | BP129: 0.2901805196 | BQ129: 0.2835758826 | BR129: 0.248662767 | BS129: 0.3623304376 | BT129: 0.2513969047 | BU129: 0.2457749261 | BV129: 0.280111307 | BW129: 0.2402277535 | BX129: 0.2613237417 | BY129: 0.2441563429 | BZ129: 0.3085174716 | CA129: 0.2907343151 | CB129: 0.251915081 | CC129: 0.2120600164 | CD129: 0.5313525821 | CE129: 0.2253031986 | CF129: 0.3361029143 | CG129: 0.2314163782 | CH129: 0.200507413 | CI129: 0.2075630866 | CJ129: 0.2206239305 | CK129: 0.3705061754 | CL129: 0.3791965678 | CM129: 0.3466690539 | CN129: 0.375581378 | CO129: 0.3144554761 | CP129: 0.2731623273 | CQ129: 0.2395039115 | CR129: 0.493768332 | CS129: 0.2931206092 | CT129: 0.2191693309 | CU129: 0.3435652847 | CV129: 0.292655267 | CW129: 0.245086429 | CY129: =SUM(B129:CW129) -> 29.54493393
A130: PF01548 | B130: 0.1949035868 | C130: 0.2883124048 | D130: 0.2830282049 | E130: 0.3235327412 | F130: 0.2536343382 | G130: 0.1970535008 | H130: 0.264594769 | I130: 0.2286685635 | J130: 0.3431241754 | K130: 0.1702444478 | L130: 0.2837940988 | M130: 0.2743658041 | N130: 0.2502598981 | O130: 0.3368946503 | P130: 0.5510871017 | Q130: 0.2457134109 | R130: 0.309829562 | S130: 0.3320658042 | T130: 0.5630369244 | U130: 0.2075875457 | V130: 0.2524006917 | W130: 0.2592212325 | X130: 0.3233774002 | Y130: 0.2137463032 | Z130: 0.2125591924 | AA130: 0.3241068084 | AB130: 0.247417409 | AC130: 0.3111090748 | AD130: 0.3490127312 | AE130: 0.2221618389 | AF130: 0.2931292711 | AG130: 0.3805702468 | AH130: 0.2683090281 | AI130: 0.4034556435 | AJ130: 0.3653042429 | AK130: 0.2965858581 | AL130: 0.236254112 | AM130: 0.2683507686 | AN130: 0.401843646 | AO130: 0.2676231571 | AP130: 0.2422145367 | AQ130: 0.3271168957 | AR130: 0.3493606392 | AS130: 0.3392851911 | AT130: 0.2056272514 | AU130: 0.3333642882 | AV130: 0.2130918116 | AW130: 0.2280520168 | AX130: 0.2773330595 | AY130: 0.2805568587 | AZ130: 0.283764995 | BA130: 0.3398326156 | BB130: 0.3413345636 | BC130: 0.2354601413 | BD130: 0.2829331738 | BE130: 0.3398893064 | BF130: 0.3123391492 | BG130: 0.3167269072 | BH130: 0.2866119811 | BI130: 0.3381064604 | BJ130: 0.2704265879 | BK130: 0.2965108887 | BL130: 0.2220749327 | BM130: 0.3081021384 | BN130: 0.2869242038 | BO130: 0.3225150421 | BP130: 0.2017235229 | BQ130: 0.3588886315 | BR130: 0.3826185573 | BS130: 0.2506299773 | BT130: 0.3676804789 | BU130: 0.2450326369 | BV130: 0.2696244028 | BW130: 0.2540774586 | BX130: 0.2836401125 | BY130: 0.4546666229 | BZ130: 0.3037359368 | CA130: 0.2804460343 | CB130: 0.2204496457 | CC130: 0.2954269634 | CD130: 0.2989518141 | CE130: 0.2808081258 | CF130: 0.2998884159 | CG130: 0.2897960724 | CH130: 0.2944059895 | CI130: 0.2693403145 | CJ130: 0.2711253093 | CK130: 0.2743424178 | CL130: 0.2869271118 | CM130: 0.3310563108 | CN130: 0.3358043454 | CO130: 0.4446707036 | CP130: 0.2521659271 | CQ130: 0.3333290899 | CR130: 0.2681427116 | CS130: 0.37149214 | CT130: 0.233791739 | CU130: 0.1940253646 | CV130: 0.3123060307 | CW130: 0.2747015006 | CY130: =SUM(B130:CW130) -> 29.46353824
A131: PF08892 | B131: 0.2364611841 | C131: 0.1665884255 | D131: 0.252961969 | E131: 0.3012493573 | F131: 0.5370010779 | G131: 0.3407152559 | H131: 0.3769168116 | I131: 0.1642829019 | J131: 0.3262905764 | K131: 0.2766303525 | L131: 0.2314592226 | M131: 0.4210220564 | N131: 0.2963889483 | O131: 0.2578759787 | P131: 0.2955214582 | Q131: 0.2574627742 | R131: 0.1795262027 | S131: 0.3536195408 | T131: 0.5297007533 | U131: 0.3249869701 | V131: 0.2823607345 | W131: 0.3287631767 | X131: 0.3083135795 | Y131: 0.2496655028 | Z131: 0.2133947914 | AA131: 0.3413709303 | AB131: 0.1003499524 | AC131: 0.3390597409 | AD131: 0.2138537948 | AE131: 0.2620750711 | AF131: 0.2814602786 | AG131: 0.2703890489 | AH131: 0.3043469052 | AI131: 0.3255658695 | AJ131: 0.414441588 | AK131: 0.2477445516 | AL131: 0.3005957249 | AM131: 0.2585777774 | AN131: 0.3116845671 | AO131: 0.3680630968 | AP131: 0.3958667349 | AQ131: 0.3122572882 | AR131: 0.3627363064 | AS131: 0.1825165232 | AT131: 0.3709675153 | AU131: 0.3230063938 | AV131: 0.2783550017 | AW131: 0.2782156826 | AX131: 0.4423558456 | AY131: 0.3366112698 | AZ131: 0.3374416779 | BA131: 0.2246894197 | BB131: 0.3727457221 | BC131: 0.3891900588 | BD131: 0.3169366212 | BE131: 0.3291146502 | BF131: 0.3460572364 | BG131: 0.3522356521 | BH131: 0.2624229635 | BI131: 0.2954383645 | BJ131: 0.2465993057 | BK131: 0.1459537446 | BL131: 0.1708381672 | BM131: 0.4080813793 | BN131: 0.2539407936 | BO131: 0.1895807547 | BP131: 0.1680217067 | BQ131: 0.1588133086 | BR131: 0.2101008335 | BS131: 0.2991119888 | BT131: 0.1508499024 | BU131: 0.3149578444 | BV131: 0.3924889346 | BW131: 0.2623599165 | BX131: 0.3861763324 | BY131: 0.1175223174 | BZ131: 0.677071817 | CA131: 0.2721229485 | CB131: 0.2829044311 | CC131: 0.2472291538 | CD131: 0.2547745724 | CE131: 0.276753357 | CF131: 0.3064351788 | CG131: 0.326572333 | CH131: 0.2746835295 | CI131: 0.2536321751 | CJ131: 0.2856549924 | CK131: 0.2538329864 | CL131: 0.4236843786 | CM131: 0.2573612406 | CN131: 0.3199294588 | CO131: 0.4867301328 | CP131: 0.2650244326 | CQ131: 0.3879974004 | CR131: 0.2617026411 | CS131: 0.291228048 | CT131: 0.2019282837 | CU131: 0.1819259732 | CV131: 0.1971730399 | CW131: 0.198816836 | CY131: =SUM(B131:CW131) -> 29.418466
A132: PF00239 | B132: 0.2849032849 | C132: 0.3395036473 | D132: 0.3483209636 | E132: 0.2499043022 | F132: 0.2494601414 | G132: 0.2392159215 | H132: 0.2701492674 | I132: 0.3170262208 | J132: 0.4982013479 | K132: 0.287673812 | L132: 0.4309852861 | M132: 0.3004105298 | N132: 0.2448270846 | O132: 0.3360201687 | P132: 0.2460172153 | Q132: 0.3279075824 | R132: 0.3226177739 | S132: 0.2945850453 | T132: 0.3137868102 | U132: 0.3337984723 | V132: 0.2317403296 | W132: 0.326171635 | X132: 0.3611666262 | Y132: 0.244162073 | Z132: 0.1935093432 | AA132: 0.2490110201 | AB132: 0.2891393678 | AC132: 0.334537627 | AD132: 0.2358544693 | AE132: 0.2825758771 | AF132: 0.2849752205 | AG132: 0.2825511717 | AH132: 0.3256715573 | AI132: 0.2595539538 | AJ132: 0.2230145253 | AK132: 0.2567914977 | AL132: 0.3122431846 | AM132: 0.2650583403 | AN132: 0.3275012273 | AO132: 0.3362815552 | AP132: 0.2013308241 | AQ132: 0.3127363709 | AR132: 0.2932063074 | AS132: 0.2425950521 | AT132: 0.2181860566 | AU132: 0.2931697157 | AV132: 0.3654249737 | AW132: 0.2414090243 | AX132: 0.2395984963 | AY132: 0.3407987125 | AZ132: 0.2803797279 | BA132: 0.3134310111 | BB132: 0.2334485341 | BC132: 0.2016368341 | BD132: 0.2112190546 | BE132: 0.2403563771 | BF132: 0.2526077428 | BG132: 0.3367406687 | BH132: 0.3725962208 | BI132: 0.2892272794 | BJ132: 0.3362965166 | BK132: 0.2399680896 | BL132: 0.2595666359 | BM132: 0.3332971016 | BN132: 0.3024052306 | BO132: 0.3242739296 | BP132: 0.2024882077 | BQ132: 0.3016993272 | BR132: 0.2871833873 | BS132: 0.2471844322 | BT132: 0.2596938934 | BU132: 0.2838673887 | BV132: 0.3186256541 | BW132: 0.2976962986 | BX132: 0.2907592878 | BY132: 0.2833246456 | BZ132: 0.3257611092 | CA132: 0.2954014874 | CB132: 0.300802625 | CC132: 0.2561963544 | CD132: 0.3826502197 | CE132: 0.3203722122 | CF132: 0.3401850888 | CG132: 0.358708865 | CH132: 0.2653631949 | CI132: 0.3046493149 | CJ132: 0.3082630868 | CK132: 0.2988523708 | CL132: 0.2904959305 | CM132: 0.3201507296 | CN132: 0.3700880206 | CO132: 0.3531561275 | CP132: 0.3088828792 | CQ132: 0.3244739863 | CR132: 0.4419491895 | CS132: 0.1910595861 | CT132: 0.2075436653 | CU132: 0.3274742156 | CV132: 0.3248057842 | CW132: 0.2792257896 | CY132: =SUM(B132:CW132) -> 29.40176632
A133: PF14891 | B133: 0.252186744 | C133: 0.4067278081 | D133: 0.3130427648 | E133: 0.3347724125 | F133: 0.2611197212 | G133: 0.306559515 | H133: 0.2729947487 | I133: 0.2492786312 | J133: 0.2803972309 | K133: 0.3696966659 | L133: 0.3787302025 | M133: 0.322981028 | N133: 0.2946493381 | O133: 0.3581423768 | P133: 0.2725509026 | Q133: 0.2378100664 | R133: 0.2747755273 | S133: 0.29767949 | T133: 0.3284430418 | U133: 0.3239966164 | V133: 0.3199703817 | W133: 0.2078280807 | X133: 0.2664579068 | Y133: 0.2707740126 | Z133: 0.2828763961 | AA133: 0.2973077353 | AB133: 0.3203221149 | AC133: 0.2622603089 | AD133: 0.256443703 | AE133: 0.2821172706 | AF133: 0.2991879515 | AG133: 0.1997327857 | AH133: 0.3305856151 | AI133: 0.2357979487 | AJ133: 0.277241197 | AK133: 0.2206078677 | AL133: 0.3258020501 | AM133: 0.2891985246 | AN133: 0.2939779743 | AO133: 0.4273490058 | AP133: 0.261092042 | AQ133: 0.239169017 | AR133: 0.3989671215 | AS133: 0.2790106181 | AT133: 0.2567886923 | AU133: 0.3742667402 | AV133: 0.3193790707 | AW133: 0.2258144722 | AX133: 0.213936419 | AY133: 0.2883793613 | AZ133: 0.3256801417 | BA133: 0.2032174102 | BB133: 0.3384459511 | BC133: 0.3891205517 | BD133: 0.216924801 | BE133: 0.255709405 | BF133: 0.3370748159 | BG133: 0.319456721 | BH133: 0.2722561063 | BI133: 0.2949422479 | BJ133: 0.2689401757 | BK133: 0.2078197715 | BL133: 0.2794123218 | BM133: 0.2608663567 | BN133: 0.3287159286 | BO133: 0.2650945221 | BP133: 0.3387372796 | BQ133: 0.2698528287 | BR133: 0.331524773 | BS133: 0.3226351648 | BT133: 0.2892606893 | BU133: 0.3596267002 | BV133: 0.2851742029 | BW133: 0.3146486786 | BX133: 0.3751126366 | BY133: 0.2932736227 | BZ133: 0.4566052385 | CA133: 0.3151579258 | CB133: 0.3312495875 | CC133: 0.2824097532 | CD133: 0.2260415898 | CE133: 0.3105149491 | CF133: 0.2717879028 | CG133: 0.2828210347 | CH133: 0.2286639819 | CI133: 0.2981487398 | CJ133: 0.229923358 | CK133: 0.3196354564 | CL133: 0.3092824224 | CM133: 0.2848701365 | CN133: 0.3086165191 | CO133: 0.3314781397 | CP133: 0.319816401 | CQ133: 0.2982454944 | CR133: 0.3034426511 | CS133: 0.2821261004 | CT133: 0.2720697048 | CU133: 0.2063952156 | CV133: 0.2525052863 | CW133: 0.2742671714 | CY133: =SUM(B133:CW133) -> 29.39877578
A134: PF01717 | B134: 0.3489313412 | C134: 0.2752219538 | D134: 0.1861708729 | E134: 0.1669815459 | F134: 0.1922749365 | G134: 0.1899847475 | H134: 0.3811365931 | I134: 0.4680920434 | J134: 0.2901642623 | K134: 0.3063348353 | L134: 0.2780810583 | M134: 0.3329564316 | N134: 0.1165473828 | O134: 0.2658133239 | P134: 0.2029159463 | Q134: 0.4170107747 | R134: 0.3226995728 | S134: 0.4471686581 | T134: 0.2823345765 | U134: 0.4610145566 | V134: 0.4039219755 | W134: 0.3611362203 | X134: 0.3465569141 | Y134: 0.1753430336 | Z134: 0.182086375 | AA134: 0.4174144506 | AB134: 0.346724353 | AC134: 0.08817476597 | AD134: 0.2172745032 | AE134: 0.1642304014 | AF134: 0.3909568115 | AG134: 0.2197936969 | AH134: 0.3523115632 | AI134: 0.2495819292 | AJ134: 0.2389327349 | AK134: 0.2416120894 | AL134: 0.4576173341 | AM134: 0.3417048043 | AN134: 0.3141205976 | AO134: 0.3257420043 | AP134: 0.363005191 | AQ134: 0.4122529973 | AR134: 0.2915154354 | AS134: 0.335717138 | AT134: 0.1901743312 | AU134: 0.3134960861 | AV134: 0.2964369605 | AW134: 0.1610744613 | AX134: 0.314727376 | AY134: 0.3503208564 | AZ134: 0.2433608119 | BA134: 0.3557789282 | BB134: 0.2074869064 | BC134: 0.1943598408 | BD134: 0.4058923834 | BE134: 0.2199661266 | BF134: 0.3374416422 | BG134: 0.4532464955 | BH134: 0.457325752 | BI134: 0.2465219882 | BJ134: 0.2856397671 | BK134: 0.2396359157 | BL134: 0.3273273922 | BM134: 0.3212323607 | BN134: 0.4488749606 | BO134: 0.4769556697 | BP134: 0.1919754133 | BQ134: 0.3315425863 | BR134: 0.3011899399 | BS134: 0.4748664404 | BT134: 0.3368034149 | BU134: 0.3538026948 | BV134: 0.4051689023 | BW134: 0.3900282992 | BX134: 0.403426261 | BY134: 0.2309616063 | BZ134: 0.2201004689 | CA134: 0.1685665774 | CB134: 0.2953588792 | CC134: 0.2202452671 | CD134: 0.3289030545 | CE134: 0.2143078065 | CF134: 0.264699029 | CG134: 0.2344821155 | CH134: 0.3066491114 | CI134: 0.3052108729 | CJ134: 0.3090124777 | CK134: 0.2194672763 | CL134: 0.2395378471 | CM134: 0.4410460892 | CN134: 0.2077714838 | CO134: 0.2281058751 | CP134: 0.1916942169 | CQ134: 0.1107630166 | CR134: 0.1084958731 | CS134: 0.20978904 | CT134: 0.3220973362 | CU134: 0.3157866031 | CV134: 0.2184191579 | CW134: 0.2637835316 | CY134: =SUM(B134:CW134) -> 29.38089831
A135: PF13005 | B135: 0.3432409996 | C135: 0.2590946497 | D135: 0.1953681365 | E135: 0.2439256059 | F135: 0.2924760344 | G135: 0.4134849306 | H135: 0.2886516725 | I135: 0.3761822497 | J135: 0.2527481233 | K135: 0.3187938728 | L135: 0.2808925413 | M135: 0.2375140824 | N135: 0.3688886524 | O135: 0.3042146865 | P135: 0.3230421191 | Q135: 0.2138335286 | R135: 0.1968760394 | S135: 0.2621921611 | T135: 0.3216510632 | U135: 0.2720143329 | V135: 0.3456885313 | W135: 0.3471678631 | X135: 0.3279342632 | Y135: 0.2094023084 | Z135: 0.4395273062 | AA135: 0.2805506541 | AB135: 0.1912796902 | AC135: 0.2748554017 | AD135: 0.2466273316 | AE135: 0.280753947 | AF135: 0.2745407639 | AG135: 0.4188144533 | AH135: 0.3080633806 | AI135: 0.4077276893 | AJ135: 0.3092291735 | AK135: 0.2073969139 | AL135: 0.3494954799 | AM135: 0.3074444623 | AN135: 0.326797959 | AO135: 0.2228829843 | AP135: 0.3393257526 | AQ135: 0.3199265986 | AR135: 0.2222510425 | AS135: 0.2422871301 | AT135: 0.2826925187 | AU135: 0.3038816384 | AV135: 0.3016010284 | AW135: 0.3387725972 | AX135: 0.1920000093 | AY135: 0.3924086643 | AZ135: 0.2738275063 | BA135: 0.3443535907 | BB135: 0.2588527789 | BC135: 0.2974920059 | BD135: 0.3434293932 | BE135: 0.412278688 | BF135: 0.2392202434 | BG135: 0.2459117877 | BH135: 0.241915385 | BI135: 0.4132016393 | BJ135: 0.3998708297 | BK135: 0.2604801063 | BL135: 0.2690543129 | BM135: 0.2794384253 | BN135: 0.185770121 | BO135: 0.217486622 | BP135: 0.2762075518 | BQ135: 0.2800513777 | BR135: 0.3421476079 | BS135: 0.1594839078 | BT135: 0.2447799145 | BU135: 0.3312476593 | BV135: 0.2997177069 | BW135: 0.4652090266 | BX135: 0.2683289976 | BY135: 0.2340180365 | BZ135: 0.214253449 | CA135: 0.2070171264 | CB135: 0.4131329136 | CC135: 0.3389085563 | CD135: 0.2731119169 | CE135: 0.3574650943 | CF135: 0.2510363092 | CG135: 0.2400273312 | CH135: 0.3921177959 | CI135: 0.3110703576 | CJ135: 0.2308223267 | CK135: 0.3027429548 | CL135: 0.3389023382 | CM135: 0.325676186 | CN135: 0.239848848 | CO135: 0.2602222057 | CP135: 0.3478982777 | CQ135: 0.2964731311 | CR135: 0.3352771182 | CS135: 0.2373086177 | CT135: 0.2693763323 | CU135: 0.2509854826 | CV135: 0.3099768159 | CW135: 0.2596059197 | CY135: =SUM(B135:CW135) -> 29.36344565
A136: PF02384 | B136: 0.3370992888 | C136: 0.3515083284 | D136: 0.2748430462 | E136: 0.2108874714 | F136: 0.2508999297 | G136: 0.2297300749 | H136: 0.2503246268 | I136: 0.4673907695 | J136: 0.3388973704 | K136: 0.2804062798 | L136: 0.237655331 | M136: 0.2016843747 | N136: 0.285236783 | O136: 0.2845468463 | P136: 0.2624655461 | Q136: 0.31908097 | R136: 0.2918457417 | S136: 0.3101967809 | T136: 0.262157131 | U136: 0.3082034177 | V136: 0.2403348514 | W136: 0.2245662954 | X136: 0.2645047719 | Y136: 0.2545986428 | Z136: 0.218220995 | AA136: 0.2119026203 | AB136: 0.2324041567 | AC136: 0.3631137322 | AD136: 0.2730117695 | AE136: 0.2707710417 | AF136: 0.3308267724 | AG136: 0.2750657939 | AH136: 0.2830400523 | AI136: 0.3240587172 | AJ136: 0.3626959135 | AK136: 0.2515275876 | AL136: 0.2211509902 | AM136: 0.3393473974 | AN136: 0.3135882624 | AO136: 0.3815521575 | AP136: 0.3542213748 | AQ136: 0.2081362765 | AR136: 0.2905066303 | AS136: 0.3011468336 | AT136: 0.2816427731 | AU136: 0.270884432 | AV136: 0.2641533226 | AW136: 0.3148282436 | AX136: 0.3310627244 | AY136: 0.2821507349 | AZ136: 0.2928930926 | BA136: 0.302722161 | BB136: 0.3059571029 | BC136: 0.2366542473 | BD136: 0.2727995142 | BE136: 0.3308423155 | BF136: 0.2990162836 | BG136: 0.3306643026 | BH136: 0.2937425816 | BI136: 0.1819349616 | BJ136: 0.3278316499 | BK136: 0.1903002377 | BL136: 0.3521247614 | BM136: 0.333718364 | BN136: 0.2372942828 | BO136: 0.3255170502 | BP136: 0.2152845423 | BQ136: 0.3127639042 | BR136: 0.3015918813 | BS136: 0.3150892074 | BT136: 0.3049505718 | BU136: 0.3062852608 | BV136: 0.3518934768 | BW136: 0.3076603625 | BX136: 0.2179901193 | BY136: 0.3291193974 | BZ136: 0.3052983899 | CA136: 0.364462515 | CB136: 0.2268014616 | CC136: 0.3935573549 | CD136: 0.3253560319 | CE136: 0.4035495359 | CF136: 0.3054486879 | CG136: 0.3133069615 | CH136: 0.297816471 | CI136: 0.3111107581 | CJ136: 0.2948789294 | CK136: 0.2606599308 | CL136: 0.3243775763 | CM136: 0.3046213992 | CN136: 0.2760200065 | CO136: 0.3208241338 | CP136: 0.244806115 | CQ136: 0.260521021 | CR136: 0.3602124652 | CS136: 0.270446873 | CT136: 0.34484737 | CU136: 0.3141459804 | CV136: 0.2160860095 | CW136: 0.2899002708 | CY136: =SUM(B136:CW136) -> 29.19577386
A137: PF04717 | B137: 0.2898559763 | C137: 0.1822663804 | D137: 0.3037003788 | E137: 0.2059191813 | F137: 0.3723795056 | G137: 0.3336819903 | H137: 0.3775672924 | I137: 0.3337832959 | J137: 0.3201823666 | K137: 0.3751145151 | L137: 0.2574521376 | M137: 0.3432753394 | N137: 0.3777172728 | O137: 0.2391998999 | P137: 0.2225668942 | Q137: 0.3522486826 | R137: 0.1795549242 | S137: 0.2882980074 | T137: 0.2285279894 | U137: 0.2671562621 | V137: 0.2843976675 | W137: 0.3546634816 | X137: 0.2206289569 | Y137: 0.2430231119 | Z137: 0.2561041375 | AA137: 0.2952473461 | AB137: 0.2928307047 | AC137: 0.3801515931 | AD137: 0.2184021521 | AE137: 0.2127625435 | AF137: 0.2018854411 | AG137: 0.3456004454 | AH137: 0.2551044295 | AI137: 0.2459522353 | AJ137: 0.2999890004 | AK137: 0.2978951972 | AL137: 0.2721518027 | AM137: 0.3260354067 | AN137: 0.2456003762 | AO137: 0.2916389547 | AP137: 0.3509577934 | AQ137: 0.3046881008 | AR137: 0.2881181872 | AS137: 0.1898990354 | AT137: 0.4088365119 | AU137: 0.190659411 | AV137: 0.1783110643 | AW137: 0.3564443171 | AX137: 0.3033097846 | AY137: 0.3804246237 | AZ137: 0.3164562941 | BA137: 0.2638058358 | BB137: 0.3335606344 | BC137: 0.257896649 | BD137: 0.4156166966 | BE137: 0.3126489486 | BF137: 0.3482992634 | BG137: 0.2789093657 | BH137: 0.2250233609 | BI137: 0.207605246 | BJ137: 0.2212047869 | BK137: 0.260029058 | BL137: 0.2800591241 | BM137: 0.1879222284 | BN137: 0.3586472587 | BO137: 0.2943700357 | BP137: 0.3073627317 | BQ137: 0.3542630897 | BR137: 0.2077853563 | BS137: 0.3551332857 | BT137: 0.2356542741 | BU137: 0.3443988178 | BV137: 0.3729437454 | BW137: 0.2474973985 | BX137: 0.227102379 | BY137: 0.218959568 | BZ137: 0.2271473599 | CA137: 0.3347185868 | CB137: 0.3304926192 | CC137: 0.3244307996 | CD137: 0.3309322602 | CE137: 0.3539547245 | CF137: 0.2196242551 | CG137: 0.3195458105 | CH137: 0.2998290448 | CI137: 0.352225821 | CJ137: 0.2365784274 | CK137: 0.3223380964 | CL137: 0.2798381595 | CM137: 0.2529823098 | CN137: 0.3618177181 | CO137: 0.4299966035 | CP137: 0.3454236192 | CQ137: 0.2769073208 | CR137: 0.2196704968 | CS137: 0.2694534149 | CT137: 0.2788761001 | CU137: 0.2702458324 | CV137: 0.4102354896 | CW137: 0.2699182724 | CY137: =SUM(B137:CW137) -> 29.09250068
A138: PF11367 | B138: 0.3217978575 | C138: 0.238847585 | D138: 0.3654805373 | E138: 0.2225036338 | F138: 0.448186595 | G138: 0.2441171733 | H138: 0.1990570879 | I138: 0.4222441789 | J138: 0.2606316233 | K138: 0.4838891959 | L138: 0.2986847364 | M138: 0.3203555762 | N138: 0.3480933372 | O138: 0.2399007353 | P138: 0.3667596266 | Q138: 0.2941394412 | R138: 0.2732988357 | S138: 0.3012491658 | T138: 0.1784191313 | U138: 0.1886744395 | V138: 0.1935896213 | W138: 0.214591081 | X138: 0.259012951 | Y138: 0.2792084852 | Z138: 0.2435786906 | AA138: 0.3234221892 | AB138: 0.1608086781 | AC138: 0.2012719352 | AD138: 0.2254576493 | AE138: 0.4057013026 | AF138: 0.2199368863 | AG138: 0.2235538169 | AH138: 0.2854783734 | AI138: 0.3312833966 | AJ138: 0.2620184846 | AK138: 0.3702361528 | AL138: 0.2958959893 | AM138: 0.1655014452 | AN138: 0.2113263577 | AO138: 0.2332002958 | AP138: 0.3684804961 | AQ138: 0.2829323454 | AR138: 0.3468248549 | AS138: 0.3580493961 | AT138: 0.2743367296 | AU138: 0.276125476 | AV138: 0.2358936947 | AW138: 0.2921648939 | AX138: 0.3953036662 | AY138: 0.3122270184 | AZ138: 0.2227138379 | BA138: 0.2655202568 | BB138: 0.2975178112 | BC138: 0.3624413596 | BD138: 0.2640147924 | BE138: 0.2778343113 | BF138: 0.2886515717 | BG138: 0.2361464282 | BH138: 0.3334055535 | BI138: 0.2124415023 | BJ138: 0.3591086076 | BK138: 0.5335237141 | BL138: 0.2986290125 | BM138: 0.3209612079 | BN138: 0.3309636969 | BO138: 0.2738437809 | BP138: 0.2231818508 | BQ138: 0.2294215459 | BR138: 0.2806979002 | BS138: 0.2551117862 | BT138: 0.3966859335 | BU138: 0.2550979978 | BV138: 0.2979557847 | BW138: 0.2893452994 | BX138: 0.2850556189 | BY138: 0.3966967108 | BZ138: 0.2924641385 | CA138: 0.2829013483 | CB138: 0.3247795928 | CC138: 0.3495682695 | CD138: 0.2547613054 | CE138: 0.1855378524 | CF138: 0.3094237258 | CG138: 0.2770571564 | CH138: 0.2421441726 | CI138: 0.2742883988 | CJ138: 0.3088342344 | CK138: 0.1836234178 | CL138: 0.3617954686 | CM138: 0.2203318256 | CN138: 0.2799746677 | CO138: 0.4761461919 | CP138: 0.3057929622 | CQ138: 0.3351847532 | CR138: 0.2398293795 | CS138: 0.1928459672 | CT138: 0.3090422535 | CU138: 0.2123687441 | CV138: 0.2900448575 | CW138: 0.2634342508 | CY138: =SUM(B138:CW138) -> 28.82288565
A139: PF04985 | B139: 0.2311277113 | C139: 0.2646981227 | D139: 0.328984289 | E139: 0.2451382619 | F139: 0.3572408503 | G139: 0.1850201816 | H139: 0.2846713522 | I139: 0.2899397557 | J139: 0.2556786559 | K139: 0.4351079043 | L139: 0.2699127245 | M139: 0.4252798496 | N139: 0.1843036896 | O139: 0.2405790571 | P139: 0.2052730054 | Q139: 0.2576390184 | R139: 0.1608823752 | S139: 0.2851409841 | T139: 0.2501117422 | U139: 0.2925275132 | V139: 0.2003235035 | W139: 0.3050679728 | X139: 0.2650195936 | Y139: 0.2514545878 | Z139: 0.2476899561 | AA139: 0.2506327949 | AB139: 0.2727770682 | AC139: 0.3166700485 | AD139: 0.2982075463 | AE139: 0.1734810758 | AF139: 0.4212033642 | AG139: 0.3436536431 | AH139: 0.366042883 | AI139: 0.3121802304 | AJ139: 0.2616023664 | AK139: 0.3743555133 | AL139: 0.3371858256 | AM139: 0.3432433576 | AN139: 0.2348680904 | AO139: 0.2093333859 | AP139: 0.2339826135 | AQ139: 0.2974873821 | AR139: 0.3407520303 | AS139: 0.242410224 | AT139: 0.3181285269 | AU139: 0.257366591 | AV139: 0.215653712 | AW139: 0.3323011229 | AX139: 0.4005136533 | AY139: 0.3200382983 | AZ139: 0.3822722127 | BA139: 0.293649202 | BB139: 0.2670282632 | BC139: 0.3730969234 | BD139: 0.2271721773 | BE139: 0.2410429368 | BF139: 0.2844204915 | BG139: 0.219537142 | BH139: 0.2777467974 | BI139: 0.1840930598 | BJ139: 0.2999380823 | BK139: 0.3851866317 | BL139: 0.2738464966 | BM139: 0.1608329537 | BN139: 0.2713412765 | BO139: 0.2570434885 | BP139: 0.209038151 | BQ139: 0.2831963877 | BR139: 0.2257862342 | BS139: 0.3108556848 | BT139: 0.3171680606 | BU139: 0.4093295897 | BV139: 0.2482311949 | BW139: 0.2531174376 | BX139: 0.2499289379 | BY139: 0.3360660258 | BZ139: 0.2502696809 | CA139: 0.3192363741 | CB139: 0.2540836121 | CC139: 0.2430690815 | CD139: 0.2113218458 | CE139: 0.305194927 | CF139: 0.348625905 | CG139: 0.3254297516 | CH139: 0.2277825092 | CI139: 0.3818459832 | CJ139: 0.2861178476 | CK139: 0.311242519 | CL139: 0.2865084417 | CM139: 0.3680055277 | CN139: 0.2534678015 | CO139: 0.2889604521 | CP139: 0.4058110284 | CQ139: 0.3588431713 | CR139: 0.2523864399 | CS139: 0.3342264437 | CT139: 0.3345748902 | CU139: 0.328452748 | CV139: 0.3140187792 | CW139: 0.254778884 | CY139: =SUM(B139:CW139) -> 28.67810449
A140: PF04326 | B140: 0.2066798145 | C140: 0.2676688415 | D140: 0.2730868967 | E140: 0.1902365188 | F140: 0.2343149188 | G140: 0.2717457619 | H140: 0.2346653498 | I140: 0.1723274483 | J140: 0.2433433087 | K140: 0.3179203604 | L140: 0.2859502921 | M140: 0.3605607004 | N140: 0.2194628634 | O140: 0.2273212439 | P140: 0.2608889347 | Q140: 0.3018611752 | R140: 0.2565147031 | S140: 0.2916212063 | T140: 0.5446177118 | U140: 0.2842515374 | V140: 0.3153086384 | W140: 0.2568601408 | X140: 0.2204031192 | Y140: 0.2103981788 | Z140: 0.3625805755 | AA140: 0.3093868769 | AB140: 0.2151540134 | AC140: 0.2733105908 | AD140: 0.1828845429 | AE140: 0.2960609155 | AF140: 0.4178167377 | AG140: 0.3476197011 | AH140: 0.5560971064 | AI140: 0.2011113523 | AJ140: 0.2801622135 | AK140: 0.2582010373 | AL140: 0.2160122045 | AM140: 0.4107921392 | AN140: 0.3034289511 | AO140: 0.3004146609 | AP140: 0.4301841655 | AQ140: 0.2865060375 | AR140: 0.2413619227 | AS140: 0.3488047103 | AT140: 0.2626309796 | AU140: 0.2400339389 | AV140: 0.3520174962 | AW140: 0.4201981837 | AX140: 0.3247445045 | AY140: 0.3344028605 | AZ140: 0.3220207794 | BA140: 0.2479657464 | BB140: 0.344985692 | BC140: 0.2628896281 | BD140: 0.3948461336 | BE140: 0.4003206191 | BF140: 0.2446880517 | BG140: 0.2905077627 | BH140: 0.3262652034 | BI140: 0.4817844748 | BJ140: 0.2141694634 | BK140: 0.3509940828 | BL140: 0.2346252201 | BM140: 0.2116847783 | BN140: 0.2430658783 | BO140: 0.2820962692 | BP140: 0.2238722109 | BQ140: 0.1796996016 | BR140: 0.165146879 | BS140: 0.2575624885 | BT140: 0.1958147309 | BU140: 0.2576149053 | BV140: 0.2197470351 | BW140: 0.3455196472 | BX140: 0.3094699755 | BY140: 0.3376568556 | BZ140: 0.3527211388 | CA140: 0.3208595158 | CB140: 0.2066265592 | CC140: 0.2598300006 | CD140: 0.2942597434 | CE140: 0.2567373044 | CF140: 0.1816880072 | CG140: 0.3000064671 | CH140: 0.2905984762 | CI140: 0.1925352291 | CJ140: 0.3049889566 | CK140: 0.2390081323 | CL140: 0.310724242 | CM140: 0.3099377682 | CN140: 0.3523119773 | CO140: 0.2518735677 | CP140: 0.3099582582 | CQ140: 0.2157161841 | CR140: 0.4023137063 | CS140: 0.2984505094 | CT140: 0.3103804902 | CU140: 0.2079618364 | CV140: 0.2053513745 | CW140: 0.2123005307 | CY140: =SUM(B140:CW140) -> 28.55208217
